Workbook

Sheet P.Allo (1)
A1: Details
B3: Deal Name | D3: n/a
B4: Description | D4: n/a
B5: Net Senior Leverage | D5: n/a
B6: Protective Advances | D6: n/a
B7: Open Market | D7: n/a
B8: Sponsor | D8: =IFERROR(VLOOKUP(dName,tblListOfDeals[],2,0),"n/a") -> n/a
B9: Industry | D9: =IFERROR(VLOOKUP(dName,tblListOfDeals[],3,0),"n/a") -> n/a
B10: Target Date | D10: n/a
B11: Dividend Recap | D11: n/a
B12: DIP Loan | D12: n/a
B13: LTV % | D13: n/a
B14: Approved by Swiss | D14: N
B15: Country (CAN) | D15: N
A16: Allocations
D18: Revolver | F18: Term Loan | H18: DDTL | J18: DDTL 2 | L18: Totals | N18: Cur. Pro Rata % | P18: Inc. Pro Rata %
B19: NXT | D19: Unfunded | F19: Unfunded | H19: Unfunded | J19: Unfunded | N19: =IFERROR(L87/L92,"-") -> - | P19: =IFERROR(L19/$L$36,"-") -> -
B20: SLF I | D20: =IF($L20>0,"Unfunded",0) -> 0 | F20: =IF(L20>0,IF($P$35>0.75,$P$35,0.85),0) -> 0 | H20: =IF($L20>0,"Unfunded",0) -> 0 | J20: 0 | N20: =IFERROR(L108/$L$134,"-") -> - | P20: -
A21: =L21 -> 0 | B21: Potential SLF V | D21: 0 | F21: =IF(L21>0,IF($P$35>0.75,$P$35,0.75),0) -> 0 | H21: 0 | J21: 0 | N21: =IFERROR(L120/$L$135,"-") -> - | P21: -
A22: 0 | B22: Potential SLF VI L | D22: 0 | F22: 0 | H22: 0 | J22: 0 | N22: =IFERROR(L123/$L$135,"-") -> - | P22: -
A23: =L23 -> 0 | B23: Potential SLF VI UL | D23: 0 | F23: 0 | H23: 0 | J23: 0 | N23: =IFERROR(L126/$L$135,"-") -> - | P23: -
B24: Potential SLF VII | D24: 0 | F24: 0 | H24: 0 | J24: 0 | N24: =IFERROR(L129/$L$135,"-") -> - | P24: -
B25: Potential SLF VIII | D25: 0 | F25: 0 | H25: 0 | J25: 0 | N25: =IFERROR(L132/$L$135,"-") -> - | P25: -
A26: =L26 -> 0 | B26: SMA-A | D26: 0 | F26: 0 | H26: 0 | J26: 0 | N26: =IFERROR(L94/$L$135,"-") -> - | P26: -
A27: 0 | B27: SMA-SC | D27: 0 | F27: 0 | H27: 0 | J27: 0 | N27: =IFERROR((L102+L103)/$L$135,"-") -> - | P27: -
A28: 0 | B28: Potential SMA-SC NT | D28: 0 | F28: 0 | H28: 0 | J28: 0 | N28: =IFERROR((L104+L105)/$L$135,"-") -> - | P28: -
A29: 0 | B29: SMA-AF | D29: 0 | F29: 0 | H29: 0 | J29: 0 | N29: =IFERROR((L97+L100)/$L$135,"-") -> - | P29: - | R29: Aflac Distribution
A30: 0 | B30: SMA-CH | D30: 0 | F30: 0 | H30: 0 | J30: 0 | N30: =IFERROR(L101/$L$135,"-") -> - | P30: - | R30: AF-US | T30: =1/6 -> 0.1666666667
A31: 0 | B31: SMA-CC | D31: 0 | F31: 0 | H31: 0 | J31: 0 | N31: =IFERROR(L106/$L$135,"-") -> - | P31: - | R31: AF-JAP | T31: =1-T30 -> 0.8333333333
A32: =L32 -> 0 | B32: SMA-VG | D32: 0 | F32: 0 | H32: 0 | J32: 0 | N32: =IFERROR(L107/$L$135,"-") -> - | P32: -
A33: =L33 -> 0 | B33: SMA-OML | D33: 0 | F33: 0 | H33: 0 | J33: 0 | N33: =IFERROR(L133/$L$135,"-") -> - | P33: -
B34: SMA-3 | D34: 0 | F34: 0 | H34: 0 | J34: 0 | N34: =IFERROR(L134/$L$135,"-") -> - | P34: -
B35: NXT Underwrite | D35: 0 | F35: 0 | H35: 0 | J35: 0 | L35: =SUM(D35:K35) -> 0 | M35: =SUM(D35:L35) -> 0 | P35: =IFERROR(F35/L35,0) -> 0
B36: NXT Hold | D36: =IFERROR(D35/$L$35,0)*$L$36 -> 0 | F36: =IFERROR(F35/$L$35,0)*$L$36 -> 0 | H36: =IFERROR(H35/$L$35,0)*$L$36 -> 0 | J36: =IFERROR(J35/L$35,0)*L$36 -> 0 | L36: 0 | N36: =L36-SUM(L19:L34) -> 0 | P36: =IFERROR(F36/L36,0) -> 0
B37: Unfunded | D37: =IFERROR(D36/(SUM($D$36:$K$36)-$F$36),0) -> 0 | F37: 0 | H37: =IFERROR(H36/(SUM($D$36:$K$36)-$F$36),0) -> 0 | J37: =IFERROR(J36/(SUM($D$36:$K$36)-$F$36),0) -> 0 | N37: To Allocate | P37: Funded
A39: Hypo Results
B41: SLF I | D41: =_xlfn.CONCAT("Passing ", COUNTIF(SummaryKaiser[Pass/Fail],"Pass"), "; Failing ", COUNTIF(SummaryKaiser[Pass/Fail],"Fail"), " (", _xlfn.TEXTJOIN(", ",TRUE,IF(SummaryKaiser[Pass/Fail]="Fail",SummaryKaiser[Constraint],"")),")" ) -> Passing 4; Failing 0 ()
A42: =L27 -> 0 | B42: SMA-SC | D42: =_xlfn.CONCAT("Passing ", COUNTIF(SummarySwiss[Pass/Fail],"Pass"), "; Failing ", COUNTIF(SummarySwiss[Pass/Fail],"Fail"), " (", _xlfn.TEXTJOIN(", ",TRUE,IF(SummarySwiss[Pass/Fail]="Fail",SummarySwiss[Constraint],"")),")" ) -> Passing 10; Failing 2 (Max Commitment, 4.35x Leverage)
A43: =L28 -> 0 | B43: SMA-SC NT | D43: =_xlfn.CONCAT("Passing ", COUNTIF(SummarySwissNT[Pass/Fail],"Pass"), "; Failing ", COUNTIF(SummarySwissNT[Pass/Fail],"Fail"), " (", _xlfn.TEXTJOIN(", ",TRUE,IF(SummarySwissNT[Pass/Fail]="Fail",SummarySwissNT[Constraint],"")),")" ) -> Passing 11; Failing 1 (4.35x Leverage)
A44: 0 | B44: SMA-AF US | D44: =_xlfn.CONCAT("Passing ", COUNTIF(SummaryAFUS[Pass/Fail],"Pass"), "; Failing ", COUNTIF(SummaryAFUS[Pass/Fail],"Fail"), " (", _xlfn.TEXTJOIN(", ",TRUE,IF(SummaryAFUS[Pass/Fail]="Fail",SummaryAFUS[Constraint],"")),")" ) -> Passing 10; Failing 0 ()
A45: 0 | B45: SMA-AF JAP | D45: =_xlfn.CONCAT("Passing ", COUNTIF(SummaryAFJAP[Pass/Fail],"Pass"), "; Failing ", COUNTIF(SummaryAFJAP[Pass/Fail],"Fail"), " (", _xlfn.TEXTJOIN(", ",TRUE,IF(SummaryAFJAP[Pass/Fail]="Fail",SummaryAFJAP[Constraint],"")),")" ) -> Passing 10; Failing 0 ()
A46: 0 | B46: SMA-CH | D46: =_xlfn.CONCAT("Passing ", COUNTIF(SummaryChubb[Pass/Fail],"Pass"), "; Failing ", COUNTIF(SummaryChubb[Pass/Fail],"Fail"), " (", _xlfn.TEXTJOIN(", ",TRUE,IF(SummaryChubb[Pass/Fail]="Fail",SummaryChubb[Constraint],"")),")" ) -> Passing 10; Failing 0 ()
A47: 0 | B47: SMA-CC | D47: -
A48: 0 | B48: SMA-VG | D48: =_xlfn.CONCAT("Passing ", COUNTIF(SummaryVG[Pass/Fail],"Pass"), "; Failing ", COUNTIF(SummaryVG[Pass/Fail],"Fail"), " (", _xlfn.TEXTJOIN(", ",TRUE,IF(SummaryVG[Pass/Fail]="Fail",SummaryVG[Constraint],"")),")" ) -> Passing 9; Failing 0 ()
A49: 0 | B49: SLF VI UL | D49: =_xlfn.CONCAT("Passing ", COUNTIF(SummarySLFVIUL[Pass/Fail],"Pass"), "; Failing ", COUNTIF(SummarySLFVIUL[Pass/Fail],"Fail"), " (", _xlfn.TEXTJOIN(", ",TRUE,IF(SummarySLFVIUL[Pass/Fail]="Fail",SummarySLFVIUL[Constraint],"")),")" ) -> Passing 4; Failing 0 ()
B50: Results current as of: | D50: Not yet submitted to hypo.
A52: Portfolio Allocations Report
B54: Credit Facility | R54: Fees
D56: =D18 -> Revolver | F56: =F18 -> Term Loan | H56: =H18 -> DDTL | J56: =J18 -> DDTL 2 | L56: Totals | N56: Funded | P56: Unfunded | T56: Fee | V56: $ Amt
B57: NXT | D57: =($L57-$F57)*IF(D19="Unfunded",D$37,D19) -> 0 | F57: =$F$36-SUM(IF(LEFT($B58:$B74,1)="*",0,F58:F74)) -> 0 | H57: =($L57-$F57)*IF(H19="Unfunded",H$37,H19) -> 0 | J57: =($L57-$F57)*IF(J19="Unfunded",J$37,J19) -> 0 | L57: =L19 -> 0 | N57: =IFERROR(F57/SUM(D57:K57),"n/a") -> n/a | P57: =IFERROR(1-N57,"n/a") -> n/a | R57: Closing | T57: 0 | V57: =+T57*$L$19 -> 0
B58: SLF I | D58: 0 | F58: =L58*IF(F20="Unfunded",$F$37,F20) -> 0 | H58: 0 | J58: 0 | L58: 0 | N58: =IFERROR(F58/SUM(D58:K58),"n/a") -> n/a | P58: =IFERROR(1-N58,"n/a") -> n/a | R58: Structuring | T58: 0 | V58: =+T58*$L$36 -> 0
A59: =L59 -> 0 | B59: Potential SLF V | D59: 0 | F59: 0 | H59: 0 | J59: 0 | L59: 0 | N59: n/a | P59: n/a | R59: Agency | T59: 0 | V59: =T59*$L$35 -> 0
A60: 0 | B60: Potential SLF VI L | D60: 0 | F60: 0 | H60: 0 | J60: 0 | L60: 0 | N60: n/a | P60: n/a | R60: NXT Fees | V60: =SUM(V57:V59) -> 0
A61: =L61 -> 0 | B61: Potential SLF VI UL | D61: 0 | F61: 0 | H61: 0 | J61: 0 | L61: 0 | N61: n/a | P61: n/a
B62: Potential SLF VII | D62: 0 | F62: 0 | H62: 0 | J62: 0 | L62: 0 | N62: n/a | P62: n/a
B63: Potential SLF VIII | D63: 0 | F63: 0 | H63: 0 | J63: 0 | L63: 0 | N63: n/a | P63: n/a | R63: ="Issues" & IF(SUMPRODUCT(1*(R64:R77<>""))=0," (none)","") -> Issues (none)
A64: =L64 -> 0 | B64: SMA-A | D64: 0 | F64: 0 | H64: 0 | J64: 0 | L64: 0 | N64: n/a | P64: n/a | R64: =IF(SUMPRODUCT(1*(D58:L59>D$57:L$57))>0,"SLF I and SLF V can neither have commitments greater than NXT's.","") -> 
A65: 0 | B65: SMA-SC | D65: 0 | F65: 0 | H65: 0 | J65: 0 | L65: 0 | N65: n/a | P65: n/a
A66: 0 | B66: Potential SMA-SC NT | D66: 0 | F66: 0 | H66: 0 | J66: 0 | L66: 0 | N66: n/a | P66: n/a
A67: =A69 -> 0 | B67: *SMA-AF US | D67: 0 | F67: =$L67*IF(F29="Unfunded",F$37,F29) -> 0 | H67: 0 | J67: =(L67-$F67)*IF(J29="Unfunded",J$37,J29) -> 0 | L67: =$L$29*AFUS_Portion -> 0 | N67: n/a | P67: n/a
A68: =A69 -> 0 | B68: *SMA-AF JAP | D68: =($L68-$F68)*IF(D29="Unfunded",D$37,D29) -> 0 | F68: =$L68*IF(F29="Unfunded",F$37,F29) -> 0 | H68: =($L68-$F68)*IF(H29="Unfunded",H$37,H29) -> 0 | J68: =(L68-$F68)*IF(J30="Unfunded",J$37,J30) -> 0 | L68: =L$69-$L$67 -> 0 | N68: n/a | P68: n/a
A69: 0 | B69: SMA-AF | D69: =SUM(D67:D68) -> 0 | F69: =SUM(F67:F68) -> 0 | H69: =SUM(H67:H68) -> 0 | J69: =SUM(J67:J68) -> 0 | L69: =L29 -> 0 | N69: n/a | P69: n/a
A70: 0 | B70: SMA-CH | D70: =($L70-$F70)*IF(D30="Unfunded",D$37,D30) -> 0 | F70: =L70*IF(F30="Unfunded",$F$37,F30) -> 0 | H70: =($L70-$F70)*IF(H30="Unfunded",H$37,H30) -> 0 | J70: =($L70-$F70)*IF(J30="Unfunded",J$37,J30) -> 0 | L70: 0 | N70: n/a | P70: n/a
A71: 0 | B71: SMA-CC | D71: =($L71-$F71)*IF(D31="Unfunded",D$37,D31) -> 0 | F71: =L71*IF(F31="Unfunded",$F$37,F31) -> 0 | H71: =($L71-$F71)*IF(H31="Unfunded",H$37,H31) -> 0 | J71: =($L71-$F71)*IF(J31="Unfunded",J$37,J31) -> 0 | L71: 0 | N71: n/a | P71: n/a
A72: 0 | B72: SMA-VG | D72: =($L72-$F72)*IF(D32="Unfunded",D$37,D32) -> 0 | F72: =L72*IF(F32="Unfunded",$F$37,F32) -> 0 | H72: =($L72-$F72)*IF(H32="Unfunded",H$37,H32) -> 0 | J72: =($L72-$F72)*IF(J32="Unfunded",J$37,J32) -> 0 | L72: 0 | N72: n/a | P72: n/a
A73: 0 | B73: SMA-OML | D73: =($L73-$F73)*IF(D33="Unfunded",D$37,D33) -> 0 | F73: =L73*IF(F33="Unfunded",$F$37,F33) -> 0 | H73: =($L73-$F73)*IF(H33="Unfunded",H$37,H33) -> 0 | J73: =($L73-$F73)*IF(J33="Unfunded",J$37,J33) -> 0 | L73: 0 | N73: n/a | P73: n/a
B74: SMA-3 | D74: =($L74-$F74)*IF(D34="Unfunded",D$37,D34) -> 0 | F74: =L74*IF(F34="Unfunded",$F$37,F34) -> 0 | H74: =($L74-$F74)*IF(H34="Unfunded",H$37,H34) -> 0 | J74: =($L74-$F74)*IF(J34="Unfunded",J$37,J34) -> 0 | L74: 0 | N74: n/a | P74: n/a
B75: NXT and Affiliates | D75: =SUM(IF(LEFT($B57:$B74,1)="*",0,D57:D74)) -> 0 | F75: =SUM(IF(LEFT($B57:$B74,1)="*",0,F57:F74)) -> 0 | H75: =SUM(IF(LEFT($B57:$B74,1)="*",0,H57:H74)) -> 0 | J75: =SUM(IF(LEFT($B57:$B74,1)="*",0,J57:J74)) -> 0 | L75: =SUM(IF(LEFT($B57:$B74,1)="*",0,L57:L74)) -> 0 | N75: n/a | P75: n/a
B76: Balance to Syndicate | D76: =D77-D75 -> 0 | F76: =F77-F75 -> 0 | H76: =H77-H75 -> 0 | J76: =J77-J75 -> 0 | L76: =SUM(D76:K76) -> 0 | N76: n/a | P76: n/a
B77: NXT Underwrite | D77: =D35 -> 0 | F77: =F35 -> 0 | H77: =H35 -> 0 | J77: =J35 -> 0 | L77: =SUM(D77:K77) -> 0 | N77: n/a | P77: n/a
A82: Pro Forma
B84: Current Commitments | N84: Incremental Commitments | X84: Pro Forma
D86: =D56 -> Revolver | F86: =F56 -> Term Loan | H86: =H56 -> DDTL | J86: =J56 -> DDTL 2 | L86: Totals | N86: =D86 -> Revolver | P86: =F86 -> Term Loan | R86: =H86 -> DDTL | T86: =J86 -> DDTL 2 | V86: Totals | X86: =N86 -> Revolver | Z86: =P86 -> Term Loan | AB86: =R86 -> DDTL | AD86: =T86 -> DDTL 2 | AF86: Totals
B87: NXT CAPITAL, LLC | D87: =SUMIFS($C$160:$C$370, $A$160:$A$370, $B87, $B$160:$B$370, D$86) -> 0 | F87: =SUMIFS($C$160:$C$370, $A$160:$A$370, $B87, $B$160:$B$370, F$86) -> 0 | H87: =SUMIFS($C$160:$C$370, $A$160:$A$370, $B87, $B$160:$B$370, H$86) -> 0 | J87: =SUMIFS($C$160:$C$370, $A$160:$A$370, $B87, $B$160:$B$370, J$86) -> 0 | L87: =SUM(D87:K87) -> 0 | N87: =IF(ISNUMBER(D19),D19,0)*$V$87 -> 0 | P87: =IF(ISNUMBER(F19),F19,0)*$V$87 -> 0 | R87: =IF(ISNUMBER(H19),H19,0)*$V$87 -> 0 | T87: =IF(ISNUMBER(J19),J19,0)*$V$87 -> 0 | V87: =L19 -> 0 | X87: =N87+D87 -> 0 | Z87: =P87+F87 -> 0 | AB87: =R87+H87 -> 0 | AD87: =T87+J87 -> 0 | AF87: =SUM(X87:AE87) -> 0
B88: NXT CLO 2015-1 | D88: =SUMIFS($C$160:$C$370, $A$160:$A$370, $B88, $B$160:$B$370, D$86) -> 0 | F88: =SUMIFS($C$160:$C$370, $A$160:$A$370, $B88, $B$160:$B$370, F$86) -> 0 | H88: =SUMIFS($C$160:$C$370, $A$160:$A$370, $B88, $B$160:$B$370, H$86) -> 0 | J88: =SUMIFS($C$160:$C$370, $A$160:$A$370, $B88, $B$160:$B$370, J$86) -> 0 | L88: 0 | V88: =SUM(N88:U88) -> 0 | X88: =N88+D88 -> 0 | Z88: 0 | AB88: 0 | AD88: 0 | AF88: =SUM(X88:AE88) -> 0
B89: NXT CLO 2017-1 | D89: =SUMIFS($C$160:$C$370, $A$160:$A$370, $B89, $B$160:$B$370, D$86) -> 0 | F89: =SUMIFS($C$160:$C$370, $A$160:$A$370, $B89, $B$160:$B$370, F$86) -> 0 | H89: =SUMIFS($C$160:$C$370, $A$160:$A$370, $B89, $B$160:$B$370, H$86) -> 0 | J89: =SUMIFS($C$160:$C$370, $A$160:$A$370, $B89, $B$160:$B$370, J$86) -> 0 | L89: 0 | V89: 0 | X89: 0 | Z89: 0 | AB89: 0 | AD89: 0 | AF89: 0
B90: NXT CLO 2017-2 | D90: =SUMIFS($C$160:$C$370, $A$160:$A$370, $B90, $B$160:$B$370, D$86) -> 0 | F90: =SUMIFS($C$160:$C$370, $A$160:$A$370, $B90, $B$160:$B$370, F$86) -> 0 | H90: =SUMIFS($C$160:$C$370, $A$160:$A$370, $B90, $B$160:$B$370, H$86) -> 0 | J90: =SUMIFS($C$160:$C$370, $A$160:$A$370, $B90, $B$160:$B$370, J$86) -> 0 | L90: 0 | V90: 0 | X90: 0 | Z90: 0 | AB90: 0 | AD90: 0 | AF90: 0
B91: NXT CLO 2020-1 | D91: =SUMIFS($C$160:$C$370, $A$160:$A$370, $B91, $B$160:$B$370, D$86) -> 0 | F91: =SUMIFS($C$160:$C$370, $A$160:$A$370, $B91, $B$160:$B$370, F$86) -> 0 | H91: =SUMIFS($C$160:$C$370, $A$160:$A$370, $B91, $B$160:$B$370, H$86) -> 0 | J91: =SUMIFS($C$160:$C$370, $A$160:$A$370, $B91, $B$160:$B$370, J$86) -> 0 | L91: 0 | V91: 0 | X91: 0 | Z91: 0 | AB91: 0 | AD91: 0 | AF91: 0
B92: Subtotal NXT Balance Sheet | D92: =SUM(D87:D91) -> 0 | F92: =SUM(F87:F91) -> 0 | H92: =SUM(H87:H91) -> 0 | J92: =SUM(J87:J91) -> 0 | L92: =SUM(L87:L91) -> 0 | N92: =D57 -> 0 | P92: =F57 -> 0 | R92: =H57 -> 0 | T92: =J57 -> 0 | V92: =SUM(N92:U92) -> 0 | X92: =SUM(X87:X91) -> 0 | Z92: =SUM(Z87:Z91) -> 0 | AB92: =SUM(AB87:AB91) -> 0 | AD92: =SUM(AD87:AD91) -> 0 | AF92: =SUM(X92:AE92) -> 0
A94: =AF94 -> 0 | B94: SMA-A | D94: =SUMIFS($C$160:$C$370, $A$160:$A$370, $B94, $B$160:$B$370, D$86) -> 0 | F94: =SUMIFS($C$160:$C$370, $A$160:$A$370, $B94, $B$160:$B$370, F$86) -> 0 | H94: =SUMIFS($C$160:$C$370, $A$160:$A$370, $B94, $B$160:$B$370, H$86) -> 0 | J94: =SUMIFS($C$160:$C$370, $A$160:$A$370, $B94, $B$160:$B$370, J$86) -> 0 | L94: =SUM(D94:K94) -> 0 | N94: =D64 -> 0 | P94: =F64 -> 0 | R94: =H64 -> 0 | T94: =J64 -> 0 | V94: =SUM(N94:U94) -> 0 | X94: 0 | Z94: 0 | AB94: 0 | AD94: 0 | AF94: 0
A95: =A97 -> 0 | B95: *SMA-AF US, Commitment | L95: 0 | N95: =IF(AND($L$95=0,$L$98<5000000),0,D67) -> 0 | P95: =IF(AND($L$95=0,$L$98<5000000),0,F67) -> 0 | R95: =IF(AND($L$95=0,$L$98<5000000),0,H67) -> 0 | T95: =IF(AND($L$95=0,$L$98<5000000),0,J67) -> 0 | V95: 0 | X95: 0 | Z95: 0 | AB95: 0 | AD95: 0 | AF95: 0
A96: =A97 -> 0 | B96: *SMA-AF US, Crosstrade | L96: 0 | N96: 0 | P96: 0 | R96: 0 | T96: 0 | V96: 0 | X96: 0 | Z96: 0 | AB96: 0 | AD96: 0 | AF96: 0
A97: =AF97 -> 0 | B97: SMA-AF US | D97: =SUMIFS($C$160:$C$370, $A$160:$A$370, $B97, $B$160:$B$370, D$86) -> 0 | F97: =SUMIFS($C$160:$C$370, $A$160:$A$370, $B97, $B$160:$B$370, F$86) -> 0 | H97: =SUMIFS($C$160:$C$370, $A$160:$A$370, $B97, $B$160:$B$370, H$86) -> 0 | J97: =SUMIFS($C$160:$C$370, $A$160:$A$370, $B97, $B$160:$B$370, J$86) -> 0 | L97: 0 | N97: =SUM(N95:N96) -> 0 | P97: =SUM(P95:P96) -> 0 | R97: =SUM(R95:R96) -> 0 | T97: =SUM(T95:T96) -> 0 | V97: 0 | X97: 0 | Z97: 0 | AB97: 0 | AD97: 0 | AF97: 0
A98: =A100 -> 0 | B98: *SMA-AF JAP, Commitment | L98: 0 | N98: =IF(AND($L$95=0,$L$98<5000000),SUM(D67:D68),D68) -> 0 | P98: =IF(AND($L$95=0,$L$98<5000000),SUM(F67:F68),F68) -> 0 | R98: =IF(AND($L$95=0,$L$98<5000000),SUM(H67:H68),H68) -> 0 | T98: =IF(AND($L$95=0,$L$98<5000000),SUM(J67:J68),J68) -> 0 | V98: 0 | X98: 0 | Z98: 0 | AB98: 0 | AD98: 0 | AF98: 0
A99: =A100 -> 0 | B99: *SMA-AF JAP, Crosstrade | L99: 0 | N99: 0 | P99: 0 | R99: 0 | T99: 0 | V99: 0 | X99: 0 | Z99: 0 | AB99: 0 | AD99: 0 | AF99: 0
A100: 0 | B100: SMA-AF JAP | D100: =SUMIFS($C$160:$C$370, $A$160:$A$370, $B100, $B$160:$B$370, D$86) -> 0 | F100: =SUMIFS($C$160:$C$370, $A$160:$A$370, $B100, $B$160:$B$370, F$86) -> 0 | H100: =SUMIFS($C$160:$C$370, $A$160:$A$370, $B100, $B$160:$B$370, H$86) -> 0 | J100: =SUMIFS($C$160:$C$370, $A$160:$A$370, $B100, $B$160:$B$370, J$86) -> 0 | L100: 0 | N100: =SUM(N98:N99) -> 0 | P100: =SUM(P98:P99) -> 0 | R100: =SUM(R98:R99) -> 0 | T100: =SUM(T98:T99) -> 0 | V100: 0 | X100: 0 | Z100: 0 | AB100: 0 | AD100: 0 | AF100: 0
A101: 0 | B101: SMA-CH | D101: 0 | F101: 0 | H101: 0 | J101: 0 | L101: 0 | N101: =D70 -> 0 | P101: =F70 -> 0 | R101: =H70 -> 0 | T101: =J70 -> 0 | V101: 0 | X101: 0 | Z101: 0 | AB101: 0 | AD101: 0 | AF101: 0
A102: 0 | B102: SMA-SC | D102: 0 | F102: 0 | H102: 0 | J102: 0 | L102: 0 | N102: =D65 -> 0 | P102: =F65 -> 0 | R102: =H65 -> 0 | T102: =J65 -> 0 | V102: 0 | X102: 0 | Z102: 0 | AB102: 0 | AD102: 0 | AF102: 0
A103: 0 | B103: SMA-SC C | D103: 0 | F103: 0 | H103: 0 | J103: 0 | L103: 0 | N103: 0 | P103: 0 | R103: 0 | T103: 0 | V103: 0 | X103: 0 | Z103: 0 | AB103: 0 | AD103: 0 | AF103: 0
A104: 0 | B104: SMA-SC NT | D104: 0 | F104: 0 | H104: 0 | J104: 0 | L104: 0 | N104: =D66 -> 0 | P104: =F66 -> 0 | R104: =H66 -> 0 | T104: =J66 -> 0 | V104: 0 | X104: 0 | Z104: 0 | AB104: 0 | AD104: 0 | AF104: 0
A105: 0 | B105: SMA-SC NT C | D105: 0 | F105: 0 | H105: 0 | J105: 0 | L105: 0 | N105: 0 | P105: 0 | R105: 0 | T105: 0 | V105: 0 | X105: 0 | Z105: 0 | AB105: 0 | AD105: 0 | AF105: 0
A106: 0 | B106: SMA-CC | D106: 0 | F106: 0 | H106: 0 | J106: 0 | L106: 0 | N106: =D71 -> 0 | P106: =F71 -> 0 | R106: =H71 -> 0 | T106: =J71 -> 0 | V106: 0 | X106: 0 | Z106: 0 | AB106: 0 | AD106: 0 | AF106: =SUM(X106:AE106) -> 0
A107: =AF107 -> 0 | B107: SMA-VG | D107: 0 | F107: 0 | H107: 0 | J107: 0 | L107: =SUM(D107:K107) -> 0 | N107: =D72 -> 0 | P107: =F72 -> 0 | R107: =H72 -> 0 | T107: =J72 -> 0 | V107: =SUM(N107:U107) -> 0 | X107: =N107+D107 -> 0 | Z107: =P107+F107 -> 0 | AB107: =R107+H107 -> 0 | AD107: =T107+J107 -> 0 | AF107: =SUM(X107:AE107) -> 0
A108: 0 | B108: SLF I | D108: =SUMIFS($C$160:$C$370, $A$160:$A$370, $B108 & " *", $B$160:$B$370, D$86) -> 0 | F108: =SUMIFS($C$160:$C$370, $A$160:$A$370, $B108 & " *", $B$160:$B$370, F$86) -> 0 | H108: =SUMIFS($C$160:$C$370, $A$160:$A$370, $B108 & " *", $B$160:$B$370, H$86) -> 0 | J108: =SUMIFS($C$160:$C$370, $A$160:$A$370, $B108 & " *", $B$160:$B$370, J$86) -> 0 | L108: 0 | N108: =D58 -> 0 | P108: =F58 -> 0 | R108: =H58 -> 0 | T108: =J58 -> 0 | V108: 0 | X108: 0 | Z108: 0 | AB108: 0 | AD108: 0 | AF108: 0
A109: =A108 -> 0 | B109: *SLF II, Commitment | L109: 0 | N109: =D52 -> 0 | P109: =F52 -> 0 | R109: =H52 -> 0 | T109: =J52 -> 0 | V109: 0 | X109: =N109+D109 -> 0 | Z109: =P109+F109 -> 0 | AB109: =R109+H109 -> 0 | AD109: =T109+J109 -> 0 | AF109: 0
A110: =A108 -> 0 | B110: *SLF II, Crosstrade | L110: 0 | N110: 0 | P110: 0 | R110: 0 | T110: 0 | V110: 0 | X110: 0 | Z110: 0 | AB110: 0 | AD110: 0 | AF110: 0
A111: 0 | B111: SLF II | D111: =SUMIFS($C$160:$C$370, $A$160:$A$370, $B111, $B$160:$B$370, D$86) -> 0 | F111: =SUMIFS($C$160:$C$370, $A$160:$A$370, $B111, $B$160:$B$370, F$86) -> 0 | H111: =SUMIFS($C$160:$C$370, $A$160:$A$370, $B111, $B$160:$B$370, H$86) -> 0 | J111: =SUMIFS($C$160:$C$370, $A$160:$A$370, $B111, $B$160:$B$370, J$86) -> 0 | L111: 0 | N111: =SUM(N109:N110) -> 0 | P111: =SUM(P109:P110) -> 0 | R111: =SUM(R109:R110) -> 0 | T111: =SUM(T109:T110) -> 0 | V111: 0 | X111: 0 | Z111: 0 | AB111: 0 | AD111: 0 | AF111: 0
B112: *SLF III, Commitment | L112: =SUM(D112:K112) -> 0 | N112: =D55 -> 0 | P112: =F55 -> 0 | R112: =H55 -> 0 | T112: =J55 -> 0 | V112: 0 | X112: 0 | Z112: 0 | AB112: 0 | AD112: 0 | AF112: 0
B113: *SLF III, Crosstrade | L113: 0 | N113: 0 | P113: 0 | R113: 0 | T113: 0 | V113: 0 | X113: 0 | Z113: 0 | AB113: 0 | AD113: 0 | AF113: 0
A114: 0 | B114: SLF III | D114: =SUMIFS($C$160:$C$370, $A$160:$A$370, $B114, $B$160:$B$370, D$86) -> 0 | F114: =SUMIFS($C$160:$C$370, $A$160:$A$370, $B114, $B$160:$B$370, F$86) -> 0 | H114: =SUMIFS($C$160:$C$370, $A$160:$A$370, $B114, $B$160:$B$370, H$86) -> 0 | J114: =SUMIFS($C$160:$C$370, $A$160:$A$370, $B114, $B$160:$B$370, J$86) -> 0 | L114: 0 | N114: =SUM(N112:N113) -> 0 | P114: =SUM(P112:P113) -> 0 | R114: =SUM(R112:R113) -> 0 | T114: =SUM(T112:T113) -> 0 | V114: 0 | X114: 0 | Z114: 0 | AB114: 0 | AD114: 0 | AF114: 0
B115: *SLF IV, Commitment | L115: =SUM(D115:K115) -> 0 | N115: =D58 -> 0 | P115: =F58 -> 0 | R115: =H58 -> 0 | T115: =J58 -> 0 | V115: 0 | X115: 0 | Z115: 0 | AB115: 0 | AD115: 0 | AF115: 0
B116: *SLF IV, Crosstrade | L116: 0 | N116: 0 | P116: 0 | R116: 0 | T116: 0 | V116: 0 | X116: 0 | Z116: 0 | AB116: 0 | AD116: 0 | AF116: 0
A117: 0 | B117: SLF IV | D117: =SUMIFS($C$160:$C$370, $A$160:$A$370, $B117, $B$160:$B$370, D$86) -> 0 | F117: =SUMIFS($C$160:$C$370, $A$160:$A$370, $B117, $B$160:$B$370, F$86) -> 0 | H117: =SUMIFS($C$160:$C$370, $A$160:$A$370, $B117, $B$160:$B$370, H$86) -> 0 | J117: =SUMIFS($C$160:$C$370, $A$160:$A$370, $B117, $B$160:$B$370, J$86) -> 0 | L117: 0 | N117: =SUM(N115:N116) -> 0 | P117: =SUM(P115:P116) -> 0 | R117: =SUM(R115:R116) -> 0 | T117: =SUM(T115:T116) -> 0 | V117: 0 | X117: 0 | Z117: 0 | AB117: 0 | AD117: 0 | AF117: 0
B118: *SLF V, Commitment | L118: 0 | N118: =D59 -> 0 | P118: =F59 -> 0 | R118: =H59 -> 0 | T118: =J59 -> 0 | V118: 0 | X118: 0 | Z118: 0 | AB118: 0 | AD118: 0 | AF118: 0
B119: *SLF V, Crosstrade | L119: 0 | N119: 0 | P119: 0 | R119: 0 | T119: 0 | V119: 0 | X119: 0 | Z119: 0 | AB119: 0 | AD119: 0 | AF119: 0
B120: SLF V | D120: =SUMIFS($C$160:$C$370, $A$160:$A$370, $B120, $B$160:$B$370, D$86) -> 0 | F120: =SUMIFS($C$160:$C$370, $A$160:$A$370, $B120, $B$160:$B$370, F$86) -> 0 | H120: =SUMIFS($C$160:$C$370, $A$160:$A$370, $B120, $B$160:$B$370, H$86) -> 0 | J120: =SUMIFS($C$160:$C$370, $A$160:$A$370, $B120, $B$160:$B$370, J$86) -> 0 | L120: 0 | N120: =SUM(N118:N119) -> 0 | P120: =SUM(P118:P119) -> 0 | R120: =SUM(R118:R119) -> 0 | T120: =SUM(T118:T119) -> 0 | V120: 0 | X120: 0 | Z120: 0 | AB120: 0 | AD120: 0 | AF120: 0
A121: =A123 -> 0 | B121: *SLF VI L, Commitment | L121: 0 | N121: =D60 -> 0 | P121: =F60 -> 0 | R121: =H60 -> 0 | T121: =J60 -> 0 | V121: 0 | X121: 0 | Z121: 0 | AB121: 0 | AD121: 0 | AF121: 0
A122: =A123 -> 0 | B122: *SLF VI L, Crosstrade | L122: 0 | N122: 0 | P122: 0 | R122: 0 | T122: 0 | V122: 0 | X122: 0 | Z122: 0 | AB122: 0 | AD122: 0 | AF122: 0
A123: =AF123 -> 0 | B123: SLF VI L | D123: =SUMIFS($C$160:$C$370, $A$160:$A$370, $B123, $B$160:$B$370, D$86) -> 0 | F123: =SUMIFS($C$160:$C$370, $A$160:$A$370, $B123, $B$160:$B$370, F$86) -> 0 | H123: =SUMIFS($C$160:$C$370, $A$160:$A$370, $B123, $B$160:$B$370, H$86) -> 0 | J123: =SUMIFS($C$160:$C$370, $A$160:$A$370, $B123, $B$160:$B$370, J$86) -> 0 | L123: 0 | N123: =SUM(N121:N122) -> 0 | P123: =SUM(P121:P122) -> 0 | R123: =SUM(R121:R122) -> 0 | T123: =SUM(T121:T122) -> 0 | V123: 0 | X123: 0 | Z123: 0 | AB123: 0 | AD123: 0 | AF123: 0
A124: =AF126 -> 0 | B124: *SLF VI UL, Commitment | L124: 0 | N124: =D61 -> 0 | P124: =F61 -> 0 | R124: =H61 -> 0 | T124: =J61 -> 0 | V124: 0 | X124: 0 | Z124: 0 | AB124: 0 | AD124: 0 | AF124: 0
A125: =AF126 -> 0 | B125: *SLF VI UL, Crosstrade | L125: 0 | N125: 0 | P125: 0 | R125: 0 | T125: 0 | V125: 0 | X125: =N125+D125 -> 0 | Z125: 0 | AB125: 0 | AD125: 0 | AF125: 0
A126: 0 | B126: SLF VI UL | D126: =SUMIFS($C$160:$C$370, $A$160:$A$370, $B126, $B$160:$B$370, D$86) -> 0 | F126: =SUMIFS($C$160:$C$370, $A$160:$A$370, $B126, $B$160:$B$370, F$86) -> 0 | H126: =SUMIFS($C$160:$C$370, $A$160:$A$370, $B126, $B$160:$B$370, H$86) -> 0 | J126: =SUMIFS($C$160:$C$370, $A$160:$A$370, $B126, $B$160:$B$370, J$86) -> 0 | L126: 0 | N126: =SUM(N124:N125) -> 0 | P126: =SUM(P124:P125) -> 0 | R126: =SUM(R124:R125) -> 0 | T126: =SUM(T124:T125) -> 0 | V126: 0 | X126: 0 | Z126: 0 | AB126: 0 | AD126: 0 | AF126: 0
B127: *SLF VII, Commitment | L127: 0 | N127: =D62 -> 0 | P127: =F62 -> 0 | R127: =H62 -> 0 | T127: =J62 -> 0 | V127: 0 | X127: 0 | Z127: 0 | AB127: 0 | AD127: 0 | AF127: 0
B128: *SLF VII, Crosstrade | L128: 0 | N128: 0 | P128: 0 | R128: 0 | T128: 0 | V128: 0 | X128: 0 | Z128: 0 | AB128: 0 | AD128: 0 | AF128: 0
B129: SLF VII | D129: =SUMIFS($C$160:$C$370, $A$160:$A$370, $B129, $B$160:$B$370, D$86) -> 0 | F129: =SUMIFS($C$160:$C$370, $A$160:$A$370, $B129, $B$160:$B$370, F$86) -> 0 | H129: =SUMIFS($C$160:$C$370, $A$160:$A$370, $B129, $B$160:$B$370, H$86) -> 0 | J129: =SUMIFS($C$160:$C$370, $A$160:$A$370, $B129, $B$160:$B$370, J$86) -> 0 | L129: 0 | N129: =SUM(N127:N128) -> 0 | P129: =SUM(P127:P128) -> 0 | R129: =SUM(R127:R128) -> 0 | T129: =SUM(T127:T128) -> 0 | V129: 0 | X129: 0 | Z129: 0 | AB129: 0 | AD129: 0 | AF129: 0
B130: *SLF VIII, Commitment | L130: 0 | N130: =D63 -> 0 | P130: =F63 -> 0 | R130: =H63 -> 0 | T130: =J63 -> 0 | V130: 0 | X130: 0 | Z130: 0 | AB130: 0 | AD130: 0 | AF130: 0
B131: *SLF VIII, Crosstrade | L131: 0 | N131: 0 | P131: 0 | R131: 0 | T131: 0 | V131: 0 | X131: 0 | Z131: 0 | AB131: 0 | AD131: 0 | AF131: 0
B132: SLF VIII | D132: =SUMIFS($C$160:$C$370, $A$160:$A$370, $B132, $B$160:$B$370, D$86) -> 0 | F132: =SUMIFS($C$160:$C$370, $A$160:$A$370, $B132, $B$160:$B$370, F$86) -> 0 | H132: =SUMIFS($C$160:$C$370, $A$160:$A$370, $B132, $B$160:$B$370, H$86) -> 0 | J132: =SUMIFS($C$160:$C$370, $A$160:$A$370, $B132, $B$160:$B$370, J$86) -> 0 | L132: 0 | N132: =SUM(N130:N131) -> 0 | P132: =SUM(P130:P131) -> 0 | R132: =SUM(R130:R131) -> 0 | T132: =SUM(T130:T131) -> 0 | V132: 0 | X132: 0 | Z132: 0 | AB132: 0 | AD132: 0 | AF132: 0
B133: SMA-OML | D133: =SUMIFS($C$160:$C$370, $A$160:$A$370, $B133, $B$160:$B$370, D$86) -> 0 | F133: =SUMIFS($C$160:$C$370, $A$160:$A$370, $B133, $B$160:$B$370, F$86) -> 0 | H133: =SUMIFS($C$160:$C$370, $A$160:$A$370, $B133, $B$160:$B$370, H$86) -> 0 | J133: =SUMIFS($C$160:$C$370, $A$160:$A$370, $B133, $B$160:$B$370, J$86) -> 0 | L133: 0 | N133: =D73 -> 0 | P133: =F73 -> 0 | R133: =H73 -> 0 | T133: =J73 -> 0 | V133: 0 | X133: 0 | Z133: 0 | AB133: 0 | AD133: 0 | AF133: 0
B134: SMA-3 | D134: =SUMIFS($C$160:$C$370, $A$160:$A$370, $B134, $B$160:$B$370, D$86) -> 0 | F134: =SUMIFS($C$160:$C$370, $A$160:$A$370, $B134, $B$160:$B$370, F$86) -> 0 | H134: =SUMIFS($C$160:$C$370, $A$160:$A$370, $B134, $B$160:$B$370, H$86) -> 0 | J134: =SUMIFS($C$160:$C$370, $A$160:$A$370, $B134, $B$160:$B$370, J$86) -> 0 | L134: 0 | N134: =D74 -> 0 | P134: =F74 -> 0 | R134: =H74 -> 0 | T134: =J74 -> 0 | V134: 0 | X134: 0 | Z134: 0 | AB134: 0 | AD134: 0 | AF134: 0
B135: Subtotal Sidecars | D135: =SUM(D94:D134) -> 0 | F135: =SUM(F94:F134) -> 0 | H135: =SUM(H94:H134) -> 0 | J135: =SUM(J94:J134) -> 0 | L135: =SUM(D135:K135) -> 0 | N135: =SUMPRODUCT( 1*(LEFT($B$94:$B$134,1)<>"*"), N94:N134) -> 0 | P135: =SUMPRODUCT( 1*(LEFT($B$94:$B$134,1)<>"*"), P94:P134) -> 0 | R135: =SUMPRODUCT( 1*(LEFT($B$94:$B$134,1)<>"*"), R94:R134) -> 0 | T135: =SUMPRODUCT( 1*(LEFT($B$94:$B$134,1)<>"*"), T94:T134) -> 0 | V135: 0 | X135: =SUMPRODUCT( 1*(LEFT($B$94:$B$134,1)<>"*"), X94:X134) -> 0 | Z135: =SUMPRODUCT( 1*(LEFT($B$94:$B$134,1)<>"*"), Z94:Z134) -> 0 | AB135: =SUMPRODUCT( 1*(LEFT($B$94:$B$134,1)<>"*"), AB94:AB134) -> 0 | AD135: =SUMPRODUCT( 1*(LEFT($B$94:$B$134,1)<>"*"), AD94:AD134) -> 0 | AF135: 0
B136: Total | D136: =D135+D92 -> 0 | F136: =F135+F92 -> 0 | H136: =H135+H92 -> 0 | J136: =J135+J92 -> 0 | L136: =L135+L92 -> 0 | N136: =N135+N92 -> 0 | P136: =P135+P92 -> 0 | R136: =R135+R92 -> 0 | T136: =T135+T92 -> 0 | V136: =V135+V92 -> 0 | X136: =X135+X92 -> 0 | Z136: =Z135+Z92 -> 0 | AB136: =AB135+AB92 -> 0 | AD136: =AD135+AD92 -> 0 | AF136: =AF135+AF92 -> 0
A158: Current Commitment Data
A159: Fund | B159: Tranche | C159: Commitment
A1012: =A111 -> 0
A1013: =A111 -> 0
A1015: =A114 -> 0
A1016: =A114 -> 0

Sheet N.Allo (1)
A1: Details
B3: Deal Name | D3: n/a
B4: Description | D4: n/a
B5: Net Senior Leverage | D5: n/a
B6: Sponsor | D6: n/a
B7: Industry | D7: n/a
B8: Target Date | D8: n/a
B9: Dividend Recap | D9: n/a
B10: DIP Loan | D10: n/a
B11: LTV % | D11: n/a
B12: Approved by Swiss | D12: n/a
B13: Country (CAN) | D13: n/a
A14: Allocations
D16: Revolver | F16: Term Loan | H16: DDTL | J16: DDTL 2 | L16: Totals
B17: NXT | D17: Unfunded | F17: Unfunded | H17: Unfunded | J17: Unfunded
B18: SLF I | D18: =IF($L18>0,"Unfunded",0) -> 0 | F18: =IF(L18>0,IF($P$32>0.75,$P$32,0.85),0) -> 0 | H18: =IF($L18>0,"Unfunded",0) -> 0 | J18: =IF($L18>0,"Unfunded",0) -> 0
A19: =L19 -> 0 | B19: Potential SLF VI L | D19: 0 | F19: =IF(L19>0,IF($P$32>0.75,$P$32,0.75),0) -> 0 | H19: 0 | J19: 0
A20: =L20 -> 0 | B20: Potential SLF VI UL | D20: 0 | F20: 0 | H20: 0 | J20: 0
B21: Potential SLF VII | D21: 0 | F21: 0 | H21: 0 | J21: 0
B22: Potential SLF VIII | D22: 0 | F22: 0 | H22: 0 | J22: 0
A23: =L23 -> 0 | B23: SMA-A | D23: 0 | F23: =IF(L23>0,IF($P$32>0.51,$P$32,0.51),0) -> 0 | H23: 0 | J23: 0
A24: 0 | B24: SMA-SC | D24: 0 | F24: 0 | H24: 0 | J24: 0
A25: 0 | B25: Potential SMA-SC NT | D25: 0 | F25: 0 | H25: 0 | J25: 0
A26: 0 | B26: SMA-AF | D26: 0 | F26: 0 | H26: 0 | J26: 0 | N26: Aflac Distribution
A27: 0 | B27: SMA-CH | D27: 0 | F27: 0 | H27: 0 | J27: 0 | N27: AF-US | P27: =1/6 -> 0.1666666667
A28: 0 | B28: SMA-CC | D28: 0 | F28: 0 | H28: 0 | J28: 0 | N28: AF-JAP | P28: =1-P27 -> 0.8333333333
A29: =L29 -> 0 | B29: SMA-VG | D29: 0 | F29: 0 | H29: 0 | J29: 0
A30: =L30 -> 0 | B30: SMA-OML | D30: 0 | F30: 0 | H30: 0 | J30: 0
B31: SMA-3 | D31: 0 | F31: 0 | H31: 0 | J31: 0
B32: NXT Underwrite | D32: 0 | F32: 0 | H32: 0 | J32: 0 | L32: =SUM(D32:K32) -> 0 | P32: =IFERROR(F32/L32,0) -> 0
B33: NXT Hold | D33: =IFERROR(D32/$L$32,0)*$L$33 -> 0 | F33: =IFERROR(F32/$L$32,0)*$L$33 -> 0 | H33: =IFERROR(H32/$L$32,0)*$L$33 -> 0 | J33: =IFERROR(J32/$L$32,0)*$L$33 -> 0 | L33: 0 | N33: =L33-SUM(L17:L31) -> 0 | P33: =IFERROR(F33/L33,0) -> 0
B34: Unfunded | D34: =IFERROR(D33/(SUM($D$33:$K$33)-$F$33),0) -> 0 | F34: 0 | H34: =IFERROR(H33/(SUM($D$33:$K$33)-$F$33),0) -> 0 | J34: =IFERROR(J33/(SUM($D$33:$K$33)-$F$33),0) -> 0 | N34: To Allocate | P34: Funded
N35: ="Pro Rata without SLF I: " & TEXT(IFERROR((F73-F55)/(L73-L55),"-"),"0.00%") -> Pro Rata without SLF I: -
A36: Hypo Results
B38: SLF I | D38: =_xlfn.CONCAT("Passing ", COUNTIF(SummaryKaiser[Pass/Fail],"Pass"), "; Failing ", COUNTIF(SummaryKaiser[Pass/Fail],"Fail"), " (", _xlfn.TEXTJOIN(", ",TRUE,IF(SummaryKaiser[Pass/Fail]="Fail",SummaryKaiser[Constraint],"")),")" ) -> Passing 4; Failing 0 ()
A39: =L19 -> 0 | B39: SMA-SC | D39: =_xlfn.CONCAT("Passing ", COUNTIF(SummarySwiss[Pass/Fail],"Pass"), "; Failing ", COUNTIF(SummarySwiss[Pass/Fail],"Fail"), " (", _xlfn.TEXTJOIN(", ",TRUE,IF(SummarySwiss[Pass/Fail]="Fail",SummarySwiss[Constraint],"")),")" ) -> Passing 10; Failing 2 (Max Commitment, 4.35x Leverage)
A40: =L20 -> 0 | B40: SMA-SC NT | D40: =_xlfn.CONCAT("Passing ", COUNTIF(SummarySwissNT[Pass/Fail],"Pass"), "; Failing ", COUNTIF(SummarySwissNT[Pass/Fail],"Fail"), " (", _xlfn.TEXTJOIN(", ",TRUE,IF(SummarySwissNT[Pass/Fail]="Fail",SummarySwissNT[Constraint],"")),")" ) -> Passing 11; Failing 1 (4.35x Leverage)
A41: 0 | B41: SMA-AF US | D41: =_xlfn.CONCAT("Passing ", COUNTIF(SummaryAFUS[Pass/Fail],"Pass"), "; Failing ", COUNTIF(SummaryAFUS[Pass/Fail],"Fail"), " (", _xlfn.TEXTJOIN(", ",TRUE,IF(SummaryAFUS[Pass/Fail]="Fail",SummaryAFUS[Constraint],"")),")" ) -> Passing 10; Failing 0 ()
A42: 0 | B42: SMA-AF JAP | D42: =_xlfn.CONCAT("Passing ", COUNTIF(SummaryAFJAP[Pass/Fail],"Pass"), "; Failing ", COUNTIF(SummaryAFJAP[Pass/Fail],"Fail"), " (", _xlfn.TEXTJOIN(", ",TRUE,IF(SummaryAFJAP[Pass/Fail]="Fail",SummaryAFJAP[Constraint],"")),")" ) -> Passing 10; Failing 0 ()
A43: 0 | B43: SMA-CH | D43: =_xlfn.CONCAT("Passing ", COUNTIF(SummaryChubb[Pass/Fail],"Pass"), "; Failing ", COUNTIF(SummaryChubb[Pass/Fail],"Fail"), " (", _xlfn.TEXTJOIN(", ",TRUE,IF(SummaryChubb[Pass/Fail]="Fail",SummaryChubb[Constraint],"")),")" ) -> Passing 10; Failing 0 ()
A44: 0 | B44: SMA-CC | D44: -
A45: 0 | B45: SMA-VG | D45: =_xlfn.CONCAT("Passing ", COUNTIF(SummaryVG[Pass/Fail],"Pass"), "; Failing ", COUNTIF(SummaryVG[Pass/Fail],"Fail"), " (", _xlfn.TEXTJOIN(", ",TRUE,IF(SummaryVG[Pass/Fail]="Fail",SummaryVG[Constraint],"")),")" ) -> Passing 9; Failing 0 ()
A46: 0 | B46: SLF VI UL | D46: =_xlfn.CONCAT("Passing ", COUNTIF(SummarySLFVIUL[Pass/Fail],"Pass"), "; Failing ", COUNTIF(SummarySLFVIUL[Pass/Fail],"Fail"), " (", _xlfn.TEXTJOIN(", ",TRUE,IF(SummarySLFVIUL[Pass/Fail]="Fail",SummarySLFVIUL[Constraint],"")),")" ) -> Passing 4; Failing 0 ()
B47: Results current as of: | D47: Not yet submitted to hypo.
A49: New Allocations Report
B51: Credit Facility | R51: Fees
D53: Revolver | F53: Term Loan | H53: DDTL | J53: DDTL 2 | L53: Totals | N53: Funded | P53: Unfunded | T53: Fee | V53: $ Amt
B54: NXT | D54: =($L54-$F54)*IF(D17="Unfunded",D$34,D17) -> 0 | F54: =$F$33-SUM(IF(LEFT($B55:$B70,1)="*",0,F55:F70)) -> 0 | H54: =($L54-$F54)*IF(H17="Unfunded",H$34,H17) -> 0 | J54: =($L54-$F54)*IF(J17="Unfunded",J$34,J17) -> 0 | L54: =L17 -> 0 | N54: =IFERROR(F54/SUM(D54:K54),"n/a") -> n/a | P54: =IFERROR(1-N54,"n/a") -> n/a | R54: Closing | T54: 0 | V54: =+T54*$L$17 -> 0
B55: SLF I | D55: 0 | F55: =L55*IF(F18="Unfunded",$F$34,F18) -> 0 | H55: 0 | J55: 0 | L55: 0 | N55: =IFERROR(F55/SUM(D55:K55),"n/a") -> n/a | P55: =IFERROR(1-N55,"n/a") -> n/a | R55: Structuring | T55: 0 | V55: =+T55*$L$33 -> 0
A56: =L56 -> 0 | B56: Potential SLF VI L | D56: 0 | F56: 0 | H56: 0 | J56: 0 | L56: 0 | N56: n/a | P56: n/a | R56: Agency | T56: 0 | V56: =T56*$L$32 -> 0
A57: =L57 -> 0 | B57: Potential SLF VI UL | D57: 0 | F57: 0 | H57: 0 | J57: 0 | L57: 0 | N57: n/a | P57: n/a | R57: NXT Fees | V57: =SUM(V54:V56) -> 0
B58: Potential SLF VII | D58: 0 | F58: 0 | H58: 0 | J58: 0 | L58: 0 | N58: n/a | P58: n/a
B59: Potential SLF VIII | D59: 0 | F59: 0 | H59: 0 | J59: 0 | L59: 0 | N59: n/a | P59: n/a
A60: =L60 -> 0 | B60: SMA-A | D60: 0 | F60: 0 | H60: 0 | J60: 0 | L60: 0 | N60: n/a | P60: n/a | R60: ="Issues" & IF(SUMPRODUCT(1*(R61:R74<>""))=0," (none)","") -> Issues (none)
A61: 0 | B61: SMA-SC | D61: 0 | F61: 0 | H61: 0 | J61: 0 | L61: 0 | N61: n/a | P61: n/a | R61: =IF(SUMPRODUCT(1*(D55:L55>D$54:L$54))>0,"SLF I and SLF V can neither have commitments greater than NXT's.","") -> 
A62: 0 | B62: SMA-SC NT | D62: 0 | F62: 0 | H62: 0 | J62: 0 | L62: 0 | N62: n/a | P62: n/a
A63: 0 | B63: *SMA-AF US | D63: 0 | F63: =$L63*IF(F26="Unfunded",F$34,F26) -> 0 | H63: 0 | J63: 0 | L63: =$L$26*AFUS_Portion -> 0 | N63: n/a | P63: n/a
A64: 0 | B64: *SMA-AF JAP | D64: =($L64-$F64)*IF(D26="Unfunded",D$34,D26) -> 0 | F64: =$L64*IF(F26="Unfunded",F$34,F26) -> 0 | H64: =($L64-$F64)*IF(H26="Unfunded",H$34,H26) -> 0 | J64: =($L64-$F64)*IF(J26="Unfunded",J$34,J26) -> 0 | L64: =L$65-$L$63 -> 0 | N64: n/a | P64: n/a
A65: 0 | B65: SMA-AF | D65: =SUM(D63:D64) -> 0 | F65: =SUM(F63:F64) -> 0 | H65: =SUM(H63:H64) -> 0 | J65: =SUM(J63:J64) -> 0 | L65: =L26 -> 0 | N65: n/a | P65: n/a
A66: 0 | B66: SMA-CH | D66: =($L66-$F66)*IF(D27="Unfunded",D$34,D27) -> 0 | F66: =L66*IF(F27="Unfunded",$F$34,F27) -> 0 | H66: =($L66-$F66)*IF(H27="Unfunded",H$34,H27) -> 0 | J66: =($L66-$F66)*IF(J27="Unfunded",J$34,J27) -> 0 | L66: 0 | N66: n/a | P66: n/a
A67: 0 | B67: SMA-CC | D67: =($L67-$F67)*IF(D28="Unfunded",D$34,D28) -> 0 | F67: =L67*IF(F28="Unfunded",$F$34,F28) -> 0 | H67: =($L67-$F67)*IF(H28="Unfunded",H$34,H28) -> 0 | J67: =($L67-$F67)*IF(J28="Unfunded",J$34,J28) -> 0 | L67: 0 | N67: n/a | P67: n/a
A68: =L68 -> 0 | B68: SMA-VG | D68: =($L68-$F68)*IF(D29="Unfunded",D$34,D29) -> 0 | F68: =L68*IF(F29="Unfunded",$F$34,F29) -> 0 | H68: =($L68-$F68)*IF(H29="Unfunded",H$34,H29) -> 0 | J68: =($L68-$F68)*IF(J29="Unfunded",J$34,J29) -> 0 | L68: 0 | N68: n/a | P68: n/a
A69: =L69 -> 0 | B69: SMA-OML | D69: =($L69-$F69)*IF(D30="Unfunded",D$34,D30) -> 0 | F69: =L69*IF(F30="Unfunded",$F$34,F30) -> 0 | H69: =($L69-$F69)*IF(H30="Unfunded",H$34,H30) -> 0 | J69: =($L69-$F69)*IF(J30="Unfunded",J$34,J30) -> 0 | L69: 0 | N69: n/a | P69: n/a
B70: SMA-3 | D70: =($L70-$F70)*IF(D31="Unfunded",D$34,D31) -> 0 | F70: =L70*IF(F31="Unfunded",$F$34,F31) -> 0 | H70: =($L70-$F70)*IF(H31="Unfunded",H$34,H31) -> 0 | J70: =($L70-$F70)*IF(J31="Unfunded",J$34,J31) -> 0 | L70: 0 | N70: n/a | P70: n/a
B71: NXT and Affiliates | D71: =SUMPRODUCT( 1*(LEFT($B$54:$B$70,1)<>"*"), D54:D70) -> 0 | F71: =SUMPRODUCT( 1*(LEFT($B$54:$B$70,1)<>"*"), F54:F70) -> 0 | H71: =SUMPRODUCT( 1*(LEFT($B$54:$B$70,1)<>"*"), H54:H70) -> 0 | J71: =SUMPRODUCT( 1*(LEFT($B$54:$B$70,1)<>"*"), J54:J70) -> 0 | L71: =SUM(IF(LEFT($B54:$B70,1)="*",0,L54:L70)) -> 0 | N71: n/a | P71: n/a
B72: Balance to Syndicate | D72: =D73-D71 -> 0 | F72: =F73-F71 -> 0 | H72: =H73-H71 -> 0 | J72: =J73-J71 -> 0 | L72: =SUM(D72:K72) -> 0 | N72: n/a | P72: n/a
B73: NXT Underwrite | D73: =D32 -> 0 | F73: =F32 -> 0 | H73: =H32 -> 0 | J73: =J32 -> 0 | L73: =SUM(D73:K73) -> 0 | N73: n/a | P73: n/a

Sheet Exh. D

Sheet User Notes
A1: Ctrl+G only works on New Allocations.
A2: Ctrl+G doesn't toggle empty cells. Only cells with a zero value.
A3: Sponsor can be free-form entry or selected from dropdown list.

Sheet Ref
H1: Raw Fund | I1: Friendly Fund | M1: Sponsor | O1: Industry | P1: ID | R1: Deal | S1: Sponsor | T1: Industry
H2: NXT CAPITAL SLF IV FUNDING, LLC | I2: SLF IV | M2: A&M CAPITAL PARTNERS | O2: Aerospace & Defense | P2: 1 | R2: test1 | S2: a | T2: Energy: Electricity
D3: Table Color Coding | H3: NXT CAPITAL FUNDING I, LLC | I3: NXT CAPITAL FUNDING I, LLC | K3: Add sponsors to those queried from EIM. | M3: AMERICAN CAPITAL, LTD. | O3: Automotive | P3: 2 | R3: test2 | S3: d | T3: Hotel, Gaming & Leisure
D4: Blue are code-managed | H4: NXT | I4: NXT CAPITAL, LLC | K4: *Discuss internally before modifying. | M4: AMERICAN CAPITAL, LTD. | O4: Banking/Finance/Insurance/RE | P4: 3
D5: Green are user-managed. | H5: NXT CAPITAL, LLC | I5: NXT CAPITAL, LLC | K5: Additional Sponsors | M5: APAX PARTNERS | O5: Beverage, Food & Tobacco | P5: 4
H6: NXT CAPITAL CLO 2015-1, LLC | I6: NXT CLO 2015-1 | K6: Test Sponsor 1 | M6: ARLINGTON CAPITAL PARTNERS | O6: Capital Equipment | P6: 5
H7: NXT CAPITAL CLO 2017-1, LLC | I7: NXT CLO 2017-1 | K7: Test Sponsor 2 | M7: AUDAX PRIVATE EQUITY | O7: Chemicals, Plastics, & Rubber | P7: 6
H8: NXT CAPITAL CLO 2017-2, LLC | I8: NXT CLO 2017-2 | M8: AUDAX PRIVATE EQUITY | O8: Construction & Building | P8: 7
A9: Saved Allocations Root Directory | H9: NXT CAPITAL SENIOR LOAN FUND A | I9: SLF I (A) | M9: BAIN CAPITAL DOUBLE IMPACT | O9: Consumer goods: Durable | P9: 8
A10: S:\Asset Management\Consolidated Hypo\Allocations | H10: NXT CAPITAL SENIOR LOAN FUND B | I10: SLF I (B) | M10: CAPSTREET | O10: Consumer goods: Non-durable | P10: 9
H11: NXT CAPITAL SENIOR LOAN FUND II, LP | I11: SLF II | M11: CAPSTREET | O11: Containers, Packaging & Glass | P11: 10
A12: Command | H12: NXT CAPITAL SLF II FUNDING, LLC | I12: SLF II | M12: CDPQ | O12: Energy: Electricity | P12: 11
H13: NXT CAPITAL SENIOR LOAN FUND III LP | I13: SLF III | M13: CDPQ | O13: Energy: Oil & Gas | P13: 12
H14: NXT CAPITAL SLF III FUNDING, LLC | I14: SLF III | M14: CENTEROAK PARTNERS | O14: Environmental Industries | P14: 13
A15: Fund | B15: Standard Commitment | C15: Specific Commitment | D15: Protective Advances | E15: Total Commitment | F15: Principal Balance | H15: NXT CAPITAL SENIOR LOAN FUND IV, LP | I15: SLF IV | M15: CI CAPITAL PARTNERS | O15: Forest Products & Paper | P15: 14
A16: SMA-AF JAP | B16: 900000000 | D16: 45000000 | E16: =SUMIF(tbl_ExistingData[Fund],tbl_Funds[[#This Row],[Fund]],tbl_ExistingData[Total Commitment]) -> 0 | F16: =SUMIFS(tbl_ExistingData[Principal Balance],tbl_ExistingData[Paid Off Date],"",tbl_ExistingData[Fund],tbl_Funds[[#This Row],[Fund]]) -> 0 | H16: NXT CAPITAL SENIOR LOAN FUND V, LP | I16: SLF V | M16: CITIC CAPITAL INTERNATIONAL PARTNER III, L.P. | O16: Healthcare & Pharmaceuticals | P16: 15
A17: SMA-AF US | B17: 100000000 | D17: 5000000 | E17: =SUMIF(tbl_ExistingData[Fund],tbl_Funds[[#This Row],[Fund]],tbl_ExistingData[Total Commitment]) -> 0 | F17: =SUMIFS(tbl_ExistingData[Principal Balance],tbl_ExistingData[Paid Off Date],"",tbl_ExistingData[Fund],tbl_Funds[[#This Row],[Fund]]) -> 0 | H17: NXT CAPITAL SLF V FUNDING, LLC | I17: SLF V | M17: COBEPA | O17: High Tech Industries | P17: 16
A18: SMA-CH | B18: 550000000 | D18: 20000000 | E18: =SUMIF(tbl_ExistingData[Fund],tbl_Funds[[#This Row],[Fund]],tbl_ExistingData[Total Commitment]) -> 0 | F18: =SUMIFS(tbl_ExistingData[Principal Balance],tbl_ExistingData[Paid Off Date],"",tbl_ExistingData[Fund],tbl_Funds[[#This Row],[Fund]]) -> 0 | H18: NXT CAPITAL SENIOR LOAN FUND VI (L) , LP | I18: SLF VI L | M18: CORTEC GROUP FUND VI, L.P. | O18: Hotel, Gaming & Leisure | P18: 17
A19: SLF I | B19: 500000000 | D19: 0 | E19: =SUMIF(tbl_ExistingData[Fund],tbl_Funds[[#This Row],[Fund]],tbl_ExistingData[Total Commitment]) -> 0 | F19: =SUMIFS(tbl_ExistingData[Principal Balance],tbl_ExistingData[Paid Off Date],"",tbl_ExistingData[Fund],tbl_Funds[[#This Row],[Fund]]) -> 0 | H19: PDL US HOLDINGS LP (AIMCO A) | I19: SMA-A | M19: CORTEC GROUP FUND VI, L.P. | O19: Media: Adv., Print & Publishing | P19: 18
A20: SMA-SC | B20: 360000000 | C20: 99566495.46 | D20: =VLOOKUP(tbl_Funds[[#This Row],[Fund]],tblGrossCommitments[[Fund]:[Gross Commitment]],2,0) * 0.05 -> 14464458.23 | E20: =SUMIF(tbl_ExistingData[Fund],tbl_Funds[[#This Row],[Fund]],tbl_ExistingData[Total Commitment]) -> 0 | F20: =SUMIFS(tbl_ExistingData[Principal Balance],tbl_ExistingData[Paid Off Date],"",tbl_ExistingData[Fund],tbl_Funds[[#This Row],[Fund]]) -> 0 | H20: GLOBAL INVESTMENT FUND I | I20: SMA-AF JAP | M20: COURT SQUARE CAPITAL PARTNERS | O20: Media: Broadcasting/Subscrip. | P20: 19
A21: SMA-SC NT | B21: 113500000 | D21: 5500000 | E21: =SUMIF(tbl_ExistingData[Fund],tbl_Funds[[#This Row],[Fund]],tbl_ExistingData[Total Commitment]) -> 0 | F21: =SUMIFS(tbl_ExistingData[Principal Balance],tbl_ExistingData[Paid Off Date],"",tbl_ExistingData[Fund],tbl_Funds[[#This Row],[Fund]]) -> 0 | H21: AMERICAN FAMILY LIFE ASSURANCE COMP | I21: SMA-AF US | M21: COURT SQUARE CAPITAL PARTNERS | O21: Media: Diversified & Production | P21: 20
A22: SMA-VG | B22: 606250000 | D22: 5000000 | E22: =SUMIF(tbl_ExistingData[Fund],tbl_Funds[[#This Row],[Fund]],tbl_ExistingData[Total Commitment]) -> 0 | F22: =SUMIFS(tbl_ExistingData[Principal Balance],tbl_ExistingData[Paid Off Date],"",tbl_ExistingData[Fund],tbl_Funds[[#This Row],[Fund]]) -> 0 | H22: NXT STEPSTONE CC FUNDING, LLC | I22: SMA-CC | M22: FIRST ATLANTIC CAPITAL, LTD. | O22: Metals & Mining | P22: 21
A23: SLF VI UL | B23: 45454545.45 | E23: =SUMIF(tbl_ExistingData[Fund],tbl_Funds[[#This Row],[Fund]],tbl_ExistingData[Total Commitment]) -> 0 | F23: =SUMIFS(tbl_ExistingData[Principal Balance],tbl_ExistingData[Paid Off Date],"",tbl_ExistingData[Fund],tbl_Funds[[#This Row],[Fund]]) -> 0 | H23: NXT STEPSTONE CC, LLC | I23: SMA-CC | M23: FLEXPOINT FORD, LLC | O23: Retail | P23: 22
H24: Chubb | I24: SMA-CH | M24: FRAZIER HEALTHCARE VENTURES | O24: Services: Business | P24: 23
A25: Date | B25: Fund | C25: Gross Commitment | H25: PACIFIC INDEMNITY COMPANY | I25: SMA-CH | M25: FRONTENAC COMPANY | O25: Services: Consumer | P25: 24
A26: 20191231 | B26: SMA-SC | C26: 289289164.5 | H26: SC NXT CAPITAL PVT DBT FUND LP A | I26: SMA-SC | M26: FRONTENAC COMPANY | O26: Sovereign & Public Finance | P26: 25
A27: 20191231 | B27: SMA-SC NT | C27: 72328498.63 | H27: SC NXT CAP PVT DEBT OFFSHORE SP A | I27: SMA-SC NT | M27: GENSTAR CAPITAL LLC | O27: Telecommunications | P27: 26
H28: NXT CAPITAL CORPORATE FINANCE D-E INVESTMENTS, LLC | I28: TBD | M28: GRAHAM PARTNERS | O28: Transportation: Cargo | P28: 27
H29: NXT CAPITAL CORPORATE FINANCE INVESTMENTS, LLC | I29: TBD | M29: GRAHAM PARTNERS | O29: Transportation: Consumer | P29: 28
H30: NXT CAPITAL SLF VI FUNDING (L), LLC | I30: SLF VI L | M30: GREAT POINT PARTNERS, LLC | O30: Utilities: Electric | P30: 29
H31: NXT CAPITAL SLF VI FUNDING (UL), LLC | I31: SLF VI UL | M31: GREAT POINT PARTNERS, LLC | O31: Utilities: Oil & Gas | P31: 30
H32: NXT CAPITAL CLO 2020-1, LLC | I32: NXT CLO 2020-1 | M32: GRIDIRON CAPITAL, LLC | O32: Utilities: Water | P32: 31
H33: NXT CAPITAL EQUITY HOLDINGS, LLC | I33: TBD | M33: GRYPHON INVESTORS, INC | O33: Wholesale | P33: 32
H34: VG NXT CAPITAL PRIVATE DEBT FUND LP | I34: SMA-VG | M34: HARVEST PARTNERS, LP
H35: PDL US HOLDINGS LP (AIMCO B) | I35: TBD | M35: INVERNESS GRAHAM
H36: NXT CAPITAL SENIOR LOAN FUND VI (UL ), LP | I36: SLF VI UL | M36: JUGGERNAUT CAPITAL PARTNERS
H37: NXT CAPITAL SLF IV INVESTMENTS B, LLC | I37: TBD | M37: JUGGERNAUT CAPITAL PARTNERS
H38: NXT CAPITAL SLF III INVESTMENTS B, LLC | I38: TBD | M38: JZ PARTNERS
H39: AMERICAN LIFE AND SECURITY CORP. | I39: TBD | M39: JZ PARTNERS
M40: LEEDS EQUITY EQUITY PARTNERS, LLC
M41: L-SQUARED CAPITAL
M42: MAY RIVER CAPITAL
M43: MAY RIVER CAPITAL
M44: NEW HARBOR CAPITAL, LLC
M45: NORWEST EQUITY PARTNERS
M46: OAK HILL CAPITAL
M47: OLYMPUS PARTNERS
M48: OMERS PRIVATE EQUITY
M49: PAMPLONA TMTI, L.P.
M50: PEAK ROCK CAPITAL
M51: PFINGSTEN
M52: PFINGSTEN
M53: PROVIDENCE EQUITY PARTNERS
M54: PROVIDENCE EQUITY PARTNERS
M55: PRUDENTIAL CAPITAL PARTNERS
M56: PRUDENTIAL CAPITAL PARTNERS
M57: REVELSTOKE CAPITAL
M58: RIDGEMONT EQUITY PARTNERS
M59: ROARK CAPITAL GROUP
M60: ROARK CAPITAL GROUP
M61: SEIDLER EQUITY PARTNERS
M62: SENTINEL CAPITAL PARTNERS, LLC
M63: TAILWIND CAPITAL
M64: TAILWIND CAPITAL
M65: THE RIVERSIDE COMPANY
M66: THE RIVERSIDE COMPANY
M67: TRINITY HUNT PARTNERS IV, L.P.
M68: TRIVE CAPITAL
M69: TRUE WIND CAPITAL
M70: TRUE WIND CAPITAL
M71: WARBURG PINCUS
M72: WINDJAMMER CAPITAL INVESTORS, LLC
M73: WINDJAMMER CAPITAL INVESTORS, LLC

Sheet Original Commitments
A1: SMA-SC | M1: SMA-SC NT | Y1: SMA-VG
A2: Borrower Name | B2: Tranche | C2: Commitment Amount | D2: Date Closed | E2: Net Senior Leverage | F2: WA Commitment 4.35x Net Senior Leverage | G2: LTV | H2: WA Commitment LTV | I2: Dividend Recap | J2: Country (CAN) | K2: Approved by Swiss | M2: Borrower Name | N2: Tranche | O2: Commitment Amount | P2: Date Closed | Q2: Net Senior Leverage | R2: WA Commitment 4.35x Net Senior Leverage | S2: LTV | T2: WA Commitment LTV | U2: Dividend Recap | V2: Country (CAN) | W2: Approved by Swiss | Y2: Borrower Name | Z2: Tranche | AA2: Commitment Amount | AB2: Date Closed | AC2: Net Senior Leverage | AD2: LTV | AE2: Weighted Commitment | AF2: Dividend Recap
A3: ECM Industries | B3: Revolver | C3: 452368.77 | D3: 2020-01-03 | F3: =tbl_OC_Swiss[[#This Row],[Commitment Amount]]*tbl_OC_Swiss[[#This Row],[Net Senior Leverage]] -> 0 | H3: =tbl_OC_Swiss[[#This Row],[Commitment Amount]]*tbl_OC_Swiss[[#This Row],[LTV]] -> 0 | M3: Oliver Printing & Packaging | N3: Delayed Draw | O3: 500000 | P3: 2020-01-09 | R3: =tbl_OC_SwissNT[[#This Row],[Commitment Amount]]*tbl_OC_SwissNT[[#This Row],[Net Senior Leverage]] -> 0 | T3: =tbl_OC_SwissNT[[#This Row],[Commitment Amount]]*tbl_OC_SwissNT[[#This Row],[LTV]] -> 0 | Y3: HemaSource | Z3: Term Loan | AA3: 3937500 | AB3: 44281 | AC3: 4.034185279 | AD3: 0.3357702546 | AE3: =IF(YEAR(tbl_OC_VG[[#This Row],[Date Closed]])=YEAR(TODAY()), tbl_OC_VG[[#This Row],[Commitment Amount]]/Commitment_This_Year_VG,0) -> 0.01724222076
A4: ECM Industries | B4: Term Loan A | C4: 2547631.23 | D4: 2020-01-03 | F4: =tbl_OC_Swiss[[#This Row],[Commitment Amount]]*tbl_OC_Swiss[[#This Row],[Net Senior Leverage]] -> 0 | H4: =tbl_OC_Swiss[[#This Row],[Commitment Amount]]*tbl_OC_Swiss[[#This Row],[LTV]] -> 0 | M4: OptConnect, LLC | N4: Revolver | O4: 96153.85 | P4: 2020-01-16 | R4: =tbl_OC_SwissNT[[#This Row],[Commitment Amount]]*tbl_OC_SwissNT[[#This Row],[Net Senior Leverage]] -> 0 | T4: =tbl_OC_SwissNT[[#This Row],[Commitment Amount]]*tbl_OC_SwissNT[[#This Row],[LTV]] -> 0 | Y4: HemaSource | Z4: Revolver | AA4: 1312500 | AB4: 44281 | AC4: 4.034185279 | AD4: 0.3357702546 | AE4: =IF(YEAR(tbl_OC_VG[[#This Row],[Date Closed]])=YEAR(TODAY()), tbl_OC_VG[[#This Row],[Commitment Amount]]/Commitment_This_Year_VG,0) -> 0.00574740692
A5: EFC International | B5: Revolver | C5: 514138.82 | D5: 2020-02-07 | F5: =tbl_OC_Swiss[[#This Row],[Commitment Amount]]*tbl_OC_Swiss[[#This Row],[Net Senior Leverage]] -> 0 | H5: =tbl_OC_Swiss[[#This Row],[Commitment Amount]]*tbl_OC_Swiss[[#This Row],[LTV]] -> 0 | M5: OptConnect, LLC | N5: Term Loan A | O5: 903846.15 | P5: 2020-01-16 | R5: =tbl_OC_SwissNT[[#This Row],[Commitment Amount]]*tbl_OC_SwissNT[[#This Row],[Net Senior Leverage]] -> 0 | T5: =tbl_OC_SwissNT[[#This Row],[Commitment Amount]]*tbl_OC_SwissNT[[#This Row],[LTV]] -> 0 | Y5: OLIVER PRINTING & PA | Z5: Term Loan | AA5: 3000000 | AB5: 44286 | AC5: 3.712475094 | AD5: 0.4901455041 | AE5: =IF(YEAR(tbl_OC_VG[[#This Row],[Date Closed]])=YEAR(TODAY()), tbl_OC_VG[[#This Row],[Commitment Amount]]/Commitment_This_Year_VG,0) -> 0.0131369301
A6: EFC International | B6: Term Loan A | C6: 3485861.18 | D6: 2020-02-07 | F6: =tbl_OC_Swiss[[#This Row],[Commitment Amount]]*tbl_OC_Swiss[[#This Row],[Net Senior Leverage]] -> 0 | H6: =tbl_OC_Swiss[[#This Row],[Commitment Amount]]*tbl_OC_Swiss[[#This Row],[LTV]] -> 0 | M6: ICP Group | N6: Term Loan C | O6: 240318.42 | P6: 2020-01-18 | R6: =tbl_OC_SwissNT[[#This Row],[Commitment Amount]]*tbl_OC_SwissNT[[#This Row],[Net Senior Leverage]] -> 0 | T6: =tbl_OC_SwissNT[[#This Row],[Commitment Amount]]*tbl_OC_SwissNT[[#This Row],[LTV]] -> 0 | Y6: HOME CARE ASSISTANCE, LLC | Z6: Term Loan | AA6: 9000000 | AB6: 44287 | AC6: 4.673231871 | AD6: 0.4092594961 | AE6: =IF(YEAR(tbl_OC_VG[[#This Row],[Date Closed]])=YEAR(TODAY()), tbl_OC_VG[[#This Row],[Commitment Amount]]/Commitment_This_Year_VG,0) -> 0.03941079031 | AF6: Y
A7: Mr. Greens | B7: Term Loan A | C7: 1000000 | D7: 2020-02-07 | F7: =tbl_OC_Swiss[[#This Row],[Commitment Amount]]*tbl_OC_Swiss[[#This Row],[Net Senior Leverage]] -> 0 | H7: =tbl_OC_Swiss[[#This Row],[Commitment Amount]]*tbl_OC_Swiss[[#This Row],[LTV]] -> 0 | M7: Lazer Spot, Inc. | N7: Revolver | O7: 156250 | P7: 2020-02-05 | R7: =tbl_OC_SwissNT[[#This Row],[Commitment Amount]]*tbl_OC_SwissNT[[#This Row],[Net Senior Leverage]] -> 0 | T7: =tbl_OC_SwissNT[[#This Row],[Commitment Amount]]*tbl_OC_SwissNT[[#This Row],[LTV]] -> 0 | Y7: HOME CARE ASSISTANCE, LLC | Z7: Delayed Draw | AA7: 2343750 | AB7: 44287 | AC7: 4.673231871 | AD7: 0.4092594961 | AE7: =IF(YEAR(tbl_OC_VG[[#This Row],[Date Closed]])=YEAR(TODAY()), tbl_OC_VG[[#This Row],[Commitment Amount]]/Commitment_This_Year_VG,0) -> 0.01026322664 | AF7: Y
A8: Winzer Corporation | B8: Term Loan B | C8: 1000000 | D8: 2020-02-28 | F8: =tbl_OC_Swiss[[#This Row],[Commitment Amount]]*tbl_OC_Swiss[[#This Row],[Net Senior Leverage]] -> 0 | H8: =tbl_OC_Swiss[[#This Row],[Commitment Amount]]*tbl_OC_Swiss[[#This Row],[LTV]] -> 0 | M8: Lazer Spot, Inc. | N8: Term Loan A | O8: 765625 | P8: 2020-02-05 | R8: =tbl_OC_SwissNT[[#This Row],[Commitment Amount]]*tbl_OC_SwissNT[[#This Row],[Net Senior Leverage]] -> 0 | T8: =tbl_OC_SwissNT[[#This Row],[Commitment Amount]]*tbl_OC_SwissNT[[#This Row],[LTV]] -> 0 | Y8: HOME CARE ASSISTANCE, LLC | Z8: Revolver | AA8: 656250 | AB8: 44287 | AC8: 4.673231871 | AD8: 0.4092594961 | AE8: =IF(YEAR(tbl_OC_VG[[#This Row],[Date Closed]])=YEAR(TODAY()), tbl_OC_VG[[#This Row],[Commitment Amount]]/Commitment_This_Year_VG,0) -> 0.00287370346 | AF8: Y
A9: Pacur | B9: Revolver | C9: 360000 | D9: 2020-03-02 | F9: =tbl_OC_Swiss[[#This Row],[Commitment Amount]]*tbl_OC_Swiss[[#This Row],[Net Senior Leverage]] -> 0 | H9: =tbl_OC_Swiss[[#This Row],[Commitment Amount]]*tbl_OC_Swiss[[#This Row],[LTV]] -> 0 | M9: Lazer Spot, Inc. | N9: Delayed Draw | O9: 78125 | P9: 2020-02-05 | R9: =tbl_OC_SwissNT[[#This Row],[Commitment Amount]]*tbl_OC_SwissNT[[#This Row],[Net Senior Leverage]] -> 0 | T9: =tbl_OC_SwissNT[[#This Row],[Commitment Amount]]*tbl_OC_SwissNT[[#This Row],[LTV]] -> 0 | Y9: ZONE MECHANICAL | Z9: Revolver | AA9: 1406250 | AB9: 44287 | AC9: 4.354690363 | AD9: 0.3992237316 | AE9: =IF(YEAR(tbl_OC_VG[[#This Row],[Date Closed]])=YEAR(TODAY()), tbl_OC_VG[[#This Row],[Commitment Amount]]/Commitment_This_Year_VG,0) -> 0.006157935986
A10: Pacur | B10: Term Loan A | C10: 2100000 | D10: 2020-03-02 | F10: =tbl_OC_Swiss[[#This Row],[Commitment Amount]]*tbl_OC_Swiss[[#This Row],[Net Senior Leverage]] -> 0 | H10: =tbl_OC_Swiss[[#This Row],[Commitment Amount]]*tbl_OC_Swiss[[#This Row],[LTV]] -> 0 | M10: ECM Industries | N10: Revolver | O10: 150789.59 | P10: 2020-02-06 | R10: =tbl_OC_SwissNT[[#This Row],[Commitment Amount]]*tbl_OC_SwissNT[[#This Row],[Net Senior Leverage]] -> 0 | T10: =tbl_OC_SwissNT[[#This Row],[Commitment Amount]]*tbl_OC_SwissNT[[#This Row],[LTV]] -> 0 | Y10: ZONE MECHANICAL | Z10: Delayed Draw | AA10: 1171875 | AB10: 44287 | AC10: 4.354690363 | AD10: 0.3992237316 | AE10: =IF(YEAR(tbl_OC_VG[[#This Row],[Date Closed]])=YEAR(TODAY()), tbl_OC_VG[[#This Row],[Commitment Amount]]/Commitment_This_Year_VG,0) -> 0.005131613322
A11: Pacur | B11: Delayed Draw | C11: 540000 | D11: 2020-03-02 | F11: =tbl_OC_Swiss[[#This Row],[Commitment Amount]]*tbl_OC_Swiss[[#This Row],[Net Senior Leverage]] -> 0 | H11: =tbl_OC_Swiss[[#This Row],[Commitment Amount]]*tbl_OC_Swiss[[#This Row],[LTV]] -> 0 | M11: ECM Industries | N11: Term Loan A | O11: 849210.41 | P11: 2020-02-06 | R11: =tbl_OC_SwissNT[[#This Row],[Commitment Amount]]*tbl_OC_SwissNT[[#This Row],[Net Senior Leverage]] -> 0 | T11: =tbl_OC_SwissNT[[#This Row],[Commitment Amount]]*tbl_OC_SwissNT[[#This Row],[LTV]] -> 0 | Y11: ZONE MECHANICAL | Z11: Delayed Draw | AA11: 1171875 | AB11: 44287 | AC11: 4.354690363 | AD11: 0.3992237316 | AE11: =IF(YEAR(tbl_OC_VG[[#This Row],[Date Closed]])=YEAR(TODAY()), tbl_OC_VG[[#This Row],[Commitment Amount]]/Commitment_This_Year_VG,0) -> 0.005131613322
A12: Pugh Lubricants | B12: Term Loan A | C12: 1500000 | D12: 2020-03-02 | F12: =tbl_OC_Swiss[[#This Row],[Commitment Amount]]*tbl_OC_Swiss[[#This Row],[Net Senior Leverage]] -> 0 | H12: =tbl_OC_Swiss[[#This Row],[Commitment Amount]]*tbl_OC_Swiss[[#This Row],[LTV]] -> 0 | M12: TractManager | N12: Incremental Term Loan | O12: 38590.05 | P12: 2020-03-23 | R12: =tbl_OC_SwissNT[[#This Row],[Commitment Amount]]*tbl_OC_SwissNT[[#This Row],[Net Senior Leverage]] -> 0 | T12: =tbl_OC_SwissNT[[#This Row],[Commitment Amount]]*tbl_OC_SwissNT[[#This Row],[LTV]] -> 0 | Y12: ZONE MECHANICAL | Z12: Term Loan | AA12: 11250000 | AB12: 44287 | AC12: 4.354690363 | AD12: 0.3992237316 | AE12: =IF(YEAR(tbl_OC_VG[[#This Row],[Date Closed]])=YEAR(TODAY()), tbl_OC_VG[[#This Row],[Commitment Amount]]/Commitment_This_Year_VG,0) -> 0.04926348789
A13: HungerRush | B13: Revolver (CRS + Revention) | C13: 468750 | D13: 2020-03-18 | F13: =tbl_OC_Swiss[[#This Row],[Commitment Amount]]*tbl_OC_Swiss[[#This Row],[Net Senior Leverage]] -> 0 | H13: =tbl_OC_Swiss[[#This Row],[Commitment Amount]]*tbl_OC_Swiss[[#This Row],[LTV]] -> 0 | M13: Mr. Greens | N13: Term Loan B | O13: 14374.34 | P13: 2020-03-31 | R13: =tbl_OC_SwissNT[[#This Row],[Commitment Amount]]*tbl_OC_SwissNT[[#This Row],[Net Senior Leverage]] -> 0 | T13: =tbl_OC_SwissNT[[#This Row],[Commitment Amount]]*tbl_OC_SwissNT[[#This Row],[LTV]] -> 0 | Y13: TECHNO HOLDINGS | Z13: Revolver | AA13: 937500 | AB13: 44292 | AC13: 4.49653193 | AD13: 0.4388745337 | AE13: =IF(YEAR(tbl_OC_VG[[#This Row],[Date Closed]])=YEAR(TODAY()), tbl_OC_VG[[#This Row],[Commitment Amount]]/Commitment_This_Year_VG,0) -> 0.004105290657
A14: HungerRush | B14: Term Loan A (CRS + Revention) | C14: 781250 | D14: 2020-03-18 | F14: =tbl_OC_Swiss[[#This Row],[Commitment Amount]]*tbl_OC_Swiss[[#This Row],[Net Senior Leverage]] -> 0 | H14: =tbl_OC_Swiss[[#This Row],[Commitment Amount]]*tbl_OC_Swiss[[#This Row],[LTV]] -> 0 | M14: Nuvei Technologies | N14: Term Loan A | O14: 105713.74 | P14: 2020-04-02 | R14: =tbl_OC_SwissNT[[#This Row],[Commitment Amount]]*tbl_OC_SwissNT[[#This Row],[Net Senior Leverage]] -> 0 | T14: =tbl_OC_SwissNT[[#This Row],[Commitment Amount]]*tbl_OC_SwissNT[[#This Row],[LTV]] -> 0 | Y14: TECHNO HOLDINGS | Z14: Term Loan | AA14: 5625000 | AB14: 44292 | AC14: 4.49653193 | AD14: 0.4388745337 | AE14: =IF(YEAR(tbl_OC_VG[[#This Row],[Date Closed]])=YEAR(TODAY()), tbl_OC_VG[[#This Row],[Commitment Amount]]/Commitment_This_Year_VG,0) -> 0.02463174394
A15: Madison Safety and Flow LLC | B15: Revolver | C15: 375000 | D15: 2020-03-18 | F15: =tbl_OC_Swiss[[#This Row],[Commitment Amount]]*tbl_OC_Swiss[[#This Row],[Net Senior Leverage]] -> 0 | H15: =tbl_OC_Swiss[[#This Row],[Commitment Amount]]*tbl_OC_Swiss[[#This Row],[LTV]] -> 0 | M15: Mr. Greens | N15: Term Loan C | O15: 65530.47 | P15: 2020-08-12 | R15: =tbl_OC_SwissNT[[#This Row],[Commitment Amount]]*tbl_OC_SwissNT[[#This Row],[Net Senior Leverage]] -> 0 | T15: =tbl_OC_SwissNT[[#This Row],[Commitment Amount]]*tbl_OC_SwissNT[[#This Row],[LTV]] -> 0 | Y15: TECHNO HOLDINGS | Z15: Delayed Draw | AA15: 937500 | AB15: 44292 | AC15: 4.49653193 | AD15: 0.4388745337 | AE15: =IF(YEAR(tbl_OC_VG[[#This Row],[Date Closed]])=YEAR(TODAY()), tbl_OC_VG[[#This Row],[Commitment Amount]]/Commitment_This_Year_VG,0) -> 0.004105290657
A16: Madison Safety and Flow LLC | B16: Term Loan A | C16: 2625000 | D16: 2020-03-18 | F16: =tbl_OC_Swiss[[#This Row],[Commitment Amount]]*tbl_OC_Swiss[[#This Row],[Net Senior Leverage]] -> 0 | H16: =tbl_OC_Swiss[[#This Row],[Commitment Amount]]*tbl_OC_Swiss[[#This Row],[LTV]] -> 0 | M16: Resource Label Group | N16: Term Loan | O16: 400160.97 | P16: 2021-01-06 | Q16: 1900-01-04T18:39:10.879 | R16: =tbl_OC_SwissNT[[#This Row],[Commitment Amount]]*tbl_OC_SwissNT[[#This Row],[Net Senior Leverage]] -> 1911652.688 | S16: 0.4051261069 | T16: =tbl_OC_SwissNT[[#This Row],[Commitment Amount]]*tbl_OC_SwissNT[[#This Row],[LTV]] -> 162115.6559 | Y16: GSM MIDCO, INC. | Z16: Term Loan | AA16: 5000000 | AB16: 44302 | AC16: 3.705501048 | AD16: 0.3974298257 | AE16: =IF(YEAR(tbl_OC_VG[[#This Row],[Date Closed]])=YEAR(TODAY()), tbl_OC_VG[[#This Row],[Commitment Amount]]/Commitment_This_Year_VG,0) -> 0.02189488351
A17: TractManager | B17: Incremental Term Loan | C17: 77272.87 | D17: 2020-03-23 | F17: =tbl_OC_Swiss[[#This Row],[Commitment Amount]]*tbl_OC_Swiss[[#This Row],[Net Senior Leverage]] -> 0 | H17: =tbl_OC_Swiss[[#This Row],[Commitment Amount]]*tbl_OC_Swiss[[#This Row],[LTV]] -> 0 | M17: Solmetex | N17: Revolver | O17: 454545.45 | P17: 2021-01-22 | Q17: 1900-01-05T14:13:48.319 | R17: =tbl_OC_SwissNT[[#This Row],[Commitment Amount]]*tbl_OC_SwissNT[[#This Row],[Net Senior Leverage]] -> 2542236.499 | S17: 0.421686747 | T17: =tbl_OC_SwissNT[[#This Row],[Commitment Amount]]*tbl_OC_SwissNT[[#This Row],[LTV]] -> 191675.7922 | Y17: Louisiana Fish Fry | Z17: Term Loan A | AA17: 734291.76 | AB17: 44313 | AC17: 4.132189563 | AD17: 0.4709219172 | AE17: =IF(YEAR(tbl_OC_VG[[#This Row],[Date Closed]])=YEAR(TODAY()), tbl_OC_VG[[#This Row],[Commitment Amount]]/Commitment_This_Year_VG,0) -> 0.003215446509 | AF17: Y
A18: Mr. Greens | B18: Term Loan B | C18: 28777.07 | D18: 2020-03-31 | F18: =tbl_OC_Swiss[[#This Row],[Commitment Amount]]*tbl_OC_Swiss[[#This Row],[Net Senior Leverage]] -> 0 | H18: =tbl_OC_Swiss[[#This Row],[Commitment Amount]]*tbl_OC_Swiss[[#This Row],[LTV]] -> 0 | M18: Solmetex | N18: Term Loan | O18: 2545454.55 | P18: 2021-01-22 | Q18: 1900-01-05T14:13:48.319 | R18: =tbl_OC_SwissNT[[#This Row],[Commitment Amount]]*tbl_OC_SwissNT[[#This Row],[Net Senior Leverage]] -> 14236524.56 | S18: 0.421686747 | T18: =tbl_OC_SwissNT[[#This Row],[Commitment Amount]]*tbl_OC_SwissNT[[#This Row],[LTV]] -> 1073384.449 | Y18: Consolidated Label | Z18: Incremental Term Loan | AA18: 4250000 | AB18: 44315 | AC18: 4.679890752 | AD18: 0.4464511276 | AE18: =IF(YEAR(tbl_OC_VG[[#This Row],[Date Closed]])=YEAR(TODAY()), tbl_OC_VG[[#This Row],[Commitment Amount]]/Commitment_This_Year_VG,0) -> 0.01861065098 | AF18: Y
A19: Nuvei Technologies | B19: Term Loan A | C19: 317141.22 | D19: 2020-04-02 | F19: =tbl_OC_Swiss[[#This Row],[Commitment Amount]]*tbl_OC_Swiss[[#This Row],[Net Senior Leverage]] -> 0 | H19: =tbl_OC_Swiss[[#This Row],[Commitment Amount]]*tbl_OC_Swiss[[#This Row],[LTV]] -> 0 | M19: GSM Outdoors - TruGlo Add-on | N19: Term Loan | O19: 3500000 | P19: 2021-01-25 | Q19: 1900-01-05T04:03:27.880 | R19: =tbl_OC_SwissNT[[#This Row],[Commitment Amount]]*tbl_OC_SwissNT[[#This Row],[Net Senior Leverage]] -> 18091754.38 | S19: 0.412615005 | T19: =tbl_OC_SwissNT[[#This Row],[Commitment Amount]]*tbl_OC_SwissNT[[#This Row],[LTV]] -> 1444152.517 | Y19: GSM Outdoors | Z19: Revolver | AA19: 1138700.79 | AB19: 44315 | AC19: 4.921881579 | AD19: 0.4732158605 | AE19: =IF(YEAR(tbl_OC_VG[[#This Row],[Date Closed]])=YEAR(TODAY()), tbl_OC_VG[[#This Row],[Commitment Amount]]/Commitment_This_Year_VG,0) -> 0.004986344229
A20: Consolidated Label | B20: Revolver | C20: 675675.68 | D20: 2020-07-15 | F20: =tbl_OC_Swiss[[#This Row],[Commitment Amount]]*tbl_OC_Swiss[[#This Row],[Net Senior Leverage]] -> 0 | H20: =tbl_OC_Swiss[[#This Row],[Commitment Amount]]*tbl_OC_Swiss[[#This Row],[LTV]] -> 0 | Y20: GSM Outdoors | Z20: Term Loan A | AA20: 9067682.52 | AB20: 44315 | AC20: 4.921881579 | AD20: 0.4732158605 | AE20: =IF(YEAR(tbl_OC_VG[[#This Row],[Date Closed]])=YEAR(TODAY()), tbl_OC_VG[[#This Row],[Commitment Amount]]/Commitment_This_Year_VG,0) -> 0.03970717049
A21: Consolidated Label | B21: Term Loan A | C21: 4324324.32 | D21: 2020-07-15 | F21: =tbl_OC_Swiss[[#This Row],[Commitment Amount]]*tbl_OC_Swiss[[#This Row],[Net Senior Leverage]] -> 0 | H21: =tbl_OC_Swiss[[#This Row],[Commitment Amount]]*tbl_OC_Swiss[[#This Row],[LTV]] -> 0 | Y21: GSM Outdoors | Z21: Delayed Draw | AA21: 1026156.92 | AB21: 44315 | AC21: 4.921881579 | AD21: 0.4732158605 | AE21: =IF(YEAR(tbl_OC_VG[[#This Row],[Date Closed]])=YEAR(TODAY()), tbl_OC_VG[[#This Row],[Commitment Amount]]/Commitment_This_Year_VG,0) -> 0.004493517244
A22: Painters Supply | B22: Term Loan | C22: 3000000 | D22: 2020-08-03 | F22: =tbl_OC_Swiss[[#This Row],[Commitment Amount]]*tbl_OC_Swiss[[#This Row],[Net Senior Leverage]] -> 0 | H22: =tbl_OC_Swiss[[#This Row],[Commitment Amount]]*tbl_OC_Swiss[[#This Row],[LTV]] -> 0 | Y22: HemaSource | Z22: Term Loan C | AA22: 263891.82 | AB22: 44315 | AC22: 3.765159349 | AD22: 0.3775737235 | AE22: =IF(YEAR(tbl_OC_VG[[#This Row],[Date Closed]])=YEAR(TODAY()), tbl_OC_VG[[#This Row],[Commitment Amount]]/Commitment_This_Year_VG,0) -> 0.001155576131
A23: Mr. Greens | B23: Term Loan C | C23: 131155.27 | D23: 2020-08-12 | F23: =tbl_OC_Swiss[[#This Row],[Commitment Amount]]*tbl_OC_Swiss[[#This Row],[Net Senior Leverage]] -> 0 | H23: =tbl_OC_Swiss[[#This Row],[Commitment Amount]]*tbl_OC_Swiss[[#This Row],[LTV]] -> 0 | Y23: Mobile Communications America | Z23: Term Loan B | AA23: 2200609.69 | AB23: 44315 | AC23: 4.091568884 | AD23: 0.482725842 | AE23: =IF(YEAR(tbl_OC_VG[[#This Row],[Date Closed]])=YEAR(TODAY()), tbl_OC_VG[[#This Row],[Commitment Amount]]/Commitment_This_Year_VG,0) -> 0.009636418561
A24: Medbio | B24: Revolver | C24: 456521.74 | D24: 2020-08-31 | F24: =tbl_OC_Swiss[[#This Row],[Commitment Amount]]*tbl_OC_Swiss[[#This Row],[Net Senior Leverage]] -> 0 | H24: =tbl_OC_Swiss[[#This Row],[Commitment Amount]]*tbl_OC_Swiss[[#This Row],[LTV]] -> 0 | Y24: Monroe Engineering | Z24: Revolver | AA24: 494329.9 | AB24: 44315 | AC24: 3.128563831 | AD24: 0.4086600481 | AE24: =IF(YEAR(tbl_OC_VG[[#This Row],[Date Closed]])=YEAR(TODAY()), tbl_OC_VG[[#This Row],[Commitment Amount]]/Commitment_This_Year_VG,0) -> 0.002164659115
A25: Medbio | B25: Term Loan A | C25: 3043478.26 | D25: 2020-08-31 | F25: =tbl_OC_Swiss[[#This Row],[Commitment Amount]]*tbl_OC_Swiss[[#This Row],[Net Senior Leverage]] -> 0 | H25: =tbl_OC_Swiss[[#This Row],[Commitment Amount]]*tbl_OC_Swiss[[#This Row],[LTV]] -> 0 | Y25: Monroe Engineering | Z25: Term Loan A | AA25: 1893654.24 | AB25: 44315 | AC25: 3.128563831 | AD25: 0.4086600481 | AE25: =IF(YEAR(tbl_OC_VG[[#This Row],[Date Closed]])=YEAR(TODAY()), tbl_OC_VG[[#This Row],[Commitment Amount]]/Commitment_This_Year_VG,0) -> 0.008292267797
A26: MB2 | B26: Delayed Draw | C26: 2000000 | D26: 2020-08-31 | F26: =tbl_OC_Swiss[[#This Row],[Commitment Amount]]*tbl_OC_Swiss[[#This Row],[Net Senior Leverage]] -> 0 | H26: =tbl_OC_Swiss[[#This Row],[Commitment Amount]]*tbl_OC_Swiss[[#This Row],[LTV]] -> 0 | Y26: Monroe Engineering | Z26: Term Loan B | AA26: 1834158.44 | AB26: 44315 | AC26: 3.438139491 | AD26: 0.4281235725 | AE26: =IF(YEAR(tbl_OC_VG[[#This Row],[Date Closed]])=YEAR(TODAY()), tbl_OC_VG[[#This Row],[Commitment Amount]]/Commitment_This_Year_VG,0) -> 0.008031737075
A27: Louisiana Fish Fry | B27: Term Loan A | C27: 3000000 | D27: 2020-09-24 | F27: =tbl_OC_Swiss[[#This Row],[Commitment Amount]]*tbl_OC_Swiss[[#This Row],[Net Senior Leverage]] -> 0 | H27: =tbl_OC_Swiss[[#This Row],[Commitment Amount]]*tbl_OC_Swiss[[#This Row],[LTV]] -> 0 | Y27: TeamVantage | Z27: Revolver | AA27: 499955.06 | AB27: 44315 | AC27: 4.001317839 | AD27: 0.474025974 | AE27: =IF(YEAR(tbl_OC_VG[[#This Row],[Date Closed]])=YEAR(TODAY()), tbl_OC_VG[[#This Row],[Commitment Amount]]/Commitment_This_Year_VG,0) -> 0.002189291559
A28: HemaSource | B28: Term Loan B | C28: 1369047.63 | D28: 2020-09-24 | F28: =tbl_OC_Swiss[[#This Row],[Commitment Amount]]*tbl_OC_Swiss[[#This Row],[Net Senior Leverage]] -> 0 | H28: =tbl_OC_Swiss[[#This Row],[Commitment Amount]]*tbl_OC_Swiss[[#This Row],[LTV]] -> 0 | Y28: TeamVantage | Z28: Term Loan A | AA28: 2275342.33 | AB28: 44315 | AC28: 4.001317839 | AD28: 0.474025974 | AE28: =IF(YEAR(tbl_OC_VG[[#This Row],[Date Closed]])=YEAR(TODAY()), tbl_OC_VG[[#This Row],[Commitment Amount]]/Commitment_This_Year_VG,0) -> 0.00996367105
A29: Monroe Engineering | B29: Revolver | C29: 2577319.59 | D29: 2020-10-01 | F29: =tbl_OC_Swiss[[#This Row],[Commitment Amount]]*tbl_OC_Swiss[[#This Row],[Net Senior Leverage]] -> 0 | H29: =tbl_OC_Swiss[[#This Row],[Commitment Amount]]*tbl_OC_Swiss[[#This Row],[LTV]] -> 0 | Y29: Painters Supply & Equipment | Z29: Term Loan A | AA29: 1019150.71 | AB29: 44315 | AC29: 3.686800155 | AD29: 0.5523595046 | AE29: =IF(YEAR(tbl_OC_VG[[#This Row],[Date Closed]])=YEAR(TODAY()), tbl_OC_VG[[#This Row],[Commitment Amount]]/Commitment_This_Year_VG,0) -> 0.004462837214
A30: Monroe Engineering | B30: Term Loan A | C30: 9922680.41 | D30: 2020-10-01 | F30: =tbl_OC_Swiss[[#This Row],[Commitment Amount]]*tbl_OC_Swiss[[#This Row],[Net Senior Leverage]] -> 0 | H30: =tbl_OC_Swiss[[#This Row],[Commitment Amount]]*tbl_OC_Swiss[[#This Row],[LTV]] -> 0 | Y30: Presco - WF Add-on | Z30: Term Loan B | AA30: 7618088.39 | AB30: 44315 | AC30: 3.247863248 | AD30: 0.3933988397 | AE30: =IF(YEAR(tbl_OC_VG[[#This Row],[Date Closed]])=YEAR(TODAY()), tbl_OC_VG[[#This Row],[Commitment Amount]]/Commitment_This_Year_VG,0) -> 0.03335943157
A31: Refresh Mental Health | B31: Term Loan A | C31: 2622950.82 | D31: 2020-10-09 | F31: =tbl_OC_Swiss[[#This Row],[Commitment Amount]]*tbl_OC_Swiss[[#This Row],[Net Senior Leverage]] -> 0 | H31: =tbl_OC_Swiss[[#This Row],[Commitment Amount]]*tbl_OC_Swiss[[#This Row],[LTV]] -> 0 | Y31: Shipley's Donuts | Z31: Revolver | AA31: 422187.5 | AB31: 44315 | AC31: 2.966273923 | AD31: 0.2361275089 | AE31: =IF(YEAR(tbl_OC_VG[[#This Row],[Date Closed]])=YEAR(TODAY()), tbl_OC_VG[[#This Row],[Commitment Amount]]/Commitment_This_Year_VG,0) -> 0.001848749226
A32: Refresh Mental Health | B32: Delayed Draw | C32: 2688524.59 | D32: 2020-10-09 | F32: =tbl_OC_Swiss[[#This Row],[Commitment Amount]]*tbl_OC_Swiss[[#This Row],[Net Senior Leverage]] -> 0 | H32: =tbl_OC_Swiss[[#This Row],[Commitment Amount]]*tbl_OC_Swiss[[#This Row],[LTV]] -> 0 | Y32: Shipley's Donuts | Z32: Term Loan A | AA32: 3790188.28 | AB32: 44315 | AC32: 2.966273923 | AD32: 0.2361275089 | AE32: =IF(YEAR(tbl_OC_VG[[#This Row],[Date Closed]])=YEAR(TODAY()), tbl_OC_VG[[#This Row],[Commitment Amount]]/Commitment_This_Year_VG,0) -> 0.01659714617
A33: Refresh Mental Health | B33: Delayed Draw | C33: 2688524.59 | D33: 2020-10-09 | F33: =tbl_OC_Swiss[[#This Row],[Commitment Amount]]*tbl_OC_Swiss[[#This Row],[Net Senior Leverage]] -> 0 | H33: =tbl_OC_Swiss[[#This Row],[Commitment Amount]]*tbl_OC_Swiss[[#This Row],[LTV]] -> 0 | Y33: Shipley's Donuts | Z33: Delayed Draw | AA33: 422187.5 | AB33: 44315 | AC33: 2.966273923 | AD33: 0.2361275089 | AE33: =IF(YEAR(tbl_OC_VG[[#This Row],[Date Closed]])=YEAR(TODAY()), tbl_OC_VG[[#This Row],[Commitment Amount]]/Commitment_This_Year_VG,0) -> 0.001848749226
A34: Hub Pen | B34: Term Loan A | C34: 119847.85 | D34: 2020-10-16 | F34: =tbl_OC_Swiss[[#This Row],[Commitment Amount]]*tbl_OC_Swiss[[#This Row],[Net Senior Leverage]] -> 0 | H34: =tbl_OC_Swiss[[#This Row],[Commitment Amount]]*tbl_OC_Swiss[[#This Row],[LTV]] -> 0 | Y34: Shipley's Donuts | Z34: Delayed Draw | AA34: 422187.5 | AB34: 44315 | AC34: 2.966273923 | AD34: 0.2361275089 | AE34: =IF(YEAR(tbl_OC_VG[[#This Row],[Date Closed]])=YEAR(TODAY()), tbl_OC_VG[[#This Row],[Commitment Amount]]/Commitment_This_Year_VG,0) -> 0.001848749226
A35: SupplyOne | B35: Term Loan C | C35: 4500000 | D35: 2020-10-27 | F35: =tbl_OC_Swiss[[#This Row],[Commitment Amount]]*tbl_OC_Swiss[[#This Row],[Net Senior Leverage]] -> 0 | H35: =tbl_OC_Swiss[[#This Row],[Commitment Amount]]*tbl_OC_Swiss[[#This Row],[LTV]] -> 0 | Y35: Sunvair | Z35: Term Loan B | AA35: 2436663.91 | AB35: 44315 | AC35: 3.639742129 | AD35: 0.4404913105 | AE35: =IF(YEAR(tbl_OC_VG[[#This Row],[Date Closed]])=YEAR(TODAY()), tbl_OC_VG[[#This Row],[Commitment Amount]]/Commitment_This_Year_VG,0) -> 0.01067009449
A36: Resonetics | B36: Term Loan B | C36: 5500000 | D36: 2020-11-02 | F36: =tbl_OC_Swiss[[#This Row],[Commitment Amount]]*tbl_OC_Swiss[[#This Row],[Net Senior Leverage]] -> 0 | H36: =tbl_OC_Swiss[[#This Row],[Commitment Amount]]*tbl_OC_Swiss[[#This Row],[LTV]] -> 0 | Y36: Sunvair | Z36: Term Loan C | AA36: 572793.59 | AB36: 44315 | AC36: 3.639742129 | AD36: 0.4404913105 | AE36: =IF(YEAR(tbl_OC_VG[[#This Row],[Date Closed]])=YEAR(TODAY()), tbl_OC_VG[[#This Row],[Commitment Amount]]/Commitment_This_Year_VG,0) -> 0.002508249785
A37: TeamVantage | B37: Revolver | C37: 1797752.81 | D37: 2020-10-30 | F37: =tbl_OC_Swiss[[#This Row],[Commitment Amount]]*tbl_OC_Swiss[[#This Row],[Net Senior Leverage]] -> 0 | H37: =tbl_OC_Swiss[[#This Row],[Commitment Amount]]*tbl_OC_Swiss[[#This Row],[LTV]] -> 0 | Y37: Total Access Urgent Care | Z37: Revolver | AA37: 216440.35 | AB37: 44315 | AC37: 5.05550968 | AD37: 0.4509001637 | AE37: =IF(YEAR(tbl_OC_VG[[#This Row],[Date Closed]])=YEAR(TODAY()), tbl_OC_VG[[#This Row],[Commitment Amount]]/Commitment_This_Year_VG,0) -> 0.0009477872498
A38: TeamVantage | B38: Term Loan A | C38: 8202247.19 | D38: 2020-10-30 | F38: =tbl_OC_Swiss[[#This Row],[Commitment Amount]]*tbl_OC_Swiss[[#This Row],[Net Senior Leverage]] -> 0 | H38: =tbl_OC_Swiss[[#This Row],[Commitment Amount]]*tbl_OC_Swiss[[#This Row],[LTV]] -> 0 | Y38: Total Access Urgent Care | Z38: Term Loan A | AA38: 3447894.75 | AB38: 44315 | AC38: 5.05550968 | AD38: 0.4509001637 | AE38: =IF(YEAR(tbl_OC_VG[[#This Row],[Date Closed]])=YEAR(TODAY()), tbl_OC_VG[[#This Row],[Commitment Amount]]/Commitment_This_Year_VG,0) -> 0.01509825078
A39: Lazer Spot, Inc. | B39: Term Loan A | C39: 1120000 | D39: 2020-11-04 | F39: =tbl_OC_Swiss[[#This Row],[Commitment Amount]]*tbl_OC_Swiss[[#This Row],[Net Senior Leverage]] -> 0 | H39: =tbl_OC_Swiss[[#This Row],[Commitment Amount]]*tbl_OC_Swiss[[#This Row],[LTV]] -> 0 | Y39: Total Access Urgent Care | Z39: Delayed Draw | AA39: 432880.7 | AB39: 44315 | AC39: 5.05550968 | AD39: 0.4509001637 | AE39: =IF(YEAR(tbl_OC_VG[[#This Row],[Date Closed]])=YEAR(TODAY()), tbl_OC_VG[[#This Row],[Commitment Amount]]/Commitment_This_Year_VG,0) -> 0.0018955745
A40: Lazer Spot, Inc. | B40: Delayed Draw #2 | C40: 2880000 | D40: 2020-11-04 | F40: =tbl_OC_Swiss[[#This Row],[Commitment Amount]]*tbl_OC_Swiss[[#This Row],[Net Senior Leverage]] -> 0 | H40: =tbl_OC_Swiss[[#This Row],[Commitment Amount]]*tbl_OC_Swiss[[#This Row],[LTV]] -> 0 | Y40: TPC Wire & Cable Corp. | Z40: Revolver | AA40: 1035000 | AB40: 44315 | AC40: 3.361085216 | AD40: 0.3535954225 | AE40: =IF(YEAR(tbl_OC_VG[[#This Row],[Date Closed]])=YEAR(TODAY()), tbl_OC_VG[[#This Row],[Commitment Amount]]/Commitment_This_Year_VG,0) -> 0.004532240886
A41: GSM Outdoors | B41: Revolver | C41: 2602744.67 | D41: 2020-11-16 | F41: =tbl_OC_Swiss[[#This Row],[Commitment Amount]]*tbl_OC_Swiss[[#This Row],[Net Senior Leverage]] -> 0 | H41: =tbl_OC_Swiss[[#This Row],[Commitment Amount]]*tbl_OC_Swiss[[#This Row],[LTV]] -> 0 | Y41: TPC Wire & Cable Corp. | Z41: Term Loan A | AA41: 7245000 | AB41: 44315 | AC41: 3.361085216 | AD41: 0.3535954225 | AE41: =IF(YEAR(tbl_OC_VG[[#This Row],[Date Closed]])=YEAR(TODAY()), tbl_OC_VG[[#This Row],[Commitment Amount]]/Commitment_This_Year_VG,0) -> 0.0317256862
A42: GSM Outdoors | B42: Term Loan A | C42: 14049276.67 | D42: 2020-11-16 | F42: =tbl_OC_Swiss[[#This Row],[Commitment Amount]]*tbl_OC_Swiss[[#This Row],[Net Senior Leverage]] -> 0 | H42: =tbl_OC_Swiss[[#This Row],[Commitment Amount]]*tbl_OC_Swiss[[#This Row],[LTV]] -> 0 | Y42: TPC Wire & Cable Corp. | Z42: Delayed Draw | AA42: 2070000 | AB42: 44315 | AC42: 3.361085216 | AD42: 0.3535954225 | AE42: =IF(YEAR(tbl_OC_VG[[#This Row],[Date Closed]])=YEAR(TODAY()), tbl_OC_VG[[#This Row],[Commitment Amount]]/Commitment_This_Year_VG,0) -> 0.009064481771
A43: GSM Outdoors | B43: Delayed Draw | C43: 2347978.66 | D43: 2020-11-16 | F43: =tbl_OC_Swiss[[#This Row],[Commitment Amount]]*tbl_OC_Swiss[[#This Row],[Net Senior Leverage]] -> 0 | H43: =tbl_OC_Swiss[[#This Row],[Commitment Amount]]*tbl_OC_Swiss[[#This Row],[LTV]] -> 0 | Y43: Consolidated Label | Z43: Revolver | AA43: 129324.39 | AB43: 44323 | AC43: 3.835268059 | AD43: 0.3747819709 | AE43: =IF(YEAR(tbl_OC_VG[[#This Row],[Date Closed]])=YEAR(TODAY()), tbl_OC_VG[[#This Row],[Commitment Amount]]/Commitment_This_Year_VG,0) -> 0.0005663084907
A44: Holley DPB | B44: Term Loan A | C44: 5000000 | D44: 2020-11-23 | F44: =tbl_OC_Swiss[[#This Row],[Commitment Amount]]*tbl_OC_Swiss[[#This Row],[Net Senior Leverage]] -> 0 | H44: =tbl_OC_Swiss[[#This Row],[Commitment Amount]]*tbl_OC_Swiss[[#This Row],[LTV]] -> 0 | Y44: Consolidated Label | Z44: Term Loan A | AA44: 823537.23 | AB44: 44323 | AC44: 3.835268059 | AD44: 0.3747819709 | AE44: =IF(YEAR(tbl_OC_VG[[#This Row],[Date Closed]])=YEAR(TODAY()), tbl_OC_VG[[#This Row],[Commitment Amount]]/Commitment_This_Year_VG,0) -> 0.003606250343
A45: Mobile Communications America | B45: Term Loan B | C45: 3750000 | D45: 2020-12-02 | F45: =tbl_OC_Swiss[[#This Row],[Commitment Amount]]*tbl_OC_Swiss[[#This Row],[Net Senior Leverage]] -> 0 | H45: =tbl_OC_Swiss[[#This Row],[Commitment Amount]]*tbl_OC_Swiss[[#This Row],[LTV]] -> 0 | Y45: Lazer Spot, Inc. | Z45: Term Loan A | AA45: 263555.66 | AB45: 44316 | AC45: 4.791055241 | AD45: 0.3726174027 | AE45: =IF(YEAR(tbl_OC_VG[[#This Row],[Date Closed]])=YEAR(TODAY()), tbl_OC_VG[[#This Row],[Commitment Amount]]/Commitment_This_Year_VG,0) -> 0.001154104095
A46: Smile Brands | B46: Revolver | C46: 200000 | D46: 2020-12-03 | F46: =tbl_OC_Swiss[[#This Row],[Commitment Amount]]*tbl_OC_Swiss[[#This Row],[Net Senior Leverage]] -> 0 | H46: =tbl_OC_Swiss[[#This Row],[Commitment Amount]]*tbl_OC_Swiss[[#This Row],[LTV]] -> 0 | Y46: Lazer Spot, Inc. | Z46: Delayed Draw #2 | AA46: 680365.9 | AB46: 44316 | AC46: 4.791055241 | AD46: 0.3726174027 | AE46: =IF(YEAR(tbl_OC_VG[[#This Row],[Date Closed]])=YEAR(TODAY()), tbl_OC_VG[[#This Row],[Commitment Amount]]/Commitment_This_Year_VG,0) -> 0.002979306424
A47: Smile Brands | B47: Term Loan B | C47: 3900000 | D47: 2020-12-03 | F47: =tbl_OC_Swiss[[#This Row],[Commitment Amount]]*tbl_OC_Swiss[[#This Row],[Net Senior Leverage]] -> 0 | H47: =tbl_OC_Swiss[[#This Row],[Commitment Amount]]*tbl_OC_Swiss[[#This Row],[LTV]] -> 0 | Y47: Medbio | Z47: Revolver | AA47: 120841.3 | AB47: 44323 | AC47: 5.025081257 | AD47: 0.6052907187 | AE47: =IF(YEAR(tbl_OC_VG[[#This Row],[Date Closed]])=YEAR(TODAY()), tbl_OC_VG[[#This Row],[Commitment Amount]]/Commitment_This_Year_VG,0) -> 0.0005291612372
A48: Smile Brands | B48: Delayed Draw | C48: 900000 | D48: 2020-12-03 | F48: =tbl_OC_Swiss[[#This Row],[Commitment Amount]]*tbl_OC_Swiss[[#This Row],[Net Senior Leverage]] -> 0 | H48: =tbl_OC_Swiss[[#This Row],[Commitment Amount]]*tbl_OC_Swiss[[#This Row],[LTV]] -> 0 | Y48: Medbio | Z48: Term Loan A | AA48: 801580.66 | AB48: 44323 | AC48: 5.025081257 | AD48: 0.6052907187 | AE48: =IF(YEAR(tbl_OC_VG[[#This Row],[Date Closed]])=YEAR(TODAY()), tbl_OC_VG[[#This Row],[Commitment Amount]]/Commitment_This_Year_VG,0) -> 0.003510103034
A49: SavATree | B49: Term Loan A | C49: 4009090.91 | D49: 2020-12-09 | F49: =tbl_OC_Swiss[[#This Row],[Commitment Amount]]*tbl_OC_Swiss[[#This Row],[Net Senior Leverage]] -> 0 | H49: =tbl_OC_Swiss[[#This Row],[Commitment Amount]]*tbl_OC_Swiss[[#This Row],[LTV]] -> 0 | Y49: Resource Label Group | Z49: Term Loan B | AA49: 185943 | AB49: 44323 | AC49: 3.879577111 | AD49: 0.4051261069 | AE49: =IF(YEAR(tbl_OC_VG[[#This Row],[Date Closed]])=YEAR(TODAY()), tbl_OC_VG[[#This Row],[Commitment Amount]]/Commitment_This_Year_VG,0) -> 0.0008142400647
A50: SavATree | B50: Delayed Draw | C50: 2990909.09 | D50: 2020-12-09 | F50: =tbl_OC_Swiss[[#This Row],[Commitment Amount]]*tbl_OC_Swiss[[#This Row],[Net Senior Leverage]] -> 0 | H50: =tbl_OC_Swiss[[#This Row],[Commitment Amount]]*tbl_OC_Swiss[[#This Row],[LTV]] -> 0 | Y50: Resource Label Group | Z50: Delayed Draw | AA50: 186409.02 | AB50: 44323 | AC50: 3.879577111 | AD50: 0.4051261069 | AE50: =IF(YEAR(tbl_OC_VG[[#This Row],[Date Closed]])=YEAR(TODAY()), tbl_OC_VG[[#This Row],[Commitment Amount]]/Commitment_This_Year_VG,0) -> 0.0008162807555
A51: Phoenix Rehab | B51: Term Loan B | C51: 192000 | D51: 2020-12-11 | F51: =tbl_OC_Swiss[[#This Row],[Commitment Amount]]*tbl_OC_Swiss[[#This Row],[Net Senior Leverage]] -> 0 | H51: =tbl_OC_Swiss[[#This Row],[Commitment Amount]]*tbl_OC_Swiss[[#This Row],[LTV]] -> 0 | Y51: SavATree | Z51: Term Loan A | AA51: 1064005.28 | AB51: 44323 | AC51: 3.989203004 | AD51: 0.4854826141 | AE51: =IF(YEAR(tbl_OC_VG[[#This Row],[Date Closed]])=YEAR(TODAY()), tbl_OC_VG[[#This Row],[Commitment Amount]]/Commitment_This_Year_VG,0) -> 0.004659254331
A52: Resource Label Group | B52: Term Loan B | C52: 624904.51 | D52: 2020-12-18 | F52: =tbl_OC_Swiss[[#This Row],[Commitment Amount]]*tbl_OC_Swiss[[#This Row],[Net Senior Leverage]] -> 0 | H52: =tbl_OC_Swiss[[#This Row],[Commitment Amount]]*tbl_OC_Swiss[[#This Row],[LTV]] -> 0 | Y52: SavATree | Z52: Delayed Draw | AA52: 797376.36 | AB52: 44323 | AC52: 3.989203004 | AD52: 0.4854826141 | AE52: =IF(YEAR(tbl_OC_VG[[#This Row],[Date Closed]])=YEAR(TODAY()), tbl_OC_VG[[#This Row],[Commitment Amount]]/Commitment_This_Year_VG,0) -> 0.003491692503
A53: Resource Label Group | B53: Delayed Draw | C53: 624904.51 | D53: 2020-12-18 | F53: =tbl_OC_Swiss[[#This Row],[Commitment Amount]]*tbl_OC_Swiss[[#This Row],[Net Senior Leverage]] -> 0 | H53: =tbl_OC_Swiss[[#This Row],[Commitment Amount]]*tbl_OC_Swiss[[#This Row],[LTV]] -> 0 | Y53: Smile Brands | Z53: Revolver | AA53: 154460 | AB53: 44323 | AC53: 4.053400385 | AD53: 0.4913401889 | AE53: =IF(YEAR(tbl_OC_VG[[#This Row],[Date Closed]])=YEAR(TODAY()), tbl_OC_VG[[#This Row],[Commitment Amount]]/Commitment_This_Year_VG,0) -> 0.0006763767413
A54: Sunvair | B54: Term Loan B | C54: 8096688.24 | D54: 2020-12-23 | F54: =tbl_OC_Swiss[[#This Row],[Commitment Amount]]*tbl_OC_Swiss[[#This Row],[Net Senior Leverage]] -> 0 | H54: =tbl_OC_Swiss[[#This Row],[Commitment Amount]]*tbl_OC_Swiss[[#This Row],[LTV]] -> 0 | Y54: Smile Brands | Z54: Term Loan B | AA54: 3004440.07 | AB54: 44323 | AC54: 4.053400385 | AD54: 0.4913401889 | AE54: =IF(YEAR(tbl_OC_VG[[#This Row],[Date Closed]])=YEAR(TODAY()), tbl_OC_VG[[#This Row],[Commitment Amount]]/Commitment_This_Year_VG,0) -> 0.01315637307
A55: Sunvair | B55: Term Loan C | C55: 1903311.76 | D55: 2020-12-23 | F55: =tbl_OC_Swiss[[#This Row],[Commitment Amount]]*tbl_OC_Swiss[[#This Row],[Net Senior Leverage]] -> 0 | H55: =tbl_OC_Swiss[[#This Row],[Commitment Amount]]*tbl_OC_Swiss[[#This Row],[LTV]] -> 0 | Y55: Smile Brands | Z55: Delayed Draw | AA55: 695070 | AB55: 44323 | AC55: 4.053400385 | AD55: 0.4913401889 | AE55: =IF(YEAR(tbl_OC_VG[[#This Row],[Date Closed]])=YEAR(TODAY()), tbl_OC_VG[[#This Row],[Commitment Amount]]/Commitment_This_Year_VG,0) -> 0.003043695336
A56: Presco - WF Add-on | B56: Term Loan B | C56: 3500000 | D56: 2020-12-30 | F56: =tbl_OC_Swiss[[#This Row],[Commitment Amount]]*tbl_OC_Swiss[[#This Row],[Net Senior Leverage]] -> 0 | H56: =tbl_OC_Swiss[[#This Row],[Commitment Amount]]*tbl_OC_Swiss[[#This Row],[LTV]] -> 0 | Y56: SupplyOne Holdings, LLC | Z56: Term Loan C | AA56: 1015049.25 | AB56: 44316 | AC56: 3.104174757 | AD56: 0.4167351331 | AE56: =IF(YEAR(tbl_OC_VG[[#This Row],[Date Closed]])=YEAR(TODAY()), tbl_OC_VG[[#This Row],[Commitment Amount]]/Commitment_This_Year_VG,0) -> 0.004444877016
A57: Shipley's Donuts | B57: Revolver | C57: 1041666.67 | D57: 2020-12-30 | F57: =tbl_OC_Swiss[[#This Row],[Commitment Amount]]*tbl_OC_Swiss[[#This Row],[Net Senior Leverage]] -> 0 | H57: =tbl_OC_Swiss[[#This Row],[Commitment Amount]]*tbl_OC_Swiss[[#This Row],[LTV]] -> 0 | Y57: Thrive | Z57: Revolver | AA57: 54692.31 | AB57: 44316 | AC57: 5.754360689 | AD57: 0.3653543311 | AE57: =IF(YEAR(tbl_OC_VG[[#This Row],[Date Closed]])=YEAR(TODAY()), tbl_OC_VG[[#This Row],[Commitment Amount]]/Commitment_This_Year_VG,0) -> 0.0002394963512
A58: Shipley's Donuts | B58: Term Loan A | C58: 9375000 | D58: 2020-12-30 | F58: =tbl_OC_Swiss[[#This Row],[Commitment Amount]]*tbl_OC_Swiss[[#This Row],[Net Senior Leverage]] -> 0 | H58: =tbl_OC_Swiss[[#This Row],[Commitment Amount]]*tbl_OC_Swiss[[#This Row],[LTV]] -> 0 | Y58: Thrive | Z58: Term Loan A | AA58: 639900 | AB58: 44316 | AC58: 5.754360689 | AD58: 0.3653543311 | AE58: =IF(YEAR(tbl_OC_VG[[#This Row],[Date Closed]])=YEAR(TODAY()), tbl_OC_VG[[#This Row],[Commitment Amount]]/Commitment_This_Year_VG,0) -> 0.002802107191
A59: Shipley's Donuts | B59: Delayed Draw | C59: 1041666.67 | D59: 2020-12-30 | F59: =tbl_OC_Swiss[[#This Row],[Commitment Amount]]*tbl_OC_Swiss[[#This Row],[Net Senior Leverage]] -> 0 | H59: =tbl_OC_Swiss[[#This Row],[Commitment Amount]]*tbl_OC_Swiss[[#This Row],[LTV]] -> 0 | Y59: Thrive | Z59: Delayed Draw | AA59: 158607.69 | AB59: 44316 | AC59: 5.754360689 | AD59: 0.3653543311 | AE59: =IF(YEAR(tbl_OC_VG[[#This Row],[Date Closed]])=YEAR(TODAY()), tbl_OC_VG[[#This Row],[Commitment Amount]]/Commitment_This_Year_VG,0) -> 0.0006945393791
A60: Shipley's Donuts | B60: Delayed Draw | C60: 1041666.66 | D60: 2020-12-30 | F60: =tbl_OC_Swiss[[#This Row],[Commitment Amount]]*tbl_OC_Swiss[[#This Row],[Net Senior Leverage]] -> 0 | H60: =tbl_OC_Swiss[[#This Row],[Commitment Amount]]*tbl_OC_Swiss[[#This Row],[LTV]] -> 0 | Y60: Oracle Elevator Company | Z60: Term Loan A | AA60: 3000000 | AB60: 44328 | AC60: 4.226519696 | AD60: 0.5663753207 | AE60: =IF(YEAR(tbl_OC_VG[[#This Row],[Date Closed]])=YEAR(TODAY()), tbl_OC_VG[[#This Row],[Commitment Amount]]/Commitment_This_Year_VG,0) -> 0.0131369301
A61: Monroe Engineering | B61: Term Loan B | C61: 2448453.61 | D61: 2020-12-31 | F61: =tbl_OC_Swiss[[#This Row],[Commitment Amount]]*tbl_OC_Swiss[[#This Row],[Net Senior Leverage]] -> 0 | H61: =tbl_OC_Swiss[[#This Row],[Commitment Amount]]*tbl_OC_Swiss[[#This Row],[LTV]] -> 0 | Y61: Payroc | Z61: Delayed Draw C | AA61: 317869.51 | AB61: 44323 | AC61: 3.805267168 | AD61: 0.3937369368 | AE61: =IF(YEAR(tbl_OC_VG[[#This Row],[Date Closed]])=YEAR(TODAY()), tbl_OC_VG[[#This Row],[Commitment Amount]]/Commitment_This_Year_VG,0) -> 0.001391943178
A62: Resource Label Group | B62: Term Loan A | C62: 400160.97 | D62: 2020-01-06 | F62: =tbl_OC_Swiss[[#This Row],[Commitment Amount]]*tbl_OC_Swiss[[#This Row],[Net Senior Leverage]] -> 0 | H62: =tbl_OC_Swiss[[#This Row],[Commitment Amount]]*tbl_OC_Swiss[[#This Row],[LTV]] -> 0 | Y62: Payroc | Z62: Delayed Draw B | AA62: 876730.49 | AB62: 44323 | AC62: 3.805267168 | AD62: 0.3937369368 | AE62: =IF(YEAR(tbl_OC_VG[[#This Row],[Date Closed]])=YEAR(TODAY()), tbl_OC_VG[[#This Row],[Commitment Amount]]/Commitment_This_Year_VG,0) -> 0.003839182389
A63: Solmetex | B63: Revolver | C63: 454545.45 | D63: 2020-01-07 | F63: =tbl_OC_Swiss[[#This Row],[Commitment Amount]]*tbl_OC_Swiss[[#This Row],[Net Senior Leverage]] -> 0 | H63: =tbl_OC_Swiss[[#This Row],[Commitment Amount]]*tbl_OC_Swiss[[#This Row],[LTV]] -> 0 | Y63: Holley DPB | Z63: Term Loan A | AA63: 1176482.18 | AB63: 44334 | AC63: 3.439886173 | AD63: 0.4668330838 | AE63: =IF(YEAR(tbl_OC_VG[[#This Row],[Date Closed]])=YEAR(TODAY()), tbl_OC_VG[[#This Row],[Commitment Amount]]/Commitment_This_Year_VG,0) -> 0.005151788056
A64: Solmetex | B64: Term Loan A | C64: 2545454.55 | D64: 2020-01-08 | F64: =tbl_OC_Swiss[[#This Row],[Commitment Amount]]*tbl_OC_Swiss[[#This Row],[Net Senior Leverage]] -> 0 | H64: =tbl_OC_Swiss[[#This Row],[Commitment Amount]]*tbl_OC_Swiss[[#This Row],[LTV]] -> 0 | Y64: Solmetex | Z64: Revolver | AA64: 327863.63 | AB64: 44349 | AC64: 5.592920354 | AD64: 0.421686747 | AE64: =IF(YEAR(tbl_OC_VG[[#This Row],[Date Closed]])=YEAR(TODAY()), tbl_OC_VG[[#This Row],[Commitment Amount]]/Commitment_This_Year_VG,0) -> 0.001435707197
A65: GSM Outdoors - TruGlo Add-on | B65: Term Loan A | C65: 3500000 | D65: 2020-01-09 | F65: =tbl_OC_Swiss[[#This Row],[Commitment Amount]]*tbl_OC_Swiss[[#This Row],[Net Senior Leverage]] -> 0 | H65: =tbl_OC_Swiss[[#This Row],[Commitment Amount]]*tbl_OC_Swiss[[#This Row],[LTV]] -> 0 | Y65: Solmetex | Z65: Term Loan A | AA65: 1836036.37 | AB65: 44349 | AC65: 5.592920354 | AD65: 0.421686747 | AE65: =IF(YEAR(tbl_OC_VG[[#This Row],[Date Closed]])=YEAR(TODAY()), tbl_OC_VG[[#This Row],[Commitment Amount]]/Commitment_This_Year_VG,0) -> 0.008039960487
A66: Thrive | B66: Revolver | C66: 192307.69 | D66: 2020-01-10 | F66: =tbl_OC_Swiss[[#This Row],[Commitment Amount]]*tbl_OC_Swiss[[#This Row],[Net Senior Leverage]] -> 0 | H66: =tbl_OC_Swiss[[#This Row],[Commitment Amount]]*tbl_OC_Swiss[[#This Row],[LTV]] -> 0 | Y66: SupplyOne Holdings, LLC | Z66: Fourth Amendment Term Loan | AA66: 3796078.9 | AB66: 44351 | AC66: 3.79977313 | AD66: 0.481190059 | AE66: =IF(YEAR(tbl_OC_VG[[#This Row],[Date Closed]])=YEAR(TODAY()), tbl_OC_VG[[#This Row],[Commitment Amount]]/Commitment_This_Year_VG,0) -> 0.01662294106
A67: Thrive | B67: Term Loan A | C67: 2250000 | D67: 2020-01-11 | F67: =tbl_OC_Swiss[[#This Row],[Commitment Amount]]*tbl_OC_Swiss[[#This Row],[Net Senior Leverage]] -> 0 | H67: =tbl_OC_Swiss[[#This Row],[Commitment Amount]]*tbl_OC_Swiss[[#This Row],[LTV]] -> 0 | Y67: Solve Industrial Motion Group | Z67: Revolver | AA67: 360000 | AB67: 44377 | AC67: 4.294843671 | AD67: 0.3261707989 | AE67: =IF(YEAR(tbl_OC_VG[[#This Row],[Date Closed]])=YEAR(TODAY()), tbl_OC_VG[[#This Row],[Commitment Amount]]/Commitment_This_Year_VG,0) -> 0.001576431612
A68: Thrive | B68: Delayed Draw | C68: 557692.31 | D68: 2020-01-12 | F68: =tbl_OC_Swiss[[#This Row],[Commitment Amount]]*tbl_OC_Swiss[[#This Row],[Net Senior Leverage]] -> 0 | H68: =tbl_OC_Swiss[[#This Row],[Commitment Amount]]*tbl_OC_Swiss[[#This Row],[LTV]] -> 0 | Y68: Solve Industrial Motion Group | Z68: Term Loan A | AA68: 2100000 | AB68: 44377 | AC68: 4.294843671 | AD68: 0.3261707989 | AE68: =IF(YEAR(tbl_OC_VG[[#This Row],[Date Closed]])=YEAR(TODAY()), tbl_OC_VG[[#This Row],[Commitment Amount]]/Commitment_This_Year_VG,0) -> 0.009195851072
A69: Painters Supply & Equipment | B69: Term Loan A | C69: 1000000 | D69: 2020-01-13 | F69: =tbl_OC_Swiss[[#This Row],[Commitment Amount]]*tbl_OC_Swiss[[#This Row],[Net Senior Leverage]] -> 0 | H69: =tbl_OC_Swiss[[#This Row],[Commitment Amount]]*tbl_OC_Swiss[[#This Row],[LTV]] -> 0 | Y69: Solve Industrial Motion Group | Z69: Delayed Draw | AA69: 540000 | AB69: 44377 | AC69: 4.294843671 | AD69: 0.3261707989 | AE69: =IF(YEAR(tbl_OC_VG[[#This Row],[Date Closed]])=YEAR(TODAY()), tbl_OC_VG[[#This Row],[Commitment Amount]]/Commitment_This_Year_VG,0) -> 0.002364647419
A70: Total Access Urgent Care | B70: Revolver | C70: 732206.87 | D70: 2020-01-14 | F70: =tbl_OC_Swiss[[#This Row],[Commitment Amount]]*tbl_OC_Swiss[[#This Row],[Net Senior Leverage]] -> 0 | H70: =tbl_OC_Swiss[[#This Row],[Commitment Amount]]*tbl_OC_Swiss[[#This Row],[LTV]] -> 0 | Y70: HK Solutions | Z70: Revolver | AA70: 1250000 | AB70: 44385 | AC70: 4.590218005 | AD70: 0.3475157584 | AE70: =IF(YEAR(tbl_OC_VG[[#This Row],[Date Closed]])=YEAR(TODAY()), tbl_OC_VG[[#This Row],[Commitment Amount]]/Commitment_This_Year_VG,0) -> 0.005473720876
A71: Total Access Urgent Care | B71: Term Loan A | C71: 12103379.41 | D71: 2020-01-15 | F71: =tbl_OC_Swiss[[#This Row],[Commitment Amount]]*tbl_OC_Swiss[[#This Row],[Net Senior Leverage]] -> 0 | H71: =tbl_OC_Swiss[[#This Row],[Commitment Amount]]*tbl_OC_Swiss[[#This Row],[LTV]] -> 0 | Y71: HK Solutions | Z71: Term Loan A | AA71: 6500000 | AB71: 44385 | AC71: 4.590218005 | AD71: 0.3475157584 | AE71: =IF(YEAR(tbl_OC_VG[[#This Row],[Date Closed]])=YEAR(TODAY()), tbl_OC_VG[[#This Row],[Commitment Amount]]/Commitment_This_Year_VG,0) -> 0.02846334856
A72: Total Access Urgent Care | B72: Delayed Draw | C72: 1464413.72 | D72: 2020-01-16 | F72: =tbl_OC_Swiss[[#This Row],[Commitment Amount]]*tbl_OC_Swiss[[#This Row],[Net Senior Leverage]] -> 0 | H72: =tbl_OC_Swiss[[#This Row],[Commitment Amount]]*tbl_OC_Swiss[[#This Row],[LTV]] -> 0 | Y72: HK Solutions | Z72: Delayed Draw Term Loan A | AA72: 1125000 | AB72: 44385 | AC72: 4.590218005 | AD72: 0.3475157584 | AE72: =IF(YEAR(tbl_OC_VG[[#This Row],[Date Closed]])=YEAR(TODAY()), tbl_OC_VG[[#This Row],[Commitment Amount]]/Commitment_This_Year_VG,0) -> 0.004926348789
A73: TPC Wire & Cable Corp. | B73: Revolver | C73: 1200000 | D73: 2020-01-17 | F73: =tbl_OC_Swiss[[#This Row],[Commitment Amount]]*tbl_OC_Swiss[[#This Row],[Net Senior Leverage]] -> 0 | H73: =tbl_OC_Swiss[[#This Row],[Commitment Amount]]*tbl_OC_Swiss[[#This Row],[LTV]] -> 0 | Y73: HK Solutions | Z73: Delayed Draw Term Loan B | AA73: 1125000 | AB73: 44385 | AC73: 4.590218005 | AD73: 0.3475157584 | AE73: =IF(YEAR(tbl_OC_VG[[#This Row],[Date Closed]])=YEAR(TODAY()), tbl_OC_VG[[#This Row],[Commitment Amount]]/Commitment_This_Year_VG,0) -> 0.004926348789
A74: TPC Wire & Cable Corp. | B74: Term Loan A | C74: 8400000 | D74: 2020-01-18 | F74: =tbl_OC_Swiss[[#This Row],[Commitment Amount]]*tbl_OC_Swiss[[#This Row],[Net Senior Leverage]] -> 0 | H74: =tbl_OC_Swiss[[#This Row],[Commitment Amount]]*tbl_OC_Swiss[[#This Row],[LTV]] -> 0 | Y74: Wittichen Supply | Z74: Revolver | AA74: 1050000 | AB74: 44407 | AC74: 4.364850235 | AD74: 0.3809669289 | AE74: =IF(YEAR(tbl_OC_VG[[#This Row],[Date Closed]])=YEAR(TODAY()), tbl_OC_VG[[#This Row],[Commitment Amount]]/Commitment_This_Year_VG,0) -> 0.004597925536
A75: TPC Wire & Cable Corp. | B75: Delayed Draw | C75: 2400000 | D75: 2020-01-19 | F75: =tbl_OC_Swiss[[#This Row],[Commitment Amount]]*tbl_OC_Swiss[[#This Row],[Net Senior Leverage]] -> 0 | H75: =tbl_OC_Swiss[[#This Row],[Commitment Amount]]*tbl_OC_Swiss[[#This Row],[LTV]] -> 0 | Y75: Wittichen Supply | Z75: Term Loan A | AA75: 6300000 | AB75: 44407 | AC75: 4.364850235 | AD75: 0.3809669289 | AE75: =IF(YEAR(tbl_OC_VG[[#This Row],[Date Closed]])=YEAR(TODAY()), tbl_OC_VG[[#This Row],[Commitment Amount]]/Commitment_This_Year_VG,0) -> 0.02758755322
A76: Resource Label Group | B76: Term Loan | C76: 400160.97 | D76: 2021-01-06 | E76: 4.777209252 | F76: =tbl_OC_Swiss[[#This Row],[Commitment Amount]]*tbl_OC_Swiss[[#This Row],[Net Senior Leverage]] -> 1911652.688 | G76: 0.4051261069 | H76: =tbl_OC_Swiss[[#This Row],[Commitment Amount]]*tbl_OC_Swiss[[#This Row],[LTV]] -> 162115.6559 | Y76: Wittichen Supply | Z76: Delayed Draw | AA76: 3150000 | AB76: 44407 | AC76: 4.364850235 | AD76: 0.3809669289 | AE76: =IF(YEAR(tbl_OC_VG[[#This Row],[Date Closed]])=YEAR(TODAY()), tbl_OC_VG[[#This Row],[Commitment Amount]]/Commitment_This_Year_VG,0) -> 0.01379377661
A77: Solmetex | B77: Revolver | C77: 454545.45 | D77: 2021-01-22 | E77: 5.592920354 | F77: =tbl_OC_Swiss[[#This Row],[Commitment Amount]]*tbl_OC_Swiss[[#This Row],[Net Senior Leverage]] -> 2542236.499 | G77: 0.421686747 | H77: =tbl_OC_Swiss[[#This Row],[Commitment Amount]]*tbl_OC_Swiss[[#This Row],[LTV]] -> 191675.7922 | Y77: Belt Power | Z77: Term Loan A | AA77: 4000000 | AB77: 44414 | AC77: 3.89623166 | AD77: 0.4943558202 | AE77: =IF(YEAR(tbl_OC_VG[[#This Row],[Date Closed]])=YEAR(TODAY()), tbl_OC_VG[[#This Row],[Commitment Amount]]/Commitment_This_Year_VG,0) -> 0.0175159068 | AF77: Y
A78: Solmetex | B78: Term Loan | C78: 2545454.55 | D78: 2021-01-22 | E78: 5.592920354 | F78: =tbl_OC_Swiss[[#This Row],[Commitment Amount]]*tbl_OC_Swiss[[#This Row],[Net Senior Leverage]] -> 14236524.56 | G78: 0.421686747 | H78: =tbl_OC_Swiss[[#This Row],[Commitment Amount]]*tbl_OC_Swiss[[#This Row],[LTV]] -> 1073384.449 | Y78: TPC WIRE | Z78: Term Loan A | AA78: 2000000 | AB78: 44418 | AC78: 3.939628136 | AD78: 0.4120943113 | AE78: =IF(YEAR(tbl_OC_VG[[#This Row],[Date Closed]])=YEAR(TODAY()), tbl_OC_VG[[#This Row],[Commitment Amount]]/Commitment_This_Year_VG,0) -> 0.008757953402
A79: GSM Outdoors - TruGlo Add-on | B79: Term Loan | C79: 3500000 | D79: 2021-01-25 | E79: 5.169072681 | F79: =tbl_OC_Swiss[[#This Row],[Commitment Amount]]*tbl_OC_Swiss[[#This Row],[Net Senior Leverage]] -> 18091754.38 | G79: 0.412615005 | H79: =tbl_OC_Swiss[[#This Row],[Commitment Amount]]*tbl_OC_Swiss[[#This Row],[LTV]] -> 1444152.517 | Y79: Titan Security Group | Z79: Revolver | AA79: 450000 | AB79: 44420 | AC79: 3.55366027 | AD79: 0.3098441926 | AE79: =IF(YEAR(tbl_OC_VG[[#This Row],[Date Closed]])=YEAR(TODAY()), tbl_OC_VG[[#This Row],[Commitment Amount]]/Commitment_This_Year_VG,0) -> 0.001970539516
Y80: Titan Security Group | Z80: Term Loan | AA80: 2475000 | AB80: 44420 | AC80: 3.55366027 | AD80: 0.3098441926 | AE80: =IF(YEAR(tbl_OC_VG[[#This Row],[Date Closed]])=YEAR(TODAY()), tbl_OC_VG[[#This Row],[Commitment Amount]]/Commitment_This_Year_VG,0) -> 0.01083796734
Y81: Titan Security Group | Z81: Delayed Draw A | AA81: 450000 | AB81: 44420 | AC81: 3.55366027 | AD81: 0.3098441926 | AE81: =IF(YEAR(tbl_OC_VG[[#This Row],[Date Closed]])=YEAR(TODAY()), tbl_OC_VG[[#This Row],[Commitment Amount]]/Commitment_This_Year_VG,0) -> 0.001970539516
Y82: Titan Security Group | Z82: Delayed Draw B | AA82: 450000 | AB82: 44420 | AC82: 3.55366027 | AD82: 0.3098441926 | AE82: =IF(YEAR(tbl_OC_VG[[#This Row],[Date Closed]])=YEAR(TODAY()), tbl_OC_VG[[#This Row],[Commitment Amount]]/Commitment_This_Year_VG,0) -> 0.001970539516
Y83: Titan Security Group | Z83: Delayed Draw C | AA83: 675000 | AB83: 44420 | AC83: 3.55366027 | AD83: 0.3098441926 | AE83: =IF(YEAR(tbl_OC_VG[[#This Row],[Date Closed]])=YEAR(TODAY()), tbl_OC_VG[[#This Row],[Commitment Amount]]/Commitment_This_Year_VG,0) -> 0.002955809273
Y84: Crane 1 Services | Z84: Revolver | AA84: 852272.73 | AB84: 44424 | AC84: 5.108038728 | AD84: 0.4232638345 | AE84: =IF(YEAR(tbl_OC_VG[[#This Row],[Date Closed]])=YEAR(TODAY()), tbl_OC_VG[[#This Row],[Commitment Amount]]/Commitment_This_Year_VG,0) -> 0.003732082428
Y85: Crane 1 Services | Z85: Term Loan A | AA85: 9375000 | AB85: 44424 | AC85: 5.108038728 | AD85: 0.4232638345 | AE85: =IF(YEAR(tbl_OC_VG[[#This Row],[Date Closed]])=YEAR(TODAY()), tbl_OC_VG[[#This Row],[Commitment Amount]]/Commitment_This_Year_VG,0) -> 0.04105290657
Y86: Crane 1 Services | Z86: Delayed Draw | AA86: 2272727.27 | AB86: 44424 | AC86: 5.108038728 | AD86: 0.4232638345 | AE86: =IF(YEAR(tbl_OC_VG[[#This Row],[Date Closed]])=YEAR(TODAY()), tbl_OC_VG[[#This Row],[Commitment Amount]]/Commitment_This_Year_VG,0) -> 0.009952219763
Y87: SupplyOne Holdings, LLC | Z87: 5A Term Loan | AA87: 3000000 | AB87: 44425 | AC87: 3.735177169 | AD87: 0.4680877525 | AE87: =IF(YEAR(tbl_OC_VG[[#This Row],[Date Closed]])=YEAR(TODAY()), tbl_OC_VG[[#This Row],[Commitment Amount]]/Commitment_This_Year_VG,0) -> 0.0131369301
Y88: BioAgilytix | Z88: Revolver | AA88: 701149.43 | AB88: 44427 | AC88: 3.837163697 | AD88: 0.1598896933 | AE88: =IF(YEAR(tbl_OC_VG[[#This Row],[Date Closed]])=YEAR(TODAY()), tbl_OC_VG[[#This Row],[Commitment Amount]]/Commitment_This_Year_VG,0) -> 0.003070317018
Y89: BioAgilytix | Z89: Term Loan B | AA89: 5398850.57 | AB89: 44427 | AC89: 3.837163697 | AD89: 0.1598896933 | AE89: =IF(YEAR(tbl_OC_VG[[#This Row],[Date Closed]])=YEAR(TODAY()), tbl_OC_VG[[#This Row],[Commitment Amount]]/Commitment_This_Year_VG,0) -> 0.02364144086
Y90: ECM INDUSTRIES, LLC | Z90: Term Loan B | AA90: 7500000 | AB90: 44442 | AC90: 4.410840048 | AD90: 0.4480804268 | AE90: =IF(YEAR(tbl_OC_VG[[#This Row],[Date Closed]])=YEAR(TODAY()), tbl_OC_VG[[#This Row],[Commitment Amount]]/Commitment_This_Year_VG,0) -> 0.03284232526 | AF90: Y
Y91: MONROE ENGINEERING, LLC | Z91: Term Loan C | AA91: 4000000 | AB91: 44477 | AC91: 3.092511217 | AD91: 0.3754087593 | AE91: =IF(YEAR(tbl_OC_VG[[#This Row],[Date Closed]])=YEAR(TODAY()), tbl_OC_VG[[#This Row],[Commitment Amount]]/Commitment_This_Year_VG,0) -> 0.0175159068
Y92: Home Care Assistance | Z92: Term Loan B | AA92: 251308.9008 | AB92: 44483 | AC92: 3.828388115 | AD92: 0.3245762936 | AE92: =IF(YEAR(tbl_OC_VG[[#This Row],[Date Closed]])=YEAR(TODAY()), tbl_OC_VG[[#This Row],[Commitment Amount]]/Commitment_This_Year_VG,0) -> 0.001100475822
Y93: Home Care Assistance | Z93: Delayed Draw B | AA93: 2748691.099 | AB93: 44483 | AC93: 3.828388115 | AD93: 0.3245762936 | AE93: =IF(YEAR(tbl_OC_VG[[#This Row],[Date Closed]])=YEAR(TODAY()), tbl_OC_VG[[#This Row],[Commitment Amount]]/Commitment_This_Year_VG,0) -> 0.01203645428
Y94: Tyto Athene | Z94: Term Loan A | AA94: 10000000 | AB94: 44490 | AC94: 4.216812821 | AD94: 0.5554505594 | AE94: =IF(YEAR(tbl_OC_VG[[#This Row],[Date Closed]])=YEAR(TODAY()), tbl_OC_VG[[#This Row],[Commitment Amount]]/Commitment_This_Year_VG,0) -> 0.04378976701
Y95: Krayden, Inc. | Z95: Term Loan A | AA95: 3000000 | AB95: 44491 | AC95: 4.713400568 | AD95: 0.534750149 | AE95: =IF(YEAR(tbl_OC_VG[[#This Row],[Date Closed]])=YEAR(TODAY()), tbl_OC_VG[[#This Row],[Commitment Amount]]/Commitment_This_Year_VG,0) -> 0.0131369301 | AF95: Y
Y96: Refrigiwear | Z96: Term Loan | AA96: 8578199.05 | AB96: 44502 | AC96: 5.12 | AD96: 0.3762 | AE96: =IF(YEAR(tbl_OC_VG[[#This Row],[Date Closed]])=YEAR(TODAY()), tbl_OC_VG[[#This Row],[Commitment Amount]]/Commitment_This_Year_VG,0) -> 0.03756373378 | AF96: N
Y97: Refrigiwear | Z97: Term Loan | AA97: 8578199.05 | AB97: 44502 | AC97: 5.12 | AD97: 0.3762 | AE97: =IF(YEAR(tbl_OC_VG[[#This Row],[Date Closed]])=YEAR(TODAY()), tbl_OC_VG[[#This Row],[Commitment Amount]]/Commitment_This_Year_VG,0) -> 0.03756373378 | AF97: N
Y98: Refrigiwear | Z98: Revolver | AA98: 1421800.95 | AB98: 44502 | AC98: 5.12 | AD98: 0.3762 | AE98: =IF(YEAR(tbl_OC_VG[[#This Row],[Date Closed]])=YEAR(TODAY()), tbl_OC_VG[[#This Row],[Commitment Amount]]/Commitment_This_Year_VG,0) -> 0.006226033234 | AF98: N

Sheet Protective Advances
A1: SMA | B1: Borrower Name | C1: Tranche | D1: Commitment Amount | E1: Date Closed
A2: SMA-SC | B2: TractManager | C2: Incremental Term Loan | D2: 77272.87 | E2: 2020-03-23
A3: SMA-SC | B3: Mr. Greens | C3: Term Loan B | D3: 28777.07 | E3: 2020-03-31
A4: SMA-SC NT | B4: TractManager | C4: Incremental Term Loan | D4: 38590.05 | E4: 2020-03-23
A5: SMA-SC NT | B5: Mr. Greens | C5: Term Loan B | D5: 14374.34 | E5: 2020-03-31
A6: SMA-CH | B6: Mr. Greens | C6: Term Loan B | D6: 46759.19 | E6: 2020-03-31
A7: SMA-CH | B7: America's Auto Auction | C7: Term Loan B | D7: 163005.51 | E7: 2020-05-20
A8: SMA-CC | B8: Mr. Greens | C8: Term Loan B | D8: 46759.19 | E8: 2020-03-31
A9: SMA-AF US | B9: Mr. Greens | C9: Term Loan B | D9: 8995.79 | E9: 2020-03-31
A10: SMA-AF JP | B10: Mr. Greens | C10: Term Loan B | D10: 44978.97 | E10: 2020-03-31
A11: SMA-AF JP | B11: America's Auto Auction | C11: Term Loan B | D11: 179717.7 | E11: 2020-05-20
A12: SMA-SC | B12: Mr. Greens | C12: Term Loan C | D12: 131155.27 | E12: 2020-08-12
A13: SMA-SC NT | B13: Mr. Greens | C13: Term Loan C | D13: 65530.47 | E13: 2020-08-12
A14: SMA-CC | B14: Mr. Greens | C14: Term Loan C | D14: 213115.53 | E14: 2020-08-12
A15: SMA-AF US | B15: Mr. Greens | C15: Term Loan C | D15: 40995.85 | E15: 2020-08-12
A16: SMA-AF JP | B16: Mr. Greens | C16: Term Loan C | D16: 204979.25 | E16: 2020-08-12
A17: SMA-CH | B17: Mr. Greens | C17: Term Loan C | D17: 213115.53 | E17: 2020-08-12
A18: SMA-CH | B18: Phoenix Rehab | D18: 364800 | E18: 2020-12-11
A19: SMA-SC | B19: TractManager | C19: Incremental Term Loan | D19: 77272.87 | E19: 2020-03-23
A20: SMA-SC | B20: Mr. Greens | C20: Term Loan B | D20: 28777.07 | E20: 2020-03-31
A21: SMA-SC | B21: Mr. Greens | C21: Term Loan C | D21: 131155.27 | E21: 2020-08-12
A22: SMA-SC | B22: Hub Pen | C22: Term Loan A | D22: 119847.85 | E22: 2020-10-16
A23: SMA-SC | B23: Phoenix Rehab | C23: Term Loan B | D23: 192000 | E23: 2020-12-11

Sheet Deal Figures
A1: Facility ID | B1: Investor | C1: Net Senior Leverage | D1: Open Market Purchase | E1: DIP Loan | F1: Approved By Swiss
A2: 17124 | B2: SMA-CH | C2: 4.15
A3: 17106 | B3: SMA-CH | C3: 4.15
A4: 16178 | B4: SMA-CH | C4: 3.897742747
A5: 18801 | B5: SMA-CH | C5: 6.480366177
A6: 18819 | B6: SMA-CH | C6: 6.480366177
A7: 20308 | B7: SMA-CH | C7: 6.013199707
A8: 20287 | B8: SMA-CH | C8: 6.013199707
A9: 20293 | B9: SMA-CH | C9: 6.013199707
A10: 20007 | B10: SMA-CH | C10: 4.866330602
A11: 18248 | B11: SMA-CH | C11: 4.84
A12: 18232 | B12: SMA-CH | C12: 4.84
A13: 18189 | B13: SMA-CH | C13: 4.780369524
A14: 18196 | B14: SMA-CH | C14: 4.780369524
A15: 18683 | B15: SMA-CH | C15: 4.929983965
A16: 18692 | B16: SMA-CH | C16: 4.929983965
A17: 20743 | B17: SMA-CH | C17: 4.26
A18: 20737 | B18: SMA-CH | C18: 4.26
A19: 20752 | B19: SMA-CH | C19: 4.26
A20: 19014 | B20: SMA-CH | C20: 4.07
A21: 19004 | B21: SMA-CH | C21: 4.07
A22: 20871 | B22: SMA-CH | C22: 4.153938843
A23: 18593 | B23: SMA-CH | C23: 2.685642227
A24: 18608 | B24: SMA-CH | C24: 2.685642227
A25: 19148 | B25: SMA-CH | C25: 2.01
A26: 19132 | B26: SMA-CH | C26: 2.01
A27: 16594 | B27: SMA-CH | C27: 4.59
A28: 21264 | B28: SMA-CH | C28: 3.909082252
A29: 15253 | B29: SMA-CH | C29: 3.264285605
A30: 15262 | B30: SMA-CH | C30: 3.264285605
A31: 18773 | B31: SMA-CH | C31: 3.33
A32: 18654 | B32: SMA-CH | C32: 3.33
A33: 18767 | B33: SMA-CH | C33: 3.33
A34: 18024 | B34: SMA-CH | C34: 3.94
A35: 18037 | B35: SMA-CH | C35: 3.94
A36: 17016 | B36: SMA-CH | C36: 3.37
A37: 21652 | B37: SMA-CH | C37: 4.404114692
A38: 21668 | B38: SMA-CH | C38: 4.404114692
A39: 20955 | B39: SMA-CH | C39: 3.78838475
A40: 20948 | B40: SMA-CH | C40: 3.78838475
A41: 20979 | B41: SMA-CH | C41: 3.78838475
A42: 20961 | B42: SMA-CH | C42: 3.78838475
A43: 20932 | B43: SMA-CH | C43: 3.78838475
A44: 19847 | B44: SMA-CH | C44: 3.24
A45: 19834 | B45: SMA-CH | C45: 3.24
A46: 19824 | B46: SMA-CH | C46: 3.24
A47: 20411 | B47: SMA-CH | C47: 5.196015194
A48: 20405 | B48: SMA-CH | C48: 5.196015194
A49: 19968 | B49: SMA-CH | C49: 5.313367951
A50: 19981 | B50: SMA-CH | C50: 5.313367951
A51: 19975 | B51: SMA-CH | C51: 5.313367951
A52: 20022 | B52: SMA-CH | C52: 5.08
A53: 20038 | B53: SMA-CH | C53: 5.08
A54: 18574 | B54: SMA-CH | C54: 4.51
A55: 18587 | B55: SMA-CH | C55: 4.51
A56: 20662 | B56: SMA-CH | C56: 4.407883607
A57: 20678 | B57: SMA-CH | C57: 4.407883607
A58: 19636 | B58: SMA-CH | C58: 4.19
A59: 19629 | B59: SMA-CH | C59: 4.19
A60: 19611 | B60: SMA-CH | C60: 4.19
A61: 20482 | B61: SMA-CH | C61: 4.41
A62: 20501 | B62: SMA-CH | C62: 4.41
A63: 20498 | B63: SMA-CH | C63: 4.41
A64: 18484 | B64: SMA-CH | C64: 4.390421149
A65: 18497 | B65: SMA-CH | C65: 4.390421149
A66: 18549 | B66: SMA-CH | C66: 3.65
A67: 18556 | B67: SMA-CH | C67: 3.65
A68: 19071 | B68: SMA-CH | C68: 3.88
A69: 19065 | B69: SMA-CH | C69: 3.88
A70: 18947 | B70: SMA-CH | C70: 4.49
A71: 18953 | B71: SMA-CH | C71: 4.49
A72: 21578 | B72: SMA-CH | C72: 2.991358298
A73: 21553 | B73: SMA-CH | C73: 2.991358298
A74: 21585 | B74: SMA-CH | C74: 2.991358298
A75: 21727 | B75: SMA-CH | C75: 4.26
A76: 21817 | B76: SMA-CH | C76: 3.729646138
A77: 21804 | B77: SMA-CH | C77: 3.729646138
A78: 21796 | B78: SMA-CH | C78: 3.729646138
A79: 21832 | B79: SMA-CH | C79: 6.05
A80: 21848 | B80: SMA-CH | C80: 6.05
A81: 21823 | B81: SMA-CH | C81: 6.05
A82: 22786 | B82: SMA-CH | C82: 5.354295351
A83: 22779 | B83: SMA-CH | C83: 5.354295351
A84: 22732 | B84: SMA-CH | C84: 4.650179666
A85: 22748 | B85: SMA-CH | C85: 4.650179666
A86: 22813 | B86: SMA-CH | C86: 4.944500997
A87: 22822 | B87: SMA-CH | C87: 4.944500997
A88: 23083 | B88: SMA-CH | C88: 3.931713991
A89: 23077 | B89: SMA-CH | C89: 3.931713991
A90: 23129 | B90: SMA-CH | C90: 4.148497381
A91: 23136 | B91: SMA-CH | C91: 4.148497381
A92: 23111 | B92: SMA-CH | C92: 4.148497381
A93: 23015 | B93: SMA-CH | C93: 3.949308432
A94: 23105 | B94: SMA-CH | C94: 3.949308432
A95: 23452 | B95: SMA-CH | C95: 5.46
A96: 23468 | B96: SMA-CH | C96: 5.46
A97: 23475 | B97: SMA-CH | C97: 5.46
A98: 23533 | B98: SMA-CH | C98: 4.26
A99: 16576 | B99: SMA-CH | C99: 4.59
A100: 24036 | B100: SMA-CH | C100: 2.685642227
A101: 24098 | B101: SMA-CH | C101: 4.84
A102: 24082 | B102: SMA-CH | C102: 4.84
A103: 24101 | B103: SMA-CH | C103: 4.84
A104: 24134 | B104: SMA-CH | C104: 4.03
A105: 24126 | B105: SMA-CH | C105: 4.03
A106: 24144 | B106: SMA-CH | C106: 4.03
A107: 24262 | B107: SMA-CH | C107: 4.13
A108: 24253 | B108: SMA-CH | C108: 4.13
A109: 24216 | B109: SMA-CH | C109: 5.07
A110: 24209 | B110: SMA-CH | C110: 5.07
A111: 24188 | B111: SMA-CH | C111: 4.31
A112: 24172 | B112: SMA-CH | C112: 4.31
A113: 24306 | B113: SMA-CH | C113: 4.14
A114: 24285 | B114: SMA-CH | C114: 4.14
A115: 24291 | B115: SMA-CH | C115: 4.14
A116: 24352 | B116: SMA-CH | C116: 3.46
A117: 24343 | B117: SMA-CH | C117: 3.46
A118: 24465 | B118: SMA-CH | C118: 3
A119: 24471 | B119: SMA-CH | C119: 3
A120: 24613 | B120: SMA-CH | C120: 5.15 | D120: Y
A121: 24607 | B121: SMA-CH | C121: 5.15 | D121: Y
A122: 24594 | B122: SMA-CH | C122: 5.15 | D122: Y
A123: 24651 | B123: SMA-CH | C123: 3.73
A124: 24645 | B124: SMA-CH | C124: 3.73
A125: 24774 | B125: SMA-CH | C125: 5.42
A126: 24784 | B126: SMA-CH | C126: 5.42
A127: 24802 | B127: SMA-CH | C127: 5.354295351
A128: 24915 | B128: SMA-CH | C128: 4.6
A129: 24954 | B129: SMA-CH | C129: 3.949308432
A130: 25057 | B130: SMA-CH | C130: 6.013199707
A131: 25072 | B131: SMA-CH | C131: 3.897742747
A132: 25162 | B132: SMA-CH | C132: 3.949308432
A133: 25417 | B133: SMA-CH | C133: 3.13
A134: 25404 | B134: SMA-CH | C134: 3.13
A135: 25365 | B135: SMA-CH | C135: 6.480366177
A136: 25507 | B136: SMA-CH | C136: 3.65
A137: 25551 | B137: SMA-CH | C137: 4
A138: 25569 | B138: SMA-CH | C138: 4
A139: 25545 | B139: SMA-CH | C139: 4.51
A140: 25584 | B140: SMA-CH | C140: 4.84
A141: 25697 | B141: SMA-CH | C141: 4.41
A142: 25684 | B142: SMA-CH | C142: 4.41
A143: 25594 | B143: SMA-CH | C143: 5.07
A144: 25628 | B144: SMA-CH | C144: 4.92
A145: 25635 | B145: SMA-CH | C145: 4.92
A146: 25641 | B146: SMA-CH | C146: 4.92
A147: 25725 | B147: SMA-CH | C147: 4.19
A148: 25731 | B148: SMA-CH | C148: 4.19
A149: 25749 | B149: SMA-CH | C149: 3.989203004
A150: 25756 | B150: SMA-CH | C150: 3.989203004
A151: 25764 | B151: SMA-CH | C151: 3.78838475
A152: 25815 | B152: SMA-CH | C152: 3.75
A153: 25774 | B153: SMA-CH | C153: 3.75
A154: 25864 | B154: SMA-CH | C154: 3.247863248
A155: 25854 | B155: SMA-CH | C155: 4.03
A156: 25905 | B156: SMA-CH | C156: 2.966273923
A157: 25929 | B157: SMA-CH | C157: 2.966273923
A158: 25911 | B158: SMA-CH | C158: 2.966273923
A159: 25936 | B159: SMA-CH | C159: 2.966273923
A160: 25944 | B160: SMA-CH | C160: 3.13
A161: 25883 | B161: SMA-CH | C161: 3.900515536
A162: 25892 | B162: SMA-CH | C162: 3.900515536
A163: 25877 | B163: SMA-CH | C163: 3.900515536
A164: 26034 | B164: SMA-CH | C164: 2.213892307
A165: 26137 | B165: SMA-CH | C165: 3.36
A166: 26124 | B166: SMA-CH | C166: 3.36
A167: 26143 | B167: SMA-CH | C167: 3.36
A168: 26091 | B168: SMA-CH | C168: 4.94
A169: 26106 | B169: SMA-CH | C169: 4.94
A170: 26114 | B170: SMA-CH | C170: 4.94
A171: 26175 | B171: SMA-CH | C171: 4.5
A172: 26168 | B172: SMA-CH | C172: 4.5
A173: 26152 | B173: SMA-CH | C173: 4.5
A174: 16929 | B174: SMA-AF US | C174: 5.56
A175: 16905 | B175: SMA-AF US | C175: 5.56
A176: 16911 | B176: SMA-AF US | C176: 5.56
A177: 16793 | B177: SMA-AF US | C177: 3.83
A178: 16808 | B178: SMA-AF US | C178: 3.83
A179: 16954 | B179: SMA-AF US | C179: 4.49
A180: 16967 | B180: SMA-AF US | C180: 4.49
A181: 17199 | B181: SMA-AF US | C181: 3.24
A182: 17181 | B182: SMA-AF US | C182: 3.24
A183: 17214 | B183: SMA-AF US | C183: 4.09
A184: 17265 | B184: SMA-AF US | C184: 4.62
A185: 17271 | B185: SMA-AF US | C185: 4.62
A186: 17258 | B186: SMA-AF US | C186: 3.72
A187: 17323 | B187: SMA-AF US | C187: 3.14
A188: 17332 | B188: SMA-AF US | C188: 3.14
A189: 17379 | B189: SMA-AF US | C189: 3.67
A190: 17355 | B190: SMA-AF US | C190: 3.67
A191: 17438 | B191: SMA-AF US | C191: 3.96
A192: 17451 | B192: SMA-AF US | C192: 3.96
A193: 17445 | B193: SMA-AF US | C193: 3.96
A194: 19251 | B194: SMA-AF US | C194: 4.158342302
A195: 19276 | B195: SMA-AF US | C195: 4.158342302
A196: 17715 | B196: SMA-AF US | C196: 4.17
A197: 17708 | B197: SMA-AF US | C197: 4.17
A198: 17754 | B198: SMA-AF US | C198: 4.03
A199: 17721 | B199: SMA-AF US | C199: 4.03
A200: 17898 | B200: SMA-AF US | C200: 4.19
... 355 more rows

Sheet P.Allo
A1: Details
B3: Deal Name | D3: n/a
B4: Description | D4: n/a
B5: Net Senior Leverage | D5: n/a
B6: Protective Advances | D6: n/a
B7: Open Market | D7: n/a
B8: Sponsor | D8: =IFERROR(VLOOKUP(dName,tblListOfDeals[],2,0),"n/a") -> n/a
B9: Industry | D9: =IFERROR(VLOOKUP(dName,tblListOfDeals[],3,0),"n/a") -> n/a
B10: Target Date | D10: n/a
B11: Dividend Recap | D11: n/a
B12: DIP Loan | D12: n/a
B13: LTV % | D13: n/a
B14: Approved by Swiss | D14: N
B15: Country (CAN) | D15: N
A16: Allocations
D18: Revolver | F18: Term Loan | H18: DDTL | J18: DDTL 2 | L18: Totals | N18: Cur. Pro Rata % | P18: Inc. Pro Rata %
B19: NXT | D19: Unfunded | F19: Unfunded | H19: Unfunded | J19: Unfunded | N19: =IFERROR(L87/L92,"-") -> - | P19: =IFERROR(L19/$L$36,"-") -> -
B20: SLF I | D20: =IF($L20>0,"Unfunded",0) -> 0 | F20: =IF(L20>0,IF($P$35>0.75,$P$35,0.85),0) -> 0 | H20: =IF($L20>0,"Unfunded",0) -> 0 | J20: 0 | N20: =IFERROR(L108/$L$134,"-") -> - | P20: -
A21: =L21 -> 0 | B21: Potential SLF V | D21: 0 | F21: =IF(L21>0,IF($P$35>0.75,$P$35,0.75),0) -> 0 | H21: 0 | J21: 0 | N21: =IFERROR(L120/$L$135,"-") -> - | P21: -
A22: 0 | B22: Potential SLF VI L | D22: 0 | F22: 0 | H22: 0 | J22: 0 | N22: =IFERROR(L123/$L$135,"-") -> - | P22: -
A23: =L23 -> 0 | B23: Potential SLF VI UL | D23: 0 | F23: 0 | H23: 0 | J23: 0 | N23: =IFERROR(L126/$L$135,"-") -> - | P23: -
B24: Potential SLF VII | D24: 0 | F24: 0 | H24: 0 | J24: 0 | N24: =IFERROR(L129/$L$135,"-") -> - | P24: -
B25: Potential SLF VIII | D25: 0 | F25: 0 | H25: 0 | J25: 0 | N25: =IFERROR(L132/$L$135,"-") -> - | P25: -
A26: =L26 -> 0 | B26: SMA-A | D26: 0 | F26: 0 | H26: 0 | J26: 0 | N26: =IFERROR(L94/$L$135,"-") -> - | P26: -
A27: 0 | B27: SMA-SC | D27: 0 | F27: 0 | H27: 0 | J27: 0 | N27: =IFERROR((L102+L103)/$L$135,"-") -> - | P27: -
A28: 0 | B28: Potential SMA-SC NT | D28: 0 | F28: 0 | H28: 0 | J28: 0 | N28: =IFERROR((L104+L105)/$L$135,"-") -> - | P28: -
A29: 0 | B29: SMA-AF | D29: 0 | F29: 0 | H29: 0 | J29: 0 | N29: =IFERROR((L97+L100)/$L$135,"-") -> - | P29: - | R29: Aflac Distribution
A30: 0 | B30: SMA-CH | D30: 0 | F30: 0 | H30: 0 | J30: 0 | N30: =IFERROR(L101/$L$135,"-") -> - | P30: - | R30: AF-US | T30: =1/6 -> 0.1666666667
A31: 0 | B31: SMA-CC | D31: 0 | F31: 0 | H31: 0 | J31: 0 | N31: =IFERROR(L106/$L$135,"-") -> - | P31: - | R31: AF-JAP | T31: =1-T30 -> 0.8333333333
A32: =L32 -> 0 | B32: SMA-VG | D32: 0 | F32: 0 | H32: 0 | J32: 0 | N32: =IFERROR(L107/$L$135,"-") -> - | P32: -
A33: =L33 -> 0 | B33: SMA-OML | D33: 0 | F33: 0 | H33: 0 | J33: 0 | N33: =IFERROR(L133/$L$135,"-") -> - | P33: -
B34: SMA-3 | D34: 0 | F34: 0 | H34: 0 | J34: 0 | N34: =IFERROR(L134/$L$135,"-") -> - | P34: -
B35: NXT Underwrite | D35: 0 | F35: 0 | H35: 0 | J35: 0 | L35: =SUM(D35:K35) -> 0 | M35: =SUM(D35:L35) -> 0 | P35: =IFERROR(F35/L35,0) -> 0
B36: NXT Hold | D36: =IFERROR(D35/$L$35,0)*$L$36 -> 0 | F36: =IFERROR(F35/$L$35,0)*$L$36 -> 0 | H36: =IFERROR(H35/$L$35,0)*$L$36 -> 0 | J36: =IFERROR(J35/L$35,0)*L$36 -> 0 | L36: 0 | N36: =L36-SUM(L19:L34) -> 0 | P36: =IFERROR(F36/L36,0) -> 0
B37: Unfunded | D37: =IFERROR(D36/(SUM($D$36:$K$36)-$F$36),0) -> 0 | F37: 0 | H37: =IFERROR(H36/(SUM($D$36:$K$36)-$F$36),0) -> 0 | J37: =IFERROR(J36/(SUM($D$36:$K$36)-$F$36),0) -> 0 | N37: To Allocate | P37: Funded
A39: Hypo Results
B41: SLF I | D41: =_xlfn.CONCAT("Passing ", COUNTIF(SummaryKaiser[Pass/Fail],"Pass"), "; Failing ", COUNTIF(SummaryKaiser[Pass/Fail],"Fail"), " (", _xlfn.TEXTJOIN(", ",TRUE,IF(SummaryKaiser[Pass/Fail]="Fail",SummaryKaiser[Constraint],"")),")" ) -> Passing 4; Failing 0 ()
A42: =L27 -> 0 | B42: SMA-SC | D42: =_xlfn.CONCAT("Passing ", COUNTIF(SummarySwiss[Pass/Fail],"Pass"), "; Failing ", COUNTIF(SummarySwiss[Pass/Fail],"Fail"), " (", _xlfn.TEXTJOIN(", ",TRUE,IF(SummarySwiss[Pass/Fail]="Fail",SummarySwiss[Constraint],"")),")" ) -> Passing 10; Failing 2 (Max Commitment, 4.35x Leverage)
A43: =L28 -> 0 | B43: SMA-SC NT | D43: =_xlfn.CONCAT("Passing ", COUNTIF(SummarySwissNT[Pass/Fail],"Pass"), "; Failing ", COUNTIF(SummarySwissNT[Pass/Fail],"Fail"), " (", _xlfn.TEXTJOIN(", ",TRUE,IF(SummarySwissNT[Pass/Fail]="Fail",SummarySwissNT[Constraint],"")),")" ) -> Passing 11; Failing 1 (4.35x Leverage)
A44: 0 | B44: SMA-AF US | D44: =_xlfn.CONCAT("Passing ", COUNTIF(SummaryAFUS[Pass/Fail],"Pass"), "; Failing ", COUNTIF(SummaryAFUS[Pass/Fail],"Fail"), " (", _xlfn.TEXTJOIN(", ",TRUE,IF(SummaryAFUS[Pass/Fail]="Fail",SummaryAFUS[Constraint],"")),")" ) -> Passing 10; Failing 0 ()
A45: 0 | B45: SMA-AF JAP | D45: =_xlfn.CONCAT("Passing ", COUNTIF(SummaryAFJAP[Pass/Fail],"Pass"), "; Failing ", COUNTIF(SummaryAFJAP[Pass/Fail],"Fail"), " (", _xlfn.TEXTJOIN(", ",TRUE,IF(SummaryAFJAP[Pass/Fail]="Fail",SummaryAFJAP[Constraint],"")),")" ) -> Passing 10; Failing 0 ()
A46: 0 | B46: SMA-CH | D46: =_xlfn.CONCAT("Passing ", COUNTIF(SummaryChubb[Pass/Fail],"Pass"), "; Failing ", COUNTIF(SummaryChubb[Pass/Fail],"Fail"), " (", _xlfn.TEXTJOIN(", ",TRUE,IF(SummaryChubb[Pass/Fail]="Fail",SummaryChubb[Constraint],"")),")" ) -> Passing 10; Failing 0 ()
A47: 0 | B47: SMA-CC | D47: -
A48: 0 | B48: SMA-VG | D48: =_xlfn.CONCAT("Passing ", COUNTIF(SummaryVG[Pass/Fail],"Pass"), "; Failing ", COUNTIF(SummaryVG[Pass/Fail],"Fail"), " (", _xlfn.TEXTJOIN(", ",TRUE,IF(SummaryVG[Pass/Fail]="Fail",SummaryVG[Constraint],"")),")" ) -> Passing 9; Failing 0 ()
A49: 0 | B49: SLF VI UL | D49: =_xlfn.CONCAT("Passing ", COUNTIF(SummarySLFVIUL[Pass/Fail],"Pass"), "; Failing ", COUNTIF(SummarySLFVIUL[Pass/Fail],"Fail"), " (", _xlfn.TEXTJOIN(", ",TRUE,IF(SummarySLFVIUL[Pass/Fail]="Fail",SummarySLFVIUL[Constraint],"")),")" ) -> Passing 4; Failing 0 ()
B50: Results current as of: | D50: Not yet submitted to hypo.
A52: Portfolio Allocations Report
B54: Credit Facility | R54: Fees
D56: =D18 -> Revolver | F56: =F18 -> Term Loan | H56: =H18 -> DDTL | J56: =J18 -> DDTL 2 | L56: Totals | N56: Funded | P56: Unfunded | T56: Fee | V56: $ Amt
B57: NXT | D57: =($L57-$F57)*IF(D19="Unfunded",D$37,D19) -> 0 | F57: =$F$36-SUM(IF(LEFT($B58:$B74,1)="*",0,F58:F74)) -> 0 | H57: =($L57-$F57)*IF(H19="Unfunded",H$37,H19) -> 0 | J57: =($L57-$F57)*IF(J19="Unfunded",J$37,J19) -> 0 | L57: =L19 -> 0 | N57: =IFERROR(F57/SUM(D57:K57),"n/a") -> n/a | P57: =IFERROR(1-N57,"n/a") -> n/a | R57: Closing | T57: 0 | V57: =+T57*$L$19 -> 0
B58: SLF I | D58: 0 | F58: =L58*IF(F20="Unfunded",$F$37,F20) -> 0 | H58: 0 | J58: 0 | L58: 0 | N58: =IFERROR(F58/SUM(D58:K58),"n/a") -> n/a | P58: =IFERROR(1-N58,"n/a") -> n/a | R58: Structuring | T58: 0 | V58: =+T58*$L$36 -> 0
A59: =L59 -> 0 | B59: Potential SLF V | D59: 0 | F59: 0 | H59: 0 | J59: 0 | L59: 0 | N59: n/a | P59: n/a | R59: Agency | T59: 0 | V59: =T59*$L$35 -> 0
A60: 0 | B60: Potential SLF VI L | D60: 0 | F60: 0 | H60: 0 | J60: 0 | L60: 0 | N60: n/a | P60: n/a | R60: NXT Fees | V60: =SUM(V57:V59) -> 0
A61: =L61 -> 0 | B61: Potential SLF VI UL | D61: 0 | F61: 0 | H61: 0 | J61: 0 | L61: 0 | N61: n/a | P61: n/a
B62: Potential SLF VII | D62: 0 | F62: 0 | H62: 0 | J62: 0 | L62: 0 | N62: n/a | P62: n/a
B63: Potential SLF VIII | D63: 0 | F63: 0 | H63: 0 | J63: 0 | L63: 0 | N63: n/a | P63: n/a | R63: ="Issues" & IF(SUMPRODUCT(1*(R64:R77<>""))=0," (none)","") -> Issues (none)
A64: =L64 -> 0 | B64: SMA-A | D64: 0 | F64: 0 | H64: 0 | J64: 0 | L64: 0 | N64: n/a | P64: n/a | R64: =IF(SUMPRODUCT(1*(D58:L59>D$57:L$57))>0,"SLF I and SLF V can neither have commitments greater than NXT's.","") -> 
A65: 0 | B65: SMA-SC | D65: 0 | F65: 0 | H65: 0 | J65: 0 | L65: 0 | N65: n/a | P65: n/a
A66: 0 | B66: Potential SMA-SC NT | D66: 0 | F66: 0 | H66: 0 | J66: 0 | L66: 0 | N66: n/a | P66: n/a
A67: =A69 -> 0 | B67: *SMA-AF US | D67: 0 | F67: =$L67*IF(F29="Unfunded",F$37,F29) -> 0 | H67: 0 | J67: =(L67-$F67)*IF(J29="Unfunded",J$37,J29) -> 0 | L67: =$L$29*AFUS_Portion -> 0 | N67: n/a | P67: n/a
A68: =A69 -> 0 | B68: *SMA-AF JAP | D68: =($L68-$F68)*IF(D29="Unfunded",D$37,D29) -> 0 | F68: =$L68*IF(F29="Unfunded",F$37,F29) -> 0 | H68: =($L68-$F68)*IF(H29="Unfunded",H$37,H29) -> 0 | J68: =(L68-$F68)*IF(J30="Unfunded",J$37,J30) -> 0 | L68: =L$69-$L$67 -> 0 | N68: n/a | P68: n/a
A69: 0 | B69: SMA-AF | D69: =SUM(D67:D68) -> 0 | F69: =SUM(F67:F68) -> 0 | H69: =SUM(H67:H68) -> 0 | J69: =SUM(J67:J68) -> 0 | L69: =L29 -> 0 | N69: n/a | P69: n/a
A70: 0 | B70: SMA-CH | D70: =($L70-$F70)*IF(D30="Unfunded",D$37,D30) -> 0 | F70: =L70*IF(F30="Unfunded",$F$37,F30) -> 0 | H70: =($L70-$F70)*IF(H30="Unfunded",H$37,H30) -> 0 | J70: =($L70-$F70)*IF(J30="Unfunded",J$37,J30) -> 0 | L70: 0 | N70: n/a | P70: n/a
A71: 0 | B71: SMA-CC | D71: =($L71-$F71)*IF(D31="Unfunded",D$37,D31) -> 0 | F71: =L71*IF(F31="Unfunded",$F$37,F31) -> 0 | H71: =($L71-$F71)*IF(H31="Unfunded",H$37,H31) -> 0 | J71: =($L71-$F71)*IF(J31="Unfunded",J$37,J31) -> 0 | L71: 0 | N71: n/a | P71: n/a
A72: 0 | B72: SMA-VG | D72: =($L72-$F72)*IF(D32="Unfunded",D$37,D32) -> 0 | F72: =L72*IF(F32="Unfunded",$F$37,F32) -> 0 | H72: =($L72-$F72)*IF(H32="Unfunded",H$37,H32) -> 0 | J72: =($L72-$F72)*IF(J32="Unfunded",J$37,J32) -> 0 | L72: 0 | N72: n/a | P72: n/a
A73: 0 | B73: SMA-OML | D73: =($L73-$F73)*IF(D33="Unfunded",D$37,D33) -> 0 | F73: =L73*IF(F33="Unfunded",$F$37,F33) -> 0 | H73: =($L73-$F73)*IF(H33="Unfunded",H$37,H33) -> 0 | J73: =($L73-$F73)*IF(J33="Unfunded",J$37,J33) -> 0 | L73: 0 | N73: n/a | P73: n/a
B74: SMA-3 | D74: =($L74-$F74)*IF(D34="Unfunded",D$37,D34) -> 0 | F74: =L74*IF(F34="Unfunded",$F$37,F34) -> 0 | H74: =($L74-$F74)*IF(H34="Unfunded",H$37,H34) -> 0 | J74: =($L74-$F74)*IF(J34="Unfunded",J$37,J34) -> 0 | L74: 0 | N74: n/a | P74: n/a
B75: NXT and Affiliates | D75: =SUM(IF(LEFT($B57:$B74,1)="*",0,D57:D74)) -> 0 | F75: =SUM(IF(LEFT($B57:$B74,1)="*",0,F57:F74)) -> 0 | H75: =SUM(IF(LEFT($B57:$B74,1)="*",0,H57:H74)) -> 0 | J75: =SUM(IF(LEFT($B57:$B74,1)="*",0,J57:J74)) -> 0 | L75: =SUM(IF(LEFT($B57:$B74,1)="*",0,L57:L74)) -> 0 | N75: n/a | P75: n/a
B76: Balance to Syndicate | D76: =D77-D75 -> 0 | F76: =F77-F75 -> 0 | H76: =H77-H75 -> 0 | J76: =J77-J75 -> 0 | L76: =SUM(D76:K76) -> 0 | N76: n/a | P76: n/a
B77: NXT Underwrite | D77: =D35 -> 0 | F77: =F35 -> 0 | H77: =H35 -> 0 | J77: =J35 -> 0 | L77: =SUM(D77:K77) -> 0 | N77: n/a | P77: n/a
A82: Pro Forma | N82: TRUE | P82: B/S has been allocated at Treasury's direction; conditional formatting is removed.
B84: Current Commitments | N84: Incremental Commitments | X84: Pro Forma
D86: =D56 -> Revolver | F86: =F56 -> Term Loan | H86: =H56 -> DDTL | J86: =J56 -> DDTL 2 | L86: Totals | N86: =D86 -> Revolver | P86: =F86 -> Term Loan | R86: =H86 -> DDTL | T86: =J86 -> DDTL 2 | V86: Totals | X86: =N86 -> Revolver | Z86: =P86 -> Term Loan | AB86: =R86 -> DDTL | AD86: =T86 -> DDTL 2 | AF86: Totals
B87: NXT CAPITAL, LLC | D87: =SUMIFS($C$160:$C$370, $A$160:$A$370, $B87, $B$160:$B$370, D$86) -> 0 | F87: =SUMIFS($C$160:$C$370, $A$160:$A$370, $B87, $B$160:$B$370, F$86) -> 0 | H87: =SUMIFS($C$160:$C$370, $A$160:$A$370, $B87, $B$160:$B$370, H$86) -> 0 | J87: =SUMIFS($C$160:$C$370, $A$160:$A$370, $B87, $B$160:$B$370, J$86) -> 0 | L87: =SUM(D87:K87) -> 0 | N87: =IF(ISNUMBER(D19),D19,0)*$V$87 -> 0 | P87: =IF(ISNUMBER(F19),F19,0)*$V$87 -> 0 | R87: =IF(ISNUMBER(H19),H19,0)*$V$87 -> 0 | T87: =IF(ISNUMBER(J19),J19,0)*$V$87 -> 0 | V87: =L19 -> 0 | X87: =N87+D87 -> 0 | Z87: =P87+F87 -> 0 | AB87: =R87+H87 -> 0 | AD87: =T87+J87 -> 0 | AF87: =SUM(X87:AE87) -> 0
B88: NXT CLO 2015-1 | D88: =SUMIFS($C$160:$C$370, $A$160:$A$370, $B88, $B$160:$B$370, D$86) -> 0 | F88: =SUMIFS($C$160:$C$370, $A$160:$A$370, $B88, $B$160:$B$370, F$86) -> 0 | H88: =SUMIFS($C$160:$C$370, $A$160:$A$370, $B88, $B$160:$B$370, H$86) -> 0 | J88: =SUMIFS($C$160:$C$370, $A$160:$A$370, $B88, $B$160:$B$370, J$86) -> 0 | L88: 0 | V88: =SUM(N88:U88) -> 0 | X88: =N88+D88 -> 0 | Z88: 0 | AB88: 0 | AD88: 0 | AF88: =SUM(X88:AE88) -> 0
B89: NXT CLO 2017-1 | D89: =SUMIFS($C$160:$C$370, $A$160:$A$370, $B89, $B$160:$B$370, D$86) -> 0 | F89: =SUMIFS($C$160:$C$370, $A$160:$A$370, $B89, $B$160:$B$370, F$86) -> 0 | H89: =SUMIFS($C$160:$C$370, $A$160:$A$370, $B89, $B$160:$B$370, H$86) -> 0 | J89: =SUMIFS($C$160:$C$370, $A$160:$A$370, $B89, $B$160:$B$370, J$86) -> 0 | L89: 0 | V89: 0 | X89: 0 | Z89: 0 | AB89: 0 | AD89: 0 | AF89: 0
B90: NXT CLO 2017-2 | D90: =SUMIFS($C$160:$C$370, $A$160:$A$370, $B90, $B$160:$B$370, D$86) -> 0 | F90: =SUMIFS($C$160:$C$370, $A$160:$A$370, $B90, $B$160:$B$370, F$86) -> 0 | H90: =SUMIFS($C$160:$C$370, $A$160:$A$370, $B90, $B$160:$B$370, H$86) -> 0 | J90: =SUMIFS($C$160:$C$370, $A$160:$A$370, $B90, $B$160:$B$370, J$86) -> 0 | L90: 0 | V90: 0 | X90: 0 | Z90: 0 | AB90: 0 | AD90: 0 | AF90: 0
B91: NXT CLO 2020-1 | D91: =SUMIFS($C$160:$C$370, $A$160:$A$370, $B91, $B$160:$B$370, D$86) -> 0 | F91: =SUMIFS($C$160:$C$370, $A$160:$A$370, $B91, $B$160:$B$370, F$86) -> 0 | H91: =SUMIFS($C$160:$C$370, $A$160:$A$370, $B91, $B$160:$B$370, H$86) -> 0 | J91: =SUMIFS($C$160:$C$370, $A$160:$A$370, $B91, $B$160:$B$370, J$86) -> 0 | L91: 0 | V91: 0 | X91: 0 | Z91: 0 | AB91: 0 | AD91: 0 | AF91: 0
B92: Subtotal NXT Balance Sheet | D92: =SUM(D87:D91) -> 0 | F92: =SUM(F87:F91) -> 0 | H92: =SUM(H87:H91) -> 0 | J92: =SUM(J87:J91) -> 0 | L92: =SUM(L87:L91) -> 0 | N92: =D57 -> 0 | P92: =F57 -> 0 | R92: =H57 -> 0 | T92: =J57 -> 0 | V92: =SUM(N92:U92) -> 0 | X92: =SUM(X87:X91) -> 0 | Z92: =SUM(Z87:Z91) -> 0 | AB92: =SUM(AB87:AB91) -> 0 | AD92: =SUM(AD87:AD91) -> 0 | AF92: =SUM(X92:AE92) -> 0
A94: =AF94 -> 0 | B94: SMA-A | D94: =SUMIFS($C$160:$C$370, $A$160:$A$370, $B94, $B$160:$B$370, D$86) -> 0 | F94: =SUMIFS($C$160:$C$370, $A$160:$A$370, $B94, $B$160:$B$370, F$86) -> 0 | H94: =SUMIFS($C$160:$C$370, $A$160:$A$370, $B94, $B$160:$B$370, H$86) -> 0 | J94: =SUMIFS($C$160:$C$370, $A$160:$A$370, $B94, $B$160:$B$370, J$86) -> 0 | L94: =SUM(D94:K94) -> 0 | N94: =D64 -> 0 | P94: =F64 -> 0 | R94: =H64 -> 0 | T94: =J64 -> 0 | V94: =SUM(N94:U94) -> 0 | X94: 0 | Z94: 0 | AB94: 0 | AD94: 0 | AF94: 0
A95: =A97 -> 0 | B95: *SMA-AF US, Commitment | L95: 0 | N95: =IF(AND($L$95=0,$L$98<5000000),0,D67) -> 0 | P95: =IF(AND($L$95=0,$L$98<5000000),0,F67) -> 0 | R95: =IF(AND($L$95=0,$L$98<5000000),0,H67) -> 0 | T95: =IF(AND($L$95=0,$L$98<5000000),0,J67) -> 0 | V95: 0 | X95: 0 | Z95: 0 | AB95: 0 | AD95: 0 | AF95: 0
A96: =A97 -> 0 | B96: *SMA-AF US, Crosstrade | L96: 0 | N96: 0 | P96: 0 | R96: 0 | T96: 0 | V96: 0 | X96: 0 | Z96: 0 | AB96: 0 | AD96: 0 | AF96: 0
A97: =AF97 -> 0 | B97: SMA-AF US | D97: =SUMIFS($C$160:$C$370, $A$160:$A$370, $B97, $B$160:$B$370, D$86) -> 0 | F97: =SUMIFS($C$160:$C$370, $A$160:$A$370, $B97, $B$160:$B$370, F$86) -> 0 | H97: =SUMIFS($C$160:$C$370, $A$160:$A$370, $B97, $B$160:$B$370, H$86) -> 0 | J97: =SUMIFS($C$160:$C$370, $A$160:$A$370, $B97, $B$160:$B$370, J$86) -> 0 | L97: 0 | N97: =SUM(N95:N96) -> 0 | P97: =SUM(P95:P96) -> 0 | R97: =SUM(R95:R96) -> 0 | T97: =SUM(T95:T96) -> 0 | V97: 0 | X97: 0 | Z97: 0 | AB97: 0 | AD97: 0 | AF97: 0
A98: =A100 -> 0 | B98: *SMA-AF JAP, Commitment | L98: 0 | N98: =IF(AND($L$95=0,$L$98<5000000),SUM(D67:D68),D68) -> 0 | P98: =IF(AND($L$95=0,$L$98<5000000),SUM(F67:F68),F68) -> 0 | R98: =IF(AND($L$95=0,$L$98<5000000),SUM(H67:H68),H68) -> 0 | T98: =IF(AND($L$95=0,$L$98<5000000),SUM(J67:J68),J68) -> 0 | V98: 0 | X98: 0 | Z98: 0 | AB98: 0 | AD98: 0 | AF98: 0
A99: =A100 -> 0 | B99: *SMA-AF JAP, Crosstrade | L99: 0 | N99: 0 | P99: 0 | R99: 0 | T99: 0 | V99: 0 | X99: 0 | Z99: 0 | AB99: 0 | AD99: 0 | AF99: 0
A100: 0 | B100: SMA-AF JAP | D100: =SUMIFS($C$160:$C$370, $A$160:$A$370, $B100, $B$160:$B$370, D$86) -> 0 | F100: =SUMIFS($C$160:$C$370, $A$160:$A$370, $B100, $B$160:$B$370, F$86) -> 0 | H100: =SUMIFS($C$160:$C$370, $A$160:$A$370, $B100, $B$160:$B$370, H$86) -> 0 | J100: =SUMIFS($C$160:$C$370, $A$160:$A$370, $B100, $B$160:$B$370, J$86) -> 0 | L100: 0 | N100: =SUM(N98:N99) -> 0 | P100: =SUM(P98:P99) -> 0 | R100: =SUM(R98:R99) -> 0 | T100: =SUM(T98:T99) -> 0 | V100: 0 | X100: 0 | Z100: 0 | AB100: 0 | AD100: 0 | AF100: 0
A101: 0 | B101: SMA-CH | D101: 0 | F101: 0 | H101: 0 | J101: 0 | L101: 0 | N101: =D70 -> 0 | P101: =F70 -> 0 | R101: =H70 -> 0 | T101: =J70 -> 0 | V101: 0 | X101: 0 | Z101: 0 | AB101: 0 | AD101: 0 | AF101: 0
A102: 0 | B102: SMA-SC | D102: 0 | F102: 0 | H102: 0 | J102: 0 | L102: 0 | N102: =D65 -> 0 | P102: =F65 -> 0 | R102: =H65 -> 0 | T102: =J65 -> 0 | V102: 0 | X102: 0 | Z102: 0 | AB102: 0 | AD102: 0 | AF102: 0
A103: 0 | B103: SMA-SC C | D103: 0 | F103: 0 | H103: 0 | J103: 0 | L103: 0 | N103: 0 | P103: 0 | R103: 0 | T103: 0 | V103: 0 | X103: 0 | Z103: 0 | AB103: 0 | AD103: 0 | AF103: 0
A104: 0 | B104: SMA-SC NT | D104: 0 | F104: 0 | H104: 0 | J104: 0 | L104: 0 | N104: =D66 -> 0 | P104: =F66 -> 0 | R104: =H66 -> 0 | T104: =J66 -> 0 | V104: 0 | X104: 0 | Z104: 0 | AB104: 0 | AD104: 0 | AF104: 0
A105: 0 | B105: SMA-SC NT C | D105: 0 | F105: 0 | H105: 0 | J105: 0 | L105: 0 | N105: 0 | P105: 0 | R105: 0 | T105: 0 | V105: 0 | X105: 0 | Z105: 0 | AB105: 0 | AD105: 0 | AF105: 0
A106: 0 | B106: SMA-CC | D106: 0 | F106: 0 | H106: 0 | J106: 0 | L106: 0 | N106: =D71 -> 0 | P106: =F71 -> 0 | R106: =H71 -> 0 | T106: =J71 -> 0 | V106: 0 | X106: 0 | Z106: 0 | AB106: 0 | AD106: 0 | AF106: =SUM(X106:AE106) -> 0
A107: =AF107 -> 0 | B107: SMA-VG | D107: 0 | F107: 0 | H107: 0 | J107: 0 | L107: =SUM(D107:K107) -> 0 | N107: =D72 -> 0 | P107: =F72 -> 0 | R107: =H72 -> 0 | T107: =J72 -> 0 | V107: =SUM(N107:U107) -> 0 | X107: =N107+D107 -> 0 | Z107: =P107+F107 -> 0 | AB107: =R107+H107 -> 0 | AD107: =T107+J107 -> 0 | AF107: =SUM(X107:AE107) -> 0
A108: 0 | B108: SLF I | D108: =SUMIFS($C$160:$C$370, $A$160:$A$370, $B108 & " *", $B$160:$B$370, D$86) -> 0 | F108: =SUMIFS($C$160:$C$370, $A$160:$A$370, $B108 & " *", $B$160:$B$370, F$86) -> 0 | H108: =SUMIFS($C$160:$C$370, $A$160:$A$370, $B108 & " *", $B$160:$B$370, H$86) -> 0 | J108: =SUMIFS($C$160:$C$370, $A$160:$A$370, $B108 & " *", $B$160:$B$370, J$86) -> 0 | L108: 0 | N108: =D58 -> 0 | P108: =F58 -> 0 | R108: =H58 -> 0 | T108: =J58 -> 0 | V108: 0 | X108: 0 | Z108: 0 | AB108: 0 | AD108: 0 | AF108: 0
A109: =A108 -> 0 | B109: *SLF II, Commitment | L109: 0 | N109: =D52 -> 0 | P109: =F52 -> 0 | R109: =H52 -> 0 | T109: =J52 -> 0 | V109: 0 | X109: =N109+D109 -> 0 | Z109: =P109+F109 -> 0 | AB109: =R109+H109 -> 0 | AD109: =T109+J109 -> 0 | AF109: 0
A110: =A108 -> 0 | B110: *SLF II, Crosstrade | L110: 0 | N110: 0 | P110: 0 | R110: 0 | T110: 0 | V110: 0 | X110: 0 | Z110: 0 | AB110: 0 | AD110: 0 | AF110: 0
A111: 0 | B111: SLF II | D111: =SUMIFS($C$160:$C$370, $A$160:$A$370, $B111, $B$160:$B$370, D$86) -> 0 | F111: =SUMIFS($C$160:$C$370, $A$160:$A$370, $B111, $B$160:$B$370, F$86) -> 0 | H111: =SUMIFS($C$160:$C$370, $A$160:$A$370, $B111, $B$160:$B$370, H$86) -> 0 | J111: =SUMIFS($C$160:$C$370, $A$160:$A$370, $B111, $B$160:$B$370, J$86) -> 0 | L111: 0 | N111: =SUM(N109:N110) -> 0 | P111: =SUM(P109:P110) -> 0 | R111: =SUM(R109:R110) -> 0 | T111: =SUM(T109:T110) -> 0 | V111: 0 | X111: =N111+D111 -> 0 | Z111: 0 | AB111: 0 | AD111: =T111+J111 -> 0 | AF111: 0
B112: *SLF III, Commitment | L112: =SUM(D112:K112) -> 0 | N112: =D55 -> 0 | P112: =F55 -> 0 | R112: =H55 -> 0 | T112: =J55 -> 0 | V112: =SUM(N112:U112) -> 0 | X112: =N112+D112 -> 0 | Z112: =P112+F112 -> 0 | AB112: =R112+H112 -> 0 | AD112: =T112+J112 -> 0 | AF112: =SUM(X112:AE112) -> 0
B113: *SLF III, Crosstrade | L113: 0 | N113: 0 | P113: 0 | R113: 0 | T113: 0 | V113: 0 | X113: 0 | Z113: 0 | AB113: 0 | AD113: 0 | AF113: 0
A114: 0 | B114: SLF III | D114: =SUMIFS($C$160:$C$370, $A$160:$A$370, $B114, $B$160:$B$370, D$86) -> 0 | F114: =SUMIFS($C$160:$C$370, $A$160:$A$370, $B114, $B$160:$B$370, F$86) -> 0 | H114: =SUMIFS($C$160:$C$370, $A$160:$A$370, $B114, $B$160:$B$370, H$86) -> 0 | J114: =SUMIFS($C$160:$C$370, $A$160:$A$370, $B114, $B$160:$B$370, J$86) -> 0 | L114: 0 | N114: =SUM(N112:N113) -> 0 | P114: =SUM(P112:P113) -> 0 | R114: =SUM(R112:R113) -> 0 | T114: =SUM(T112:T113) -> 0 | V114: 0 | X114: 0 | Z114: 0 | AB114: 0 | AD114: 0 | AF114: 0
B115: *SLF IV, Commitment | L115: =SUM(D115:K115) -> 0 | N115: =D58 -> 0 | P115: =F58 -> 0 | R115: =H58 -> 0 | T115: =J58 -> 0 | V115: =SUM(N115:U115) -> 0 | X115: 0 | Z115: 0 | AB115: 0 | AD115: 0 | AF115: =SUM(X115:AE115) -> 0
B116: *SLF IV, Crosstrade | L116: 0 | N116: 0 | P116: 0 | R116: 0 | T116: 0 | V116: 0 | X116: 0 | Z116: 0 | AB116: 0 | AD116: 0 | AF116: 0
A117: 0 | B117: SLF IV | D117: =SUMIFS($C$160:$C$370, $A$160:$A$370, $B117, $B$160:$B$370, D$86) -> 0 | F117: =SUMIFS($C$160:$C$370, $A$160:$A$370, $B117, $B$160:$B$370, F$86) -> 0 | H117: =SUMIFS($C$160:$C$370, $A$160:$A$370, $B117, $B$160:$B$370, H$86) -> 0 | J117: =SUMIFS($C$160:$C$370, $A$160:$A$370, $B117, $B$160:$B$370, J$86) -> 0 | L117: 0 | N117: =SUM(N115:N116) -> 0 | P117: =SUM(P115:P116) -> 0 | R117: =SUM(R115:R116) -> 0 | T117: =SUM(T115:T116) -> 0 | V117: 0 | X117: 0 | Z117: 0 | AB117: 0 | AD117: 0 | AF117: 0
B118: *SLF V, Commitment | L118: 0 | N118: =D59 -> 0 | P118: =F59 -> 0 | R118: =H59 -> 0 | T118: =J59 -> 0 | V118: 0 | X118: 0 | Z118: 0 | AB118: 0 | AD118: 0 | AF118: 0
B119: *SLF V, Crosstrade | L119: 0 | N119: 0 | P119: 0 | R119: 0 | T119: 0 | V119: 0 | X119: 0 | Z119: 0 | AB119: 0 | AD119: 0 | AF119: 0
B120: SLF V | D120: =SUMIFS($C$160:$C$370, $A$160:$A$370, $B120, $B$160:$B$370, D$86) -> 0 | F120: =SUMIFS($C$160:$C$370, $A$160:$A$370, $B120, $B$160:$B$370, F$86) -> 0 | H120: =SUMIFS($C$160:$C$370, $A$160:$A$370, $B120, $B$160:$B$370, H$86) -> 0 | J120: =SUMIFS($C$160:$C$370, $A$160:$A$370, $B120, $B$160:$B$370, J$86) -> 0 | L120: 0 | N120: =SUM(N118:N119) -> 0 | P120: =SUM(P118:P119) -> 0 | R120: =SUM(R118:R119) -> 0 | T120: =SUM(T118:T119) -> 0 | V120: 0 | X120: 0 | Z120: 0 | AB120: 0 | AD120: 0 | AF120: 0
A121: =A123 -> 0 | B121: *SLF VI L, Commitment | L121: 0 | N121: =D60 -> 0 | P121: =F60 -> 0 | R121: =H60 -> 0 | T121: =J60 -> 0 | V121: 0 | X121: 0 | Z121: 0 | AB121: 0 | AD121: 0 | AF121: 0
A122: =A123 -> 0 | B122: *SLF VI L, Crosstrade | L122: 0 | N122: 0 | P122: 0 | R122: 0 | T122: 0 | V122: 0 | X122: 0 | Z122: 0 | AB122: 0 | AD122: 0 | AF122: 0
A123: =AF123 -> 0 | B123: SLF VI L | D123: =SUMIFS($C$160:$C$370, $A$160:$A$370, $B123, $B$160:$B$370, D$86) -> 0 | F123: =SUMIFS($C$160:$C$370, $A$160:$A$370, $B123, $B$160:$B$370, F$86) -> 0 | H123: =SUMIFS($C$160:$C$370, $A$160:$A$370, $B123, $B$160:$B$370, H$86) -> 0 | J123: =SUMIFS($C$160:$C$370, $A$160:$A$370, $B123, $B$160:$B$370, J$86) -> 0 | L123: 0 | N123: =SUM(N121:N122) -> 0 | P123: =SUM(P121:P122) -> 0 | R123: =SUM(R121:R122) -> 0 | T123: =SUM(T121:T122) -> 0 | V123: 0 | X123: 0 | Z123: 0 | AB123: 0 | AD123: 0 | AF123: 0
A124: =AF126 -> 0 | B124: *SLF VI UL, Commitment | L124: 0 | N124: =D61 -> 0 | P124: =F61 -> 0 | R124: =H61 -> 0 | T124: =J61 -> 0 | V124: 0 | X124: 0 | Z124: 0 | AB124: 0 | AD124: 0 | AF124: 0
A125: =AF126 -> 0 | B125: *SLF VI UL, Crosstrade | L125: 0 | N125: 0 | P125: 0 | R125: 0 | T125: 0 | V125: 0 | X125: 0 | Z125: 0 | AB125: 0 | AD125: 0 | AF125: 0
A126: 0 | B126: SLF VI UL | D126: =SUMIFS($C$160:$C$370, $A$160:$A$370, $B126, $B$160:$B$370, D$86) -> 0 | F126: =SUMIFS($C$160:$C$370, $A$160:$A$370, $B126, $B$160:$B$370, F$86) -> 0 | H126: =SUMIFS($C$160:$C$370, $A$160:$A$370, $B126, $B$160:$B$370, H$86) -> 0 | J126: =SUMIFS($C$160:$C$370, $A$160:$A$370, $B126, $B$160:$B$370, J$86) -> 0 | L126: 0 | N126: =SUM(N124:N125) -> 0 | P126: =SUM(P124:P125) -> 0 | R126: =SUM(R124:R125) -> 0 | T126: =SUM(T124:T125) -> 0 | V126: 0 | X126: 0 | Z126: 0 | AB126: 0 | AD126: 0 | AF126: 0
B127: *SLF VII, Commitment | L127: 0 | N127: =D62 -> 0 | P127: =F62 -> 0 | R127: =H62 -> 0 | T127: =J62 -> 0 | V127: 0 | X127: 0 | Z127: 0 | AB127: 0 | AD127: 0 | AF127: 0
B128: *SLF VII, Crosstrade | L128: 0 | N128: 0 | P128: 0 | R128: 0 | T128: 0 | V128: 0 | X128: 0 | Z128: 0 | AB128: 0 | AD128: 0 | AF128: 0
B129: SLF VII | D129: =SUMIFS($C$160:$C$370, $A$160:$A$370, $B129, $B$160:$B$370, D$86) -> 0 | F129: =SUMIFS($C$160:$C$370, $A$160:$A$370, $B129, $B$160:$B$370, F$86) -> 0 | H129: =SUMIFS($C$160:$C$370, $A$160:$A$370, $B129, $B$160:$B$370, H$86) -> 0 | J129: =SUMIFS($C$160:$C$370, $A$160:$A$370, $B129, $B$160:$B$370, J$86) -> 0 | L129: 0 | N129: =SUM(N127:N128) -> 0 | P129: =SUM(P127:P128) -> 0 | R129: =SUM(R127:R128) -> 0 | T129: =SUM(T127:T128) -> 0 | V129: 0 | X129: 0 | Z129: 0 | AB129: 0 | AD129: 0 | AF129: 0
B130: *SLF VIII, Commitment | L130: 0 | N130: =D63 -> 0 | P130: =F63 -> 0 | R130: =H63 -> 0 | T130: =J63 -> 0 | V130: 0 | X130: 0 | Z130: 0 | AB130: 0 | AD130: 0 | AF130: 0
B131: *SLF VIII, Crosstrade | L131: 0 | N131: 0 | P131: 0 | R131: 0 | T131: 0 | V131: 0 | X131: 0 | Z131: 0 | AB131: 0 | AD131: 0 | AF131: 0
B132: SLF VIII | D132: =SUMIFS($C$160:$C$370, $A$160:$A$370, $B132, $B$160:$B$370, D$86) -> 0 | F132: =SUMIFS($C$160:$C$370, $A$160:$A$370, $B132, $B$160:$B$370, F$86) -> 0 | H132: =SUMIFS($C$160:$C$370, $A$160:$A$370, $B132, $B$160:$B$370, H$86) -> 0 | J132: =SUMIFS($C$160:$C$370, $A$160:$A$370, $B132, $B$160:$B$370, J$86) -> 0 | L132: 0 | N132: =SUM(N130:N131) -> 0 | P132: =SUM(P130:P131) -> 0 | R132: =SUM(R130:R131) -> 0 | T132: =SUM(T130:T131) -> 0 | V132: 0 | X132: 0 | Z132: 0 | AB132: 0 | AD132: 0 | AF132: 0
B133: SMA-OML | D133: =SUMIFS($C$160:$C$370, $A$160:$A$370, $B133, $B$160:$B$370, D$86) -> 0 | F133: =SUMIFS($C$160:$C$370, $A$160:$A$370, $B133, $B$160:$B$370, F$86) -> 0 | H133: =SUMIFS($C$160:$C$370, $A$160:$A$370, $B133, $B$160:$B$370, H$86) -> 0 | J133: =SUMIFS($C$160:$C$370, $A$160:$A$370, $B133, $B$160:$B$370, J$86) -> 0 | L133: 0 | N133: =D73 -> 0 | P133: =F73 -> 0 | R133: =H73 -> 0 | T133: =J73 -> 0 | V133: 0 | X133: 0 | Z133: 0 | AB133: 0 | AD133: 0 | AF133: 0
B134: SMA-3 | D134: =SUMIFS($C$160:$C$370, $A$160:$A$370, $B134, $B$160:$B$370, D$86) -> 0 | F134: =SUMIFS($C$160:$C$370, $A$160:$A$370, $B134, $B$160:$B$370, F$86) -> 0 | H134: =SUMIFS($C$160:$C$370, $A$160:$A$370, $B134, $B$160:$B$370, H$86) -> 0 | J134: =SUMIFS($C$160:$C$370, $A$160:$A$370, $B134, $B$160:$B$370, J$86) -> 0 | L134: 0 | N134: =D74 -> 0 | P134: =F74 -> 0 | R134: =H74 -> 0 | T134: =J74 -> 0 | V134: 0 | X134: 0 | Z134: 0 | AB134: 0 | AD134: 0 | AF134: 0
B135: Subtotal Sidecars | D135: =SUM(D94:D134) -> 0 | F135: =SUM(F94:F134) -> 0 | H135: =SUM(H94:H134) -> 0 | J135: =SUM(J94:J134) -> 0 | L135: =SUM(D135:K135) -> 0 | N135: =SUMPRODUCT( 1*(LEFT($B$94:$B$134,1)<>"*"), N94:N134) -> 0 | P135: =SUMPRODUCT( 1*(LEFT($B$94:$B$134,1)<>"*"), P94:P134) -> 0 | R135: =SUMPRODUCT( 1*(LEFT($B$94:$B$134,1)<>"*"), R94:R134) -> 0 | T135: =SUMPRODUCT( 1*(LEFT($B$94:$B$134,1)<>"*"), T94:T134) -> 0 | V135: 0 | X135: =SUMPRODUCT( 1*(LEFT($B$94:$B$134,1)<>"*"), X94:X134) -> 0 | Z135: =SUMPRODUCT( 1*(LEFT($B$94:$B$134,1)<>"*"), Z94:Z134) -> 0 | AB135: =SUMPRODUCT( 1*(LEFT($B$94:$B$134,1)<>"*"), AB94:AB134) -> 0 | AD135: =SUMPRODUCT( 1*(LEFT($B$94:$B$134,1)<>"*"), AD94:AD134) -> 0 | AF135: 0
B136: Total | D136: =D135+D92 -> 0 | F136: =F135+F92 -> 0 | H136: =H135+H92 -> 0 | J136: =J135+J92 -> 0 | L136: =L135+L92 -> 0 | N136: =N135+N92 -> 0 | P136: =P135+P92 -> 0 | R136: =R135+R92 -> 0 | T136: =T135+T92 -> 0 | V136: =V135+V92 -> 0 | X136: =X135+X92 -> 0 | Z136: =Z135+Z92 -> 0 | AB136: =AB135+AB92 -> 0 | AD136: =AD135+AD92 -> 0 | AF136: =AF135+AF92 -> 0
A158: Current Commitment Data
A159: Fund | B159: Tranche | C159: Commitment
A1012: =A111 -> 0
A1013: =A111 -> 0
A1015: =A114 -> 0
A1016: =A114 -> 0

Sheet N.Allo
A1: Details
B3: Deal Name | D3: n/a
B4: Description | D4: n/a
B5: Net Senior Leverage | D5: n/a
B6: Sponsor | D6: n/a
B7: Industry | D7: n/a
B8: Target Date | D8: n/a
B9: Dividend Recap | D9: n/a
B10: DIP Loan | D10: n/a
B11: LTV % | D11: n/a
B12: Approved by Swiss | D12: n/a
B13: Country (CAN) | D13: n/a
A14: Allocations
D16: Revolver | F16: Term Loan | H16: DDTL | J16: DDTL 2 | L16: Totals
B17: NXT | D17: Unfunded | F17: Unfunded | H17: Unfunded | J17: Unfunded
B18: SLF I | D18: =IF($L18>0,"Unfunded",0) -> 0 | F18: =IF(L18>0,IF($P$32>0.75,$P$32,0.85),0) -> 0 | H18: =IF($L18>0,"Unfunded",0) -> 0 | J18: =IF($L18>0,"Unfunded",0) -> 0
A19: =L19 -> 0 | B19: Potential SLF VI L | D19: 0 | F19: =IF(L19>0,IF($P$32>0.75,$P$32,0.75),0) -> 0 | H19: 0 | J19: 0
A20: =L20 -> 0 | B20: Potential SLF VI UL | D20: 0 | F20: 0 | H20: 0 | J20: 0
B21: Potential SLF VII | D21: 0 | F21: 0 | H21: 0 | J21: 0
B22: Potential SLF VIII | D22: 0 | F22: 0 | H22: 0 | J22: 0
A23: =L23 -> 0 | B23: SMA-A | D23: 0 | F23: =IF(L23>0,IF($P$32>0.51,$P$32,0.51),0) -> 0 | H23: 0 | J23: 0
A24: 0 | B24: SMA-SC | D24: 0 | F24: 0 | H24: 0 | J24: 0
A25: 0 | B25: Potential SMA-SC NT | D25: 0 | F25: 0 | H25: 0 | J25: 0
A26: 0 | B26: SMA-AF | D26: 0 | F26: 0 | H26: 0 | J26: 0 | N26: Aflac Distribution
A27: 0 | B27: SMA-CH | D27: 0 | F27: 0 | H27: 0 | J27: 0 | N27: AF-US | P27: =1/6 -> 0.1666666667
A28: 0 | B28: SMA-CC | D28: 0 | F28: 0 | H28: 0 | J28: 0 | N28: AF-JAP | P28: =1-P27 -> 0.8333333333
A29: =L29 -> 0 | B29: SMA-VG | D29: 0 | F29: 0 | H29: 0 | J29: 0
A30: =L30 -> 0 | B30: SMA-OML | D30: 0 | F30: 0 | H30: 0 | J30: 0
B31: SMA-3 | D31: 0 | F31: 0 | H31: 0 | J31: 0
B32: NXT Underwrite | D32: 0 | F32: 0 | H32: 0 | J32: 0 | L32: =SUM(D32:K32) -> 0 | P32: =IFERROR(F32/L32,0) -> 0
B33: NXT Hold | D33: =IFERROR(D32/$L$32,0)*$L$33 -> 0 | F33: =IFERROR(F32/$L$32,0)*$L$33 -> 0 | H33: =IFERROR(H32/$L$32,0)*$L$33 -> 0 | J33: =IFERROR(J32/$L$32,0)*$L$33 -> 0 | L33: 0 | N33: =L33-SUM(L17:L31) -> 0 | P33: =IFERROR(F33/L33,0) -> 0
B34: Unfunded | D34: =IFERROR(D33/(SUM($D$33:$K$33)-$F$33),0) -> 0 | F34: 0 | H34: =IFERROR(H33/(SUM($D$33:$K$33)-$F$33),0) -> 0 | J34: =IFERROR(J33/(SUM($D$33:$K$33)-$F$33),0) -> 0 | N34: To Allocate | P34: Funded
N35: ="Pro Rata without SLF I: " & TEXT(IFERROR((F73-F55)/(L73-L55),"-"),"0.00%") -> Pro Rata without SLF I: -
A36: Hypo Results
B38: SLF I | D38: =_xlfn.CONCAT("Passing ", COUNTIF(SummaryKaiser[Pass/Fail],"Pass"), "; Failing ", COUNTIF(SummaryKaiser[Pass/Fail],"Fail"), " (", _xlfn.TEXTJOIN(", ",TRUE,IF(SummaryKaiser[Pass/Fail]="Fail",SummaryKaiser[Constraint],"")),")" ) -> Passing 4; Failing 0 ()
A39: =L19 -> 0 | B39: SMA-SC | D39: =_xlfn.CONCAT("Passing ", COUNTIF(SummarySwiss[Pass/Fail],"Pass"), "; Failing ", COUNTIF(SummarySwiss[Pass/Fail],"Fail"), " (", _xlfn.TEXTJOIN(", ",TRUE,IF(SummarySwiss[Pass/Fail]="Fail",SummarySwiss[Constraint],"")),")" ) -> Passing 10; Failing 2 (Max Commitment, 4.35x Leverage)
A40: =L20 -> 0 | B40: SMA-SC NT | D40: =_xlfn.CONCAT("Passing ", COUNTIF(SummarySwissNT[Pass/Fail],"Pass"), "; Failing ", COUNTIF(SummarySwissNT[Pass/Fail],"Fail"), " (", _xlfn.TEXTJOIN(", ",TRUE,IF(SummarySwissNT[Pass/Fail]="Fail",SummarySwissNT[Constraint],"")),")" ) -> Passing 11; Failing 1 (4.35x Leverage)
A41: 0 | B41: SMA-AF US | D41: =_xlfn.CONCAT("Passing ", COUNTIF(SummaryAFUS[Pass/Fail],"Pass"), "; Failing ", COUNTIF(SummaryAFUS[Pass/Fail],"Fail"), " (", _xlfn.TEXTJOIN(", ",TRUE,IF(SummaryAFUS[Pass/Fail]="Fail",SummaryAFUS[Constraint],"")),")" ) -> Passing 10; Failing 0 ()
A42: 0 | B42: SMA-AF JAP | D42: =_xlfn.CONCAT("Passing ", COUNTIF(SummaryAFJAP[Pass/Fail],"Pass"), "; Failing ", COUNTIF(SummaryAFJAP[Pass/Fail],"Fail"), " (", _xlfn.TEXTJOIN(", ",TRUE,IF(SummaryAFJAP[Pass/Fail]="Fail",SummaryAFJAP[Constraint],"")),")" ) -> Passing 10; Failing 0 ()
A43: 0 | B43: SMA-CH | D43: =_xlfn.CONCAT("Passing ", COUNTIF(SummaryChubb[Pass/Fail],"Pass"), "; Failing ", COUNTIF(SummaryChubb[Pass/Fail],"Fail"), " (", _xlfn.TEXTJOIN(", ",TRUE,IF(SummaryChubb[Pass/Fail]="Fail",SummaryChubb[Constraint],"")),")" ) -> Passing 10; Failing 0 ()
A44: 0 | B44: SMA-CC | D44: -
A45: 0 | B45: SMA-VG | D45: =_xlfn.CONCAT("Passing ", COUNTIF(SummaryVG[Pass/Fail],"Pass"), "; Failing ", COUNTIF(SummaryVG[Pass/Fail],"Fail"), " (", _xlfn.TEXTJOIN(", ",TRUE,IF(SummaryVG[Pass/Fail]="Fail",SummaryVG[Constraint],"")),")" ) -> Passing 9; Failing 0 ()
A46: 0 | B46: SLF VI UL | D46: =_xlfn.CONCAT("Passing ", COUNTIF(SummarySLFVIUL[Pass/Fail],"Pass"), "; Failing ", COUNTIF(SummarySLFVIUL[Pass/Fail],"Fail"), " (", _xlfn.TEXTJOIN(", ",TRUE,IF(SummarySLFVIUL[Pass/Fail]="Fail",SummarySLFVIUL[Constraint],"")),")" ) -> Passing 4; Failing 0 ()
B47: Results current as of: | D47: Not yet submitted to hypo.
A49: New Allocations Report
B51: Credit Facility | R51: Fees
D53: Revolver | F53: Term Loan | H53: DDTL | J53: DDTL 2 | L53: Totals | N53: Funded | P53: Unfunded | T53: Fee | V53: $ Amt
B54: NXT | D54: =($L54-$F54)*IF(D17="Unfunded",D$34,D17) -> 0 | F54: =$F$33-SUM(IF(LEFT($B55:$B70,1)="*",0,F55:F70)) -> 0 | H54: =($L54-$F54)*IF(H17="Unfunded",H$34,H17) -> 0 | J54: =($L54-$F54)*IF(J17="Unfunded",J$34,J17) -> 0 | L54: =L17 -> 0 | N54: =IFERROR(F54/SUM(D54:K54),"n/a") -> n/a | P54: =IFERROR(1-N54,"n/a") -> n/a | R54: Closing | T54: 0 | V54: =+T54*$L$17 -> 0
B55: SLF I | D55: 0 | F55: =L55*IF(F18="Unfunded",$F$34,F18) -> 0 | H55: 0 | J55: 0 | L55: 0 | N55: =IFERROR(F55/SUM(D55:K55),"n/a") -> n/a | P55: =IFERROR(1-N55,"n/a") -> n/a | R55: Structuring | T55: 0 | V55: =+T55*$L$33 -> 0
A56: =L56 -> 0 | B56: Potential SLF VI L | D56: 0 | F56: 0 | H56: 0 | J56: 0 | L56: 0 | N56: n/a | P56: n/a | R56: Agency | T56: 0 | V56: =T56*$L$32 -> 0
A57: =L57 -> 0 | B57: Potential SLF VI UL | D57: 0 | F57: 0 | H57: 0 | J57: 0 | L57: 0 | N57: n/a | P57: n/a | R57: NXT Fees | V57: =SUM(V54:V56) -> 0
B58: Potential SLF VII | D58: 0 | F58: 0 | H58: 0 | J58: 0 | L58: 0 | N58: n/a | P58: n/a
B59: Potential SLF VIII | D59: 0 | F59: 0 | H59: 0 | J59: 0 | L59: 0 | N59: n/a | P59: n/a
A60: =L60 -> 0 | B60: SMA-A | D60: 0 | F60: 0 | H60: 0 | J60: 0 | L60: 0 | N60: n/a | P60: n/a | R60: ="Issues" & IF(SUMPRODUCT(1*(R61:R74<>""))=0," (none)","") -> Issues (none)
A61: 0 | B61: SMA-SC | D61: 0 | F61: 0 | H61: 0 | J61: 0 | L61: 0 | N61: n/a | P61: n/a | R61: =IF(SUMPRODUCT(1*(D55:L55>D$54:L$54))>0,"SLF I and SLF V can neither have commitments greater than NXT's.","") -> 
A62: 0 | B62: SMA-SC NT | D62: 0 | F62: 0 | H62: 0 | J62: 0 | L62: 0 | N62: n/a | P62: n/a
A63: 0 | B63: *SMA-AF US | D63: 0 | F63: =$L63*IF(F26="Unfunded",F$34,F26) -> 0 | H63: 0 | J63: 0 | L63: =$L$26*AFUS_Portion -> 0 | N63: n/a | P63: n/a
A64: 0 | B64: *SMA-AF JAP | D64: =($L64-$F64)*IF(D26="Unfunded",D$34,D26) -> 0 | F64: =$L64*IF(F26="Unfunded",F$34,F26) -> 0 | H64: =($L64-$F64)*IF(H26="Unfunded",H$34,H26) -> 0 | J64: =($L64-$F64)*IF(J26="Unfunded",J$34,J26) -> 0 | L64: =L$65-$L$63 -> 0 | N64: n/a | P64: n/a
A65: 0 | B65: SMA-AF | D65: =SUM(D63:D64) -> 0 | F65: =SUM(F63:F64) -> 0 | H65: =SUM(H63:H64) -> 0 | J65: =SUM(J63:J64) -> 0 | L65: =L26 -> 0 | N65: n/a | P65: n/a
A66: 0 | B66: SMA-CH | D66: =($L66-$F66)*IF(D27="Unfunded",D$34,D27) -> 0 | F66: =L66*IF(F27="Unfunded",$F$34,F27) -> 0 | H66: =($L66-$F66)*IF(H27="Unfunded",H$34,H27) -> 0 | J66: =($L66-$F66)*IF(J27="Unfunded",J$34,J27) -> 0 | L66: 0 | N66: n/a | P66: n/a
A67: 0 | B67: SMA-CC | D67: =($L67-$F67)*IF(D28="Unfunded",D$34,D28) -> 0 | F67: =L67*IF(F28="Unfunded",$F$34,F28) -> 0 | H67: =($L67-$F67)*IF(H28="Unfunded",H$34,H28) -> 0 | J67: =($L67-$F67)*IF(J28="Unfunded",J$34,J28) -> 0 | L67: 0 | N67: n/a | P67: n/a
A68: =L68 -> 0 | B68: SMA-VG | D68: =($L68-$F68)*IF(D29="Unfunded",D$34,D29) -> 0 | F68: =L68*IF(F29="Unfunded",$F$34,F29) -> 0 | H68: =($L68-$F68)*IF(H29="Unfunded",H$34,H29) -> 0 | J68: =($L68-$F68)*IF(J29="Unfunded",J$34,J29) -> 0 | L68: 0 | N68: n/a | P68: n/a
A69: =L69 -> 0 | B69: SMA-OML | D69: =($L69-$F69)*IF(D30="Unfunded",D$34,D30) -> 0 | F69: =L69*IF(F30="Unfunded",$F$34,F30) -> 0 | H69: =($L69-$F69)*IF(H30="Unfunded",H$34,H30) -> 0 | J69: =($L69-$F69)*IF(J30="Unfunded",J$34,J30) -> 0 | L69: 0 | N69: n/a | P69: n/a
B70: SMA-3 | D70: =($L70-$F70)*IF(D31="Unfunded",D$34,D31) -> 0 | F70: =L70*IF(F31="Unfunded",$F$34,F31) -> 0 | H70: =($L70-$F70)*IF(H31="Unfunded",H$34,H31) -> 0 | J70: =($L70-$F70)*IF(J31="Unfunded",J$34,J31) -> 0 | L70: 0 | N70: n/a | P70: n/a
B71: NXT and Affiliates | D71: =SUMPRODUCT( 1*(LEFT($B$54:$B$70,1)<>"*"), D54:D70) -> 0 | F71: =SUMPRODUCT( 1*(LEFT($B$54:$B$70,1)<>"*"), F54:F70) -> 0 | H71: =SUMPRODUCT( 1*(LEFT($B$54:$B$70,1)<>"*"), H54:H70) -> 0 | J71: =SUMPRODUCT( 1*(LEFT($B$54:$B$70,1)<>"*"), J54:J70) -> 0 | L71: =SUM(IF(LEFT($B54:$B70,1)="*",0,L54:L70)) -> 0 | N71: n/a | P71: n/a
B72: Balance to Syndicate | D72: =D73-D71 -> 0 | F72: =F73-F71 -> 0 | H72: =H73-H71 -> 0 | J72: =J73-J71 -> 0 | L72: =SUM(D72:K72) -> 0 | N72: n/a | P72: n/a
B73: NXT Underwrite | D73: =D32 -> 0 | F73: =F32 -> 0 | H73: =H32 -> 0 | J73: =J32 -> 0 | L73: =SUM(D73:K73) -> 0 | N73: n/a | P73: n/a

Sheet Hypo Pipeline
A1: Hypothetical Pipeline
A4: Exclude? | B4: Fund | C4: Deal Name | D4: Description | E4: Tranche | F4: Target Date | G4: Total Commitment | H4: Principal Balance | I4: Net Senior Leverage | J4: WA Commitment 4.35x Net Senior Leverage | K4: Protective Advances | L4: Sponsor | M4: Moody's Industry | N4: LTV % | O4: WA Commitment LTV | P4: DIP Loan (Y) | Q4: Dividend Recap (Y) | R4: Open Market Purchase (Y) | S4: Country (CAN) | T4: Approved by Swiss (Y)
B5: SMA-CH | C5: Bridges - Add On | E5: Term Loan | F5: 44484 | G5: 5000000 | H5: 5000000 | I5: 5.5 | J5: =tbl_HypoPipeline[[#This Row],[Net Senior Leverage]]*tbl_HypoPipeline[[#This Row],[Total Commitment]] -> 27500000 | K5: N | L5: Charlesbank Capital | M5: Consumer goods: Non-durable | O5: =tbl_HypoPipeline[[#This Row],[Total Commitment]]*tbl_HypoPipeline[[#This Row],[LTV %]] -> 0 | R5: N
B6: SMA-CH | C6: Royal Paper - Protective Advance | F6: 44484 | G6: 216667 | H6: 216667 | I6: 4.19 | J6: =tbl_HypoPipeline[[#This Row],[Net Senior Leverage]]*tbl_HypoPipeline[[#This Row],[Total Commitment]] -> 907834.73 | K6: Y | L6: GRIDIRON CAPITAL, LLC | M6: FOREST PRODUCTS AND PAPER | O6: =tbl_HypoPipeline[[#This Row],[Total Commitment]]*tbl_HypoPipeline[[#This Row],[LTV %]] -> 0 | R6: N
B7: SMA-CH | C7: Controlled Products | E7: Revolver | F7: 44491 | G7: 1078000 | H7: 0 | I7: 4.25 | J7: =tbl_HypoPipeline[[#This Row],[Net Senior Leverage]]*tbl_HypoPipeline[[#This Row],[Total Commitment]] -> 4581500 | K7: N | L7: SENTINEL CAPITAL PARTNERS, LLC | M7: Consumer goods: Durable | O7: =tbl_HypoPipeline[[#This Row],[Total Commitment]]*tbl_HypoPipeline[[#This Row],[LTV %]] -> 0 | R7: N
B8: SMA-CH | C8: Controlled Products | E8: Term Loan | F8: 44491 | G8: 4922000 | H8: 4922000 | I8: 4.25 | J8: =tbl_HypoPipeline[[#This Row],[Net Senior Leverage]]*tbl_HypoPipeline[[#This Row],[Total Commitment]] -> 20918500 | K8: N | L8: SENTINEL CAPITAL PARTNERS, LLC | M8: Consumer goods: Durable | O8: =tbl_HypoPipeline[[#This Row],[Total Commitment]]*tbl_HypoPipeline[[#This Row],[LTV %]] -> 0 | R8: N
B9: SMA-CH | C9: Tranzonic | E9: Term Loan | F9: 44484 | G9: 2673913 | H9: 2673913 | I9: 4.49 | J9: =tbl_HypoPipeline[[#This Row],[Net Senior Leverage]]*tbl_HypoPipeline[[#This Row],[Total Commitment]] -> 12005869.37 | K9: N | L9: PNC RIVERARCH CAPITAL, A DIVISION OF PNC FINANCE, LLC | M9: Consumer goods: Non-durable | O9: =tbl_HypoPipeline[[#This Row],[Total Commitment]]*tbl_HypoPipeline[[#This Row],[LTV %]] -> 0 | R9: N
B10: SMA-CH | C10: Rarebreed | E10: Term Loan | F10: 44489 | G10: 4500000 | H10: 4500000 | I10: 3.7 | J10: =tbl_HypoPipeline[[#This Row],[Net Senior Leverage]]*tbl_HypoPipeline[[#This Row],[Total Commitment]] -> 16650000 | K10: N | L10: Trilantic | M10: Healthcare & Pharmaceuticals | O10: =tbl_HypoPipeline[[#This Row],[Total Commitment]]*tbl_HypoPipeline[[#This Row],[LTV %]] -> 0 | R10: N
B11: SMA-CH | C11: Rarebreed | E11: Revolver | F11: 44489 | G11: 611000 | H11: 0 | I11: 3.7 | J11: =tbl_HypoPipeline[[#This Row],[Net Senior Leverage]]*tbl_HypoPipeline[[#This Row],[Total Commitment]] -> 2260700 | K11: N | L11: Trilantic | M11: Healthcare & Pharmaceuticals | O11: =tbl_HypoPipeline[[#This Row],[Total Commitment]]*tbl_HypoPipeline[[#This Row],[LTV %]] -> 0 | R11: N
B12: SMA-CH | C12: Rarebreed | E12: DDTL | F12: 44489 | G12: 4889000 | H12: 0 | I12: 3.7 | J12: =tbl_HypoPipeline[[#This Row],[Net Senior Leverage]]*tbl_HypoPipeline[[#This Row],[Total Commitment]] -> 18089300 | K12: N | L12: Trilantic | M12: Healthcare & Pharmaceuticals | O12: =tbl_HypoPipeline[[#This Row],[Total Commitment]]*tbl_HypoPipeline[[#This Row],[LTV %]] -> 0 | R12: N
B13: SMA-CH | C13: TruckLite | E13: Term Loan | F13: 44495 | G13: 5250000 | H13: 5250000 | I13: 5.15 | J13: =tbl_HypoPipeline[[#This Row],[Net Senior Leverage]]*tbl_HypoPipeline[[#This Row],[Total Commitment]] -> 27037500 | K13: N | L13: GENSTAR CAPITAL LLC | M13: Capital Equipment | O13: =tbl_HypoPipeline[[#This Row],[Total Commitment]]*tbl_HypoPipeline[[#This Row],[LTV %]] -> 0 | R13: N
B14: SMA-CH | C14: TruckLite | E14: Delayed Draw | F14: 44495 | G14: 1750000 | H14: 0 | I14: 5.15 | J14: =tbl_HypoPipeline[[#This Row],[Net Senior Leverage]]*tbl_HypoPipeline[[#This Row],[Total Commitment]] -> 9012500 | K14: N | L14: GENSTAR CAPITAL LLC | M14: Capital Equipment | O14: =tbl_HypoPipeline[[#This Row],[Total Commitment]]*tbl_HypoPipeline[[#This Row],[LTV %]] -> 0 | R14: N
B15: SMA-CH | C15: Amtech | E15: Revolver | F15: 44496 | G15: 333000 | H15: 0 | I15: 5 | J15: =tbl_HypoPipeline[[#This Row],[Net Senior Leverage]]*tbl_HypoPipeline[[#This Row],[Total Commitment]] -> 1665000 | K15: N | L15: Peak Rock Capital | M15: High Tech Industries | O15: =tbl_HypoPipeline[[#This Row],[Total Commitment]]*tbl_HypoPipeline[[#This Row],[LTV %]] -> 0 | R15: N
B16: SMA-CH | C16: Amtech | E16: Term Loan | F16: 44496 | G16: 3333000 | H16: 3333000 | I16: 5 | J16: =tbl_HypoPipeline[[#This Row],[Net Senior Leverage]]*tbl_HypoPipeline[[#This Row],[Total Commitment]] -> 16665000 | K16: N | L16: Peak Rock Capital | M16: High Tech Industries | O16: =tbl_HypoPipeline[[#This Row],[Total Commitment]]*tbl_HypoPipeline[[#This Row],[LTV %]] -> 0 | R16: N
B17: SMA-CH | C17: Amtech | E17: DDTL | F17: 44496 | G17: 1334000 | H17: 0 | I17: 5 | J17: =tbl_HypoPipeline[[#This Row],[Net Senior Leverage]]*tbl_HypoPipeline[[#This Row],[Total Commitment]] -> 6670000 | K17: N | L17: Peak Rock Capital | M17: High Tech Industries | O17: =tbl_HypoPipeline[[#This Row],[Total Commitment]]*tbl_HypoPipeline[[#This Row],[LTV %]] -> 0 | R17: N
B18: SMA-CH | C18: OptConnect | E18: Term Loan | F18: 44498 | G18: 3000000 | H18: 3000000 | I18: 5 | J18: =tbl_HypoPipeline[[#This Row],[Net Senior Leverage]]*tbl_HypoPipeline[[#This Row],[Total Commitment]] -> 15000000 | K18: N | L18: Graham Partners | M18: Services: Business | O18: =tbl_HypoPipeline[[#This Row],[Total Commitment]]*tbl_HypoPipeline[[#This Row],[LTV %]] -> 0 | R18: N
B19: SMA-CH | C19: Zone Mechanical | E19: Revolver | F19: 44530 | G19: 900000 | H19: 0 | I19: 6 | J19: =tbl_HypoPipeline[[#This Row],[Net Senior Leverage]]*tbl_HypoPipeline[[#This Row],[Total Commitment]] -> 5400000 | K19: N | L19: WIND POINT PARTNERS | M19: Capital Equipment | O19: =tbl_HypoPipeline[[#This Row],[Total Commitment]]*tbl_HypoPipeline[[#This Row],[LTV %]] -> 0 | R19: N
B20: SMA-CH | C20: Zone Mechanical | E20: Term Loan | F20: 44530 | G20: 10500000 | H20: 10500000 | I20: 6 | J20: =tbl_HypoPipeline[[#This Row],[Net Senior Leverage]]*tbl_HypoPipeline[[#This Row],[Total Commitment]] -> 63000000 | K20: N | L20: WIND POINT PARTNERS | M20: Capital Equipment | O20: =tbl_HypoPipeline[[#This Row],[Total Commitment]]*tbl_HypoPipeline[[#This Row],[LTV %]] -> 0 | R20: N
B21: SMA-CH | C21: Zone Mechanical | E21: DDTL | F21: 44530 | G21: 3600000 | H21: 0 | I21: 6 | J21: =tbl_HypoPipeline[[#This Row],[Net Senior Leverage]]*tbl_HypoPipeline[[#This Row],[Total Commitment]] -> 21600000 | K21: N | L21: WIND POINT PARTNERS | M21: Capital Equipment | O21: =tbl_HypoPipeline[[#This Row],[Total Commitment]]*tbl_HypoPipeline[[#This Row],[LTV %]] -> 0 | R21: N
B22: SMA-CH | C22: Foundation Partners | E22: Term Loan | F22: 44498 | G22: 3529411.765 | H22: 3529411.765 | I22: 4.9 | J22: =tbl_HypoPipeline[[#This Row],[Net Senior Leverage]]*tbl_HypoPipeline[[#This Row],[Total Commitment]] -> 17294117.65 | K22: N | L22: ACCESS HOLDCO MANAGEMENT LLC | M22: Services: Consumer | O22: =tbl_HypoPipeline[[#This Row],[Total Commitment]]*tbl_HypoPipeline[[#This Row],[LTV %]] -> 0 | R22: N
B23: SMA-CH | C23: Foundation Partners | E23: DDTL | F23: 44498 | G23: 8470588.235 | H23: 0 | I23: 4.9 | J23: =tbl_HypoPipeline[[#This Row],[Net Senior Leverage]]*tbl_HypoPipeline[[#This Row],[Total Commitment]] -> 41505882.35 | K23: N | L23: ACCESS HOLDCO MANAGEMENT LLC | M23: Services: Consumer | O23: =tbl_HypoPipeline[[#This Row],[Total Commitment]]*tbl_HypoPipeline[[#This Row],[LTV %]] -> 0 | R23: N
B24: SMA-CH | C24: Millstone Medical | E24: Revolver | F24: 44533 | G24: 1324000 | H24: 0 | I24: 5.59 | J24: =tbl_HypoPipeline[[#This Row],[Net Senior Leverage]]*tbl_HypoPipeline[[#This Row],[Total Commitment]] -> 7401160 | K24: N | M24: Services: Business | O24: =tbl_HypoPipeline[[#This Row],[Total Commitment]]*tbl_HypoPipeline[[#This Row],[LTV %]] -> 0 | R24: N
B25: SMA-CH | C25: Millstone Medical | E25: Term Loan | F25: 44533 | G25: 6176000 | H25: 6176000 | I25: 5.59 | J25: =tbl_HypoPipeline[[#This Row],[Net Senior Leverage]]*tbl_HypoPipeline[[#This Row],[Total Commitment]] -> 34523840 | K25: N | M25: Services: Business | O25: =tbl_HypoPipeline[[#This Row],[Total Commitment]]*tbl_HypoPipeline[[#This Row],[LTV %]] -> 0 | R25: N
B26: SMA-CH | C26: Alliance PT | E26: Revolver | F26: 44501 | G26: 1647000 | H26: 0 | I26: 5 | J26: =tbl_HypoPipeline[[#This Row],[Net Senior Leverage]]*tbl_HypoPipeline[[#This Row],[Total Commitment]] -> 8235000 | K26: N | L26: Beecken Petty | M26: Healthcare & Pharmaceuticals | O26: =tbl_HypoPipeline[[#This Row],[Total Commitment]]*tbl_HypoPipeline[[#This Row],[LTV %]] -> 0 | R26: N
B27: SMA-CH | C27: Alliance PT | E27: Term Loan | F27: 44501 | G27: 9059000 | H27: 9059000 | I27: 5 | J27: =tbl_HypoPipeline[[#This Row],[Net Senior Leverage]]*tbl_HypoPipeline[[#This Row],[Total Commitment]] -> 45295000 | K27: N | L27: Beecken Petty | M27: Healthcare & Pharmaceuticals | O27: =tbl_HypoPipeline[[#This Row],[Total Commitment]]*tbl_HypoPipeline[[#This Row],[LTV %]] -> 0 | R27: N
B28: SMA-CH | C28: Alliance PT | E28: DDTL | F28: 44501 | G28: 3294000 | H28: 0 | I28: 5 | J28: =tbl_HypoPipeline[[#This Row],[Net Senior Leverage]]*tbl_HypoPipeline[[#This Row],[Total Commitment]] -> 16470000 | K28: N | L28: Beecken Petty | M28: Healthcare & Pharmaceuticals | O28: =tbl_HypoPipeline[[#This Row],[Total Commitment]]*tbl_HypoPipeline[[#This Row],[LTV %]] -> 0 | R28: N
B29: SMA-CH | C29: Monroe - new deal | E29: Revolver | F29: 44512 | G29: 865000 | H29: 0 | I29: 6 | J29: =tbl_HypoPipeline[[#This Row],[Net Senior Leverage]]*tbl_HypoPipeline[[#This Row],[Total Commitment]] -> 5190000 | K29: N | L29: TBD | M29: Wholesale | O29: =tbl_HypoPipeline[[#This Row],[Total Commitment]]*tbl_HypoPipeline[[#This Row],[LTV %]] -> 0 | R29: N
B30: SMA-CH | C30: Monroe - new deal | E30: Term Loan | F30: 44512 | G30: 11250000 | H30: 11250000 | I30: 6 | J30: =tbl_HypoPipeline[[#This Row],[Net Senior Leverage]]*tbl_HypoPipeline[[#This Row],[Total Commitment]] -> 67500000 | K30: N | L30: TBD | M30: Wholesale | O30: =tbl_HypoPipeline[[#This Row],[Total Commitment]]*tbl_HypoPipeline[[#This Row],[LTV %]] -> 0 | R30: N
B31: SMA-CH | C31: Monroe - new deal | E31: DDTL | F31: 44512 | G31: 2885000 | H31: 0 | I31: 6 | J31: =tbl_HypoPipeline[[#This Row],[Net Senior Leverage]]*tbl_HypoPipeline[[#This Row],[Total Commitment]] -> 17310000 | K31: N | L31: TBD | M31: Wholesale | O31: =tbl_HypoPipeline[[#This Row],[Total Commitment]]*tbl_HypoPipeline[[#This Row],[LTV %]] -> 0 | R31: N
B32: SMA-CH | C32: Presco | E32: Term Loan | F32: 44512 | G32: 11250000 | H32: 11250000 | I32: 5 | J32: =tbl_HypoPipeline[[#This Row],[Net Senior Leverage]]*tbl_HypoPipeline[[#This Row],[Total Commitment]] -> 56250000 | K32: N | L32: RIVER ASSOCIATES INVESTMENTS, LLC | M32: Chemicals, Plastics & Rubber | O32: =tbl_HypoPipeline[[#This Row],[Total Commitment]]*tbl_HypoPipeline[[#This Row],[LTV %]] -> 0 | R32: N
B33: SMA-CH | C33: Tencarva | E33: Revolver | F33: 44519 | G33: 1216000 | H33: 0 | I33: 6.25 | J33: =tbl_HypoPipeline[[#This Row],[Net Senior Leverage]]*tbl_HypoPipeline[[#This Row],[Total Commitment]] -> 7600000 | K33: N | L33: TBD | M33: Consumer goods: Non-durable | O33: =tbl_HypoPipeline[[#This Row],[Total Commitment]]*tbl_HypoPipeline[[#This Row],[LTV %]] -> 0 | R33: N
B34: SMA-CH | C34: Tencarva | E34: Term Loan | F34: 44519 | G34: 9263000 | H34: 9263000 | I34: 6.25 | J34: =tbl_HypoPipeline[[#This Row],[Net Senior Leverage]]*tbl_HypoPipeline[[#This Row],[Total Commitment]] -> 57893750 | K34: N | L34: TBD | M34: Consumer goods: Non-durable | O34: =tbl_HypoPipeline[[#This Row],[Total Commitment]]*tbl_HypoPipeline[[#This Row],[LTV %]] -> 0 | R34: N
B35: SMA-CH | C35: Tencarva | E35: DDTL | F35: 44519 | G35: 1521000 | H35: 0 | I35: 6.25 | J35: =tbl_HypoPipeline[[#This Row],[Net Senior Leverage]]*tbl_HypoPipeline[[#This Row],[Total Commitment]] -> 9506250 | K35: N | L35: TBD | M35: Consumer goods: Non-durable | O35: =tbl_HypoPipeline[[#This Row],[Total Commitment]]*tbl_HypoPipeline[[#This Row],[LTV %]] -> 0 | R35: N
B36: SMA-CH | C36: Oliver | E36: Term Loan | F36: 44519 | G36: 6000000 | H36: 6000000 | I36: 4 | J36: =tbl_HypoPipeline[[#This Row],[Net Senior Leverage]]*tbl_HypoPipeline[[#This Row],[Total Commitment]] -> 24000000 | K36: N | L36: PFINGSTEN | M36: Containers, Packaging & Glass | O36: =tbl_HypoPipeline[[#This Row],[Total Commitment]]*tbl_HypoPipeline[[#This Row],[LTV %]] -> 0 | R36: N
B37: SMA-CH | C37: ESS | E37: Revolver | F37: 44526 | G37: 670000 | H37: 0 | I37: 6 | J37: =tbl_HypoPipeline[[#This Row],[Net Senior Leverage]]*tbl_HypoPipeline[[#This Row],[Total Commitment]] -> 4020000 | K37: N | M37: Services: Business | O37: =tbl_HypoPipeline[[#This Row],[Total Commitment]]*tbl_HypoPipeline[[#This Row],[LTV %]] -> 0 | R37: N
B38: SMA-CH | C38: ESS | E38: Term Loan | F38: 44526 | G38: 3214000 | H38: 3214000 | I38: 6 | J38: =tbl_HypoPipeline[[#This Row],[Net Senior Leverage]]*tbl_HypoPipeline[[#This Row],[Total Commitment]] -> 19284000 | K38: N | M38: Services: Business | O38: =tbl_HypoPipeline[[#This Row],[Total Commitment]]*tbl_HypoPipeline[[#This Row],[LTV %]] -> 0 | R38: N
B39: SMA-CH | C39: ESS | E39: DDTL | F39: 44526 | G39: 1116000 | H39: 0 | I39: 6 | J39: =tbl_HypoPipeline[[#This Row],[Net Senior Leverage]]*tbl_HypoPipeline[[#This Row],[Total Commitment]] -> 6696000 | K39: N | M39: Services: Business | O39: =tbl_HypoPipeline[[#This Row],[Total Commitment]]*tbl_HypoPipeline[[#This Row],[LTV %]] -> 0 | R39: N
B40: SMA-CH | C40: Woodland Foods | E40: DDTL | F40: 44530 | G40: 1250000 | H40: 0 | I40: 6.25 | J40: =tbl_HypoPipeline[[#This Row],[Net Senior Leverage]]*tbl_HypoPipeline[[#This Row],[Total Commitment]] -> 7812500 | K40: N | L40: Graham Partners | M40: Beverage, Food & Tobacco | O40: =tbl_HypoPipeline[[#This Row],[Total Commitment]]*tbl_HypoPipeline[[#This Row],[LTV %]] -> 0 | R40: N
B41: SMA-CH | C41: Woodland Foods | E41: Term Loan | F41: 44530 | G41: 11250000 | H41: 11250000 | I41: 6.25 | J41: =tbl_HypoPipeline[[#This Row],[Net Senior Leverage]]*tbl_HypoPipeline[[#This Row],[Total Commitment]] -> 70312500 | K41: N | L41: Graham Partners | M41: Beverage, Food & Tobacco | O41: =tbl_HypoPipeline[[#This Row],[Total Commitment]]*tbl_HypoPipeline[[#This Row],[LTV %]] -> 0 | R41: N
B42: SMA-CH | C42: Woodland Foods | E42: Delayed Draw Term Loan | F42: 44530 | G42: 2500000 | H42: 0 | I42: 6.25 | J42: =tbl_HypoPipeline[[#This Row],[Net Senior Leverage]]*tbl_HypoPipeline[[#This Row],[Total Commitment]] -> 15625000 | K42: N | L42: Graham Partners | M42: Beverage, Food & Tobacco | O42: =tbl_HypoPipeline[[#This Row],[Total Commitment]]*tbl_HypoPipeline[[#This Row],[LTV %]] -> 0 | R42: N
B43: SMA-CH | C43: Donan | E43: Revolver | F43: 44530 | G43: 1780000 | H43: 0 | I43: 6.51 | J43: =tbl_HypoPipeline[[#This Row],[Net Senior Leverage]]*tbl_HypoPipeline[[#This Row],[Total Commitment]] -> 11587800 | K43: N | L43: Thompson Street | M43: Services: Business | O43: =tbl_HypoPipeline[[#This Row],[Total Commitment]]*tbl_HypoPipeline[[#This Row],[LTV %]] -> 0 | R43: N
B44: SMA-CH | C44: Donan | E44: Term Loan | F44: 44530 | G44: 13220000 | H44: 13220000 | I44: 6.51 | J44: =tbl_HypoPipeline[[#This Row],[Net Senior Leverage]]*tbl_HypoPipeline[[#This Row],[Total Commitment]] -> 86062200 | K44: N | L44: Thompson Street | M44: Services: Business | O44: =tbl_HypoPipeline[[#This Row],[Total Commitment]]*tbl_HypoPipeline[[#This Row],[LTV %]] -> 0 | R44: N
B45: SMA-CH | C45: Molded Dimensions | E45: Revolver | F45: 44530 | G45: 563000 | H45: 0 | I45: 4.2 | J45: =tbl_HypoPipeline[[#This Row],[Net Senior Leverage]]*tbl_HypoPipeline[[#This Row],[Total Commitment]] -> 2364600 | M45: Chemicals, Plastics & Rubber | O45: =tbl_HypoPipeline[[#This Row],[Total Commitment]]*tbl_HypoPipeline[[#This Row],[LTV %]] -> 0
B46: SMA-CH | C46: Molded Dimensions | E46: Term Loan | F46: 44530 | G46: 4500000 | H46: 4500000 | I46: 4.2 | J46: =tbl_HypoPipeline[[#This Row],[Net Senior Leverage]]*tbl_HypoPipeline[[#This Row],[Total Commitment]] -> 18900000 | M46: Chemicals, Plastics & Rubber | O46: =tbl_HypoPipeline[[#This Row],[Total Commitment]]*tbl_HypoPipeline[[#This Row],[LTV %]] -> 0
B47: SMA-CH | C47: Molded Dimensions | E47: DDTl | F47: 44530 | G47: 937000 | H47: 0 | I47: 4.2 | J47: =tbl_HypoPipeline[[#This Row],[Net Senior Leverage]]*tbl_HypoPipeline[[#This Row],[Total Commitment]] -> 3935400 | M47: Chemicals, Plastics & Rubber | O47: =tbl_HypoPipeline[[#This Row],[Total Commitment]]*tbl_HypoPipeline[[#This Row],[LTV %]] -> 0
B48: SMA-CH | C48: Oracle | E48: Revolver | F48: 44530 | G48: 805000 | H48: 0 | I48: 6.5 | J48: =tbl_HypoPipeline[[#This Row],[Net Senior Leverage]]*tbl_HypoPipeline[[#This Row],[Total Commitment]] -> 5232500 | K48: N | L48: L-SQUARED CAPITAL | M48: Services: Business | O48: =tbl_HypoPipeline[[#This Row],[Total Commitment]]*tbl_HypoPipeline[[#This Row],[LTV %]] -> 0 | R48: N
B49: SMA-CH | C49: Oracle | E49: Term Loan | F49: 44530 | G49: 11512000 | H49: 11512000 | I49: 6.5 | J49: =tbl_HypoPipeline[[#This Row],[Net Senior Leverage]]*tbl_HypoPipeline[[#This Row],[Total Commitment]] -> 74828000 | K49: N | L49: L-SQUARED CAPITAL | M49: Services: Business | O49: =tbl_HypoPipeline[[#This Row],[Total Commitment]]*tbl_HypoPipeline[[#This Row],[LTV %]] -> 0 | R49: N
B50: SMA-CH | C50: Oracle | E50: DDTL | F50: 44530 | G50: 2683000 | H50: 0 | I50: 6.5 | J50: =tbl_HypoPipeline[[#This Row],[Net Senior Leverage]]*tbl_HypoPipeline[[#This Row],[Total Commitment]] -> 17439500 | K50: N | L50: L-SQUARED CAPITAL | M50: Services: Business | O50: =tbl_HypoPipeline[[#This Row],[Total Commitment]]*tbl_HypoPipeline[[#This Row],[LTV %]] -> 0 | R50: N
B51: SMA-CH | C51: Vivfy (Aakash) | E51: Revolver | F51: 44530 | G51: 750000 | H51: 0 | I51: 4.5 | J51: =tbl_HypoPipeline[[#This Row],[Net Senior Leverage]]*tbl_HypoPipeline[[#This Row],[Total Commitment]] -> 3375000 | K51: N | L51: CENTEROAK PARTNERS | M51: Chemicals, Plastics & Rubber | O51: =tbl_HypoPipeline[[#This Row],[Total Commitment]]*tbl_HypoPipeline[[#This Row],[LTV %]] -> 0 | R51: N
B52: SMA-CH | C52: Vivfy (Aakash) | E52: Term Loan | F52: 44530 | G52: 7000000 | H52: 7000000 | I52: 4.5 | J52: =tbl_HypoPipeline[[#This Row],[Net Senior Leverage]]*tbl_HypoPipeline[[#This Row],[Total Commitment]] -> 31500000 | K52: N | L52: CENTEROAK PARTNERS | M52: Chemicals, Plastics & Rubber | O52: =tbl_HypoPipeline[[#This Row],[Total Commitment]]*tbl_HypoPipeline[[#This Row],[LTV %]] -> 0 | R52: N
B53: SMA-CH | C53: Vivfy (Aakash) | E53: DDTL | F53: 44530 | G53: 2250000 | H53: 0 | I53: 4.5 | J53: =tbl_HypoPipeline[[#This Row],[Net Senior Leverage]]*tbl_HypoPipeline[[#This Row],[Total Commitment]] -> 10125000 | K53: N | L53: CENTEROAK PARTNERS | M53: Chemicals, Plastics & Rubber | O53: =tbl_HypoPipeline[[#This Row],[Total Commitment]]*tbl_HypoPipeline[[#This Row],[LTV %]] -> 0 | R53: N
B54: SMA-CH | C54: Monroe (Garlands) | E54: Term Loan | F54: 44530 | G54: 2000000 | H54: 2000000 | I54: 3.13 | J54: =tbl_HypoPipeline[[#This Row],[Net Senior Leverage]]*tbl_HypoPipeline[[#This Row],[Total Commitment]] -> 6260000 | M54: Wholesale | O54: =tbl_HypoPipeline[[#This Row],[Total Commitment]]*tbl_HypoPipeline[[#This Row],[LTV %]] -> 0
B55: SMA-CH | C55: Powerline | E55: Term Loan | F55: 44530 | G55: 11500000 | H55: 11500000 | I55: 3.24 | J55: =tbl_HypoPipeline[[#This Row],[Net Senior Leverage]]*tbl_HypoPipeline[[#This Row],[Total Commitment]] -> 37260000 | M55: Energy: Electricity | O55: =tbl_HypoPipeline[[#This Row],[Total Commitment]]*tbl_HypoPipeline[[#This Row],[LTV %]] -> 0
B56: SMA-CH | C56: Sunvair | E56: Revolver | F56: 44530 | G56: 250000 | H56: 0 | I56: 5.5 | J56: =tbl_HypoPipeline[[#This Row],[Net Senior Leverage]]*tbl_HypoPipeline[[#This Row],[Total Commitment]] -> 1375000 | K56: N | M56: Aerospace & Defense | O56: =tbl_HypoPipeline[[#This Row],[Total Commitment]]*tbl_HypoPipeline[[#This Row],[LTV %]] -> 0 | R56: N
B57: SMA-CH | C57: Sunvair | E57: Term Loan | F57: 44530 | G57: 2250000 | H57: 2250000 | I57: 5.5 | J57: =tbl_HypoPipeline[[#This Row],[Net Senior Leverage]]*tbl_HypoPipeline[[#This Row],[Total Commitment]] -> 12375000 | K57: N | M57: Aerospace & Defense | O57: =tbl_HypoPipeline[[#This Row],[Total Commitment]]*tbl_HypoPipeline[[#This Row],[LTV %]] -> 0 | R57: N
B58: SMA-CH | C58: Sunvair | E58: DDTL | F58: 44530 | G58: 500000 | H58: 0 | I58: 5.5 | J58: =tbl_HypoPipeline[[#This Row],[Net Senior Leverage]]*tbl_HypoPipeline[[#This Row],[Total Commitment]] -> 2750000 | K58: N | M58: Aerospace & Defense | O58: =tbl_HypoPipeline[[#This Row],[Total Commitment]]*tbl_HypoPipeline[[#This Row],[LTV %]] -> 0 | R58: N
B59: SMA-VG | C59: Bridges | E59: Term Loan | F59: 44484 | G59: 5000000 | H59: 5000000 | I59: 5.5 | J59: =tbl_HypoPipeline[[#This Row],[Net Senior Leverage]]*tbl_HypoPipeline[[#This Row],[Total Commitment]] -> 27500000 | L59: Charlesbank | M59: Consumer goods: Non-durable | N59: 0.49 | O59: =tbl_HypoPipeline[[#This Row],[Total Commitment]]*tbl_HypoPipeline[[#This Row],[LTV %]] -> 2450000 | P59: N | Q59: N
B60: SMA-VG | C60: Controlled Products | E60: Revolver | F60: 44491 | G60: 899000 | H60: 0 | I60: 4.25 | J60: =tbl_HypoPipeline[[#This Row],[Net Senior Leverage]]*tbl_HypoPipeline[[#This Row],[Total Commitment]] -> 3820750 | L60: SENTINEL CAPITAL PARTNERS, LLC | M60: Consumer goods: Durable | N60: 0.45 | O60: =tbl_HypoPipeline[[#This Row],[Total Commitment]]*tbl_HypoPipeline[[#This Row],[LTV %]] -> 404550 | P60: N | Q60: N
B61: SMA-VG | C61: Controlled Products | E61: Term Loan | F61: 44491 | G61: 4101000 | H61: 4101000 | I61: 4.25 | J61: =tbl_HypoPipeline[[#This Row],[Net Senior Leverage]]*tbl_HypoPipeline[[#This Row],[Total Commitment]] -> 17429250 | L61: SENTINEL CAPITAL PARTNERS, LLC | M61: Consumer goods: Durable | N61: 0.45 | O61: =tbl_HypoPipeline[[#This Row],[Total Commitment]]*tbl_HypoPipeline[[#This Row],[LTV %]] -> 1845450 | P61: N | Q61: N
B62: SMA-VG | C62: Oliver | E62: Term Loan | F62: 44519 | G62: 4000000 | H62: 4000000 | I62: 4 | J62: =tbl_HypoPipeline[[#This Row],[Net Senior Leverage]]*tbl_HypoPipeline[[#This Row],[Total Commitment]] -> 16000000 | L62: PFINGSTEN | M62: Containers, Packaging & Glass | N62: 0.469 | O62: =tbl_HypoPipeline[[#This Row],[Total Commitment]]*tbl_HypoPipeline[[#This Row],[LTV %]] -> 1876000 | P62: N | Q62: N
B63: SMA-VG | C63: Tranzonic | E63: Revolver | F63: 44484 | G63: 543478 | H63: 0 | I63: 4.8 | J63: =tbl_HypoPipeline[[#This Row],[Net Senior Leverage]]*tbl_HypoPipeline[[#This Row],[Total Commitment]] -> 2608694.4 | L63: TBD | M63: Consumer goods: Non-durable | N63: 0.6 | O63: =tbl_HypoPipeline[[#This Row],[Total Commitment]]*tbl_HypoPipeline[[#This Row],[LTV %]] -> 326086.8 | P63: N | Q63: N
B64: SMA-VG | C64: Tranzonic | E64: Term Loan | F64: 44484 | G64: 4456522 | H64: 4456522 | I64: 4.8 | J64: =tbl_HypoPipeline[[#This Row],[Net Senior Leverage]]*tbl_HypoPipeline[[#This Row],[Total Commitment]] -> 21391305.6 | L64: TBD | M64: Consumer goods: Non-durable | N64: 0.6 | O64: =tbl_HypoPipeline[[#This Row],[Total Commitment]]*tbl_HypoPipeline[[#This Row],[LTV %]] -> 2673913.2 | P64: N | Q64: N
B65: SMA-VG | C65: EFC | E65: Revolver | F65: 44515 | G65: 1875000 | H65: 0 | I65: 4.37 | J65: =tbl_HypoPipeline[[#This Row],[Net Senior Leverage]]*tbl_HypoPipeline[[#This Row],[Total Commitment]] -> 8193750 | L65: Frontenac | M65: Automotive (2) | N65: 0.475 | O65: =tbl_HypoPipeline[[#This Row],[Total Commitment]]*tbl_HypoPipeline[[#This Row],[LTV %]] -> 890625 | P65: N | Q65: N
B66: SMA-VG | C66: EFC | E66: Delayed Draw Term Loan | F66: 44515 | G66: 3125000 | H66: 0 | I66: 4.37 | J66: =tbl_HypoPipeline[[#This Row],[Net Senior Leverage]]*tbl_HypoPipeline[[#This Row],[Total Commitment]] -> 13656250 | L66: Frontenac | M66: Automotive (2) | N66: 0.475 | O66: =tbl_HypoPipeline[[#This Row],[Total Commitment]]*tbl_HypoPipeline[[#This Row],[LTV %]] -> 1484375 | P66: N | Q66: N
B67: SMA-VG | C67: EFC | E67: Term Loan | F67: 44515 | G67: 15000000 | H67: 15000000 | I67: 4.37 | J67: =tbl_HypoPipeline[[#This Row],[Net Senior Leverage]]*tbl_HypoPipeline[[#This Row],[Total Commitment]] -> 65550000 | L67: Frontenac | M67: Automotive (2) | N67: 0.475 | O67: =tbl_HypoPipeline[[#This Row],[Total Commitment]]*tbl_HypoPipeline[[#This Row],[LTV %]] -> 7125000 | P67: N | Q67: N
B68: SMA-VG | C68: OptConnect | E68: Term Loan | F68: 44498 | G68: 7500000 | H68: 7500000 | I68: 5 | J68: =tbl_HypoPipeline[[#This Row],[Net Senior Leverage]]*tbl_HypoPipeline[[#This Row],[Total Commitment]] -> 37500000 | L68: Graham Partners | M68: Services: Business | N68: 0.5 | O68: =tbl_HypoPipeline[[#This Row],[Total Commitment]]*tbl_HypoPipeline[[#This Row],[LTV %]] -> 3750000 | P68: N | Q68: N
B69: SMA-VG | C69: Tyto | E69: Term Loan | F69: 44484 | G69: 10000000 | H69: 10000000 | I69: 4.5 | J69: =tbl_HypoPipeline[[#This Row],[Net Senior Leverage]]*tbl_HypoPipeline[[#This Row],[Total Commitment]] -> 45000000 | M69: Aerospace & Defense | N69: 0.76 | O69: =tbl_HypoPipeline[[#This Row],[Total Commitment]]*tbl_HypoPipeline[[#This Row],[LTV %]] -> 7600000 | P69: N
B70: SMA-VG | C70: Presco | F70: 44512 | G70: 11000000 | H70: 11000000 | I70: 5 | J70: =tbl_HypoPipeline[[#This Row],[Net Senior Leverage]]*tbl_HypoPipeline[[#This Row],[Total Commitment]] -> 55000000 | M70: Chemicals, Plastics & Rubber | N70: 0.5 | O70: =tbl_HypoPipeline[[#This Row],[Total Commitment]]*tbl_HypoPipeline[[#This Row],[LTV %]] -> 5500000 | P70: N | Q70: N
B71: SMA-VG | C71: Millstone Medical | E71: Revolver | F71: 44533 | G71: 1324000 | H71: 0 | I71: 5.59 | J71: =tbl_HypoPipeline[[#This Row],[Net Senior Leverage]]*tbl_HypoPipeline[[#This Row],[Total Commitment]] -> 7401160 | L71: Arlington Capital | M71: Services: Business | N71: 0.4 | O71: =tbl_HypoPipeline[[#This Row],[Total Commitment]]*tbl_HypoPipeline[[#This Row],[LTV %]] -> 529600 | P71: N | Q71: N
B72: SMA-VG | C72: Millstone Medical | E72: Term Loan | F72: 44533 | G72: 6176000 | H72: 6176000 | I72: 5.59 | J72: =tbl_HypoPipeline[[#This Row],[Net Senior Leverage]]*tbl_HypoPipeline[[#This Row],[Total Commitment]] -> 34523840 | L72: Arlington Capital | M72: Services: Business | N72: 0.4 | O72: =tbl_HypoPipeline[[#This Row],[Total Commitment]]*tbl_HypoPipeline[[#This Row],[LTV %]] -> 2470400 | P72: N | Q72: N
B73: SMA-VG | C73: Alliance PT | E73: Revolver | F73: 44501 | G73: 2353000 | H73: 0 | I73: 5 | J73: =tbl_HypoPipeline[[#This Row],[Net Senior Leverage]]*tbl_HypoPipeline[[#This Row],[Total Commitment]] -> 11765000 | L73: BEEKEN PETTY O'KEEFE & CO., LLC | M73: Healthcare & Pharmaceuticals | N73: 0.49 | O73: =tbl_HypoPipeline[[#This Row],[Total Commitment]]*tbl_HypoPipeline[[#This Row],[LTV %]] -> 1152970 | P73: N | Q73: N
B74: SMA-VG | C74: Alliance PT | E74: Term Loan | F74: 44501 | G74: 12941000 | H74: 12941000 | I74: 5 | J74: =tbl_HypoPipeline[[#This Row],[Net Senior Leverage]]*tbl_HypoPipeline[[#This Row],[Total Commitment]] -> 64705000 | L74: BEEKEN PETTY O'KEEFE & CO., LLC | M74: Healthcare & Pharmaceuticals | N74: 0.49 | O74: =tbl_HypoPipeline[[#This Row],[Total Commitment]]*tbl_HypoPipeline[[#This Row],[LTV %]] -> 6341090 | P74: N | Q74: N
B75: SMA-VG | C75: Alliance PT | E75: Delayed Draw Term Loan | F75: 44501 | G75: 4706000 | H75: 0 | I75: 5 | J75: =tbl_HypoPipeline[[#This Row],[Net Senior Leverage]]*tbl_HypoPipeline[[#This Row],[Total Commitment]] -> 23530000 | L75: BEEKEN PETTY O'KEEFE & CO., LLC | M75: Healthcare & Pharmaceuticals | N75: 0.49 | O75: =tbl_HypoPipeline[[#This Row],[Total Commitment]]*tbl_HypoPipeline[[#This Row],[LTV %]] -> 2305940 | P75: N | Q75: N
B76: SMA-VG | C76: MCA (DDTL) | E76: Delayed Draw Term Loan | F76: 44530 | G76: 15000000 | H76: 0 | I76: 3.5 | J76: =tbl_HypoPipeline[[#This Row],[Net Senior Leverage]]*tbl_HypoPipeline[[#This Row],[Total Commitment]] -> 52500000 | N76: 0.5 | O76: =tbl_HypoPipeline[[#This Row],[Total Commitment]]*tbl_HypoPipeline[[#This Row],[LTV %]] -> 7500000 | P76: N
B77: SMA-VG | C77: Anne Arundel | E77: Revolver | F77: 44498 | G77: 248000 | H77: 0 | I77: 4.75 | J77: =tbl_HypoPipeline[[#This Row],[Net Senior Leverage]]*tbl_HypoPipeline[[#This Row],[Total Commitment]] -> 1178000 | L77: SENTINEL CAPITAL PARTNERS, LLC | M77: Healthcare & Pharmaceuticals | N77: 0.5 | O77: =tbl_HypoPipeline[[#This Row],[Total Commitment]]*tbl_HypoPipeline[[#This Row],[LTV %]] -> 124000 | P77: N | Q77: N
B78: SMA-VG | C78: Anne Arundel | E78: Term Loan | F78: 44498 | G78: 2550000 | H78: 2550000 | I78: 4.75 | J78: =tbl_HypoPipeline[[#This Row],[Net Senior Leverage]]*tbl_HypoPipeline[[#This Row],[Total Commitment]] -> 12112500 | L78: SENTINEL CAPITAL PARTNERS, LLC | M78: Healthcare & Pharmaceuticals | N78: 0.5 | O78: =tbl_HypoPipeline[[#This Row],[Total Commitment]]*tbl_HypoPipeline[[#This Row],[LTV %]] -> 1275000 | P78: N | Q78: N
B79: SMA-VG | C79: Anne Arundel | E79: Delayed Draw Term Loan | F79: 44498 | G79: 2202000 | H79: 0 | I79: 4.75 | J79: =tbl_HypoPipeline[[#This Row],[Net Senior Leverage]]*tbl_HypoPipeline[[#This Row],[Total Commitment]] -> 10459500 | L79: SENTINEL CAPITAL PARTNERS, LLC | M79: Healthcare & Pharmaceuticals | N79: 0.5 | O79: =tbl_HypoPipeline[[#This Row],[Total Commitment]]*tbl_HypoPipeline[[#This Row],[LTV %]] -> 1101000 | P79: N | Q79: N
B80: SMA-VG | C80: American Outcomes | E80: Revolver | F80: 44530 | G80: 2222000 | H80: 0 | I80: 5.3 | J80: =tbl_HypoPipeline[[#This Row],[Net Senior Leverage]]*tbl_HypoPipeline[[#This Row],[Total Commitment]] -> 11776600 | L80: Ridgemont Equity Partners | M80: Healthcare & Pharmaceuticals | N80: 0.5 | O80: =tbl_HypoPipeline[[#This Row],[Total Commitment]]*tbl_HypoPipeline[[#This Row],[LTV %]] -> 1111000 | P80: N | Q80: N
B81: SMA-VG | C81: American Outcomes | E81: Term Loan | F81: 44530 | G81: 14074000 | H81: 14074000 | I81: 5.3 | J81: =tbl_HypoPipeline[[#This Row],[Net Senior Leverage]]*tbl_HypoPipeline[[#This Row],[Total Commitment]] -> 74592200 | L81: Ridgemont Equity Partners | M81: Healthcare & Pharmaceuticals | N81: 0.5 | O81: =tbl_HypoPipeline[[#This Row],[Total Commitment]]*tbl_HypoPipeline[[#This Row],[LTV %]] -> 7037000 | P81: N | Q81: N
B82: SMA-VG | C82: American Outcomes | E82: Delayed Draw Term Loan | F82: 44530 | G82: 3704000 | H82: 0 | I82: 5.3 | J82: =tbl_HypoPipeline[[#This Row],[Net Senior Leverage]]*tbl_HypoPipeline[[#This Row],[Total Commitment]] -> 19631200 | L82: Ridgemont Equity Partners | M82: Healthcare & Pharmaceuticals | N82: 0.5 | O82: =tbl_HypoPipeline[[#This Row],[Total Commitment]]*tbl_HypoPipeline[[#This Row],[LTV %]] -> 1852000 | P82: N | Q82: N
B83: SMA-VG | C83: NXGEN | E83: Term Loan | G83: 703479.73 | H83: 9 | J83: =tbl_HypoPipeline[[#This Row],[Net Senior Leverage]]*tbl_HypoPipeline[[#This Row],[Total Commitment]] -> 0 | M83: High Tech Industries | N83: 0.5 | O83: =tbl_HypoPipeline[[#This Row],[Total Commitment]]*tbl_HypoPipeline[[#This Row],[LTV %]] -> 351739.865 | P83: N
B84: SMA-VG | C84: NXGEN | E84: Delayed Draw Term Loan | G84: 296520.27 | H84: 296520.27 | J84: =tbl_HypoPipeline[[#This Row],[Net Senior Leverage]]*tbl_HypoPipeline[[#This Row],[Total Commitment]] -> 0 | M84: High Tech Industries | N84: 0.5 | O84: =tbl_HypoPipeline[[#This Row],[Total Commitment]]*tbl_HypoPipeline[[#This Row],[LTV %]] -> 148260.135 | P84: N
B85: SMA-VG | C85: Molded Dimensions | E85: Revolver | G85: 703000 | H85: 0 | I85: 4.2 | J85: =tbl_HypoPipeline[[#This Row],[Net Senior Leverage]]*tbl_HypoPipeline[[#This Row],[Total Commitment]] -> 2952600 | M85: Chemicals, Plastics & Rubber | N85: 0.5 | O85: =tbl_HypoPipeline[[#This Row],[Total Commitment]]*tbl_HypoPipeline[[#This Row],[LTV %]] -> 351500 | P85: N
B86: SMA-VG | C86: Molded Dimensions | E86: Term Loan | G86: 5625000 | H86: 5625000 | I86: 4.2 | J86: =tbl_HypoPipeline[[#This Row],[Net Senior Leverage]]*tbl_HypoPipeline[[#This Row],[Total Commitment]] -> 23625000 | M86: Chemicals, Plastics & Rubber | N86: 0.5 | O86: =tbl_HypoPipeline[[#This Row],[Total Commitment]]*tbl_HypoPipeline[[#This Row],[LTV %]] -> 2812500 | P86: N
B87: SMA-VG | C87: Molded Dimensions | E87: Delayed Draw Term Loan | G87: 1172000 | H87: 0 | I87: 4.2 | J87: =tbl_HypoPipeline[[#This Row],[Net Senior Leverage]]*tbl_HypoPipeline[[#This Row],[Total Commitment]] -> 4922400 | M87: Chemicals, Plastics & Rubber | N87: 0.5 | O87: =tbl_HypoPipeline[[#This Row],[Total Commitment]]*tbl_HypoPipeline[[#This Row],[LTV %]] -> 586000 | P87: N
B88: SMA-VG | C88: Vivfy (Aakash) | E88: Revolver | G88: 1500000 | H88: 0 | I88: 4.5 | J88: =tbl_HypoPipeline[[#This Row],[Net Senior Leverage]]*tbl_HypoPipeline[[#This Row],[Total Commitment]] -> 6750000 | L88: COP | M88: Chemicals, Plastics & Rubber | N88: 0.42 | O88: =tbl_HypoPipeline[[#This Row],[Total Commitment]]*tbl_HypoPipeline[[#This Row],[LTV %]] -> 630000 | P88: N | Q88: N
B89: SMA-VG | C89: Vivfy (Aakash) | E89: Term Loan | G89: 14000000 | H89: 14000000 | I89: 4.5 | J89: =tbl_HypoPipeline[[#This Row],[Net Senior Leverage]]*tbl_HypoPipeline[[#This Row],[Total Commitment]] -> 63000000 | L89: COP | M89: Chemicals, Plastics & Rubber | N89: 0.42 | O89: =tbl_HypoPipeline[[#This Row],[Total Commitment]]*tbl_HypoPipeline[[#This Row],[LTV %]] -> 5880000 | P89: N | Q89: N
B90: SMA-VG | C90: Vivfy (Aakash) | E90: Delayed Draw Term Loan | G90: 4500000 | H90: 0 | I90: 4.5 | J90: =tbl_HypoPipeline[[#This Row],[Net Senior Leverage]]*tbl_HypoPipeline[[#This Row],[Total Commitment]] -> 20250000 | L90: COP | M90: Chemicals, Plastics & Rubber | N90: 0.42 | O90: =tbl_HypoPipeline[[#This Row],[Total Commitment]]*tbl_HypoPipeline[[#This Row],[LTV %]] -> 1890000 | P90: N | Q90: N
B91: SMA-VG | C91: Monroe (Garlands) | E91: Term Loan | F91: 44498 | G91: 3000000 | H91: 3000000 | I91: 3.5 | J91: =tbl_HypoPipeline[[#This Row],[Net Senior Leverage]]*tbl_HypoPipeline[[#This Row],[Total Commitment]] -> 10500000 | M91: Wholesale | N91: 0.5 | O91: =tbl_HypoPipeline[[#This Row],[Total Commitment]]*tbl_HypoPipeline[[#This Row],[LTV %]] -> 1500000 | P91: N
B92: SMA-VG | C92: Sunvair | E92: Revolver | F92: 44530 | G92: 1667000 | H92: 0 | I92: 5.5 | J92: =tbl_HypoPipeline[[#This Row],[Net Senior Leverage]]*tbl_HypoPipeline[[#This Row],[Total Commitment]] -> 9168500 | L92: Libery Hall Capital Partners | M92: Aerospace & Defense | N92: 0.46 | O92: =tbl_HypoPipeline[[#This Row],[Total Commitment]]*tbl_HypoPipeline[[#This Row],[LTV %]] -> 766820 | P92: N | Q92: N
B93: SMA-VG | C93: Sunvair | E93: Term Loan | F93: 44530 | G93: 15000000 | H93: 15000000 | I93: 5.5 | J93: =tbl_HypoPipeline[[#This Row],[Net Senior Leverage]]*tbl_HypoPipeline[[#This Row],[Total Commitment]] -> 82500000 | L93: Libery Hall Capital Partners | M93: Aerospace & Defense | N93: 0.46 | O93: =tbl_HypoPipeline[[#This Row],[Total Commitment]]*tbl_HypoPipeline[[#This Row],[LTV %]] -> 6900000 | P93: N | Q93: N
B94: SMA-VG | C94: Sunvair | E94: Delayed Draw Term Loan | F94: 44530 | G94: 3333000 | H94: 0 | I94: 5.5 | J94: =tbl_HypoPipeline[[#This Row],[Net Senior Leverage]]*tbl_HypoPipeline[[#This Row],[Total Commitment]] -> 18331500 | L94: Libery Hall Capital Partners | M94: Aerospace & Defense | N94: 0.46 | O94: =tbl_HypoPipeline[[#This Row],[Total Commitment]]*tbl_HypoPipeline[[#This Row],[LTV %]] -> 1533180 | P94: N | Q94: N
B95: SLF VI UL | C95: Tranzonic | E95: Revolver | F95: 44197 | G95: 108695.65 | H95: 103260.8675 | J95: =tbl_HypoPipeline[[#This Row],[Net Senior Leverage]]*tbl_HypoPipeline[[#This Row],[Total Commitment]] -> 0 | M95: Consumer goods: Non-durable | O95: =tbl_HypoPipeline[[#This Row],[Total Commitment]]*tbl_HypoPipeline[[#This Row],[LTV %]] -> 0
B96: SLF VI UL | C96: USSC Corp | E96: Revolver | F96: 44505 | G96: 73530.74 | H96: 14706.15 | J96: =tbl_HypoPipeline[[#This Row],[Net Senior Leverage]]*tbl_HypoPipeline[[#This Row],[Total Commitment]] -> 0 | K96: N | M96: Transportation: Consumer | O96: =tbl_HypoPipeline[[#This Row],[Total Commitment]]*tbl_HypoPipeline[[#This Row],[LTV %]] -> 0
B97: SLF VI UL | C97: USSC Corp | E97: Term Loan | F97: 44505 | G97: 698523.96 | H97: 698523.96 | J97: =tbl_HypoPipeline[[#This Row],[Net Senior Leverage]]*tbl_HypoPipeline[[#This Row],[Total Commitment]] -> 0 | K97: N | M97: Transportation: Consumer | O97: =tbl_HypoPipeline[[#This Row],[Total Commitment]]*tbl_HypoPipeline[[#This Row],[LTV %]] -> 0
B98: SLF VI UL | C98: USSC Corp | E98: DDTL | F98: 44505 | G98: 183826.85 | H98: 0 | J98: =tbl_HypoPipeline[[#This Row],[Net Senior Leverage]]*tbl_HypoPipeline[[#This Row],[Total Commitment]] -> 0 | K98: N | M98: Transportation: Consumer | O98: =tbl_HypoPipeline[[#This Row],[Total Commitment]]*tbl_HypoPipeline[[#This Row],[LTV %]] -> 0
B99: SLF VI UL | C99: USSC Corp | E99: DDTL | F99: 44505 | G99: 44118.45 | H99: 0 | J99: =tbl_HypoPipeline[[#This Row],[Net Senior Leverage]]*tbl_HypoPipeline[[#This Row],[Total Commitment]] -> 0 | K99: N | M99: Transportation: Consumer | O99: =tbl_HypoPipeline[[#This Row],[Total Commitment]]*tbl_HypoPipeline[[#This Row],[LTV %]] -> 0
B100: SLF VI UL | C100: TeamVantage | E100: Revolver | F100: 44505 | G100: 47619.05 | H100: 0 | J100: =tbl_HypoPipeline[[#This Row],[Net Senior Leverage]]*tbl_HypoPipeline[[#This Row],[Total Commitment]] -> 0 | K100: N | M100: Chemicals, Plastics & Rubber | O100: =tbl_HypoPipeline[[#This Row],[Total Commitment]]*tbl_HypoPipeline[[#This Row],[LTV %]] -> 0
B101: SLF VI UL | C101: TeamVantage | E101: Term Loan | F101: 44505 | G101: 952380.95 | H101: 952380.95 | J101: =tbl_HypoPipeline[[#This Row],[Net Senior Leverage]]*tbl_HypoPipeline[[#This Row],[Total Commitment]] -> 0 | K101: N | M101: Chemicals, Plastics & Rubber | O101: =tbl_HypoPipeline[[#This Row],[Total Commitment]]*tbl_HypoPipeline[[#This Row],[LTV %]] -> 0
B102: SLF VI UL | C102: Controlled Products | E102: Revolver | F102: 44494 | G102: 180000 | H102: 0 | J102: =tbl_HypoPipeline[[#This Row],[Net Senior Leverage]]*tbl_HypoPipeline[[#This Row],[Total Commitment]] -> 0 | M102: Consumer goods: Durable | O102: =tbl_HypoPipeline[[#This Row],[Total Commitment]]*tbl_HypoPipeline[[#This Row],[LTV %]] -> 0
B103: SLF VI UL | C103: Controlled Products | E103: Term Loan | F103: 44494 | G103: 820000 | H103: 820000 | J103: =tbl_HypoPipeline[[#This Row],[Net Senior Leverage]]*tbl_HypoPipeline[[#This Row],[Total Commitment]] -> 0 | M103: Consumer goods: Durable | O103: =tbl_HypoPipeline[[#This Row],[Total Commitment]]*tbl_HypoPipeline[[#This Row],[LTV %]] -> 0
B104: SLF VI UL | C104: Tranzonic | E104: Term Loan | F104: 44495 | G104: 891304.35 | H104: 891304.35 | J104: =tbl_HypoPipeline[[#This Row],[Net Senior Leverage]]*tbl_HypoPipeline[[#This Row],[Total Commitment]] -> 0 | M104: Consumer goods: Non-durable | O104: =tbl_HypoPipeline[[#This Row],[Total Commitment]]*tbl_HypoPipeline[[#This Row],[LTV %]] -> 0
B105: SLF VI UL | C105: Rarebreed | E105: Revolver | F105: 44489 | G105: 61000 | H105: 0 | J105: =tbl_HypoPipeline[[#This Row],[Net Senior Leverage]]*tbl_HypoPipeline[[#This Row],[Total Commitment]] -> 0 | M105: Healthcare & Pharmaceuticals | O105: =tbl_HypoPipeline[[#This Row],[Total Commitment]]*tbl_HypoPipeline[[#This Row],[LTV %]] -> 0
B106: SLF VI UL | C106: Rarebreed | E106: Term Loan | F106: 44489 | G106: 450000 | H106: 450000 | J106: =tbl_HypoPipeline[[#This Row],[Net Senior Leverage]]*tbl_HypoPipeline[[#This Row],[Total Commitment]] -> 0 | M106: Healthcare & Pharmaceuticals | O106: =tbl_HypoPipeline[[#This Row],[Total Commitment]]*tbl_HypoPipeline[[#This Row],[LTV %]] -> 0
B107: SLF VI UL | C107: Rarebreed | E107: DDTL | F107: 44489 | G107: 489000 | H107: 0 | J107: =tbl_HypoPipeline[[#This Row],[Net Senior Leverage]]*tbl_HypoPipeline[[#This Row],[Total Commitment]] -> 0 | M107: Healthcare & Pharmaceuticals | O107: =tbl_HypoPipeline[[#This Row],[Total Commitment]]*tbl_HypoPipeline[[#This Row],[LTV %]] -> 0
B108: SLF VI UL | C108: Amtech | E108: Revolver | F108: 44496 | G108: 67000 | H108: 0 | J108: =tbl_HypoPipeline[[#This Row],[Net Senior Leverage]]*tbl_HypoPipeline[[#This Row],[Total Commitment]] -> 0 | M108: High Tech Industries | O108: =tbl_HypoPipeline[[#This Row],[Total Commitment]]*tbl_HypoPipeline[[#This Row],[LTV %]] -> 0
B109: SLF VI UL | C109: Amtech | E109: Term Loan | F109: 44496 | G109: 667000 | H109: 667000 | J109: =tbl_HypoPipeline[[#This Row],[Net Senior Leverage]]*tbl_HypoPipeline[[#This Row],[Total Commitment]] -> 0 | M109: High Tech Industries | O109: =tbl_HypoPipeline[[#This Row],[Total Commitment]]*tbl_HypoPipeline[[#This Row],[LTV %]] -> 0
B110: SLF VI UL | C110: Amtech | E110: DDTL | F110: 44496 | G110: 266000 | H110: 0 | J110: =tbl_HypoPipeline[[#This Row],[Net Senior Leverage]]*tbl_HypoPipeline[[#This Row],[Total Commitment]] -> 0 | M110: High Tech Industries | O110: =tbl_HypoPipeline[[#This Row],[Total Commitment]]*tbl_HypoPipeline[[#This Row],[LTV %]] -> 0
B111: SLF VI UL | C111: Refrigiwear | E111: Revolver | F111: 44501 | G111: 142000 | H111: 0 | J111: =tbl_HypoPipeline[[#This Row],[Net Senior Leverage]]*tbl_HypoPipeline[[#This Row],[Total Commitment]] -> 0 | M111: Consumer goods: Non-durable | O111: =tbl_HypoPipeline[[#This Row],[Total Commitment]]*tbl_HypoPipeline[[#This Row],[LTV %]] -> 0
B112: SLF VI UL | C112: Refrigiwear | E112: Term Loan | F112: 44501 | G112: 858000 | H112: 858000 | J112: =tbl_HypoPipeline[[#This Row],[Net Senior Leverage]]*tbl_HypoPipeline[[#This Row],[Total Commitment]] -> 0 | M112: Consumer goods: Non-durable | O112: =tbl_HypoPipeline[[#This Row],[Total Commitment]]*tbl_HypoPipeline[[#This Row],[LTV %]] -> 0
B113: SLF VI UL | C113: OptConnect | E113: Term Loan | F113: 44498 | G113: 1000000 | H113: 1000000 | J113: =tbl_HypoPipeline[[#This Row],[Net Senior Leverage]]*tbl_HypoPipeline[[#This Row],[Total Commitment]] -> 0 | M113: Services: Business | O113: =tbl_HypoPipeline[[#This Row],[Total Commitment]]*tbl_HypoPipeline[[#This Row],[LTV %]] -> 0
B114: SLF VI UL | C114: Alliance PT | E114: Revolver | F114: 44501 | G114: 118000 | H114: 0 | J114: =tbl_HypoPipeline[[#This Row],[Net Senior Leverage]]*tbl_HypoPipeline[[#This Row],[Total Commitment]] -> 0 | M114: Healthcare & Pharmaceuticals | O114: =tbl_HypoPipeline[[#This Row],[Total Commitment]]*tbl_HypoPipeline[[#This Row],[LTV %]] -> 0
B115: SLF VI UL | C115: Alliance PT | E115: Term Loan | F115: 44501 | G115: 647000 | H115: 647000 | J115: =tbl_HypoPipeline[[#This Row],[Net Senior Leverage]]*tbl_HypoPipeline[[#This Row],[Total Commitment]] -> 0 | M115: Healthcare & Pharmaceuticals | O115: =tbl_HypoPipeline[[#This Row],[Total Commitment]]*tbl_HypoPipeline[[#This Row],[LTV %]] -> 0
B116: SLF VI UL | C116: Alliance PT | E116: DDTL | F116: 44501 | G116: 235000 | H116: 0 | J116: =tbl_HypoPipeline[[#This Row],[Net Senior Leverage]]*tbl_HypoPipeline[[#This Row],[Total Commitment]] -> 0 | M116: Healthcare & Pharmaceuticals | O116: =tbl_HypoPipeline[[#This Row],[Total Commitment]]*tbl_HypoPipeline[[#This Row],[LTV %]] -> 0
B117: SLF VI UL | C117: Monroe | E117: Revolver | F117: 44512 | G117: 58000 | H117: 0 | J117: =tbl_HypoPipeline[[#This Row],[Net Senior Leverage]]*tbl_HypoPipeline[[#This Row],[Total Commitment]] -> 0 | M117: Wholesale | O117: =tbl_HypoPipeline[[#This Row],[Total Commitment]]*tbl_HypoPipeline[[#This Row],[LTV %]] -> 0
B118: SLF VI UL | C118: Monroe | E118: Term Loan | F118: 44512 | G118: 750000 | H118: 750000 | J118: =tbl_HypoPipeline[[#This Row],[Net Senior Leverage]]*tbl_HypoPipeline[[#This Row],[Total Commitment]] -> 0 | M118: Wholesale | O118: =tbl_HypoPipeline[[#This Row],[Total Commitment]]*tbl_HypoPipeline[[#This Row],[LTV %]] -> 0
B119: SLF VI UL | C119: Monroe | E119: DDTL | F119: 44512 | G119: 192000 | H119: 0 | J119: =tbl_HypoPipeline[[#This Row],[Net Senior Leverage]]*tbl_HypoPipeline[[#This Row],[Total Commitment]] -> 0 | M119: Wholesale | O119: =tbl_HypoPipeline[[#This Row],[Total Commitment]]*tbl_HypoPipeline[[#This Row],[LTV %]] -> 0
B120: SLF VI UL | C120: EFC | D120: HFS | E120: Revolver | F120: 44515 | G120: 94000 | H120: 0 | J120: =tbl_HypoPipeline[[#This Row],[Net Senior Leverage]]*tbl_HypoPipeline[[#This Row],[Total Commitment]] -> 0 | M120: Automotive (2) | O120: =tbl_HypoPipeline[[#This Row],[Total Commitment]]*tbl_HypoPipeline[[#This Row],[LTV %]] -> 0
B121: SLF VI UL | C121: EFC | D121: HFS | E121: Term Loan | F121: 44515 | G121: 750000 | H121: 750000 | J121: =tbl_HypoPipeline[[#This Row],[Net Senior Leverage]]*tbl_HypoPipeline[[#This Row],[Total Commitment]] -> 0 | M121: Automotive (2) | O121: =tbl_HypoPipeline[[#This Row],[Total Commitment]]*tbl_HypoPipeline[[#This Row],[LTV %]] -> 0
B122: SLF VI UL | C122: EFC | D122: HFS | E122: DDTL | F122: 44515 | G122: 156000 | H122: 0 | J122: =tbl_HypoPipeline[[#This Row],[Net Senior Leverage]]*tbl_HypoPipeline[[#This Row],[Total Commitment]] -> 0 | M122: Automotive (2) | O122: =tbl_HypoPipeline[[#This Row],[Total Commitment]]*tbl_HypoPipeline[[#This Row],[LTV %]] -> 0
B123: SLF VI UL | C123: Tencarva | E123: Revolver | F123: 44519 | G123: 101000 | H123: 0 | J123: =tbl_HypoPipeline[[#This Row],[Net Senior Leverage]]*tbl_HypoPipeline[[#This Row],[Total Commitment]] -> 0 | M123: Consumer goods: Non-durable | O123: =tbl_HypoPipeline[[#This Row],[Total Commitment]]*tbl_HypoPipeline[[#This Row],[LTV %]] -> 0
B124: SLF VI UL | C124: Tencarva | E124: Term Loan | F124: 44519 | G124: 772000 | H124: 772000 | J124: =tbl_HypoPipeline[[#This Row],[Net Senior Leverage]]*tbl_HypoPipeline[[#This Row],[Total Commitment]] -> 0 | M124: Consumer goods: Non-durable | O124: =tbl_HypoPipeline[[#This Row],[Total Commitment]]*tbl_HypoPipeline[[#This Row],[LTV %]] -> 0
B125: SLF VI UL | C125: Tencarva | E125: Delayed Draw Term Loan | F125: 44519 | G125: 127000 | H125: 0 | J125: =tbl_HypoPipeline[[#This Row],[Net Senior Leverage]]*tbl_HypoPipeline[[#This Row],[Total Commitment]] -> 0 | M125: Consumer goods: Non-durable | O125: =tbl_HypoPipeline[[#This Row],[Total Commitment]]*tbl_HypoPipeline[[#This Row],[LTV %]] -> 0
B126: SLF VI UL | C126: ESS | E126: Revolver | F126: 44526 | G126: 134000 | H126: 0 | J126: =tbl_HypoPipeline[[#This Row],[Net Senior Leverage]]*tbl_HypoPipeline[[#This Row],[Total Commitment]] -> 0 | M126: Services: Business | O126: =tbl_HypoPipeline[[#This Row],[Total Commitment]]*tbl_HypoPipeline[[#This Row],[LTV %]] -> 0
B127: SLF VI UL | C127: ESS | E127: Term Loan | F127: 44526 | G127: 643000 | H127: 643000 | J127: =tbl_HypoPipeline[[#This Row],[Net Senior Leverage]]*tbl_HypoPipeline[[#This Row],[Total Commitment]] -> 0 | M127: Services: Business | O127: =tbl_HypoPipeline[[#This Row],[Total Commitment]]*tbl_HypoPipeline[[#This Row],[LTV %]] -> 0
B128: SLF VI UL | C128: ESS | E128: DDTL | F128: 44526 | G128: 223000 | H128: 0 | J128: =tbl_HypoPipeline[[#This Row],[Net Senior Leverage]]*tbl_HypoPipeline[[#This Row],[Total Commitment]] -> 0 | M128: Services: Business | O128: =tbl_HypoPipeline[[#This Row],[Total Commitment]]*tbl_HypoPipeline[[#This Row],[LTV %]] -> 0
B129: SLF VI UL | C129: Sunvair | E129: Revolver | F129: 44530 | G129: 83000 | H129: 0 | J129: =tbl_HypoPipeline[[#This Row],[Net Senior Leverage]]*tbl_HypoPipeline[[#This Row],[Total Commitment]] -> 0 | M129: Aerospace & Defense | O129: =tbl_HypoPipeline[[#This Row],[Total Commitment]]*tbl_HypoPipeline[[#This Row],[LTV %]] -> 0
B130: SLF VI UL | C130: Sunvair | E130: Term Loan | F130: 44530 | G130: 750000 | H130: 750000 | J130: =tbl_HypoPipeline[[#This Row],[Net Senior Leverage]]*tbl_HypoPipeline[[#This Row],[Total Commitment]] -> 0 | M130: Aerospace & Defense | O130: =tbl_HypoPipeline[[#This Row],[Total Commitment]]*tbl_HypoPipeline[[#This Row],[LTV %]] -> 0
B131: SLF VI UL | C131: Sunvair | E131: DDTL | F131: 44530 | G131: 167000 | H131: 0 | J131: =tbl_HypoPipeline[[#This Row],[Net Senior Leverage]]*tbl_HypoPipeline[[#This Row],[Total Commitment]] -> 0 | M131: Aerospace & Defense | O131: =tbl_HypoPipeline[[#This Row],[Total Commitment]]*tbl_HypoPipeline[[#This Row],[LTV %]] -> 0
B132: SLF VI UL | C132: Woodland Foods | E132: Revolver | F132: 44530 | G132: 83000 | H132: 0 | J132: =tbl_HypoPipeline[[#This Row],[Net Senior Leverage]]*tbl_HypoPipeline[[#This Row],[Total Commitment]] -> 0 | M132: Beverage, Food & Tobacco | O132: =tbl_HypoPipeline[[#This Row],[Total Commitment]]*tbl_HypoPipeline[[#This Row],[LTV %]] -> 0
B133: SLF VI UL | C133: Woodland Foods | E133: Term Loan | F133: 44530 | G133: 750000 | H133: 750000 | J133: =tbl_HypoPipeline[[#This Row],[Net Senior Leverage]]*tbl_HypoPipeline[[#This Row],[Total Commitment]] -> 0 | M133: Beverage, Food & Tobacco | O133: =tbl_HypoPipeline[[#This Row],[Total Commitment]]*tbl_HypoPipeline[[#This Row],[LTV %]] -> 0
B134: SLF VI UL | C134: Woodland Foods | E134: Delayed Draw Term Loan | F134: 44530 | G134: 167000 | H134: 0 | J134: =tbl_HypoPipeline[[#This Row],[Net Senior Leverage]]*tbl_HypoPipeline[[#This Row],[Total Commitment]] -> 0 | M134: Beverage, Food & Tobacco | O134: =tbl_HypoPipeline[[#This Row],[Total Commitment]]*tbl_HypoPipeline[[#This Row],[LTV %]] -> 0
B135: SLF VI UL | C135: Oracle | E135: Revolver | F135: 44530 | G135: 54000 | H135: 0 | J135: =tbl_HypoPipeline[[#This Row],[Net Senior Leverage]]*tbl_HypoPipeline[[#This Row],[Total Commitment]] -> 0 | M135: Services: Business | O135: =tbl_HypoPipeline[[#This Row],[Total Commitment]]*tbl_HypoPipeline[[#This Row],[LTV %]] -> 0
B136: SLF VI UL | C136: Oracle | E136: Term Loan | F136: 44530 | G136: 767000 | H136: 767000 | J136: =tbl_HypoPipeline[[#This Row],[Net Senior Leverage]]*tbl_HypoPipeline[[#This Row],[Total Commitment]] -> 0 | M136: Services: Business | O136: =tbl_HypoPipeline[[#This Row],[Total Commitment]]*tbl_HypoPipeline[[#This Row],[LTV %]] -> 0
B137: SLF VI UL | C137: Oracle | E137: DDTL | F137: 44530 | G137: 179000 | H137: 0 | J137: =tbl_HypoPipeline[[#This Row],[Net Senior Leverage]]*tbl_HypoPipeline[[#This Row],[Total Commitment]] -> 0 | M137: Services: Business | O137: =tbl_HypoPipeline[[#This Row],[Total Commitment]]*tbl_HypoPipeline[[#This Row],[LTV %]] -> 0
B138: SLF VI UL | C138: Donan | E138: Revolver | F138: 44530 | G138: 119000 | H138: 0 | J138: =tbl_HypoPipeline[[#This Row],[Net Senior Leverage]]*tbl_HypoPipeline[[#This Row],[Total Commitment]] -> 0 | M138: Services: Business | O138: =tbl_HypoPipeline[[#This Row],[Total Commitment]]*tbl_HypoPipeline[[#This Row],[LTV %]] -> 0
B139: SLF VI UL | C139: Donan | E139: Term Loan | F139: 44530 | G139: 881000 | H139: 881000 | J139: =tbl_HypoPipeline[[#This Row],[Net Senior Leverage]]*tbl_HypoPipeline[[#This Row],[Total Commitment]] -> 0 | M139: Services: Business | O139: =tbl_HypoPipeline[[#This Row],[Total Commitment]]*tbl_HypoPipeline[[#This Row],[LTV %]] -> 0
B140: SLF VI UL | C140: Molded Dimensions | E140: Revolver | G140: 94000 | H140: 0 | J140: =tbl_HypoPipeline[[#This Row],[Net Senior Leverage]]*tbl_HypoPipeline[[#This Row],[Total Commitment]] -> 0 | M140: Chemicals, Plastics & Rubber | O140: =tbl_HypoPipeline[[#This Row],[Total Commitment]]*tbl_HypoPipeline[[#This Row],[LTV %]] -> 0
B141: SLF VI UL | C141: Molded Dimensions | E141: Term Loan | G141: 750000 | H141: 750000 | J141: =tbl_HypoPipeline[[#This Row],[Net Senior Leverage]]*tbl_HypoPipeline[[#This Row],[Total Commitment]] -> 0 | M141: Chemicals, Plastics & Rubber | O141: =tbl_HypoPipeline[[#This Row],[Total Commitment]]*tbl_HypoPipeline[[#This Row],[LTV %]] -> 0
B142: SLF VI UL | C142: Molded Dimensions | E142: Delayed Draw Term Loan | G142: 156000 | H142: 0 | J142: =tbl_HypoPipeline[[#This Row],[Net Senior Leverage]]*tbl_HypoPipeline[[#This Row],[Total Commitment]] -> 0 | M142: Chemicals, Plastics & Rubber | O142: =tbl_HypoPipeline[[#This Row],[Total Commitment]]*tbl_HypoPipeline[[#This Row],[LTV %]] -> 0
B143: SLF VI UL | C143: Vivfy (Aakash) | E143: Revolver | G143: 75000 | H143: 0 | J143: =tbl_HypoPipeline[[#This Row],[Net Senior Leverage]]*tbl_HypoPipeline[[#This Row],[Total Commitment]] -> 0 | M143: Chemicals, Plastics & Rubber | O143: =tbl_HypoPipeline[[#This Row],[Total Commitment]]*tbl_HypoPipeline[[#This Row],[LTV %]] -> 0
B144: SLF VI UL | C144: Vivfy (Aakash) | E144: Term Loan | G144: 700000 | H144: 700000 | J144: =tbl_HypoPipeline[[#This Row],[Net Senior Leverage]]*tbl_HypoPipeline[[#This Row],[Total Commitment]] -> 0 | M144: Chemicals, Plastics & Rubber | O144: =tbl_HypoPipeline[[#This Row],[Total Commitment]]*tbl_HypoPipeline[[#This Row],[LTV %]] -> 0
B145: SLF VI UL | C145: Vivfy (Aakash) | E145: Delayed Draw Term Loan | G145: 225000 | H145: 0 | J145: =tbl_HypoPipeline[[#This Row],[Net Senior Leverage]]*tbl_HypoPipeline[[#This Row],[Total Commitment]] -> 0 | M145: Chemicals, Plastics & Rubber | O145: =tbl_HypoPipeline[[#This Row],[Total Commitment]]*tbl_HypoPipeline[[#This Row],[LTV %]] -> 0
J146: =tbl_HypoPipeline[[#This Row],[Net Senior Leverage]]*tbl_HypoPipeline[[#This Row],[Total Commitment]] -> 0 | O146: =tbl_HypoPipeline[[#This Row],[Total Commitment]]*tbl_HypoPipeline[[#This Row],[LTV %]] -> 0
J147: =tbl_HypoPipeline[[#This Row],[Net Senior Leverage]]*tbl_HypoPipeline[[#This Row],[Total Commitment]] -> 0 | O147: =tbl_HypoPipeline[[#This Row],[Total Commitment]]*tbl_HypoPipeline[[#This Row],[LTV %]] -> 0
J148: =tbl_HypoPipeline[[#This Row],[Net Senior Leverage]]*tbl_HypoPipeline[[#This Row],[Total Commitment]] -> 0 | O148: =tbl_HypoPipeline[[#This Row],[Total Commitment]]*tbl_HypoPipeline[[#This Row],[LTV %]] -> 0
J149: =tbl_HypoPipeline[[#This Row],[Net Senior Leverage]]*tbl_HypoPipeline[[#This Row],[Total Commitment]] -> 0 | O149: =tbl_HypoPipeline[[#This Row],[Total Commitment]]*tbl_HypoPipeline[[#This Row],[LTV %]] -> 0
J150: =tbl_HypoPipeline[[#This Row],[Net Senior Leverage]]*tbl_HypoPipeline[[#This Row],[Total Commitment]] -> 0 | O150: =tbl_HypoPipeline[[#This Row],[Total Commitment]]*tbl_HypoPipeline[[#This Row],[LTV %]] -> 0
J151: =tbl_HypoPipeline[[#This Row],[Net Senior Leverage]]*tbl_HypoPipeline[[#This Row],[Total Commitment]] -> 0 | O151: =tbl_HypoPipeline[[#This Row],[Total Commitment]]*tbl_HypoPipeline[[#This Row],[LTV %]] -> 0
J152: =tbl_HypoPipeline[[#This Row],[Net Senior Leverage]]*tbl_HypoPipeline[[#This Row],[Total Commitment]] -> 0 | O152: =tbl_HypoPipeline[[#This Row],[Total Commitment]]*tbl_HypoPipeline[[#This Row],[LTV %]] -> 0
J153: =tbl_HypoPipeline[[#This Row],[Net Senior Leverage]]*tbl_HypoPipeline[[#This Row],[Total Commitment]] -> 0 | O153: =tbl_HypoPipeline[[#This Row],[Total Commitment]]*tbl_HypoPipeline[[#This Row],[LTV %]] -> 0
J154: =tbl_HypoPipeline[[#This Row],[Net Senior Leverage]]*tbl_HypoPipeline[[#This Row],[Total Commitment]] -> 0 | O154: =tbl_HypoPipeline[[#This Row],[Total Commitment]]*tbl_HypoPipeline[[#This Row],[LTV %]] -> 0
J155: =tbl_HypoPipeline[[#This Row],[Net Senior Leverage]]*tbl_HypoPipeline[[#This Row],[Total Commitment]] -> 0 | O155: =tbl_HypoPipeline[[#This Row],[Total Commitment]]*tbl_HypoPipeline[[#This Row],[LTV %]] -> 0
J156: =tbl_HypoPipeline[[#This Row],[Net Senior Leverage]]*tbl_HypoPipeline[[#This Row],[Total Commitment]] -> 0 | O156: =tbl_HypoPipeline[[#This Row],[Total Commitment]]*tbl_HypoPipeline[[#This Row],[LTV %]] -> 0
J157: =tbl_HypoPipeline[[#This Row],[Net Senior Leverage]]*tbl_HypoPipeline[[#This Row],[Total Commitment]] -> 0 | O157: =tbl_HypoPipeline[[#This Row],[Total Commitment]]*tbl_HypoPipeline[[#This Row],[LTV %]] -> 0
J158: =tbl_HypoPipeline[[#This Row],[Net Senior Leverage]]*tbl_HypoPipeline[[#This Row],[Total Commitment]] -> 0 | O158: =tbl_HypoPipeline[[#This Row],[Total Commitment]]*tbl_HypoPipeline[[#This Row],[LTV %]] -> 0

Sheet HFS
A1: Held for Sale | D1: Excludes amounts for AIMCo and/or Third Parties.
A2: Updated: | B2: Monday, July 26, 2021 4:33 PM
A4: Fund | B4: Facility ID | C4: Deal Name | D4: Tranche | E4: Total Commitment | F4: Principal Balance | G4: Net Senior Leverage | H4: Sponsor | I4: Moody's Industry
G5: =IFERROR(MAX( --INDEX(tbl_NSL[#All], SUMPRODUCT( 1* (tbl_HFS[[#This Row],[Fund]] & TEXT( tbl_HFS[[#This Row],[Facility ID]],"0000000000") = tbl_NSL[Investor] & TEXT(tbl_NSL[Facility ID],"0000000000")), ROW(tbl_NSL[Investor]) ), MATCH(tbl_ExistingData[[#Headers],[Net Senior Leverage]], tbl_NSL[#Headers],0)) ),0) -> 0

Sheet Active Portfolio
A1: Active Portfolio
A2: Updated: | B2: 2020-02-28 | G2: Blue fields are to be manually updated. Changes are preserved locally in a background worksheet.
A4: Fund | B4: Facility ID | C4: Deal Name | D4: Tranche | E4: Closed Date | F4: Total Commitment | G4: Principal Balance | H4: Net Senior Leverage | I4: Sponsor | J4: Moodys Industry | K4: DIP Loan (Y) | L4: Approved by Swiss (Y) | M4: Open Market Purchase (Y) | N4: Paid Off Date
H5: =IFERROR(INDEX(tbl_NSL[], MATCH(tbl_ExistingData[[#This Row],[Fund]] & tbl_ExistingData[[#This Row],[Facility ID]], tbl_NSL[Investor] & tbl_NSL[Facility ID],0), MATCH("Net Senior Leverage", tbl_NSL[#Headers],0)),"") -> 0 | K5: =IFERROR(INDEX(tbl_NSL[], MATCH(tbl_ExistingData[[#This Row],[Fund]] & tbl_ExistingData[[#This Row],[Facility ID]], tbl_NSL[Investor] & tbl_NSL[Facility ID],0), MATCH("DIP Loan", tbl_NSL[#Headers],0)),"") -> 0 | L5: =IFERROR(INDEX(tbl_NSL[], MATCH(tbl_ExistingData[[#This Row],[Fund]] & tbl_ExistingData[[#This Row],[Facility ID]], tbl_NSL[Investor] & tbl_NSL[Facility ID],0), MATCH("Approved by Swiss", tbl_NSL[#Headers],0)),"") -> 0 | M5: =IFERROR(INDEX(tbl_NSL[], MATCH(tbl_ExistingData[[#This Row],[Fund]] & tbl_ExistingData[[#This Row],[Facility ID]], tbl_NSL[Investor] & tbl_NSL[Facility ID],0), MATCH("Open Market Purchase", tbl_NSL[#Headers],0)),"") -> 0

Sheet Paid Off
A1: Fund | B1: Facility ID | C1: Deal Name | D1: Tranche | E1: Closed Date | F1: Total Commitment | G1: Principal Balance | H1: Net Senior Leverage | I1: Sponsor | J1: Moodys Industry | K1: Open Market Purchase (Y/N) | L1: Paid Off Date

Sheet Tests (VG)
A1: Tests: | B1: SMA-VG
A3: SMA Commitment | B3: =VLOOKUP(Fund,tbl_Funds[[Fund]:[Principal Balance]],2,0) -> 606250000
A5: Max Commitment
A7: Bucket
A8: Commitment | B8: =Commitment -> 606250000
A9: Protective Advances Holdback | B9: =_xlfn.XLOOKUP(Fund,tbl_Funds[Fund],tbl_Funds[Protective Advances]) -> 5000000
A10: Bucket Subtotal | B10: =B8-B9 -> 601250000
A11: Available | B11: =B10-B15 -> 414750000
A13: Existing Portfolio | B13: =SUMIFS(tbl_ExistingData[Total Commitment],tbl_ExistingData[Fund],Fund,tbl_ExistingData[Paid Off Date],"=") -> 0
A14: Hypo Pipeline | B14: =SUMIFS(tbl_HypoPipeline[Total Commitment],tbl_HypoPipeline[Fund],Fund,tbl_HypoPipeline[Exclude?],"") -> 186500000
A15: Final Test Total | B15: =B14+B13 -> 186500000
A17: Protective Advances
A18: Portfolio | B18: =SUMIF(tbl_ProtectiveAdvances[SMA],Fund,tbl_ProtectiveAdvances[Commitment Amount]) -> 0
A19: Hypo | B19: =SUMIFS(tbl_HypoPipeline[Total Commitment],tbl_HypoPipeline[Fund],Fund,tbl_HypoPipeline[Protective Advances],"Y") -> 0
A21: Unfunded Commitment
A22: The sum of Portfolio and Pipeline values (Revolver Commitments + DDTL Commitments - DDTL Principal) must be < 15% of total SMA Commitment.
A24: Bucket | B24: =Commitment*0.15 -> 90937500
A25: Available | B25: =B24-B39 -> 39861022
A27: Existing Portfolio
A28: Total Revolver Commitment in Program | B28: =SUMIFS(tbl_ExistingData[Total Commitment],tbl_ExistingData[Tranche],"*evolv*",tbl_ExistingData[Fund],Fund) -> 0
A29: Total DDTL Commitment in Program | B29: =SUM(SUMIFS(tbl_ExistingData[Total Commitment],tbl_ExistingData[Tranche],{"*Delayed Draw*","*DDTL*"},tbl_ExistingData[Fund],Fund,tbl_ExistingData[Paid Off Date],"=")) -> 0
A30: Total DDTL Principal in Program | B30: =SUM(SUMIFS(tbl_ExistingData[Principal Balance],tbl_ExistingData[Tranche],{"*Delayed Draw*","*DDTL*"},tbl_ExistingData[Fund],Fund,tbl_ExistingData[Paid Off Date],"=")) -> 0
A31: Existing Portfolio Subtotal | B31: =B28+B29-B30 -> 0
A33: Hypo Pipeline
A34: Total Revolver Commitment in Pipeline | B34: =SUMIFS(tbl_HypoPipeline[Total Commitment], tbl_HypoPipeline[Tranche], "*evolv*", tbl_HypoPipeline[Fund], Fund,tbl_HypoPipeline[Exclude?],"") -> 13334478
A35: Total DDTL Commitment in Pipeline | B35: =SUM(SUMIFS(tbl_HypoPipeline[Total Commitment],tbl_HypoPipeline[Tranche],{"*Delayed Draw*","*DDTL*"},tbl_HypoPipeline[Fund],Fund,tbl_HypoPipeline[Exclude?],"")) -> 38038520.27
A36: Total DDTL Principal in Pipeline | B36: =SUM(SUMIFS(tbl_HypoPipeline[Principal Balance],tbl_HypoPipeline[Tranche],{"*Delayed Draw*","*DDTL*"},tbl_HypoPipeline[Fund],Fund,tbl_HypoPipeline[Exclude?],"")) -> 296520.27
A37: Hypo Pipeline Subtotal | B37: =B34+B35-B36 -> 51076478
A39: Final Test Total | B39: =B37+B31 -> 51076478
A41: DIP Loans
A42: DIP Loans must be < 10% of total SMA Commitment
A44: Bucket | B44: =Commitment*0.1 -> 60625000
A45: Available | B45: =B44-B49 -> 60625000
A47: Existing Portfolio | B47: =SUMIFS(tbl_ExistingData[Total Commitment], tbl_ExistingData[DIP Loan (Y)], "Y", tbl_ExistingData[Fund], Fund,tbl_ExistingData[Paid Off Date], "=") -> 0 | D47: =IF(COUNTIFS(tbl_ExistingData[Fund],Fund,tbl_ExistingData[Net Senior Leverage],0)>0,"There exist [" & COUNTIFS(tbl_ExistingData[Fund],Fund,tbl_ExistingData[Net Senior Leverage],0) & "] " & Fund & " deals in the Active Portfolio with a Net Senior Leverage of 0.","") -> 
A48: Hypo Pipeline | B48: =SUMIFS(tbl_HypoPipeline[Total Commitment], tbl_HypoPipeline[DIP Loan (Y)], "Y", tbl_HypoPipeline[Fund], Fund,tbl_HypoPipeline[Exclude?],"") -> 0
A49: Final Test Total | B49: =B48+B47 -> 0
A51: Weighted Senior Leverage 4.5x
A52: (Original Net Senior Leverage < 4.5)
A54: Total Original Commitments This Year | B54: =SUMIF(tbl_OC_VG[Date Closed], ">="&DATE(YEAR(TODAY()),1,1),tbl_OC_VG[Commitment Amount]) -> 228363854.9
A55: Total Hypo Commitment This Year: | B55: =SUMIFS(tbl_HypoPipeline[Total Commitment],tbl_HypoPipeline[Target Date], ">="&DATE(YEAR(TODAY()),1,1),tbl_HypoPipeline[Fund], Fund,tbl_HypoPipeline[Exclude?],"") -> 158000000
A57: Existing Portfolio | B57: =SUMPRODUCT(tbl_OC_VG[Net Senior Leverage],tbl_OC_VG[Weighted Commitment]) -> 4.261070865 | D57: =IF(COUNTIFS(tbl_ExistingData[Fund],Fund,tbl_ExistingData[Net Senior Leverage],0)>0,"There exist [" & COUNTIFS(tbl_ExistingData[Fund],Fund,tbl_ExistingData[Net Senior Leverage],0) & "] " & Fund & " deals in the Active Portfolio with a Net Senior Leverage of 0.","") -> 
A58: Hypo Pipeline | B58: =SUMPRODUCT(--(tbl_HypoPipeline[Fund]=Fund),tbl_HypoPipeline[Net Senior Leverage],tbl_HypoPipeline[Total Commitment])/SUMIF(tbl_HypoPipeline[Fund],Fund,tbl_HypoPipeline[Total Commitment]) -> 4.717560322
A59: Final Test Total | B59: =AVERAGE(B57,B58) -> 4.489315593
A61: Weighted LTV 50%
A62: (Original LTV > 50%)
A64: Total Original Commitments This Year | B64: =SUMIF(tbl_OC_VG[Date Closed], ">="&DATE(YEAR(TODAY()),1,1),tbl_OC_VG[Commitment Amount]) -> 228363854.9
A65: Total Hypo Commitment This Year: | B65: =SUMIFS(tbl_HypoPipeline[Total Commitment],tbl_HypoPipeline[Target Date], ">="&DATE(YEAR(TODAY()),1,1),tbl_HypoPipeline[Fund], Fund,tbl_HypoPipeline[Exclude?],"") -> 158000000
A67: Existing Portfolio | B67: =SUMPRODUCT(tbl_OC_VG[LTV],tbl_OC_VG[Weighted Commitment]) -> 0.4094657492
A68: Hypo Pipeline | B68: =SUMPRODUCT(--(tbl_HypoPipeline[Fund]=Fund),tbl_HypoPipeline[LTV %],tbl_HypoPipeline[Total Commitment])/SUMIF(tbl_HypoPipeline[Fund],Fund,tbl_HypoPipeline[Total Commitment]) -> 0.4937050938
A69: Final Test Total | B69: =AVERAGE(B67,B68) -> 0.4515854215
A71: Dividend Recap
A72: Transactions where any majority owner of the borrower receives a cash distribution and this cash distribution together with any prior cash distribution to the same majority owner amounts to more than 50% of that majority owner's cumulative cash contribution to such transaction cannot exceed 10% of total capital deployed in the calendar year
A74: Bucket | B74: =0.1*SUM(B64,B65) -> 38636385.49
A75: Available | B75: =B74-B79 -> 7152093.73
A77: Existing Portfolio | B77: =SUMIFS(tbl_OC_VG[Commitment Amount], tbl_OC_VG[Dividend Recap], "Y",tbl_OC_VG[Date Closed], ">="&DATE(YEAR(TODAY()),1,1)) -> 31484291.76 | D77: =IF(COUNTIFS(tbl_ExistingData[Fund],Fund,tbl_ExistingData[Net Senior Leverage],0)>0,"There exist [" & COUNTIFS(tbl_ExistingData[Fund],Fund,tbl_ExistingData[Net Senior Leverage],0) & "] " & Fund & " deals in the Active Portfolio with a Net Senior Leverage of 0.","") -> 
A78: Hypo Pipeline | B78: =SUMIFS(tbl_HypoPipeline[Total Commitment], tbl_HypoPipeline[Dividend Recap (Y)], "Y", tbl_HypoPipeline[Target Date], ">="&DATE(YEAR(TODAY()),1,1),tbl_HypoPipeline[Fund], Fund,tbl_HypoPipeline[Exclude?],"") -> 0
A79: Final Test Total | B79: =B78+B77 -> 31484291.76
A81: Industry Tests
A82: Maximum aggregate exposure of 25%, 20% and 15% of SMA Commitment for largest three industries.
A84: Largest Bucket | B84: =Commitment*0.25 -> 151562500 | D84: Moody's Industry | E84: Existing Portfolio | F84: Pipeline | G84: Existing + Pipeline
A85: Available | B85: =B84-B90 -> 106562500 | D85: Aerospace & Defense | E85: =SUMIFS(tbl_ExistingData[Total Commitment], tbl_ExistingData[Moodys Industry], tbl_IndustryVG[[#This Row],[Moody''s Industry]] & "*", tbl_ExistingData[Fund], Fund, tbl_ExistingData[Paid Off Date], "=") -> 0 | F85: =SUMIFS(tbl_HypoPipeline[Total Commitment], tbl_HypoPipeline[Moody''s Industry], tbl_IndustryVG[[#This Row],[Moody''s Industry]] & "*", tbl_HypoPipeline[Fund], Fund,tbl_HypoPipeline[Exclude?],"") + SUMIFS(tbl_HFS[Total Commitment],tbl_HFS[Moody''s Industry],tbl_IndustryVG[[#This Row],[Moody''s Industry]],tbl_HFS[Fund],Fund) -> 30000000 | G85: =tbl_IndustryVG[[#This Row],[Existing Portfolio]]+tbl_IndustryVG[[#This Row],[Pipeline]] -> 30000000
D86: Automotive | E86: =SUMIFS(tbl_ExistingData[Total Commitment], tbl_ExistingData[Moodys Industry], tbl_IndustryVG[[#This Row],[Moody''s Industry]] & "*", tbl_ExistingData[Fund], Fund, tbl_ExistingData[Paid Off Date], "=") -> 0 | F86: =SUMIFS(tbl_HypoPipeline[Total Commitment], tbl_HypoPipeline[Moody''s Industry], tbl_IndustryVG[[#This Row],[Moody''s Industry]] & "*", tbl_HypoPipeline[Fund], Fund,tbl_HypoPipeline[Exclude?],"") + SUMIFS(tbl_HFS[Total Commitment],tbl_HFS[Moody''s Industry],tbl_IndustryVG[[#This Row],[Moody''s Industry]],tbl_HFS[Fund],Fund) -> 20000000 | G86: =tbl_IndustryVG[[#This Row],[Existing Portfolio]]+tbl_IndustryVG[[#This Row],[Pipeline]] -> 20000000
A87: =INDEX(tbl_IndustryVG[],MATCH(B90,tbl_IndustryVG[Existing + Pipeline],0),1) -> Healthcare & Pharmaceuticals | D87: Banking, Finance, Insurance & Real Estate | E87: =SUMIFS(tbl_ExistingData[Total Commitment], tbl_ExistingData[Moodys Industry], tbl_IndustryVG[[#This Row],[Moody''s Industry]] & "*", tbl_ExistingData[Fund], Fund, tbl_ExistingData[Paid Off Date], "=") -> 0 | F87: =SUMIFS(tbl_HypoPipeline[Total Commitment], tbl_HypoPipeline[Moody''s Industry], tbl_IndustryVG[[#This Row],[Moody''s Industry]] & "*", tbl_HypoPipeline[Fund], Fund,tbl_HypoPipeline[Exclude?],"") + SUMIFS(tbl_HFS[Total Commitment],tbl_HFS[Moody''s Industry],tbl_IndustryVG[[#This Row],[Moody''s Industry]],tbl_HFS[Fund],Fund) -> 0 | G87: =tbl_IndustryVG[[#This Row],[Existing Portfolio]]+tbl_IndustryVG[[#This Row],[Pipeline]] -> 0
A88: Existing Portfolio Component | B88: =INDEX(tbl_IndustryVG[],MATCH(B90,tbl_IndustryVG[Existing + Pipeline],0),2) -> 0 | D88: Beverage, Food & Tobacco | E88: =SUMIFS(tbl_ExistingData[Total Commitment], tbl_ExistingData[Moodys Industry], tbl_IndustryVG[[#This Row],[Moody''s Industry]] & "*", tbl_ExistingData[Fund], Fund, tbl_ExistingData[Paid Off Date], "=") -> 0 | F88: =SUMIFS(tbl_HypoPipeline[Total Commitment], tbl_HypoPipeline[Moody''s Industry], tbl_IndustryVG[[#This Row],[Moody''s Industry]] & "*", tbl_HypoPipeline[Fund], Fund,tbl_HypoPipeline[Exclude?],"") + SUMIFS(tbl_HFS[Total Commitment],tbl_HFS[Moody''s Industry],tbl_IndustryVG[[#This Row],[Moody''s Industry]],tbl_HFS[Fund],Fund) -> 0 | G88: =tbl_IndustryVG[[#This Row],[Existing Portfolio]]+tbl_IndustryVG[[#This Row],[Pipeline]] -> 0
A89: Hypo Pipeline Component | B89: =INDEX(tbl_IndustryVG[],MATCH(B90,tbl_IndustryVG[Existing + Pipeline],0),3) -> 45000000 | D89: Capital Equipment | E89: =SUMIFS(tbl_ExistingData[Total Commitment], tbl_ExistingData[Moodys Industry], tbl_IndustryVG[[#This Row],[Moody''s Industry]] & "*", tbl_ExistingData[Fund], Fund, tbl_ExistingData[Paid Off Date], "=") -> 0 | F89: =SUMIFS(tbl_HypoPipeline[Total Commitment], tbl_HypoPipeline[Moody''s Industry], tbl_IndustryVG[[#This Row],[Moody''s Industry]] & "*", tbl_HypoPipeline[Fund], Fund,tbl_HypoPipeline[Exclude?],"") + SUMIFS(tbl_HFS[Total Commitment],tbl_HFS[Moody''s Industry],tbl_IndustryVG[[#This Row],[Moody''s Industry]],tbl_HFS[Fund],Fund) -> 0 | G89: =tbl_IndustryVG[[#This Row],[Existing Portfolio]]+tbl_IndustryVG[[#This Row],[Pipeline]] -> 0
A90: Aggregate Exposure | B90: =LARGE(tbl_IndustryVG[Existing + Pipeline],1) -> 45000000 | D90: Chemicals, Plastics & Rubber | E90: =SUMIFS(tbl_ExistingData[Total Commitment], tbl_ExistingData[Moodys Industry], tbl_IndustryVG[[#This Row],[Moody''s Industry]] & "*", tbl_ExistingData[Fund], Fund, tbl_ExistingData[Paid Off Date], "=") -> 0 | F90: =SUMIFS(tbl_HypoPipeline[Total Commitment], tbl_HypoPipeline[Moody''s Industry], tbl_IndustryVG[[#This Row],[Moody''s Industry]] & "*", tbl_HypoPipeline[Fund], Fund,tbl_HypoPipeline[Exclude?],"") + SUMIFS(tbl_HFS[Total Commitment],tbl_HFS[Moody''s Industry],tbl_IndustryVG[[#This Row],[Moody''s Industry]],tbl_HFS[Fund],Fund) -> 38500000 | G90: =tbl_IndustryVG[[#This Row],[Existing Portfolio]]+tbl_IndustryVG[[#This Row],[Pipeline]] -> 38500000
D91: Construction & Building | E91: =SUMIFS(tbl_ExistingData[Total Commitment], tbl_ExistingData[Moodys Industry], tbl_IndustryVG[[#This Row],[Moody''s Industry]] & "*", tbl_ExistingData[Fund], Fund, tbl_ExistingData[Paid Off Date], "=") -> 0 | F91: =SUMIFS(tbl_HypoPipeline[Total Commitment], tbl_HypoPipeline[Moody''s Industry], tbl_IndustryVG[[#This Row],[Moody''s Industry]] & "*", tbl_HypoPipeline[Fund], Fund,tbl_HypoPipeline[Exclude?],"") + SUMIFS(tbl_HFS[Total Commitment],tbl_HFS[Moody''s Industry],tbl_IndustryVG[[#This Row],[Moody''s Industry]],tbl_HFS[Fund],Fund) -> 0 | G91: =tbl_IndustryVG[[#This Row],[Existing Portfolio]]+tbl_IndustryVG[[#This Row],[Pipeline]] -> 0
D92: Consumer goods: Durable | E92: =SUMIFS(tbl_ExistingData[Total Commitment], tbl_ExistingData[Moodys Industry], tbl_IndustryVG[[#This Row],[Moody''s Industry]] & "*", tbl_ExistingData[Fund], Fund, tbl_ExistingData[Paid Off Date], "=") -> 0 | F92: =SUMIFS(tbl_HypoPipeline[Total Commitment], tbl_HypoPipeline[Moody''s Industry], tbl_IndustryVG[[#This Row],[Moody''s Industry]] & "*", tbl_HypoPipeline[Fund], Fund,tbl_HypoPipeline[Exclude?],"") + SUMIFS(tbl_HFS[Total Commitment],tbl_HFS[Moody''s Industry],tbl_IndustryVG[[#This Row],[Moody''s Industry]],tbl_HFS[Fund],Fund) -> 5000000 | G92: =tbl_IndustryVG[[#This Row],[Existing Portfolio]]+tbl_IndustryVG[[#This Row],[Pipeline]] -> 5000000
A93: 2nd Largest Bucket | B93: =Commitment*0.2 -> 121250000 | D93: Consumer goods: Non-durable | E93: =SUMIFS(tbl_ExistingData[Total Commitment], tbl_ExistingData[Moodys Industry], tbl_IndustryVG[[#This Row],[Moody''s Industry]] & "*", tbl_ExistingData[Fund], Fund, tbl_ExistingData[Paid Off Date], "=") -> 0 | F93: =SUMIFS(tbl_HypoPipeline[Total Commitment], tbl_HypoPipeline[Moody''s Industry], tbl_IndustryVG[[#This Row],[Moody''s Industry]] & "*", tbl_HypoPipeline[Fund], Fund,tbl_HypoPipeline[Exclude?],"") + SUMIFS(tbl_HFS[Total Commitment],tbl_HFS[Moody''s Industry],tbl_IndustryVG[[#This Row],[Moody''s Industry]],tbl_HFS[Fund],Fund) -> 10000000 | G93: =tbl_IndustryVG[[#This Row],[Existing Portfolio]]+tbl_IndustryVG[[#This Row],[Pipeline]] -> 10000000
A94: Available | B94: =B93-B99 -> 82750000 | D94: Containers, Packaging & Glass | E94: =SUMIFS(tbl_ExistingData[Total Commitment], tbl_ExistingData[Moodys Industry], tbl_IndustryVG[[#This Row],[Moody''s Industry]] & "*", tbl_ExistingData[Fund], Fund, tbl_ExistingData[Paid Off Date], "=") -> 0 | F94: =SUMIFS(tbl_HypoPipeline[Total Commitment], tbl_HypoPipeline[Moody''s Industry], tbl_IndustryVG[[#This Row],[Moody''s Industry]] & "*", tbl_HypoPipeline[Fund], Fund,tbl_HypoPipeline[Exclude?],"") + SUMIFS(tbl_HFS[Total Commitment],tbl_HFS[Moody''s Industry],tbl_IndustryVG[[#This Row],[Moody''s Industry]],tbl_HFS[Fund],Fund) -> 4000000 | G94: =tbl_IndustryVG[[#This Row],[Existing Portfolio]]+tbl_IndustryVG[[#This Row],[Pipeline]] -> 4000000
D95: Energy: Electricity | E95: =SUMIFS(tbl_ExistingData[Total Commitment], tbl_ExistingData[Moodys Industry], tbl_IndustryVG[[#This Row],[Moody''s Industry]] & "*", tbl_ExistingData[Fund], Fund, tbl_ExistingData[Paid Off Date], "=") -> 0 | F95: =SUMIFS(tbl_HypoPipeline[Total Commitment], tbl_HypoPipeline[Moody''s Industry], tbl_IndustryVG[[#This Row],[Moody''s Industry]] & "*", tbl_HypoPipeline[Fund], Fund,tbl_HypoPipeline[Exclude?],"") + SUMIFS(tbl_HFS[Total Commitment],tbl_HFS[Moody''s Industry],tbl_IndustryVG[[#This Row],[Moody''s Industry]],tbl_HFS[Fund],Fund) -> 0 | G95: =tbl_IndustryVG[[#This Row],[Existing Portfolio]]+tbl_IndustryVG[[#This Row],[Pipeline]] -> 0
A96: =INDEX(tbl_IndustryVG[],MATCH(B99,tbl_IndustryVG[Existing + Pipeline],0),1) -> Chemicals, Plastics & Rubber | D96: Energy: Oil & Gas | E96: =SUMIFS(tbl_ExistingData[Total Commitment], tbl_ExistingData[Moodys Industry], tbl_IndustryVG[[#This Row],[Moody''s Industry]] & "*", tbl_ExistingData[Fund], Fund, tbl_ExistingData[Paid Off Date], "=") -> 0 | F96: =SUMIFS(tbl_HypoPipeline[Total Commitment], tbl_HypoPipeline[Moody''s Industry], tbl_IndustryVG[[#This Row],[Moody''s Industry]] & "*", tbl_HypoPipeline[Fund], Fund,tbl_HypoPipeline[Exclude?],"") + SUMIFS(tbl_HFS[Total Commitment],tbl_HFS[Moody''s Industry],tbl_IndustryVG[[#This Row],[Moody''s Industry]],tbl_HFS[Fund],Fund) -> 0 | G96: =tbl_IndustryVG[[#This Row],[Existing Portfolio]]+tbl_IndustryVG[[#This Row],[Pipeline]] -> 0
A97: Existing Portfolio | B97: =INDEX(tbl_IndustryVG[],MATCH(B99,tbl_IndustryVG[Existing + Pipeline],0),2) -> 0 | D97: Environmental Industries | E97: =SUMIFS(tbl_ExistingData[Total Commitment], tbl_ExistingData[Moodys Industry], tbl_IndustryVG[[#This Row],[Moody''s Industry]] & "*", tbl_ExistingData[Fund], Fund, tbl_ExistingData[Paid Off Date], "=") -> 0 | F97: =SUMIFS(tbl_HypoPipeline[Total Commitment], tbl_HypoPipeline[Moody''s Industry], tbl_IndustryVG[[#This Row],[Moody''s Industry]] & "*", tbl_HypoPipeline[Fund], Fund,tbl_HypoPipeline[Exclude?],"") + SUMIFS(tbl_HFS[Total Commitment],tbl_HFS[Moody''s Industry],tbl_IndustryVG[[#This Row],[Moody''s Industry]],tbl_HFS[Fund],Fund) -> 0 | G97: =tbl_IndustryVG[[#This Row],[Existing Portfolio]]+tbl_IndustryVG[[#This Row],[Pipeline]] -> 0
A98: Hypo Pipeline | B98: =INDEX(tbl_IndustryVG[],MATCH(B99,tbl_IndustryVG[Existing + Pipeline],0),3) -> 38500000 | D98: Forest Products & Paper | E98: =SUMIFS(tbl_ExistingData[Total Commitment], tbl_ExistingData[Moodys Industry], tbl_IndustryVG[[#This Row],[Moody''s Industry]] & "*", tbl_ExistingData[Fund], Fund, tbl_ExistingData[Paid Off Date], "=") -> 0 | F98: =SUMIFS(tbl_HypoPipeline[Total Commitment], tbl_HypoPipeline[Moody''s Industry], tbl_IndustryVG[[#This Row],[Moody''s Industry]] & "*", tbl_HypoPipeline[Fund], Fund,tbl_HypoPipeline[Exclude?],"") + SUMIFS(tbl_HFS[Total Commitment],tbl_HFS[Moody''s Industry],tbl_IndustryVG[[#This Row],[Moody''s Industry]],tbl_HFS[Fund],Fund) -> 0 | G98: =tbl_IndustryVG[[#This Row],[Existing Portfolio]]+tbl_IndustryVG[[#This Row],[Pipeline]] -> 0
A99: Aggregate Exposure | B99: =LARGE(tbl_IndustryVG[Existing + Pipeline],2) -> 38500000 | D99: Healthcare & Pharmaceuticals | E99: =SUMIFS(tbl_ExistingData[Total Commitment], tbl_ExistingData[Moodys Industry], tbl_IndustryVG[[#This Row],[Moody''s Industry]] & "*", tbl_ExistingData[Fund], Fund, tbl_ExistingData[Paid Off Date], "=") -> 0 | F99: =SUMIFS(tbl_HypoPipeline[Total Commitment], tbl_HypoPipeline[Moody''s Industry], tbl_IndustryVG[[#This Row],[Moody''s Industry]] & "*", tbl_HypoPipeline[Fund], Fund,tbl_HypoPipeline[Exclude?],"") + SUMIFS(tbl_HFS[Total Commitment],tbl_HFS[Moody''s Industry],tbl_IndustryVG[[#This Row],[Moody''s Industry]],tbl_HFS[Fund],Fund) -> 45000000 | G99: =tbl_IndustryVG[[#This Row],[Existing Portfolio]]+tbl_IndustryVG[[#This Row],[Pipeline]] -> 45000000
D100: High Tech Industries | E100: =SUMIFS(tbl_ExistingData[Total Commitment], tbl_ExistingData[Moodys Industry], tbl_IndustryVG[[#This Row],[Moody''s Industry]] & "*", tbl_ExistingData[Fund], Fund, tbl_ExistingData[Paid Off Date], "=") -> 0 | F100: =SUMIFS(tbl_HypoPipeline[Total Commitment], tbl_HypoPipeline[Moody''s Industry], tbl_IndustryVG[[#This Row],[Moody''s Industry]] & "*", tbl_HypoPipeline[Fund], Fund,tbl_HypoPipeline[Exclude?],"") + SUMIFS(tbl_HFS[Total Commitment],tbl_HFS[Moody''s Industry],tbl_IndustryVG[[#This Row],[Moody''s Industry]],tbl_HFS[Fund],Fund) -> 1000000 | G100: =tbl_IndustryVG[[#This Row],[Existing Portfolio]]+tbl_IndustryVG[[#This Row],[Pipeline]] -> 1000000
D101: Hotel, Gaming & Leisure | E101: =SUMIFS(tbl_ExistingData[Total Commitment], tbl_ExistingData[Moodys Industry], tbl_IndustryVG[[#This Row],[Moody''s Industry]] & "*", tbl_ExistingData[Fund], Fund, tbl_ExistingData[Paid Off Date], "=") -> 0 | F101: =SUMIFS(tbl_HypoPipeline[Total Commitment], tbl_HypoPipeline[Moody''s Industry], tbl_IndustryVG[[#This Row],[Moody''s Industry]] & "*", tbl_HypoPipeline[Fund], Fund,tbl_HypoPipeline[Exclude?],"") + SUMIFS(tbl_HFS[Total Commitment],tbl_HFS[Moody''s Industry],tbl_IndustryVG[[#This Row],[Moody''s Industry]],tbl_HFS[Fund],Fund) -> 0 | G101: =tbl_IndustryVG[[#This Row],[Existing Portfolio]]+tbl_IndustryVG[[#This Row],[Pipeline]] -> 0
A102: Any Other Bucket | B102: =Commitment*0.15 -> 90937500 | D102: Media: Advertising, Printing & Publishing | E102: =SUMIFS(tbl_ExistingData[Total Commitment], tbl_ExistingData[Moodys Industry], tbl_IndustryVG[[#This Row],[Moody''s Industry]] & "*", tbl_ExistingData[Fund], Fund, tbl_ExistingData[Paid Off Date], "=") -> 0 | F102: =SUMIFS(tbl_HypoPipeline[Total Commitment], tbl_HypoPipeline[Moody''s Industry], tbl_IndustryVG[[#This Row],[Moody''s Industry]] & "*", tbl_HypoPipeline[Fund], Fund,tbl_HypoPipeline[Exclude?],"") + SUMIFS(tbl_HFS[Total Commitment],tbl_HFS[Moody''s Industry],tbl_IndustryVG[[#This Row],[Moody''s Industry]],tbl_HFS[Fund],Fund) -> 0 | G102: =tbl_IndustryVG[[#This Row],[Existing Portfolio]]+tbl_IndustryVG[[#This Row],[Pipeline]] -> 0
A103: Available | B103: =B102-B108 -> 60937500 | D103: Media: Broadcasting & Subscription | E103: =SUMIFS(tbl_ExistingData[Total Commitment], tbl_ExistingData[Moodys Industry], tbl_IndustryVG[[#This Row],[Moody''s Industry]] & "*", tbl_ExistingData[Fund], Fund, tbl_ExistingData[Paid Off Date], "=") -> 0 | F103: =SUMIFS(tbl_HypoPipeline[Total Commitment], tbl_HypoPipeline[Moody''s Industry], tbl_IndustryVG[[#This Row],[Moody''s Industry]] & "*", tbl_HypoPipeline[Fund], Fund,tbl_HypoPipeline[Exclude?],"") + SUMIFS(tbl_HFS[Total Commitment],tbl_HFS[Moody''s Industry],tbl_IndustryVG[[#This Row],[Moody''s Industry]],tbl_HFS[Fund],Fund) -> 0 | G103: =tbl_IndustryVG[[#This Row],[Existing Portfolio]]+tbl_IndustryVG[[#This Row],[Pipeline]] -> 0
D104: Media: Diversified & Production | E104: =SUMIFS(tbl_ExistingData[Total Commitment], tbl_ExistingData[Moodys Industry], tbl_IndustryVG[[#This Row],[Moody''s Industry]] & "*", tbl_ExistingData[Fund], Fund, tbl_ExistingData[Paid Off Date], "=") -> 0 | F104: =SUMIFS(tbl_HypoPipeline[Total Commitment], tbl_HypoPipeline[Moody''s Industry], tbl_IndustryVG[[#This Row],[Moody''s Industry]] & "*", tbl_HypoPipeline[Fund], Fund,tbl_HypoPipeline[Exclude?],"") + SUMIFS(tbl_HFS[Total Commitment],tbl_HFS[Moody''s Industry],tbl_IndustryVG[[#This Row],[Moody''s Industry]],tbl_HFS[Fund],Fund) -> 0 | G104: =tbl_IndustryVG[[#This Row],[Existing Portfolio]]+tbl_IndustryVG[[#This Row],[Pipeline]] -> 0
A105: =INDEX(tbl_IndustryVG[],MATCH(B108,tbl_IndustryVG[Existing + Pipeline],0),1) -> Aerospace & Defense | D105: Metals & Mining | E105: =SUMIFS(tbl_ExistingData[Total Commitment], tbl_ExistingData[Moodys Industry], tbl_IndustryVG[[#This Row],[Moody''s Industry]] & "*", tbl_ExistingData[Fund], Fund, tbl_ExistingData[Paid Off Date], "=") -> 0 | F105: =SUMIFS(tbl_HypoPipeline[Total Commitment], tbl_HypoPipeline[Moody''s Industry], tbl_IndustryVG[[#This Row],[Moody''s Industry]] & "*", tbl_HypoPipeline[Fund], Fund,tbl_HypoPipeline[Exclude?],"") + SUMIFS(tbl_HFS[Total Commitment],tbl_HFS[Moody''s Industry],tbl_IndustryVG[[#This Row],[Moody''s Industry]],tbl_HFS[Fund],Fund) -> 0 | G105: =tbl_IndustryVG[[#This Row],[Existing Portfolio]]+tbl_IndustryVG[[#This Row],[Pipeline]] -> 0
A106: Existing Portfolio | B106: =INDEX(tbl_IndustryVG[],MATCH(B108,tbl_IndustryVG[Existing + Pipeline],0),2) -> 0 | D106: Retail | E106: =SUMIFS(tbl_ExistingData[Total Commitment], tbl_ExistingData[Moodys Industry], tbl_IndustryVG[[#This Row],[Moody''s Industry]] & "*", tbl_ExistingData[Fund], Fund, tbl_ExistingData[Paid Off Date], "=") -> 0 | F106: =SUMIFS(tbl_HypoPipeline[Total Commitment], tbl_HypoPipeline[Moody''s Industry], tbl_IndustryVG[[#This Row],[Moody''s Industry]] & "*", tbl_HypoPipeline[Fund], Fund,tbl_HypoPipeline[Exclude?],"") + SUMIFS(tbl_HFS[Total Commitment],tbl_HFS[Moody''s Industry],tbl_IndustryVG[[#This Row],[Moody''s Industry]],tbl_HFS[Fund],Fund) -> 0 | G106: =tbl_IndustryVG[[#This Row],[Existing Portfolio]]+tbl_IndustryVG[[#This Row],[Pipeline]] -> 0
A107: Hypo Pipeline | B107: =INDEX(tbl_IndustryVG[],MATCH(B108,tbl_IndustryVG[Existing + Pipeline],0),3) -> 30000000 | D107: Services: Business | E107: =SUMIFS(tbl_ExistingData[Total Commitment], tbl_ExistingData[Moodys Industry], tbl_IndustryVG[[#This Row],[Moody''s Industry]] & "*", tbl_ExistingData[Fund], Fund, tbl_ExistingData[Paid Off Date], "=") -> 0 | F107: =SUMIFS(tbl_HypoPipeline[Total Commitment], tbl_HypoPipeline[Moody''s Industry], tbl_IndustryVG[[#This Row],[Moody''s Industry]] & "*", tbl_HypoPipeline[Fund], Fund,tbl_HypoPipeline[Exclude?],"") + SUMIFS(tbl_HFS[Total Commitment],tbl_HFS[Moody''s Industry],tbl_IndustryVG[[#This Row],[Moody''s Industry]],tbl_HFS[Fund],Fund) -> 15000000 | G107: =tbl_IndustryVG[[#This Row],[Existing Portfolio]]+tbl_IndustryVG[[#This Row],[Pipeline]] -> 15000000
A108: Aggregate Exposure | B108: =LARGE(tbl_IndustryVG[Existing + Pipeline],3) -> 30000000 | D108: Services: Consumer | E108: =SUMIFS(tbl_ExistingData[Total Commitment], tbl_ExistingData[Moodys Industry], tbl_IndustryVG[[#This Row],[Moody''s Industry]] & "*", tbl_ExistingData[Fund], Fund, tbl_ExistingData[Paid Off Date], "=") -> 0 | F108: =SUMIFS(tbl_HypoPipeline[Total Commitment], tbl_HypoPipeline[Moody''s Industry], tbl_IndustryVG[[#This Row],[Moody''s Industry]] & "*", tbl_HypoPipeline[Fund], Fund,tbl_HypoPipeline[Exclude?],"") + SUMIFS(tbl_HFS[Total Commitment],tbl_HFS[Moody''s Industry],tbl_IndustryVG[[#This Row],[Moody''s Industry]],tbl_HFS[Fund],Fund) -> 0 | G108: =tbl_IndustryVG[[#This Row],[Existing Portfolio]]+tbl_IndustryVG[[#This Row],[Pipeline]] -> 0
D109: Sovereign & Public Finance | E109: =SUMIFS(tbl_ExistingData[Total Commitment], tbl_ExistingData[Moodys Industry], tbl_IndustryVG[[#This Row],[Moody''s Industry]] & "*", tbl_ExistingData[Fund], Fund, tbl_ExistingData[Paid Off Date], "=") -> 0 | F109: =SUMIFS(tbl_HypoPipeline[Total Commitment], tbl_HypoPipeline[Moody''s Industry], tbl_IndustryVG[[#This Row],[Moody''s Industry]] & "*", tbl_HypoPipeline[Fund], Fund,tbl_HypoPipeline[Exclude?],"") + SUMIFS(tbl_HFS[Total Commitment],tbl_HFS[Moody''s Industry],tbl_IndustryVG[[#This Row],[Moody''s Industry]],tbl_HFS[Fund],Fund) -> 0 | G109: =tbl_IndustryVG[[#This Row],[Existing Portfolio]]+tbl_IndustryVG[[#This Row],[Pipeline]] -> 0
D110: Telecommunications | E110: =SUMIFS(tbl_ExistingData[Total Commitment], tbl_ExistingData[Moodys Industry], tbl_IndustryVG[[#This Row],[Moody''s Industry]] & "*", tbl_ExistingData[Fund], Fund, tbl_ExistingData[Paid Off Date], "=") -> 0 | F110: =SUMIFS(tbl_HypoPipeline[Total Commitment], tbl_HypoPipeline[Moody''s Industry], tbl_IndustryVG[[#This Row],[Moody''s Industry]] & "*", tbl_HypoPipeline[Fund], Fund,tbl_HypoPipeline[Exclude?],"") + SUMIFS(tbl_HFS[Total Commitment],tbl_HFS[Moody''s Industry],tbl_IndustryVG[[#This Row],[Moody''s Industry]],tbl_HFS[Fund],Fund) -> 0 | G110: =tbl_IndustryVG[[#This Row],[Existing Portfolio]]+tbl_IndustryVG[[#This Row],[Pipeline]] -> 0
D111: Transportation: Cargo | E111: =SUMIFS(tbl_ExistingData[Total Commitment], tbl_ExistingData[Moodys Industry], tbl_IndustryVG[[#This Row],[Moody''s Industry]] & "*", tbl_ExistingData[Fund], Fund, tbl_ExistingData[Paid Off Date], "=") -> 0 | F111: =SUMIFS(tbl_HypoPipeline[Total Commitment], tbl_HypoPipeline[Moody''s Industry], tbl_IndustryVG[[#This Row],[Moody''s Industry]] & "*", tbl_HypoPipeline[Fund], Fund,tbl_HypoPipeline[Exclude?],"") + SUMIFS(tbl_HFS[Total Commitment],tbl_HFS[Moody''s Industry],tbl_IndustryVG[[#This Row],[Moody''s Industry]],tbl_HFS[Fund],Fund) -> 0 | G111: =tbl_IndustryVG[[#This Row],[Existing Portfolio]]+tbl_IndustryVG[[#This Row],[Pipeline]] -> 0
D112: Transportation: Consumer | E112: =SUMIFS(tbl_ExistingData[Total Commitment], tbl_ExistingData[Moodys Industry], tbl_IndustryVG[[#This Row],[Moody''s Industry]] & "*", tbl_ExistingData[Fund], Fund, tbl_ExistingData[Paid Off Date], "=") -> 0 | F112: =SUMIFS(tbl_HypoPipeline[Total Commitment], tbl_HypoPipeline[Moody''s Industry], tbl_IndustryVG[[#This Row],[Moody''s Industry]] & "*", tbl_HypoPipeline[Fund], Fund,tbl_HypoPipeline[Exclude?],"") + SUMIFS(tbl_HFS[Total Commitment],tbl_HFS[Moody''s Industry],tbl_IndustryVG[[#This Row],[Moody''s Industry]],tbl_HFS[Fund],Fund) -> 0 | G112: =tbl_IndustryVG[[#This Row],[Existing Portfolio]]+tbl_IndustryVG[[#This Row],[Pipeline]] -> 0
D113: Utilities: Electric | E113: =SUMIFS(tbl_ExistingData[Total Commitment], tbl_ExistingData[Moodys Industry], tbl_IndustryVG[[#This Row],[Moody''s Industry]] & "*", tbl_ExistingData[Fund], Fund, tbl_ExistingData[Paid Off Date], "=") -> 0 | F113: =SUMIFS(tbl_HypoPipeline[Total Commitment], tbl_HypoPipeline[Moody''s Industry], tbl_IndustryVG[[#This Row],[Moody''s Industry]] & "*", tbl_HypoPipeline[Fund], Fund,tbl_HypoPipeline[Exclude?],"") + SUMIFS(tbl_HFS[Total Commitment],tbl_HFS[Moody''s Industry],tbl_IndustryVG[[#This Row],[Moody''s Industry]],tbl_HFS[Fund],Fund) -> 0 | G113: =tbl_IndustryVG[[#This Row],[Existing Portfolio]]+tbl_IndustryVG[[#This Row],[Pipeline]] -> 0
D114: Utilities: Oil & Gas | E114: =SUMIFS(tbl_ExistingData[Total Commitment], tbl_ExistingData[Moodys Industry], tbl_IndustryVG[[#This Row],[Moody''s Industry]] & "*", tbl_ExistingData[Fund], Fund, tbl_ExistingData[Paid Off Date], "=") -> 0 | F114: =SUMIFS(tbl_HypoPipeline[Total Commitment], tbl_HypoPipeline[Moody''s Industry], tbl_IndustryVG[[#This Row],[Moody''s Industry]] & "*", tbl_HypoPipeline[Fund], Fund,tbl_HypoPipeline[Exclude?],"") + SUMIFS(tbl_HFS[Total Commitment],tbl_HFS[Moody''s Industry],tbl_IndustryVG[[#This Row],[Moody''s Industry]],tbl_HFS[Fund],Fund) -> 0 | G114: =tbl_IndustryVG[[#This Row],[Existing Portfolio]]+tbl_IndustryVG[[#This Row],[Pipeline]] -> 0
D115: Utilities: Water | E115: =SUMIFS(tbl_ExistingData[Total Commitment], tbl_ExistingData[Moodys Industry], tbl_IndustryVG[[#This Row],[Moody''s Industry]] & "*", tbl_ExistingData[Fund], Fund, tbl_ExistingData[Paid Off Date], "=") -> 0 | F115: =SUMIFS(tbl_HypoPipeline[Total Commitment], tbl_HypoPipeline[Moody''s Industry], tbl_IndustryVG[[#This Row],[Moody''s Industry]] & "*", tbl_HypoPipeline[Fund], Fund,tbl_HypoPipeline[Exclude?],"") + SUMIFS(tbl_HFS[Total Commitment],tbl_HFS[Moody''s Industry],tbl_IndustryVG[[#This Row],[Moody''s Industry]],tbl_HFS[Fund],Fund) -> 0 | G115: =tbl_IndustryVG[[#This Row],[Existing Portfolio]]+tbl_IndustryVG[[#This Row],[Pipeline]] -> 0
D116: Wholesale | E116: =SUMIFS(tbl_ExistingData[Total Commitment], tbl_ExistingData[Moodys Industry], tbl_IndustryVG[[#This Row],[Moody''s Industry]] & "*", tbl_ExistingData[Fund], Fund, tbl_ExistingData[Paid Off Date], "=") -> 0 | F116: =SUMIFS(tbl_HypoPipeline[Total Commitment], tbl_HypoPipeline[Moody''s Industry], tbl_IndustryVG[[#This Row],[Moody''s Industry]] & "*", tbl_HypoPipeline[Fund], Fund,tbl_HypoPipeline[Exclude?],"") + SUMIFS(tbl_HFS[Total Commitment],tbl_HFS[Moody''s Industry],tbl_IndustryVG[[#This Row],[Moody''s Industry]],tbl_HFS[Fund],Fund) -> 3000000 | G116: =tbl_IndustryVG[[#This Row],[Existing Portfolio]]+tbl_IndustryVG[[#This Row],[Pipeline]] -> 3000000

Sheet Tests (Chubb)
A1: Tests: | B1: SMA-CH
A3: SMA Commitment | B3: =VLOOKUP(Fund,tbl_Funds[[Fund]:[Principal Balance]],2,0) -> 550000000
A5: Max Commitment
A7: Bucket
A8: Commitment | B8: =Commitment -> 550000000
A9: Protective Advances Holdback | B9: =_xlfn.XLOOKUP(Fund,tbl_Funds[Fund],tbl_Funds[Protective Advances]) -> 20000000
A10: Bucket Subtotal | B10: =B8-B9 -> 530000000
A11: Available | B11: =B10-B15 -> 315859420
A13: Existing Portfolio | B13: =SUMIFS(tbl_ExistingData[Total Commitment],tbl_ExistingData[Fund],Fund,tbl_ExistingData[Paid Off Date],"=") -> 0
A14: Hypo Pipeline | B14: =SUMIFS(tbl_HypoPipeline[Total Commitment],tbl_HypoPipeline[Fund],Fund,tbl_HypoPipeline[Exclude?],"") -> 214140580
A15: Final Test Total | B15: =B14+B13 -> 214140580
A17: Protective Advances
A18: Portfolio | B18: =SUMIF(tbl_ProtectiveAdvances[SMA],Fund,tbl_ProtectiveAdvances[Commitment Amount]) -> 787680.23
A19: Hypo | B19: =SUMIFS(tbl_HypoPipeline[Total Commitment],tbl_HypoPipeline[Fund],Fund,tbl_HypoPipeline[Protective Advances],"Y") -> 216667
A22: Unfunded Commitment
A23: The sum of Portfolio and Pipeline values (Revolver Commitments + DDTL Commitments - DDTL Principal) must be < 20% of total SMA Commitment.
A25: Bucket | B25: =Commitment*0.2 -> 110000000
A26: Available | B26: =B25-B40 -> 58228411.76
A28: Existing Portfolio
A29: Total Revolver Commitment in Program | B29: =SUMIFS(tbl_ExistingData[Total Commitment],tbl_ExistingData[Tranche],"*evolv*",tbl_ExistingData[Fund],Fund) -> 0
A30: Total DDTL Commitment in Program | B30: =SUM(SUMIFS(tbl_ExistingData[Total Commitment],tbl_ExistingData[Tranche],{"*Delayed Draw*","*DDTL*"},tbl_ExistingData[Fund],Fund,tbl_ExistingData[Paid Off Date],"=")) -> 0
A31: Total DDTL Principal in Program | B31: =SUM(SUMIFS(tbl_ExistingData[Principal Balance],tbl_ExistingData[Tranche],{"*Delayed Draw*","*DDTL*"},tbl_ExistingData[Fund],Fund,tbl_ExistingData[Paid Off Date],"=")) -> 0
A32: Existing Portfolio Subtotal | B32: =B29+B30-B31 -> 0
A34: Hypo Pipeline
A35: Total Revolver Commitment in Pipeline | B35: =SUMIFS(tbl_HypoPipeline[Total Commitment], tbl_HypoPipeline[Tranche], "*evolv*", tbl_HypoPipeline[Fund], Fund,tbl_HypoPipeline[Exclude?],"") -> 12792000
A36: Total DDTL Commitment in Pipeline | B36: =SUM(SUMIFS(tbl_HypoPipeline[Total Commitment],tbl_HypoPipeline[Tranche],{"*Delayed Draw*","*DDTL*"},tbl_HypoPipeline[Fund],Fund,tbl_HypoPipeline[Exclude?],"")) -> 38979588.24
A37: Total DDTL Principal in Pipeline | B37: =SUM(SUMIFS(tbl_HypoPipeline[Principal Balance],tbl_HypoPipeline[Tranche],{"*Delayed Draw*","*DDTL*"},tbl_HypoPipeline[Fund],Fund,tbl_HypoPipeline[Exclude?],"")) -> 0
A38: Hypo Pipeline Subtotal | B38: =B35+B36-B37 -> 51771588.24
A40: Final Test Total | B40: =B38+B32 -> 51771588.24
A42: Net Senior Leverage 4.75x
A43: (Original Net Senior Leverage > 4.75) < 50% * SMA Commitment Amount
A45: Bucket | B45: =Commitment*0.5 -> 275000000
A46: Available | B46: =B45-B50 -> 115250000
A48: Existing Portfolio | B48: =SUMIFS(tbl_ExistingData[Total Commitment], tbl_ExistingData[Net Senior Leverage], ">4.75", tbl_ExistingData[Fund], Fund, tbl_ExistingData[Paid Off Date], "=") -> 0 | D48: =IF(COUNTIFS(tbl_ExistingData[Fund],Fund,tbl_ExistingData[Net Senior Leverage],0)>0,"There exist [" & COUNTIFS(tbl_ExistingData[Fund],Fund,tbl_ExistingData[Net Senior Leverage],0) & "] " & Fund & " deals in the Active Portfolio with a Net Senior Leverage of 0.","") -> 
A49: Hypo Pipeline | B49: =SUMIFS(tbl_HypoPipeline[Total Commitment], tbl_HypoPipeline[Net Senior Leverage], ">4.75", tbl_HypoPipeline[Fund], Fund,tbl_HypoPipeline[Exclude?],"") -> 159750000
A50: Final Test Total | B50: =B49+B48 -> 159750000
A52: Net Senior Leverage 5.50x
A53: (Original Net Senior Leverage > 5.50) < 20% * SMA Commitment Amount
A55: Bucket | B55: =Commitment*0.2 -> 110000000
A56: Available | B56: =B55-B60 -> 10500000
A58: Existing Portfolio | B58: =SUMIFS(tbl_ExistingData[Total Commitment], tbl_ExistingData[Net Senior Leverage], ">5.5", tbl_ExistingData[Fund], Fund, tbl_ExistingData[Paid Off Date], "=") -> 0 | D58: =IF(COUNTIFS(tbl_ExistingData[Fund],Fund,tbl_ExistingData[Net Senior Leverage],0)>0,"There exist [" & COUNTIFS(tbl_ExistingData[Fund],Fund,tbl_ExistingData[Net Senior Leverage],0) & "] " & Fund & " deals in the Active Portfolio with a Net Senior Leverage of 0.","") -> 
A59: Hypo Pipeline | B59: =SUMIFS(tbl_HypoPipeline[Total Commitment], tbl_HypoPipeline[Net Senior Leverage], ">5.5", tbl_HypoPipeline[Fund], Fund,tbl_HypoPipeline[Exclude?],"") -> 99500000
A60: Final Test Total | B60: =B59+B58 -> 99500000
A62: Net Senior Leverage 6.50x
A63: (Original Net Senior Leverage > 6.50) < 10% * SMA Commitment Amount
A65: Bucket | B65: =Commitment*0.1 -> 55000000
A66: Available | B66: =B65-B70 -> 40000000
A68: Existing Portfolio | B68: =SUMIFS(tbl_ExistingData[Total Commitment], tbl_ExistingData[Net Senior Leverage], ">6.5", tbl_ExistingData[Fund], Fund, tbl_ExistingData[Paid Off Date], "=") -> 0 | D68: =IF(COUNTIFS(tbl_ExistingData[Fund],Fund,tbl_ExistingData[Net Senior Leverage],0)>0,"There exist [" & COUNTIFS(tbl_ExistingData[Fund],Fund,tbl_ExistingData[Net Senior Leverage],0) & "] " & Fund & " deals in the Active Portfolio with a Net Senior Leverage of 0.","") -> 
A69: Hypo Pipeline | B69: =SUMIFS(tbl_HypoPipeline[Total Commitment], tbl_HypoPipeline[Net Senior Leverage], ">6.5", tbl_HypoPipeline[Fund], Fund,tbl_HypoPipeline[Exclude?],"") -> 15000000
A70: Final Test Total | B70: =B69+B68 -> 15000000
A72: Open Market
A73: All Commitments Secondary Market < 5% * SMA Commitment Amount
A75: Bucket | B75: =Commitment*0.05 -> 27500000
A76: Available | B76: =B75-B80 -> 27500000
A78: Existing Portfolio | B78: =SUMIFS(tbl_ExistingData[Total Commitment],tbl_ExistingData[Open Market Purchase (Y)], "Y",tbl_ExistingData[Fund],Fund, tbl_ExistingData[Paid Off Date], "=") -> 0
A79: Hypo Pipeline | B79: =SUMIFS(tbl_HypoPipeline[Total Commitment],tbl_HypoPipeline[Open Market Purchase (Y)], "Y",tbl_HypoPipeline[Fund],Fund,tbl_HypoPipeline[Exclude?],"") -> 0
A80: Final Test Total | B80: =B79+B78 -> 0
A82: Industry Tests
A83: Maximum aggregate exposure of 25%, 20% and 15% of SMA Commitment for largest three industries.
A85: Largest Bucket | B85: =Commitment*0.25 -> 137500000 | D85: Moody's Industry | E85: Existing Portfolio | F85: Pipeline | G85: Existing + Pipeline
A86: Available | B86: =B85-B91 -> 92000000 | D86: Aerospace & Defense | E86: =SUMIFS(tbl_ExistingData[Total Commitment], tbl_ExistingData[Moodys Industry], tbl_IndustryChubb[[#This Row],[Moody''s Industry]] & "*", tbl_ExistingData[Fund], Fund, tbl_ExistingData[Paid Off Date], "=") -> 0 | F86: =SUMIFS(tbl_HypoPipeline[Total Commitment], tbl_HypoPipeline[Moody''s Industry], tbl_IndustryChubb[[#This Row],[Moody''s Industry]] & "*", tbl_HypoPipeline[Fund], Fund,tbl_HypoPipeline[Exclude?],"") + SUMIFS(tbl_HFS[Total Commitment],tbl_HFS[Moody''s Industry],tbl_IndustryChubb[[#This Row],[Moody''s Industry]],tbl_HFS[Fund],Fund) -> 3000000 | G86: =tbl_IndustryChubb[[#This Row],[Existing Portfolio]]+tbl_IndustryChubb[[#This Row],[Pipeline]] -> 3000000
D87: Automotive | E87: =SUMIFS(tbl_ExistingData[Total Commitment], tbl_ExistingData[Moodys Industry], tbl_IndustryChubb[[#This Row],[Moody''s Industry]] & "*", tbl_ExistingData[Fund], Fund, tbl_ExistingData[Paid Off Date], "=") -> 0 | F87: =SUMIFS(tbl_HypoPipeline[Total Commitment], tbl_HypoPipeline[Moody''s Industry], tbl_IndustryChubb[[#This Row],[Moody''s Industry]] & "*", tbl_HypoPipeline[Fund], Fund,tbl_HypoPipeline[Exclude?],"") + SUMIFS(tbl_HFS[Total Commitment],tbl_HFS[Moody''s Industry],tbl_IndustryChubb[[#This Row],[Moody''s Industry]],tbl_HFS[Fund],Fund) -> 0 | G87: =tbl_IndustryChubb[[#This Row],[Existing Portfolio]]+tbl_IndustryChubb[[#This Row],[Pipeline]] -> 0
A88: =INDEX(tbl_IndustryChubb[],MATCH(B91,tbl_IndustryChubb[Existing + Pipeline],0),1) -> Services: Business | D88: Banking, Finance, Insurance & Real Estate | E88: =SUMIFS(tbl_ExistingData[Total Commitment], tbl_ExistingData[Moodys Industry], tbl_IndustryChubb[[#This Row],[Moody''s Industry]] & "*", tbl_ExistingData[Fund], Fund, tbl_ExistingData[Paid Off Date], "=") -> 0 | F88: =SUMIFS(tbl_HypoPipeline[Total Commitment], tbl_HypoPipeline[Moody''s Industry], tbl_IndustryChubb[[#This Row],[Moody''s Industry]] & "*", tbl_HypoPipeline[Fund], Fund,tbl_HypoPipeline[Exclude?],"") + SUMIFS(tbl_HFS[Total Commitment],tbl_HFS[Moody''s Industry],tbl_IndustryChubb[[#This Row],[Moody''s Industry]],tbl_HFS[Fund],Fund) -> 0 | G88: =tbl_IndustryChubb[[#This Row],[Existing Portfolio]]+tbl_IndustryChubb[[#This Row],[Pipeline]] -> 0
A89: Existing Portfolio Component | B89: =INDEX(tbl_IndustryChubb[],MATCH(B91,tbl_IndustryChubb[Existing + Pipeline],0),2) -> 0 | D89: Beverage, Food & Tobacco | E89: =SUMIFS(tbl_ExistingData[Total Commitment], tbl_ExistingData[Moodys Industry], tbl_IndustryChubb[[#This Row],[Moody''s Industry]] & "*", tbl_ExistingData[Fund], Fund, tbl_ExistingData[Paid Off Date], "=") -> 0 | F89: =SUMIFS(tbl_HypoPipeline[Total Commitment], tbl_HypoPipeline[Moody''s Industry], tbl_IndustryChubb[[#This Row],[Moody''s Industry]] & "*", tbl_HypoPipeline[Fund], Fund,tbl_HypoPipeline[Exclude?],"") + SUMIFS(tbl_HFS[Total Commitment],tbl_HFS[Moody''s Industry],tbl_IndustryChubb[[#This Row],[Moody''s Industry]],tbl_HFS[Fund],Fund) -> 15000000 | G89: =tbl_IndustryChubb[[#This Row],[Existing Portfolio]]+tbl_IndustryChubb[[#This Row],[Pipeline]] -> 15000000
A90: Hypo Pipeline Component | B90: =INDEX(tbl_IndustryChubb[],MATCH(B91,tbl_IndustryChubb[Existing + Pipeline],0),3) -> 45500000 | D90: Capital Equipment | E90: =SUMIFS(tbl_ExistingData[Total Commitment], tbl_ExistingData[Moodys Industry], tbl_IndustryChubb[[#This Row],[Moody''s Industry]] & "*", tbl_ExistingData[Fund], Fund, tbl_ExistingData[Paid Off Date], "=") -> 0 | F90: =SUMIFS(tbl_HypoPipeline[Total Commitment], tbl_HypoPipeline[Moody''s Industry], tbl_IndustryChubb[[#This Row],[Moody''s Industry]] & "*", tbl_HypoPipeline[Fund], Fund,tbl_HypoPipeline[Exclude?],"") + SUMIFS(tbl_HFS[Total Commitment],tbl_HFS[Moody''s Industry],tbl_IndustryChubb[[#This Row],[Moody''s Industry]],tbl_HFS[Fund],Fund) -> 22000000 | G90: =tbl_IndustryChubb[[#This Row],[Existing Portfolio]]+tbl_IndustryChubb[[#This Row],[Pipeline]] -> 22000000
A91: Aggregate Exposure | B91: =LARGE(tbl_IndustryChubb[Existing + Pipeline],1) -> 45500000 | D91: Chemicals, Plastics & Rubber | E91: =SUMIFS(tbl_ExistingData[Total Commitment], tbl_ExistingData[Moodys Industry], tbl_IndustryChubb[[#This Row],[Moody''s Industry]] & "*", tbl_ExistingData[Fund], Fund, tbl_ExistingData[Paid Off Date], "=") -> 0 | F91: =SUMIFS(tbl_HypoPipeline[Total Commitment], tbl_HypoPipeline[Moody''s Industry], tbl_IndustryChubb[[#This Row],[Moody''s Industry]] & "*", tbl_HypoPipeline[Fund], Fund,tbl_HypoPipeline[Exclude?],"") + SUMIFS(tbl_HFS[Total Commitment],tbl_HFS[Moody''s Industry],tbl_IndustryChubb[[#This Row],[Moody''s Industry]],tbl_HFS[Fund],Fund) -> 27250000 | G91: =tbl_IndustryChubb[[#This Row],[Existing Portfolio]]+tbl_IndustryChubb[[#This Row],[Pipeline]] -> 27250000
D92: Construction & Building | E92: =SUMIFS(tbl_ExistingData[Total Commitment], tbl_ExistingData[Moodys Industry], tbl_IndustryChubb[[#This Row],[Moody''s Industry]] & "*", tbl_ExistingData[Fund], Fund, tbl_ExistingData[Paid Off Date], "=") -> 0 | F92: =SUMIFS(tbl_HypoPipeline[Total Commitment], tbl_HypoPipeline[Moody''s Industry], tbl_IndustryChubb[[#This Row],[Moody''s Industry]] & "*", tbl_HypoPipeline[Fund], Fund,tbl_HypoPipeline[Exclude?],"") + SUMIFS(tbl_HFS[Total Commitment],tbl_HFS[Moody''s Industry],tbl_IndustryChubb[[#This Row],[Moody''s Industry]],tbl_HFS[Fund],Fund) -> 0 | G92: =tbl_IndustryChubb[[#This Row],[Existing Portfolio]]+tbl_IndustryChubb[[#This Row],[Pipeline]] -> 0
D93: Consumer goods: Durable | E93: =SUMIFS(tbl_ExistingData[Total Commitment], tbl_ExistingData[Moodys Industry], tbl_IndustryChubb[[#This Row],[Moody''s Industry]] & "*", tbl_ExistingData[Fund], Fund, tbl_ExistingData[Paid Off Date], "=") -> 0 | F93: =SUMIFS(tbl_HypoPipeline[Total Commitment], tbl_HypoPipeline[Moody''s Industry], tbl_IndustryChubb[[#This Row],[Moody''s Industry]] & "*", tbl_HypoPipeline[Fund], Fund,tbl_HypoPipeline[Exclude?],"") + SUMIFS(tbl_HFS[Total Commitment],tbl_HFS[Moody''s Industry],tbl_IndustryChubb[[#This Row],[Moody''s Industry]],tbl_HFS[Fund],Fund) -> 6000000 | G93: =tbl_IndustryChubb[[#This Row],[Existing Portfolio]]+tbl_IndustryChubb[[#This Row],[Pipeline]] -> 6000000
A94: 2nd Largest Bucket | B94: =Commitment*0.2 -> 110000000 | D94: Consumer goods: Non-durable | E94: =SUMIFS(tbl_ExistingData[Total Commitment], tbl_ExistingData[Moodys Industry], tbl_IndustryChubb[[#This Row],[Moody''s Industry]] & "*", tbl_ExistingData[Fund], Fund, tbl_ExistingData[Paid Off Date], "=") -> 0 | F94: =SUMIFS(tbl_HypoPipeline[Total Commitment], tbl_HypoPipeline[Moody''s Industry], tbl_IndustryChubb[[#This Row],[Moody''s Industry]] & "*", tbl_HypoPipeline[Fund], Fund,tbl_HypoPipeline[Exclude?],"") + SUMIFS(tbl_HFS[Total Commitment],tbl_HFS[Moody''s Industry],tbl_IndustryChubb[[#This Row],[Moody''s Industry]],tbl_HFS[Fund],Fund) -> 19673913 | G94: =tbl_IndustryChubb[[#This Row],[Existing Portfolio]]+tbl_IndustryChubb[[#This Row],[Pipeline]] -> 19673913
A95: Available | B95: =B94-B100 -> 82750000 | D95: Containers, Packaging & Glass | E95: =SUMIFS(tbl_ExistingData[Total Commitment], tbl_ExistingData[Moodys Industry], tbl_IndustryChubb[[#This Row],[Moody''s Industry]] & "*", tbl_ExistingData[Fund], Fund, tbl_ExistingData[Paid Off Date], "=") -> 0 | F95: =SUMIFS(tbl_HypoPipeline[Total Commitment], tbl_HypoPipeline[Moody''s Industry], tbl_IndustryChubb[[#This Row],[Moody''s Industry]] & "*", tbl_HypoPipeline[Fund], Fund,tbl_HypoPipeline[Exclude?],"") + SUMIFS(tbl_HFS[Total Commitment],tbl_HFS[Moody''s Industry],tbl_IndustryChubb[[#This Row],[Moody''s Industry]],tbl_HFS[Fund],Fund) -> 6000000 | G95: =tbl_IndustryChubb[[#This Row],[Existing Portfolio]]+tbl_IndustryChubb[[#This Row],[Pipeline]] -> 6000000
D96: Energy: Electricity | E96: =SUMIFS(tbl_ExistingData[Total Commitment], tbl_ExistingData[Moodys Industry], tbl_IndustryChubb[[#This Row],[Moody''s Industry]] & "*", tbl_ExistingData[Fund], Fund, tbl_ExistingData[Paid Off Date], "=") -> 0 | F96: =SUMIFS(tbl_HypoPipeline[Total Commitment], tbl_HypoPipeline[Moody''s Industry], tbl_IndustryChubb[[#This Row],[Moody''s Industry]] & "*", tbl_HypoPipeline[Fund], Fund,tbl_HypoPipeline[Exclude?],"") + SUMIFS(tbl_HFS[Total Commitment],tbl_HFS[Moody''s Industry],tbl_IndustryChubb[[#This Row],[Moody''s Industry]],tbl_HFS[Fund],Fund) -> 11500000 | G96: =tbl_IndustryChubb[[#This Row],[Existing Portfolio]]+tbl_IndustryChubb[[#This Row],[Pipeline]] -> 11500000
A97: =INDEX(tbl_IndustryChubb[],MATCH(B100,tbl_IndustryChubb[Existing + Pipeline],0),1) -> Chemicals, Plastics & Rubber | D97: Energy: Oil & Gas | E97: =SUMIFS(tbl_ExistingData[Total Commitment], tbl_ExistingData[Moodys Industry], tbl_IndustryChubb[[#This Row],[Moody''s Industry]] & "*", tbl_ExistingData[Fund], Fund, tbl_ExistingData[Paid Off Date], "=") -> 0 | F97: =SUMIFS(tbl_HypoPipeline[Total Commitment], tbl_HypoPipeline[Moody''s Industry], tbl_IndustryChubb[[#This Row],[Moody''s Industry]] & "*", tbl_HypoPipeline[Fund], Fund,tbl_HypoPipeline[Exclude?],"") + SUMIFS(tbl_HFS[Total Commitment],tbl_HFS[Moody''s Industry],tbl_IndustryChubb[[#This Row],[Moody''s Industry]],tbl_HFS[Fund],Fund) -> 0 | G97: =tbl_IndustryChubb[[#This Row],[Existing Portfolio]]+tbl_IndustryChubb[[#This Row],[Pipeline]] -> 0
A98: Existing Portfolio | B98: =INDEX(tbl_IndustryChubb[],MATCH(B100,tbl_IndustryChubb[Existing + Pipeline],0),2) -> 0 | D98: Environmental Industries | E98: =SUMIFS(tbl_ExistingData[Total Commitment], tbl_ExistingData[Moodys Industry], tbl_IndustryChubb[[#This Row],[Moody''s Industry]] & "*", tbl_ExistingData[Fund], Fund, tbl_ExistingData[Paid Off Date], "=") -> 0 | F98: =SUMIFS(tbl_HypoPipeline[Total Commitment], tbl_HypoPipeline[Moody''s Industry], tbl_IndustryChubb[[#This Row],[Moody''s Industry]] & "*", tbl_HypoPipeline[Fund], Fund,tbl_HypoPipeline[Exclude?],"") + SUMIFS(tbl_HFS[Total Commitment],tbl_HFS[Moody''s Industry],tbl_IndustryChubb[[#This Row],[Moody''s Industry]],tbl_HFS[Fund],Fund) -> 0 | G98: =tbl_IndustryChubb[[#This Row],[Existing Portfolio]]+tbl_IndustryChubb[[#This Row],[Pipeline]] -> 0
A99: Hypo Pipeline | B99: =INDEX(tbl_IndustryChubb[],MATCH(B100,tbl_IndustryChubb[Existing + Pipeline],0),3) -> 27250000 | D99: Forest Products & Paper | E99: =SUMIFS(tbl_ExistingData[Total Commitment], tbl_ExistingData[Moodys Industry], tbl_IndustryChubb[[#This Row],[Moody''s Industry]] & "*", tbl_ExistingData[Fund], Fund, tbl_ExistingData[Paid Off Date], "=") -> 0 | F99: =SUMIFS(tbl_HypoPipeline[Total Commitment], tbl_HypoPipeline[Moody''s Industry], tbl_IndustryChubb[[#This Row],[Moody''s Industry]] & "*", tbl_HypoPipeline[Fund], Fund,tbl_HypoPipeline[Exclude?],"") + SUMIFS(tbl_HFS[Total Commitment],tbl_HFS[Moody''s Industry],tbl_IndustryChubb[[#This Row],[Moody''s Industry]],tbl_HFS[Fund],Fund) -> 0 | G99: =tbl_IndustryChubb[[#This Row],[Existing Portfolio]]+tbl_IndustryChubb[[#This Row],[Pipeline]] -> 0
A100: Aggregate Exposure | B100: =LARGE(tbl_IndustryChubb[Existing + Pipeline],2) -> 27250000 | D100: Healthcare & Pharmaceuticals | E100: =SUMIFS(tbl_ExistingData[Total Commitment], tbl_ExistingData[Moodys Industry], tbl_IndustryChubb[[#This Row],[Moody''s Industry]] & "*", tbl_ExistingData[Fund], Fund, tbl_ExistingData[Paid Off Date], "=") -> 0 | F100: =SUMIFS(tbl_HypoPipeline[Total Commitment], tbl_HypoPipeline[Moody''s Industry], tbl_IndustryChubb[[#This Row],[Moody''s Industry]] & "*", tbl_HypoPipeline[Fund], Fund,tbl_HypoPipeline[Exclude?],"") + SUMIFS(tbl_HFS[Total Commitment],tbl_HFS[Moody''s Industry],tbl_IndustryChubb[[#This Row],[Moody''s Industry]],tbl_HFS[Fund],Fund) -> 24000000 | G100: =tbl_IndustryChubb[[#This Row],[Existing Portfolio]]+tbl_IndustryChubb[[#This Row],[Pipeline]] -> 24000000
D101: High Tech Industries | E101: =SUMIFS(tbl_ExistingData[Total Commitment], tbl_ExistingData[Moodys Industry], tbl_IndustryChubb[[#This Row],[Moody''s Industry]] & "*", tbl_ExistingData[Fund], Fund, tbl_ExistingData[Paid Off Date], "=") -> 0 | F101: =SUMIFS(tbl_HypoPipeline[Total Commitment], tbl_HypoPipeline[Moody''s Industry], tbl_IndustryChubb[[#This Row],[Moody''s Industry]] & "*", tbl_HypoPipeline[Fund], Fund,tbl_HypoPipeline[Exclude?],"") + SUMIFS(tbl_HFS[Total Commitment],tbl_HFS[Moody''s Industry],tbl_IndustryChubb[[#This Row],[Moody''s Industry]],tbl_HFS[Fund],Fund) -> 5000000 | G101: =tbl_IndustryChubb[[#This Row],[Existing Portfolio]]+tbl_IndustryChubb[[#This Row],[Pipeline]] -> 5000000
D102: Hotel, Gaming & Leisure | E102: =SUMIFS(tbl_ExistingData[Total Commitment], tbl_ExistingData[Moodys Industry], tbl_IndustryChubb[[#This Row],[Moody''s Industry]] & "*", tbl_ExistingData[Fund], Fund, tbl_ExistingData[Paid Off Date], "=") -> 0 | F102: =SUMIFS(tbl_HypoPipeline[Total Commitment], tbl_HypoPipeline[Moody''s Industry], tbl_IndustryChubb[[#This Row],[Moody''s Industry]] & "*", tbl_HypoPipeline[Fund], Fund,tbl_HypoPipeline[Exclude?],"") + SUMIFS(tbl_HFS[Total Commitment],tbl_HFS[Moody''s Industry],tbl_IndustryChubb[[#This Row],[Moody''s Industry]],tbl_HFS[Fund],Fund) -> 0 | G102: =tbl_IndustryChubb[[#This Row],[Existing Portfolio]]+tbl_IndustryChubb[[#This Row],[Pipeline]] -> 0
A103: Any Other Bucket | B103: =Commitment*0.15 -> 82500000 | D103: Media: Advertising, Printing & Publishing | E103: =SUMIFS(tbl_ExistingData[Total Commitment], tbl_ExistingData[Moodys Industry], tbl_IndustryChubb[[#This Row],[Moody''s Industry]] & "*", tbl_ExistingData[Fund], Fund, tbl_ExistingData[Paid Off Date], "=") -> 0 | F103: =SUMIFS(tbl_HypoPipeline[Total Commitment], tbl_HypoPipeline[Moody''s Industry], tbl_IndustryChubb[[#This Row],[Moody''s Industry]] & "*", tbl_HypoPipeline[Fund], Fund,tbl_HypoPipeline[Exclude?],"") + SUMIFS(tbl_HFS[Total Commitment],tbl_HFS[Moody''s Industry],tbl_IndustryChubb[[#This Row],[Moody''s Industry]],tbl_HFS[Fund],Fund) -> 0 | G103: =tbl_IndustryChubb[[#This Row],[Existing Portfolio]]+tbl_IndustryChubb[[#This Row],[Pipeline]] -> 0
A104: Available | B104: =B103-B109 -> 58500000 | D104: Media: Broadcasting & Subscription | E104: =SUMIFS(tbl_ExistingData[Total Commitment], tbl_ExistingData[Moodys Industry], tbl_IndustryChubb[[#This Row],[Moody''s Industry]] & "*", tbl_ExistingData[Fund], Fund, tbl_ExistingData[Paid Off Date], "=") -> 0 | F104: =SUMIFS(tbl_HypoPipeline[Total Commitment], tbl_HypoPipeline[Moody''s Industry], tbl_IndustryChubb[[#This Row],[Moody''s Industry]] & "*", tbl_HypoPipeline[Fund], Fund,tbl_HypoPipeline[Exclude?],"") + SUMIFS(tbl_HFS[Total Commitment],tbl_HFS[Moody''s Industry],tbl_IndustryChubb[[#This Row],[Moody''s Industry]],tbl_HFS[Fund],Fund) -> 0 | G104: =tbl_IndustryChubb[[#This Row],[Existing Portfolio]]+tbl_IndustryChubb[[#This Row],[Pipeline]] -> 0
D105: Media: Diversified & Production | E105: =SUMIFS(tbl_ExistingData[Total Commitment], tbl_ExistingData[Moodys Industry], tbl_IndustryChubb[[#This Row],[Moody''s Industry]] & "*", tbl_ExistingData[Fund], Fund, tbl_ExistingData[Paid Off Date], "=") -> 0 | F105: =SUMIFS(tbl_HypoPipeline[Total Commitment], tbl_HypoPipeline[Moody''s Industry], tbl_IndustryChubb[[#This Row],[Moody''s Industry]] & "*", tbl_HypoPipeline[Fund], Fund,tbl_HypoPipeline[Exclude?],"") + SUMIFS(tbl_HFS[Total Commitment],tbl_HFS[Moody''s Industry],tbl_IndustryChubb[[#This Row],[Moody''s Industry]],tbl_HFS[Fund],Fund) -> 0 | G105: =tbl_IndustryChubb[[#This Row],[Existing Portfolio]]+tbl_IndustryChubb[[#This Row],[Pipeline]] -> 0
A106: =INDEX(tbl_IndustryChubb[],MATCH(B109,tbl_IndustryChubb[Existing + Pipeline],0),1) -> Healthcare & Pharmaceuticals | D106: Metals & Mining | E106: =SUMIFS(tbl_ExistingData[Total Commitment], tbl_ExistingData[Moodys Industry], tbl_IndustryChubb[[#This Row],[Moody''s Industry]] & "*", tbl_ExistingData[Fund], Fund, tbl_ExistingData[Paid Off Date], "=") -> 0 | F106: =SUMIFS(tbl_HypoPipeline[Total Commitment], tbl_HypoPipeline[Moody''s Industry], tbl_IndustryChubb[[#This Row],[Moody''s Industry]] & "*", tbl_HypoPipeline[Fund], Fund,tbl_HypoPipeline[Exclude?],"") + SUMIFS(tbl_HFS[Total Commitment],tbl_HFS[Moody''s Industry],tbl_IndustryChubb[[#This Row],[Moody''s Industry]],tbl_HFS[Fund],Fund) -> 0 | G106: =tbl_IndustryChubb[[#This Row],[Existing Portfolio]]+tbl_IndustryChubb[[#This Row],[Pipeline]] -> 0
A107: Existing Portfolio | B107: =INDEX(tbl_IndustryChubb[],MATCH(B109,tbl_IndustryChubb[Existing + Pipeline],0),2) -> 0 | D107: Retail | E107: =SUMIFS(tbl_ExistingData[Total Commitment], tbl_ExistingData[Moodys Industry], tbl_IndustryChubb[[#This Row],[Moody''s Industry]] & "*", tbl_ExistingData[Fund], Fund, tbl_ExistingData[Paid Off Date], "=") -> 0 | F107: =SUMIFS(tbl_HypoPipeline[Total Commitment], tbl_HypoPipeline[Moody''s Industry], tbl_IndustryChubb[[#This Row],[Moody''s Industry]] & "*", tbl_HypoPipeline[Fund], Fund,tbl_HypoPipeline[Exclude?],"") + SUMIFS(tbl_HFS[Total Commitment],tbl_HFS[Moody''s Industry],tbl_IndustryChubb[[#This Row],[Moody''s Industry]],tbl_HFS[Fund],Fund) -> 0 | G107: =tbl_IndustryChubb[[#This Row],[Existing Portfolio]]+tbl_IndustryChubb[[#This Row],[Pipeline]] -> 0
A108: Hypo Pipeline | B108: =INDEX(tbl_IndustryChubb[],MATCH(B109,tbl_IndustryChubb[Existing + Pipeline],0),3) -> 24000000 | D108: Services: Business | E108: =SUMIFS(tbl_ExistingData[Total Commitment], tbl_ExistingData[Moodys Industry], tbl_IndustryChubb[[#This Row],[Moody''s Industry]] & "*", tbl_ExistingData[Fund], Fund, tbl_ExistingData[Paid Off Date], "=") -> 0 | F108: =SUMIFS(tbl_HypoPipeline[Total Commitment], tbl_HypoPipeline[Moody''s Industry], tbl_IndustryChubb[[#This Row],[Moody''s Industry]] & "*", tbl_HypoPipeline[Fund], Fund,tbl_HypoPipeline[Exclude?],"") + SUMIFS(tbl_HFS[Total Commitment],tbl_HFS[Moody''s Industry],tbl_IndustryChubb[[#This Row],[Moody''s Industry]],tbl_HFS[Fund],Fund) -> 45500000 | G108: =tbl_IndustryChubb[[#This Row],[Existing Portfolio]]+tbl_IndustryChubb[[#This Row],[Pipeline]] -> 45500000
A109: Aggregate Exposure | B109: =LARGE(tbl_IndustryChubb[Existing + Pipeline],3) -> 24000000 | D109: Services: Consumer | E109: =SUMIFS(tbl_ExistingData[Total Commitment], tbl_ExistingData[Moodys Industry], tbl_IndustryChubb[[#This Row],[Moody''s Industry]] & "*", tbl_ExistingData[Fund], Fund, tbl_ExistingData[Paid Off Date], "=") -> 0 | F109: =SUMIFS(tbl_HypoPipeline[Total Commitment], tbl_HypoPipeline[Moody''s Industry], tbl_IndustryChubb[[#This Row],[Moody''s Industry]] & "*", tbl_HypoPipeline[Fund], Fund,tbl_HypoPipeline[Exclude?],"") + SUMIFS(tbl_HFS[Total Commitment],tbl_HFS[Moody''s Industry],tbl_IndustryChubb[[#This Row],[Moody''s Industry]],tbl_HFS[Fund],Fund) -> 12000000 | G109: =tbl_IndustryChubb[[#This Row],[Existing Portfolio]]+tbl_IndustryChubb[[#This Row],[Pipeline]] -> 12000000
D110: Sovereign & Public Finance | E110: =SUMIFS(tbl_ExistingData[Total Commitment], tbl_ExistingData[Moodys Industry], tbl_IndustryChubb[[#This Row],[Moody''s Industry]] & "*", tbl_ExistingData[Fund], Fund, tbl_ExistingData[Paid Off Date], "=") -> 0 | F110: =SUMIFS(tbl_HypoPipeline[Total Commitment], tbl_HypoPipeline[Moody''s Industry], tbl_IndustryChubb[[#This Row],[Moody''s Industry]] & "*", tbl_HypoPipeline[Fund], Fund,tbl_HypoPipeline[Exclude?],"") + SUMIFS(tbl_HFS[Total Commitment],tbl_HFS[Moody''s Industry],tbl_IndustryChubb[[#This Row],[Moody''s Industry]],tbl_HFS[Fund],Fund) -> 0 | G110: =tbl_IndustryChubb[[#This Row],[Existing Portfolio]]+tbl_IndustryChubb[[#This Row],[Pipeline]] -> 0
D111: Telecommunications | E111: =SUMIFS(tbl_ExistingData[Total Commitment], tbl_ExistingData[Moodys Industry], tbl_IndustryChubb[[#This Row],[Moody''s Industry]] & "*", tbl_ExistingData[Fund], Fund, tbl_ExistingData[Paid Off Date], "=") -> 0 | F111: =SUMIFS(tbl_HypoPipeline[Total Commitment], tbl_HypoPipeline[Moody''s Industry], tbl_IndustryChubb[[#This Row],[Moody''s Industry]] & "*", tbl_HypoPipeline[Fund], Fund,tbl_HypoPipeline[Exclude?],"") + SUMIFS(tbl_HFS[Total Commitment],tbl_HFS[Moody''s Industry],tbl_IndustryChubb[[#This Row],[Moody''s Industry]],tbl_HFS[Fund],Fund) -> 0 | G111: =tbl_IndustryChubb[[#This Row],[Existing Portfolio]]+tbl_IndustryChubb[[#This Row],[Pipeline]] -> 0
D112: Transportation: Cargo | E112: =SUMIFS(tbl_ExistingData[Total Commitment], tbl_ExistingData[Moodys Industry], tbl_IndustryChubb[[#This Row],[Moody''s Industry]] & "*", tbl_ExistingData[Fund], Fund, tbl_ExistingData[Paid Off Date], "=") -> 0 | F112: =SUMIFS(tbl_HypoPipeline[Total Commitment], tbl_HypoPipeline[Moody''s Industry], tbl_IndustryChubb[[#This Row],[Moody''s Industry]] & "*", tbl_HypoPipeline[Fund], Fund,tbl_HypoPipeline[Exclude?],"") + SUMIFS(tbl_HFS[Total Commitment],tbl_HFS[Moody''s Industry],tbl_IndustryChubb[[#This Row],[Moody''s Industry]],tbl_HFS[Fund],Fund) -> 0 | G112: =tbl_IndustryChubb[[#This Row],[Existing Portfolio]]+tbl_IndustryChubb[[#This Row],[Pipeline]] -> 0
D113: Transportation: Consumer | E113: =SUMIFS(tbl_ExistingData[Total Commitment], tbl_ExistingData[Moodys Industry], tbl_IndustryChubb[[#This Row],[Moody''s Industry]] & "*", tbl_ExistingData[Fund], Fund, tbl_ExistingData[Paid Off Date], "=") -> 0 | F113: =SUMIFS(tbl_HypoPipeline[Total Commitment], tbl_HypoPipeline[Moody''s Industry], tbl_IndustryChubb[[#This Row],[Moody''s Industry]] & "*", tbl_HypoPipeline[Fund], Fund,tbl_HypoPipeline[Exclude?],"") + SUMIFS(tbl_HFS[Total Commitment],tbl_HFS[Moody''s Industry],tbl_IndustryChubb[[#This Row],[Moody''s Industry]],tbl_HFS[Fund],Fund) -> 0 | G113: =tbl_IndustryChubb[[#This Row],[Existing Portfolio]]+tbl_IndustryChubb[[#This Row],[Pipeline]] -> 0
D114: Utilities: Electric | E114: =SUMIFS(tbl_ExistingData[Total Commitment], tbl_ExistingData[Moodys Industry], tbl_IndustryChubb[[#This Row],[Moody''s Industry]] & "*", tbl_ExistingData[Fund], Fund, tbl_ExistingData[Paid Off Date], "=") -> 0 | F114: =SUMIFS(tbl_HypoPipeline[Total Commitment], tbl_HypoPipeline[Moody''s Industry], tbl_IndustryChubb[[#This Row],[Moody''s Industry]] & "*", tbl_HypoPipeline[Fund], Fund,tbl_HypoPipeline[Exclude?],"") + SUMIFS(tbl_HFS[Total Commitment],tbl_HFS[Moody''s Industry],tbl_IndustryChubb[[#This Row],[Moody''s Industry]],tbl_HFS[Fund],Fund) -> 0 | G114: =tbl_IndustryChubb[[#This Row],[Existing Portfolio]]+tbl_IndustryChubb[[#This Row],[Pipeline]] -> 0
D115: Utilities: Oil & Gas | E115: =SUMIFS(tbl_ExistingData[Total Commitment], tbl_ExistingData[Moodys Industry], tbl_IndustryChubb[[#This Row],[Moody''s Industry]] & "*", tbl_ExistingData[Fund], Fund, tbl_ExistingData[Paid Off Date], "=") -> 0 | F115: =SUMIFS(tbl_HypoPipeline[Total Commitment], tbl_HypoPipeline[Moody''s Industry], tbl_IndustryChubb[[#This Row],[Moody''s Industry]] & "*", tbl_HypoPipeline[Fund], Fund,tbl_HypoPipeline[Exclude?],"") + SUMIFS(tbl_HFS[Total Commitment],tbl_HFS[Moody''s Industry],tbl_IndustryChubb[[#This Row],[Moody''s Industry]],tbl_HFS[Fund],Fund) -> 0 | G115: =tbl_IndustryChubb[[#This Row],[Existing Portfolio]]+tbl_IndustryChubb[[#This Row],[Pipeline]] -> 0
D116: Utilities: Water | E116: =SUMIFS(tbl_ExistingData[Total Commitment], tbl_ExistingData[Moodys Industry], tbl_IndustryChubb[[#This Row],[Moody''s Industry]] & "*", tbl_ExistingData[Fund], Fund, tbl_ExistingData[Paid Off Date], "=") -> 0 | F116: =SUMIFS(tbl_HypoPipeline[Total Commitment], tbl_HypoPipeline[Moody''s Industry], tbl_IndustryChubb[[#This Row],[Moody''s Industry]] & "*", tbl_HypoPipeline[Fund], Fund,tbl_HypoPipeline[Exclude?],"") + SUMIFS(tbl_HFS[Total Commitment],tbl_HFS[Moody''s Industry],tbl_IndustryChubb[[#This Row],[Moody''s Industry]],tbl_HFS[Fund],Fund) -> 0 | G116: =tbl_IndustryChubb[[#This Row],[Existing Portfolio]]+tbl_IndustryChubb[[#This Row],[Pipeline]] -> 0
D117: Wholesale | E117: =SUMIFS(tbl_ExistingData[Total Commitment], tbl_ExistingData[Moodys Industry], tbl_IndustryChubb[[#This Row],[Moody''s Industry]] & "*", tbl_ExistingData[Fund], Fund, tbl_ExistingData[Paid Off Date], "=") -> 0 | F117: =SUMIFS(tbl_HypoPipeline[Total Commitment], tbl_HypoPipeline[Moody''s Industry], tbl_IndustryChubb[[#This Row],[Moody''s Industry]] & "*", tbl_HypoPipeline[Fund], Fund,tbl_HypoPipeline[Exclude?],"") + SUMIFS(tbl_HFS[Total Commitment],tbl_HFS[Moody''s Industry],tbl_IndustryChubb[[#This Row],[Moody''s Industry]],tbl_HFS[Fund],Fund) -> 17000000 | G117: =tbl_IndustryChubb[[#This Row],[Existing Portfolio]]+tbl_IndustryChubb[[#This Row],[Pipeline]] -> 17000000
A120: Restricted Issuer
A121: The fund is prohibited from participating with any listed issuers.
A123: Bucket | B123: 0 | D123: Restricted Issuer | E123: Website
A124: Available | B124: =B123-B128 -> 0 | D124: Heartland Dental LLC | E124: https://www.heartland.com/
D125: Bay Club Co/The | E125: https://www.bayclubs.com/
A126: Matching Deals in Hypo | B126: =SUMPRODUCT(COUNTIF(tbl_RestrictedIssuersChubb[Restricted Issuer],tbl_HypoPipeline[Deal Name])) -> 0 | D126: GenesisCare | E126: https://www.genesiscare.com/au/
A127: Matching Deals in Portfolio | B127: =SUMPRODUCT(COUNTIF(tbl_RestrictedIssuersChubb[Restricted Issuer],tbl_ExistingData[Deal Name])) -> 0 | D127: Exact Software | E127: https://www.exact.com/
A128: Total Matches | B128: =SUM(B126:B127) -> 0 | D128: Arnott's Biscuits Limited | E128: https://www.arnotts.com/
D129: Viridor Waste Management Ltd | E129: https://www.viridor.co.uk/
D130: Roompot Services BV | E130: https://www.roompot.com/
D131: 1-800 Contacts Inc | E131: https://www.1800contacts.com/
D132: PetVet Care Centers LLC | E132: https://www.petvetcarecenters.com

Sheet Tests (AF-US)
A1: Tests: | B1: SMA-AF US
A3: SMA Commitment | B3: =VLOOKUP(Fund,tbl_Funds[[Fund]:[Principal Balance]],2,0) -> 100000000
A5: Max Commitment
A7: Bucket
A8: Commitment | B8: =Commitment -> 100000000
A9: Protective Advances Holdback | B9: =_xlfn.XLOOKUP(Fund,tbl_Funds[Fund],tbl_Funds[Protective Advances]) -> 5000000
A10: Bucket Subtotal | B10: =B8-B9 -> 95000000
A11: Available | B11: =B10-B15 -> 95000000
A13: Existing Portfolio | B13: =SUMIFS(tbl_ExistingData[Total Commitment],tbl_ExistingData[Fund],Fund, tbl_ExistingData[Paid Off Date], "=") -> 0
A14: Hypo Pipeline | B14: =SUMIFS(tbl_HypoPipeline[Total Commitment],tbl_HypoPipeline[Fund],Fund,tbl_HypoPipeline[Exclude?],"") -> 0
A15: Final Test Total | B15: =B14+B13 -> 0
A17: Protective Advances
A18: Portfolio | B18: =SUMIF(tbl_ProtectiveAdvances[SMA],Fund,tbl_ProtectiveAdvances[Commitment Amount]) -> 49991.64
A19: Hypo | B19: =SUMIFS(tbl_HypoPipeline[Total Commitment],tbl_HypoPipeline[Fund],Fund,tbl_HypoPipeline[Protective Advances],"Y") -> 0
A21: Protective Advances
A22: Aggregate of protective advances to date cannot be more than 3% of total fund size
A24: Bucket | B24: =Commitment*0.03 -> 3000000
A25: Available | B25: =B24-B29 -> 2950008.36
A27: Existing Portfolio | B27: =SUMIF(tbl_ProtectiveAdvances[SMA],Fund,tbl_ProtectiveAdvances[Commitment Amount]) -> 49991.64 | D27: =IF(COUNTIFS(tbl_ExistingData[Fund],Fund,tbl_ExistingData[Net Senior Leverage],0)>0,"There exist [" & COUNTIFS(tbl_ExistingData[Fund],Fund,tbl_ExistingData[Net Senior Leverage],0) & "] " & Fund & " deals in the Active Portfolio with a Net Senior Leverage of 0.","") -> 
A28: Hypo Pipeline | B28: =SUMIFS(tbl_HypoPipeline[Total Commitment],tbl_HypoPipeline[Fund],Fund,tbl_HypoPipeline[Protective Advances],"Y") -> 0
A29: Final Test Total | B29: =B28+B27 -> 49991.64
A32: Unfunded Commitment
A33: The sum of Portfolio and Pipeline values (Revolver Commitments + DDTL Commitments - DDTL Principal) must be < 15% of total SMA Commitment.
A35: Bucket | B35: =Commitment*0.15 -> 15000000
A36: Available | B36: =B35-B50 -> 15000000
A38: Existing Portfolio
A39: Total Revolver Commitment in Program | B39: =SUMIFS(tbl_ExistingData[Total Commitment],tbl_ExistingData[Tranche],"*evolv*",tbl_ExistingData[Fund],Fund, tbl_ExistingData[Paid Off Date], "=") -> 0
A40: Total DDTL Commitment in Program | B40: =SUM(SUMIFS(tbl_ExistingData[Total Commitment],tbl_ExistingData[Tranche],{"*Delayed Draw*","*DDTL*"},tbl_ExistingData[Fund],Fund, tbl_ExistingData[Paid Off Date], "=")) -> 0
A41: Total DDTL Principal in Program | B41: =SUM(SUMIFS(tbl_ExistingData[Principal Balance],tbl_ExistingData[Tranche],{"*Delayed Draw*","*DDTL*"},tbl_ExistingData[Fund],Fund, tbl_ExistingData[Paid Off Date], "=")) -> 0
A42: Existing Portfolio Subtotal | B42: =B39+B40-B41 -> 0
A44: Hypo Pipeline
A45: Total Revolver Commitment in Pipeline | B45: =SUMIFS(tbl_HypoPipeline[Total Commitment], tbl_HypoPipeline[Tranche], "*evolv*", tbl_HypoPipeline[Fund], Fund,tbl_HypoPipeline[Exclude?],"") -> 0
A46: Total DDTL Commitment in Pipeline | B46: =SUM(SUMIFS(tbl_HypoPipeline[Total Commitment],tbl_HypoPipeline[Tranche],{"*Delayed Draw*","*DDTL*"},tbl_HypoPipeline[Fund],Fund,tbl_HypoPipeline[Exclude?],"")) -> 0
A47: Total DDTL Principal in Pipeline | B47: =SUM(SUMIFS(tbl_HypoPipeline[Principal Balance],tbl_HypoPipeline[Tranche],{"*Delayed Draw*","*DDTL*"},tbl_HypoPipeline[Fund],Fund,tbl_HypoPipeline[Exclude?],"")) -> 0
A48: Hypo Pipeline Subtotal | B48: =B45+B46-B47 -> 0
A50: Final Test Total | B50: =B48+B42 -> 0
A52: Net Senior Leverage 4.75x
A53: (Original Net Senior Leverage > 4.75) < 30% * SMA Commitment Amount
A55: Bucket | B55: =Commitment*0.3 -> 30000000
A56: Available | B56: =B55-B60 -> 30000000
A58: Existing Portfolio | B58: =SUMIFS(tbl_ExistingData[Total Commitment], tbl_ExistingData[Net Senior Leverage], ">4.75", tbl_ExistingData[Fund], Fund, tbl_ExistingData[Paid Off Date], "=") -> 0 | D58: =IF(COUNTIFS(tbl_ExistingData[Fund],Fund,tbl_ExistingData[Net Senior Leverage],0)>0,"There exist [" & COUNTIFS(tbl_ExistingData[Fund],Fund,tbl_ExistingData[Net Senior Leverage],0) & "] " & Fund & " deals in the Active Portfolio with a Net Senior Leverage of 0.","") -> 
A59: Hypo Pipeline | B59: =SUMIFS(tbl_HypoPipeline[Total Commitment], tbl_HypoPipeline[Net Senior Leverage], ">4.75", tbl_HypoPipeline[Fund], Fund,tbl_HypoPipeline[Exclude?],"") -> 0
A60: Final Test Total | B60: =B59+B58 -> 0
A62: Net Senior Leverage 5.50x
A63: (Original Net Senior Leverage > 5.50) < 10% * SMA Commitment Amount
A65: Bucket | B65: =Commitment*0.1 -> 10000000
A66: Available | B66: =B65-B70 -> 10000000
A68: Existing Portfolio | B68: =SUMIFS(tbl_ExistingData[Total Commitment], tbl_ExistingData[Net Senior Leverage], ">5.5", tbl_ExistingData[Fund], Fund, tbl_ExistingData[Paid Off Date], "=") -> 0 | D68: =IF(COUNTIFS(tbl_ExistingData[Fund],Fund,tbl_ExistingData[Net Senior Leverage],0)>0,"There exist [" & COUNTIFS(tbl_ExistingData[Fund],Fund,tbl_ExistingData[Net Senior Leverage],0) & "] " & Fund & " deals in the Active Portfolio with a Net Senior Leverage of 0.","") -> 
A69: Hypo Pipeline | B69: =SUMIFS(tbl_HypoPipeline[Total Commitment], tbl_HypoPipeline[Net Senior Leverage], ">5.5", tbl_HypoPipeline[Fund], Fund,tbl_HypoPipeline[Exclude?],"") -> 0
A70: Final Test Total | B70: =B69+B68 -> 0
A72: Open Market
A73: All Commitments Secondary Market < 5% * SMA Commitment Amount
A75: Bucket | B75: =Commitment*0.05 -> 5000000
A76: Available | B76: =B75-B80 -> 5000000
A78: Existing Portfolio | B78: =SUMIFS(tbl_ExistingData[Total Commitment],tbl_ExistingData[Open Market Purchase (Y)], "Y",tbl_ExistingData[Fund],Fund, tbl_ExistingData[Paid Off Date], "=") -> 0
A79: Hypo Pipeline | B79: =SUMIFS(tbl_HypoPipeline[Total Commitment],tbl_HypoPipeline[Open Market Purchase (Y)], "Y",tbl_HypoPipeline[Fund],Fund,tbl_HypoPipeline[Exclude?],"") -> 0
A80: Final Test Total | B80: =B79+B78 -> 0
A82: Industry Tests
A83: Maximum aggregate exposure of 25%, 20% and 15% of SMA Commitment for largest three industries.
A85: Largest Bucket | B85: =Commitment*0.25 -> 25000000 | D85: Moody's Industry | E85: Existing | F85: Pipeline | G85: Existing + Pipeline
A86: Available | B86: =B85-B91 -> 25000000 | D86: Aerospace & Defense | E86: =SUMIFS(tbl_ExistingData[Total Commitment], tbl_ExistingData[Moodys Industry], tbl_IndustryAFUS[[#This Row],[Moody''s Industry]] & "*", tbl_ExistingData[Fund], Fund, tbl_ExistingData[Paid Off Date], "=") -> 0 | F86: =SUMIFS(tbl_HypoPipeline[Total Commitment], tbl_HypoPipeline[Moody''s Industry], tbl_IndustryAFUS[[#This Row],[Moody''s Industry]] & "*", tbl_HypoPipeline[Fund], Fund,tbl_HypoPipeline[Exclude?],"") + SUMIFS(tbl_HFS[Total Commitment],tbl_HFS[Moody''s Industry],tbl_IndustryAFUS[[#This Row],[Moody''s Industry]],tbl_HFS[Fund],Fund) -> 0 | G86: =tbl_IndustryAFUS[[#This Row],[Existing]]+tbl_IndustryAFUS[[#This Row],[Pipeline]] -> 0
D87: Automotive | E87: =SUMIFS(tbl_ExistingData[Total Commitment], tbl_ExistingData[Moodys Industry], tbl_IndustryAFUS[[#This Row],[Moody''s Industry]] & "*", tbl_ExistingData[Fund], Fund, tbl_ExistingData[Paid Off Date], "=") -> 0 | F87: =SUMIFS(tbl_HypoPipeline[Total Commitment], tbl_HypoPipeline[Moody''s Industry], tbl_IndustryAFUS[[#This Row],[Moody''s Industry]] & "*", tbl_HypoPipeline[Fund], Fund,tbl_HypoPipeline[Exclude?],"") + SUMIFS(tbl_HFS[Total Commitment],tbl_HFS[Moody''s Industry],tbl_IndustryAFUS[[#This Row],[Moody''s Industry]],tbl_HFS[Fund],Fund) -> 0 | G87: =tbl_IndustryAFUS[[#This Row],[Existing]]+tbl_IndustryAFUS[[#This Row],[Pipeline]] -> 0
A88: =INDEX(tbl_IndustryAFUS[],MATCH(B91,tbl_IndustryAFUS[Existing + Pipeline],0),1) -> Aerospace & Defense | D88: Banking, Finance, Insurance & Real Estate | E88: =SUMIFS(tbl_ExistingData[Total Commitment], tbl_ExistingData[Moodys Industry], tbl_IndustryAFUS[[#This Row],[Moody''s Industry]] & "*", tbl_ExistingData[Fund], Fund, tbl_ExistingData[Paid Off Date], "=") -> 0 | F88: =SUMIFS(tbl_HypoPipeline[Total Commitment], tbl_HypoPipeline[Moody''s Industry], tbl_IndustryAFUS[[#This Row],[Moody''s Industry]] & "*", tbl_HypoPipeline[Fund], Fund,tbl_HypoPipeline[Exclude?],"") + SUMIFS(tbl_HFS[Total Commitment],tbl_HFS[Moody''s Industry],tbl_IndustryAFUS[[#This Row],[Moody''s Industry]],tbl_HFS[Fund],Fund) -> 0 | G88: =tbl_IndustryAFUS[[#This Row],[Existing]]+tbl_IndustryAFUS[[#This Row],[Pipeline]] -> 0
A89: Existing Portfolio Component | B89: =INDEX(tbl_IndustryAFUS[],MATCH(B91,tbl_IndustryAFUS[Existing + Pipeline],0),2) -> 0 | D89: Beverage, Food & Tobacco | E89: =SUMIFS(tbl_ExistingData[Total Commitment], tbl_ExistingData[Moodys Industry], tbl_IndustryAFUS[[#This Row],[Moody''s Industry]] & "*", tbl_ExistingData[Fund], Fund, tbl_ExistingData[Paid Off Date], "=") -> 0 | F89: =SUMIFS(tbl_HypoPipeline[Total Commitment], tbl_HypoPipeline[Moody''s Industry], tbl_IndustryAFUS[[#This Row],[Moody''s Industry]] & "*", tbl_HypoPipeline[Fund], Fund,tbl_HypoPipeline[Exclude?],"") + SUMIFS(tbl_HFS[Total Commitment],tbl_HFS[Moody''s Industry],tbl_IndustryAFUS[[#This Row],[Moody''s Industry]],tbl_HFS[Fund],Fund) -> 0 | G89: =tbl_IndustryAFUS[[#This Row],[Existing]]+tbl_IndustryAFUS[[#This Row],[Pipeline]] -> 0
A90: Hypo Pipeline Component | B90: =INDEX(tbl_IndustryAFUS[],MATCH(B91,tbl_IndustryAFUS[Existing + Pipeline],0),3) -> 0 | D90: Capital Equipment | E90: =SUMIFS(tbl_ExistingData[Total Commitment], tbl_ExistingData[Moodys Industry], tbl_IndustryAFUS[[#This Row],[Moody''s Industry]] & "*", tbl_ExistingData[Fund], Fund, tbl_ExistingData[Paid Off Date], "=") -> 0 | F90: =SUMIFS(tbl_HypoPipeline[Total Commitment], tbl_HypoPipeline[Moody''s Industry], tbl_IndustryAFUS[[#This Row],[Moody''s Industry]] & "*", tbl_HypoPipeline[Fund], Fund,tbl_HypoPipeline[Exclude?],"") + SUMIFS(tbl_HFS[Total Commitment],tbl_HFS[Moody''s Industry],tbl_IndustryAFUS[[#This Row],[Moody''s Industry]],tbl_HFS[Fund],Fund) -> 0 | G90: =tbl_IndustryAFUS[[#This Row],[Existing]]+tbl_IndustryAFUS[[#This Row],[Pipeline]] -> 0
A91: Aggregate Exposure | B91: =LARGE(tbl_IndustryAFUS[Existing + Pipeline],1) -> 0 | D91: Chemicals, Plastics & Rubber | E91: =SUMIFS(tbl_ExistingData[Total Commitment], tbl_ExistingData[Moodys Industry], tbl_IndustryAFUS[[#This Row],[Moody''s Industry]] & "*", tbl_ExistingData[Fund], Fund, tbl_ExistingData[Paid Off Date], "=") -> 0 | F91: =SUMIFS(tbl_HypoPipeline[Total Commitment], tbl_HypoPipeline[Moody''s Industry], tbl_IndustryAFUS[[#This Row],[Moody''s Industry]] & "*", tbl_HypoPipeline[Fund], Fund,tbl_HypoPipeline[Exclude?],"") + SUMIFS(tbl_HFS[Total Commitment],tbl_HFS[Moody''s Industry],tbl_IndustryAFUS[[#This Row],[Moody''s Industry]],tbl_HFS[Fund],Fund) -> 0 | G91: =tbl_IndustryAFUS[[#This Row],[Existing]]+tbl_IndustryAFUS[[#This Row],[Pipeline]] -> 0
D92: Construction & Building | E92: =SUMIFS(tbl_ExistingData[Total Commitment], tbl_ExistingData[Moodys Industry], tbl_IndustryAFUS[[#This Row],[Moody''s Industry]] & "*", tbl_ExistingData[Fund], Fund, tbl_ExistingData[Paid Off Date], "=") -> 0 | F92: =SUMIFS(tbl_HypoPipeline[Total Commitment], tbl_HypoPipeline[Moody''s Industry], tbl_IndustryAFUS[[#This Row],[Moody''s Industry]] & "*", tbl_HypoPipeline[Fund], Fund,tbl_HypoPipeline[Exclude?],"") + SUMIFS(tbl_HFS[Total Commitment],tbl_HFS[Moody''s Industry],tbl_IndustryAFUS[[#This Row],[Moody''s Industry]],tbl_HFS[Fund],Fund) -> 0 | G92: =tbl_IndustryAFUS[[#This Row],[Existing]]+tbl_IndustryAFUS[[#This Row],[Pipeline]] -> 0
D93: Consumer goods: Durable | E93: =SUMIFS(tbl_ExistingData[Total Commitment], tbl_ExistingData[Moodys Industry], tbl_IndustryAFUS[[#This Row],[Moody''s Industry]] & "*", tbl_ExistingData[Fund], Fund, tbl_ExistingData[Paid Off Date], "=") -> 0 | F93: =SUMIFS(tbl_HypoPipeline[Total Commitment], tbl_HypoPipeline[Moody''s Industry], tbl_IndustryAFUS[[#This Row],[Moody''s Industry]] & "*", tbl_HypoPipeline[Fund], Fund,tbl_HypoPipeline[Exclude?],"") + SUMIFS(tbl_HFS[Total Commitment],tbl_HFS[Moody''s Industry],tbl_IndustryAFUS[[#This Row],[Moody''s Industry]],tbl_HFS[Fund],Fund) -> 0 | G93: =tbl_IndustryAFUS[[#This Row],[Existing]]+tbl_IndustryAFUS[[#This Row],[Pipeline]] -> 0
A94: 2nd Largest Bucket | B94: =Commitment*0.2 -> 20000000 | D94: Consumer goods: Non-durable | E94: =SUMIFS(tbl_ExistingData[Total Commitment], tbl_ExistingData[Moodys Industry], tbl_IndustryAFUS[[#This Row],[Moody''s Industry]] & "*", tbl_ExistingData[Fund], Fund, tbl_ExistingData[Paid Off Date], "=") -> 0 | F94: =SUMIFS(tbl_HypoPipeline[Total Commitment], tbl_HypoPipeline[Moody''s Industry], tbl_IndustryAFUS[[#This Row],[Moody''s Industry]] & "*", tbl_HypoPipeline[Fund], Fund,tbl_HypoPipeline[Exclude?],"") + SUMIFS(tbl_HFS[Total Commitment],tbl_HFS[Moody''s Industry],tbl_IndustryAFUS[[#This Row],[Moody''s Industry]],tbl_HFS[Fund],Fund) -> 0 | G94: =tbl_IndustryAFUS[[#This Row],[Existing]]+tbl_IndustryAFUS[[#This Row],[Pipeline]] -> 0
A95: Available | B95: =B94-B100 -> 20000000 | D95: Containers, Packaging & Glass | E95: =SUMIFS(tbl_ExistingData[Total Commitment], tbl_ExistingData[Moodys Industry], tbl_IndustryAFUS[[#This Row],[Moody''s Industry]] & "*", tbl_ExistingData[Fund], Fund, tbl_ExistingData[Paid Off Date], "=") -> 0 | F95: =SUMIFS(tbl_HypoPipeline[Total Commitment], tbl_HypoPipeline[Moody''s Industry], tbl_IndustryAFUS[[#This Row],[Moody''s Industry]] & "*", tbl_HypoPipeline[Fund], Fund,tbl_HypoPipeline[Exclude?],"") + SUMIFS(tbl_HFS[Total Commitment],tbl_HFS[Moody''s Industry],tbl_IndustryAFUS[[#This Row],[Moody''s Industry]],tbl_HFS[Fund],Fund) -> 0 | G95: =tbl_IndustryAFUS[[#This Row],[Existing]]+tbl_IndustryAFUS[[#This Row],[Pipeline]] -> 0
D96: Energy: Electricity | E96: =SUMIFS(tbl_ExistingData[Total Commitment], tbl_ExistingData[Moodys Industry], tbl_IndustryAFUS[[#This Row],[Moody''s Industry]] & "*", tbl_ExistingData[Fund], Fund, tbl_ExistingData[Paid Off Date], "=") -> 0 | F96: =SUMIFS(tbl_HypoPipeline[Total Commitment], tbl_HypoPipeline[Moody''s Industry], tbl_IndustryAFUS[[#This Row],[Moody''s Industry]] & "*", tbl_HypoPipeline[Fund], Fund,tbl_HypoPipeline[Exclude?],"") + SUMIFS(tbl_HFS[Total Commitment],tbl_HFS[Moody''s Industry],tbl_IndustryAFUS[[#This Row],[Moody''s Industry]],tbl_HFS[Fund],Fund) -> 0 | G96: =tbl_IndustryAFUS[[#This Row],[Existing]]+tbl_IndustryAFUS[[#This Row],[Pipeline]] -> 0
A97: =INDEX(tbl_IndustryAFUS[],MATCH(B100,tbl_IndustryAFUS[Existing + Pipeline],0),1) -> Aerospace & Defense | D97: Energy: Oil & Gas | E97: =SUMIFS(tbl_ExistingData[Total Commitment], tbl_ExistingData[Moodys Industry], tbl_IndustryAFUS[[#This Row],[Moody''s Industry]] & "*", tbl_ExistingData[Fund], Fund, tbl_ExistingData[Paid Off Date], "=") -> 0 | F97: =SUMIFS(tbl_HypoPipeline[Total Commitment], tbl_HypoPipeline[Moody''s Industry], tbl_IndustryAFUS[[#This Row],[Moody''s Industry]] & "*", tbl_HypoPipeline[Fund], Fund,tbl_HypoPipeline[Exclude?],"") + SUMIFS(tbl_HFS[Total Commitment],tbl_HFS[Moody''s Industry],tbl_IndustryAFUS[[#This Row],[Moody''s Industry]],tbl_HFS[Fund],Fund) -> 0 | G97: =tbl_IndustryAFUS[[#This Row],[Existing]]+tbl_IndustryAFUS[[#This Row],[Pipeline]] -> 0
A98: Existing Portfolio | B98: =INDEX(tbl_IndustryAFUS[],MATCH(B100,tbl_IndustryAFUS[Existing + Pipeline],0),2) -> 0 | D98: Environmental Industries | E98: =SUMIFS(tbl_ExistingData[Total Commitment], tbl_ExistingData[Moodys Industry], tbl_IndustryAFUS[[#This Row],[Moody''s Industry]] & "*", tbl_ExistingData[Fund], Fund, tbl_ExistingData[Paid Off Date], "=") -> 0 | F98: =SUMIFS(tbl_HypoPipeline[Total Commitment], tbl_HypoPipeline[Moody''s Industry], tbl_IndustryAFUS[[#This Row],[Moody''s Industry]] & "*", tbl_HypoPipeline[Fund], Fund,tbl_HypoPipeline[Exclude?],"") + SUMIFS(tbl_HFS[Total Commitment],tbl_HFS[Moody''s Industry],tbl_IndustryAFUS[[#This Row],[Moody''s Industry]],tbl_HFS[Fund],Fund) -> 0 | G98: =tbl_IndustryAFUS[[#This Row],[Existing]]+tbl_IndustryAFUS[[#This Row],[Pipeline]] -> 0
A99: Hypo Pipeline | B99: =INDEX(tbl_IndustryAFUS[],MATCH(B100,tbl_IndustryAFUS[Existing + Pipeline],0),3) -> 0 | D99: Forest Products & Paper | E99: =SUMIFS(tbl_ExistingData[Total Commitment], tbl_ExistingData[Moodys Industry], tbl_IndustryAFUS[[#This Row],[Moody''s Industry]] & "*", tbl_ExistingData[Fund], Fund, tbl_ExistingData[Paid Off Date], "=") -> 0 | F99: =SUMIFS(tbl_HypoPipeline[Total Commitment], tbl_HypoPipeline[Moody''s Industry], tbl_IndustryAFUS[[#This Row],[Moody''s Industry]] & "*", tbl_HypoPipeline[Fund], Fund,tbl_HypoPipeline[Exclude?],"") + SUMIFS(tbl_HFS[Total Commitment],tbl_HFS[Moody''s Industry],tbl_IndustryAFUS[[#This Row],[Moody''s Industry]],tbl_HFS[Fund],Fund) -> 0 | G99: =tbl_IndustryAFUS[[#This Row],[Existing]]+tbl_IndustryAFUS[[#This Row],[Pipeline]] -> 0
A100: Aggregate Exposure | B100: =LARGE(tbl_IndustryAFUS[Existing + Pipeline],2) -> 0 | D100: Healthcare & Pharmaceuticals | E100: =SUMIFS(tbl_ExistingData[Total Commitment], tbl_ExistingData[Moodys Industry], tbl_IndustryAFUS[[#This Row],[Moody''s Industry]] & "*", tbl_ExistingData[Fund], Fund, tbl_ExistingData[Paid Off Date], "=") -> 0 | F100: =SUMIFS(tbl_HypoPipeline[Total Commitment], tbl_HypoPipeline[Moody''s Industry], tbl_IndustryAFUS[[#This Row],[Moody''s Industry]] & "*", tbl_HypoPipeline[Fund], Fund,tbl_HypoPipeline[Exclude?],"") + SUMIFS(tbl_HFS[Total Commitment],tbl_HFS[Moody''s Industry],tbl_IndustryAFUS[[#This Row],[Moody''s Industry]],tbl_HFS[Fund],Fund) -> 0 | G100: =tbl_IndustryAFUS[[#This Row],[Existing]]+tbl_IndustryAFUS[[#This Row],[Pipeline]] -> 0
D101: High Tech Industries | E101: =SUMIFS(tbl_ExistingData[Total Commitment], tbl_ExistingData[Moodys Industry], tbl_IndustryAFUS[[#This Row],[Moody''s Industry]] & "*", tbl_ExistingData[Fund], Fund, tbl_ExistingData[Paid Off Date], "=") -> 0 | F101: =SUMIFS(tbl_HypoPipeline[Total Commitment], tbl_HypoPipeline[Moody''s Industry], tbl_IndustryAFUS[[#This Row],[Moody''s Industry]] & "*", tbl_HypoPipeline[Fund], Fund,tbl_HypoPipeline[Exclude?],"") + SUMIFS(tbl_HFS[Total Commitment],tbl_HFS[Moody''s Industry],tbl_IndustryAFUS[[#This Row],[Moody''s Industry]],tbl_HFS[Fund],Fund) -> 0 | G101: =tbl_IndustryAFUS[[#This Row],[Existing]]+tbl_IndustryAFUS[[#This Row],[Pipeline]] -> 0
D102: Hotel, Gaming & Leisure | E102: =SUMIFS(tbl_ExistingData[Total Commitment], tbl_ExistingData[Moodys Industry], tbl_IndustryAFUS[[#This Row],[Moody''s Industry]] & "*", tbl_ExistingData[Fund], Fund, tbl_ExistingData[Paid Off Date], "=") -> 0 | F102: =SUMIFS(tbl_HypoPipeline[Total Commitment], tbl_HypoPipeline[Moody''s Industry], tbl_IndustryAFUS[[#This Row],[Moody''s Industry]] & "*", tbl_HypoPipeline[Fund], Fund,tbl_HypoPipeline[Exclude?],"") + SUMIFS(tbl_HFS[Total Commitment],tbl_HFS[Moody''s Industry],tbl_IndustryAFUS[[#This Row],[Moody''s Industry]],tbl_HFS[Fund],Fund) -> 0 | G102: =tbl_IndustryAFUS[[#This Row],[Existing]]+tbl_IndustryAFUS[[#This Row],[Pipeline]] -> 0
A103: Any Other Bucket | B103: =Commitment*0.15 -> 15000000 | D103: Media: Advertising, Printing & Publishing | E103: =SUMIFS(tbl_ExistingData[Total Commitment], tbl_ExistingData[Moodys Industry], tbl_IndustryAFUS[[#This Row],[Moody''s Industry]] & "*", tbl_ExistingData[Fund], Fund, tbl_ExistingData[Paid Off Date], "=") -> 0 | F103: =SUMIFS(tbl_HypoPipeline[Total Commitment], tbl_HypoPipeline[Moody''s Industry], tbl_IndustryAFUS[[#This Row],[Moody''s Industry]] & "*", tbl_HypoPipeline[Fund], Fund,tbl_HypoPipeline[Exclude?],"") + SUMIFS(tbl_HFS[Total Commitment],tbl_HFS[Moody''s Industry],tbl_IndustryAFUS[[#This Row],[Moody''s Industry]],tbl_HFS[Fund],Fund) -> 0 | G103: =tbl_IndustryAFUS[[#This Row],[Existing]]+tbl_IndustryAFUS[[#This Row],[Pipeline]] -> 0
A104: Available | B104: =B103-B109 -> 15000000 | D104: Media: Broadcasting & Subscription | E104: =SUMIFS(tbl_ExistingData[Total Commitment], tbl_ExistingData[Moodys Industry], tbl_IndustryAFUS[[#This Row],[Moody''s Industry]] & "*", tbl_ExistingData[Fund], Fund, tbl_ExistingData[Paid Off Date], "=") -> 0 | F104: =SUMIFS(tbl_HypoPipeline[Total Commitment], tbl_HypoPipeline[Moody''s Industry], tbl_IndustryAFUS[[#This Row],[Moody''s Industry]] & "*", tbl_HypoPipeline[Fund], Fund,tbl_HypoPipeline[Exclude?],"") + SUMIFS(tbl_HFS[Total Commitment],tbl_HFS[Moody''s Industry],tbl_IndustryAFUS[[#This Row],[Moody''s Industry]],tbl_HFS[Fund],Fund) -> 0 | G104: =tbl_IndustryAFUS[[#This Row],[Existing]]+tbl_IndustryAFUS[[#This Row],[Pipeline]] -> 0
D105: Media: Diversified & Production | E105: =SUMIFS(tbl_ExistingData[Total Commitment], tbl_ExistingData[Moodys Industry], tbl_IndustryAFUS[[#This Row],[Moody''s Industry]] & "*", tbl_ExistingData[Fund], Fund, tbl_ExistingData[Paid Off Date], "=") -> 0 | F105: =SUMIFS(tbl_HypoPipeline[Total Commitment], tbl_HypoPipeline[Moody''s Industry], tbl_IndustryAFUS[[#This Row],[Moody''s Industry]] & "*", tbl_HypoPipeline[Fund], Fund,tbl_HypoPipeline[Exclude?],"") + SUMIFS(tbl_HFS[Total Commitment],tbl_HFS[Moody''s Industry],tbl_IndustryAFUS[[#This Row],[Moody''s Industry]],tbl_HFS[Fund],Fund) -> 0 | G105: =tbl_IndustryAFUS[[#This Row],[Existing]]+tbl_IndustryAFUS[[#This Row],[Pipeline]] -> 0
A106: =INDEX(tbl_IndustryAFUS[],MATCH(B109,tbl_IndustryAFUS[Existing + Pipeline],0),1) -> Aerospace & Defense | D106: Metals & Mining | E106: =SUMIFS(tbl_ExistingData[Total Commitment], tbl_ExistingData[Moodys Industry], tbl_IndustryAFUS[[#This Row],[Moody''s Industry]] & "*", tbl_ExistingData[Fund], Fund, tbl_ExistingData[Paid Off Date], "=") -> 0 | F106: =SUMIFS(tbl_HypoPipeline[Total Commitment], tbl_HypoPipeline[Moody''s Industry], tbl_IndustryAFUS[[#This Row],[Moody''s Industry]] & "*", tbl_HypoPipeline[Fund], Fund,tbl_HypoPipeline[Exclude?],"") + SUMIFS(tbl_HFS[Total Commitment],tbl_HFS[Moody''s Industry],tbl_IndustryAFUS[[#This Row],[Moody''s Industry]],tbl_HFS[Fund],Fund) -> 0 | G106: =tbl_IndustryAFUS[[#This Row],[Existing]]+tbl_IndustryAFUS[[#This Row],[Pipeline]] -> 0
A107: Existing Portfolio | B107: =INDEX(tbl_IndustryAFUS[],MATCH(B109,tbl_IndustryAFUS[Existing + Pipeline],0),2) -> 0 | D107: Retail | E107: =SUMIFS(tbl_ExistingData[Total Commitment], tbl_ExistingData[Moodys Industry], tbl_IndustryAFUS[[#This Row],[Moody''s Industry]] & "*", tbl_ExistingData[Fund], Fund, tbl_ExistingData[Paid Off Date], "=") -> 0 | F107: =SUMIFS(tbl_HypoPipeline[Total Commitment], tbl_HypoPipeline[Moody''s Industry], tbl_IndustryAFUS[[#This Row],[Moody''s Industry]] & "*", tbl_HypoPipeline[Fund], Fund,tbl_HypoPipeline[Exclude?],"") + SUMIFS(tbl_HFS[Total Commitment],tbl_HFS[Moody''s Industry],tbl_IndustryAFUS[[#This Row],[Moody''s Industry]],tbl_HFS[Fund],Fund) -> 0 | G107: =tbl_IndustryAFUS[[#This Row],[Existing]]+tbl_IndustryAFUS[[#This Row],[Pipeline]] -> 0
A108: Hypo Pipeline | B108: =INDEX(tbl_IndustryAFUS[],MATCH(B109,tbl_IndustryAFUS[Existing + Pipeline],0),3) -> 0 | D108: Services: Business | E108: =SUMIFS(tbl_ExistingData[Total Commitment], tbl_ExistingData[Moodys Industry], tbl_IndustryAFUS[[#This Row],[Moody''s Industry]] & "*", tbl_ExistingData[Fund], Fund, tbl_ExistingData[Paid Off Date], "=") -> 0 | F108: =SUMIFS(tbl_HypoPipeline[Total Commitment], tbl_HypoPipeline[Moody''s Industry], tbl_IndustryAFUS[[#This Row],[Moody''s Industry]] & "*", tbl_HypoPipeline[Fund], Fund,tbl_HypoPipeline[Exclude?],"") + SUMIFS(tbl_HFS[Total Commitment],tbl_HFS[Moody''s Industry],tbl_IndustryAFUS[[#This Row],[Moody''s Industry]],tbl_HFS[Fund],Fund) -> 0 | G108: =tbl_IndustryAFUS[[#This Row],[Existing]]+tbl_IndustryAFUS[[#This Row],[Pipeline]] -> 0
A109: Aggregate Exposure | B109: =LARGE(tbl_IndustryAFUS[Existing + Pipeline],3) -> 0 | D109: Services: Consumer | E109: =SUMIFS(tbl_ExistingData[Total Commitment], tbl_ExistingData[Moodys Industry], tbl_IndustryAFUS[[#This Row],[Moody''s Industry]] & "*", tbl_ExistingData[Fund], Fund, tbl_ExistingData[Paid Off Date], "=") -> 0 | F109: =SUMIFS(tbl_HypoPipeline[Total Commitment], tbl_HypoPipeline[Moody''s Industry], tbl_IndustryAFUS[[#This Row],[Moody''s Industry]] & "*", tbl_HypoPipeline[Fund], Fund,tbl_HypoPipeline[Exclude?],"") + SUMIFS(tbl_HFS[Total Commitment],tbl_HFS[Moody''s Industry],tbl_IndustryAFUS[[#This Row],[Moody''s Industry]],tbl_HFS[Fund],Fund) -> 0 | G109: =tbl_IndustryAFUS[[#This Row],[Existing]]+tbl_IndustryAFUS[[#This Row],[Pipeline]] -> 0
D110: Sovereign & Public Finance | E110: =SUMIFS(tbl_ExistingData[Total Commitment], tbl_ExistingData[Moodys Industry], tbl_IndustryAFUS[[#This Row],[Moody''s Industry]] & "*", tbl_ExistingData[Fund], Fund, tbl_ExistingData[Paid Off Date], "=") -> 0 | F110: =SUMIFS(tbl_HypoPipeline[Total Commitment], tbl_HypoPipeline[Moody''s Industry], tbl_IndustryAFUS[[#This Row],[Moody''s Industry]] & "*", tbl_HypoPipeline[Fund], Fund,tbl_HypoPipeline[Exclude?],"") + SUMIFS(tbl_HFS[Total Commitment],tbl_HFS[Moody''s Industry],tbl_IndustryAFUS[[#This Row],[Moody''s Industry]],tbl_HFS[Fund],Fund) -> 0 | G110: =tbl_IndustryAFUS[[#This Row],[Existing]]+tbl_IndustryAFUS[[#This Row],[Pipeline]] -> 0
D111: Telecommunications | E111: =SUMIFS(tbl_ExistingData[Total Commitment], tbl_ExistingData[Moodys Industry], tbl_IndustryAFUS[[#This Row],[Moody''s Industry]] & "*", tbl_ExistingData[Fund], Fund, tbl_ExistingData[Paid Off Date], "=") -> 0 | F111: =SUMIFS(tbl_HypoPipeline[Total Commitment], tbl_HypoPipeline[Moody''s Industry], tbl_IndustryAFUS[[#This Row],[Moody''s Industry]] & "*", tbl_HypoPipeline[Fund], Fund,tbl_HypoPipeline[Exclude?],"") + SUMIFS(tbl_HFS[Total Commitment],tbl_HFS[Moody''s Industry],tbl_IndustryAFUS[[#This Row],[Moody''s Industry]],tbl_HFS[Fund],Fund) -> 0 | G111: =tbl_IndustryAFUS[[#This Row],[Existing]]+tbl_IndustryAFUS[[#This Row],[Pipeline]] -> 0
D112: Transportation: Cargo | E112: =SUMIFS(tbl_ExistingData[Total Commitment], tbl_ExistingData[Moodys Industry], tbl_IndustryAFUS[[#This Row],[Moody''s Industry]] & "*", tbl_ExistingData[Fund], Fund, tbl_ExistingData[Paid Off Date], "=") -> 0 | F112: =SUMIFS(tbl_HypoPipeline[Total Commitment], tbl_HypoPipeline[Moody''s Industry], tbl_IndustryAFUS[[#This Row],[Moody''s Industry]] & "*", tbl_HypoPipeline[Fund], Fund,tbl_HypoPipeline[Exclude?],"") + SUMIFS(tbl_HFS[Total Commitment],tbl_HFS[Moody''s Industry],tbl_IndustryAFUS[[#This Row],[Moody''s Industry]],tbl_HFS[Fund],Fund) -> 0 | G112: =tbl_IndustryAFUS[[#This Row],[Existing]]+tbl_IndustryAFUS[[#This Row],[Pipeline]] -> 0
D113: Transportation: Consumer | E113: =SUMIFS(tbl_ExistingData[Total Commitment], tbl_ExistingData[Moodys Industry], tbl_IndustryAFUS[[#This Row],[Moody''s Industry]] & "*", tbl_ExistingData[Fund], Fund, tbl_ExistingData[Paid Off Date], "=") -> 0 | F113: =SUMIFS(tbl_HypoPipeline[Total Commitment], tbl_HypoPipeline[Moody''s Industry], tbl_IndustryAFUS[[#This Row],[Moody''s Industry]] & "*", tbl_HypoPipeline[Fund], Fund,tbl_HypoPipeline[Exclude?],"") + SUMIFS(tbl_HFS[Total Commitment],tbl_HFS[Moody''s Industry],tbl_IndustryAFUS[[#This Row],[Moody''s Industry]],tbl_HFS[Fund],Fund) -> 0 | G113: =tbl_IndustryAFUS[[#This Row],[Existing]]+tbl_IndustryAFUS[[#This Row],[Pipeline]] -> 0
D114: Utilities: Electric | E114: =SUMIFS(tbl_ExistingData[Total Commitment], tbl_ExistingData[Moodys Industry], tbl_IndustryAFUS[[#This Row],[Moody''s Industry]] & "*", tbl_ExistingData[Fund], Fund, tbl_ExistingData[Paid Off Date], "=") -> 0 | F114: =SUMIFS(tbl_HypoPipeline[Total Commitment], tbl_HypoPipeline[Moody''s Industry], tbl_IndustryAFUS[[#This Row],[Moody''s Industry]] & "*", tbl_HypoPipeline[Fund], Fund,tbl_HypoPipeline[Exclude?],"") + SUMIFS(tbl_HFS[Total Commitment],tbl_HFS[Moody''s Industry],tbl_IndustryAFUS[[#This Row],[Moody''s Industry]],tbl_HFS[Fund],Fund) -> 0 | G114: =tbl_IndustryAFUS[[#This Row],[Existing]]+tbl_IndustryAFUS[[#This Row],[Pipeline]] -> 0
D115: Utilities: Oil & Gas | E115: =SUMIFS(tbl_ExistingData[Total Commitment], tbl_ExistingData[Moodys Industry], tbl_IndustryAFUS[[#This Row],[Moody''s Industry]] & "*", tbl_ExistingData[Fund], Fund, tbl_ExistingData[Paid Off Date], "=") -> 0 | F115: =SUMIFS(tbl_HypoPipeline[Total Commitment], tbl_HypoPipeline[Moody''s Industry], tbl_IndustryAFUS[[#This Row],[Moody''s Industry]] & "*", tbl_HypoPipeline[Fund], Fund,tbl_HypoPipeline[Exclude?],"") + SUMIFS(tbl_HFS[Total Commitment],tbl_HFS[Moody''s Industry],tbl_IndustryAFUS[[#This Row],[Moody''s Industry]],tbl_HFS[Fund],Fund) -> 0 | G115: =tbl_IndustryAFUS[[#This Row],[Existing]]+tbl_IndustryAFUS[[#This Row],[Pipeline]] -> 0
D116: Utilities: Water | E116: =SUMIFS(tbl_ExistingData[Total Commitment], tbl_ExistingData[Moodys Industry], tbl_IndustryAFUS[[#This Row],[Moody''s Industry]] & "*", tbl_ExistingData[Fund], Fund, tbl_ExistingData[Paid Off Date], "=") -> 0 | F116: =SUMIFS(tbl_HypoPipeline[Total Commitment], tbl_HypoPipeline[Moody''s Industry], tbl_IndustryAFUS[[#This Row],[Moody''s Industry]] & "*", tbl_HypoPipeline[Fund], Fund,tbl_HypoPipeline[Exclude?],"") + SUMIFS(tbl_HFS[Total Commitment],tbl_HFS[Moody''s Industry],tbl_IndustryAFUS[[#This Row],[Moody''s Industry]],tbl_HFS[Fund],Fund) -> 0 | G116: =tbl_IndustryAFUS[[#This Row],[Existing]]+tbl_IndustryAFUS[[#This Row],[Pipeline]] -> 0
D117: Wholesale | E117: =SUMIFS(tbl_ExistingData[Total Commitment], tbl_ExistingData[Moodys Industry], tbl_IndustryAFUS[[#This Row],[Moody''s Industry]] & "*", tbl_ExistingData[Fund], Fund, tbl_ExistingData[Paid Off Date], "=") -> 0 | F117: =SUMIFS(tbl_HypoPipeline[Total Commitment], tbl_HypoPipeline[Moody''s Industry], tbl_IndustryAFUS[[#This Row],[Moody''s Industry]] & "*", tbl_HypoPipeline[Fund], Fund,tbl_HypoPipeline[Exclude?],"") + SUMIFS(tbl_HFS[Total Commitment],tbl_HFS[Moody''s Industry],tbl_IndustryAFUS[[#This Row],[Moody''s Industry]],tbl_HFS[Fund],Fund) -> 0 | G117: =tbl_IndustryAFUS[[#This Row],[Existing]]+tbl_IndustryAFUS[[#This Row],[Pipeline]] -> 0
A119: Sponsor Concentration
A120: All Tranche Commitmentments per Sponsor < 10% * SMA Commitment
A122: Bucket | B122: =Commitment*0.1 -> 10000000 | D122: Sponsor | E122: Existing | F122: Pipeline | G122: Existing + Pipeline
A123: Available | B123: =B122-B128 -> 10000000 | D123: ABRY Partners | E123: =SUMIFS(tbl_ExistingData[Total Commitment], tbl_ExistingData[Sponsor], "*" & tbl_SponsorAFUS[[#This Row],[Sponsor]] & "*", tbl_ExistingData[Fund], Fund, tbl_ExistingData[Paid Off Date], "=") -> 0 | F123: =SUMIFS(tbl_HypoPipeline[Total Commitment], tbl_HypoPipeline[Sponsor], "*" & tbl_SponsorAFUS[[#This Row],[Sponsor]] & "*", tbl_HypoPipeline[Fund], Fund,tbl_HypoPipeline[Exclude?],"") -> 0 | G123: =tbl_SponsorAFUS[[#This Row],[Existing]]+tbl_SponsorAFUS[[#This Row],[Pipeline ]] -> 0
D124: A&M Capital Partners | E124: =SUMIFS(tbl_ExistingData[Total Commitment], tbl_ExistingData[Sponsor], "*" & tbl_SponsorAFUS[[#This Row],[Sponsor]] & "*", tbl_ExistingData[Fund], Fund, tbl_ExistingData[Paid Off Date], "=") -> 0 | F124: =SUMIFS(tbl_HypoPipeline[Total Commitment], tbl_HypoPipeline[Sponsor], "*" & tbl_SponsorAFUS[[#This Row],[Sponsor]] & "*", tbl_HypoPipeline[Fund], Fund,tbl_HypoPipeline[Exclude?],"") -> 0 | G124: =tbl_SponsorAFUS[[#This Row],[Existing]]+tbl_SponsorAFUS[[#This Row],[Pipeline ]] -> 0
A125: =INDEX(tbl_SponsorAFUS[],MATCH(B128,tbl_SponsorAFUS[Existing + Pipeline],0),1) -> ABRY Partners | D125: AMERICAN CAPITAL, LTD. | E125: =SUMIFS(tbl_ExistingData[Total Commitment], tbl_ExistingData[Sponsor], "*" & tbl_SponsorAFUS[[#This Row],[Sponsor]] & "*", tbl_ExistingData[Fund], Fund, tbl_ExistingData[Paid Off Date], "=") -> 0 | F125: =SUMIFS(tbl_HypoPipeline[Total Commitment], tbl_HypoPipeline[Sponsor], "*" & tbl_SponsorAFUS[[#This Row],[Sponsor]] & "*", tbl_HypoPipeline[Fund], Fund,tbl_HypoPipeline[Exclude?],"") -> 0 | G125: =tbl_SponsorAFUS[[#This Row],[Existing]]+tbl_SponsorAFUS[[#This Row],[Pipeline ]] -> 0
A126: Existing Portfolio | B126: =INDEX(tbl_SponsorAFUS[],MATCH(B128,tbl_SponsorAFUS[Existing + Pipeline],0),2) -> 0 | D126: AEA Investors LLC | E126: =SUMIFS(tbl_ExistingData[Total Commitment], tbl_ExistingData[Sponsor], "*" & tbl_SponsorAFUS[[#This Row],[Sponsor]] & "*", tbl_ExistingData[Fund], Fund, tbl_ExistingData[Paid Off Date], "=") -> 0 | F126: =SUMIFS(tbl_HypoPipeline[Total Commitment], tbl_HypoPipeline[Sponsor], "*" & tbl_SponsorAFUS[[#This Row],[Sponsor]] & "*", tbl_HypoPipeline[Fund], Fund,tbl_HypoPipeline[Exclude?],"") -> 0 | G126: =tbl_SponsorAFUS[[#This Row],[Existing]]+tbl_SponsorAFUS[[#This Row],[Pipeline ]] -> 0
A127: Hypo Pipeline | B127: =INDEX(tbl_SponsorAFUS[],MATCH(B128,tbl_SponsorAFUS[Existing + Pipeline],0),3) -> 0 | D127: AEPI | E127: =SUMIFS(tbl_ExistingData[Total Commitment], tbl_ExistingData[Sponsor], "*" & tbl_SponsorAFUS[[#This Row],[Sponsor]] & "*", tbl_ExistingData[Fund], Fund, tbl_ExistingData[Paid Off Date], "=") -> 0 | F127: =SUMIFS(tbl_HypoPipeline[Total Commitment], tbl_HypoPipeline[Sponsor], "*" & tbl_SponsorAFUS[[#This Row],[Sponsor]] & "*", tbl_HypoPipeline[Fund], Fund,tbl_HypoPipeline[Exclude?],"") -> 0 | G127: =tbl_SponsorAFUS[[#This Row],[Existing]]+tbl_SponsorAFUS[[#This Row],[Pipeline ]] -> 0
A128: Aggregate Exposure | B128: =LARGE(tbl_SponsorAFUS[Existing + Pipeline],3) -> 0 | D128: APAX PARTNERS | E128: =SUMIFS(tbl_ExistingData[Total Commitment], tbl_ExistingData[Sponsor], "*" & tbl_SponsorAFUS[[#This Row],[Sponsor]] & "*", tbl_ExistingData[Fund], Fund, tbl_ExistingData[Paid Off Date], "=") -> 0 | F128: =SUMIFS(tbl_HypoPipeline[Total Commitment], tbl_HypoPipeline[Sponsor], "*" & tbl_SponsorAFUS[[#This Row],[Sponsor]] & "*", tbl_HypoPipeline[Fund], Fund,tbl_HypoPipeline[Exclude?],"") -> 0 | G128: =tbl_SponsorAFUS[[#This Row],[Existing]]+tbl_SponsorAFUS[[#This Row],[Pipeline ]] -> 0
D129: Ardian | E129: =SUMIFS(tbl_ExistingData[Total Commitment], tbl_ExistingData[Sponsor], "*" & tbl_SponsorAFUS[[#This Row],[Sponsor]] & "*", tbl_ExistingData[Fund], Fund, tbl_ExistingData[Paid Off Date], "=") -> 0 | F129: =SUMIFS(tbl_HypoPipeline[Total Commitment], tbl_HypoPipeline[Sponsor], "*" & tbl_SponsorAFUS[[#This Row],[Sponsor]] & "*", tbl_HypoPipeline[Fund], Fund,tbl_HypoPipeline[Exclude?],"") -> 0 | G129: =tbl_SponsorAFUS[[#This Row],[Existing]]+tbl_SponsorAFUS[[#This Row],[Pipeline ]] -> 0
D130: ARLINGTON CAPITAL PARTNERS | E130: =SUMIFS(tbl_ExistingData[Total Commitment], tbl_ExistingData[Sponsor], "*" & tbl_SponsorAFUS[[#This Row],[Sponsor]] & "*", tbl_ExistingData[Fund], Fund, tbl_ExistingData[Paid Off Date], "=") -> 0 | F130: =SUMIFS(tbl_HypoPipeline[Total Commitment], tbl_HypoPipeline[Sponsor], "*" & tbl_SponsorAFUS[[#This Row],[Sponsor]] & "*", tbl_HypoPipeline[Fund], Fund,tbl_HypoPipeline[Exclude?],"") -> 0 | G130: =tbl_SponsorAFUS[[#This Row],[Existing]]+tbl_SponsorAFUS[[#This Row],[Pipeline ]] -> 0
D131: AUA PRIVATE EQUITY PARTNERS | E131: =SUMIFS(tbl_ExistingData[Total Commitment], tbl_ExistingData[Sponsor], "*" & tbl_SponsorAFUS[[#This Row],[Sponsor]] & "*", tbl_ExistingData[Fund], Fund, tbl_ExistingData[Paid Off Date], "=") -> 0 | F131: =SUMIFS(tbl_HypoPipeline[Total Commitment], tbl_HypoPipeline[Sponsor], "*" & tbl_SponsorAFUS[[#This Row],[Sponsor]] & "*", tbl_HypoPipeline[Fund], Fund,tbl_HypoPipeline[Exclude?],"") -> 0 | G131: =tbl_SponsorAFUS[[#This Row],[Existing]]+tbl_SponsorAFUS[[#This Row],[Pipeline ]] -> 0
D132: AUDAX PRIVATE EQUITY | E132: =SUMIFS(tbl_ExistingData[Total Commitment], tbl_ExistingData[Sponsor], "*" & tbl_SponsorAFUS[[#This Row],[Sponsor]] & "*", tbl_ExistingData[Fund], Fund, tbl_ExistingData[Paid Off Date], "=") -> 0 | F132: =SUMIFS(tbl_HypoPipeline[Total Commitment], tbl_HypoPipeline[Sponsor], "*" & tbl_SponsorAFUS[[#This Row],[Sponsor]] & "*", tbl_HypoPipeline[Fund], Fund,tbl_HypoPipeline[Exclude?],"") -> 0 | G132: =tbl_SponsorAFUS[[#This Row],[Existing]]+tbl_SponsorAFUS[[#This Row],[Pipeline ]] -> 0
